Workbook

Sheet Filtro
A1: Comuna / Hospital | B1: (Todas)
A2: Mes | B2: (Todas)
A4: Etiquetas de fila | B4: Suma de Col01 | C4: Suma de Col02 | D4: Suma de Col03 | E4: Suma de Col04 | F4: Suma de Col05 | G4: Suma de Col06 | H4: Suma de Col07 | I4: Suma de Col08 | J4: Suma de Col09 | K4: Suma de Col10 | L4: Suma de Col11 | M4: Suma de Col12 | N4: Suma de Col13 | O4: Suma de Col14 | P4: Suma de Col15 | Q4: Suma de Col16 | R4: Suma de Col17 | S4: Suma de Col18 | T4: Suma de Col19 | U4: Suma de Col20 | V4: Suma de Col21 | W4: Suma de Col22 | X4: Suma de Col23 | Y4: Suma de Col24 | Z4: Suma de Col25 | AA4: Suma de Col26 | AB4: Suma de Col27 | AC4: Suma de Col28 | AD4: Suma de Col29 | AE4: Suma de Col30 | AF4: Suma de Col31 | AG4: Suma de Col32 | AH4: Suma de Col33 | AI4: Suma de Col34 | AJ4: Suma de Col35 | AK4: Suma de Col36 | AL4: Suma de Col37 | AM4: Suma de Col38 | AN4: Suma de Col39 | AO4: Suma de Col40 | AP4: Suma de Col41 | AQ4: Suma de col42 | AR4: Suma de col43 | AS4: Suma de col44 | AT4: Suma de col45 | AU4: Suma de col46 | AV4: Suma de col47 | AW4: Suma de col48 | AX4: Suma de col49
A5: 01010101 | B5: 2 | D5: 0 | E5: 0 | F5: 1 | G5: 1 | T5: 1 | U5: 1
A6: 01010103 | B6: 835 | D6: 0 | E6: 50 | F6: 172 | G6: 216 | H6: 177 | I6: 143 | J6: 58 | K6: 17 | L6: 2 | M6: 0 | N6: 0 | O6: 0 | P6: 0 | Q6: 0 | R6: 0 | T6: 837 | U6: 830
A7: 01010201 | B7: 239 | D7: 3 | E7: 23 | F7: 58 | G7: 64 | H7: 59 | I7: 25 | J7: 5 | K7: 0 | L7: 0 | M7: 2 | T7: 238 | U7: 238 | V7: 21
A8: 01010203 | B8: 36867 | D8: 86 | E8: 3289 | F8: 8858 | G8: 10644 | H8: 8388 | I8: 4392 | J8: 1129 | K8: 74 | L8: 3 | M8: 4 | N8: 0 | O8: 0 | P8: 0 | Q8: 0 | R8: 0 | T8: 36531 | U8: 35684 | V8: 6316
A9: 01010401 | B9: 6 | G9: 2 | I9: 1 | K9: 1 | L9: 2 | T9: 11 | U9: 11
A10: 01010403 | B10: 47421 | D10: 635 | E10: 7081 | F10: 8971 | G10: 9024 | H10: 7441 | I10: 5498 | J10: 4343 | K10: 3203 | L10: 1085 | M10: 107 | N10: 20 | O10: 8 | P10: 5 | Q10: 0 | R10: 0 | S10: 118 | T10: 46076 | U10: 46662 | V10: 10
A11: 01010601 | B11: 44 | D11: 0 | E11: 1 | F11: 0 | G11: 6 | H11: 7 | I11: 5 | J11: 5 | K11: 10 | L11: 4 | M11: 2 | N11: 1 | O11: 2 | P11: 0 | Q11: 1 | R11: 0 | T11: 40 | U11: 40
A12: 01010603 | B12: 15155 | D12: 73 | E12: 323 | F12: 829 | G12: 1297 | H12: 1429 | I12: 1564 | J12: 1727 | K12: 1938 | L12: 2064 | M12: 1730 | N12: 1231 | O12: 608 | P12: 208 | Q12: 93 | R12: 41 | T12: 15014 | U12: 14839
A13: 01010901 | B13: 2 | K13: 1 | L13: 1 | T13: 55 | U13: 55
A14: 01010903 | B14: 962 | K14: 305 | L14: 384 | M14: 204 | N14: 69 | T14: 986 | U14: 966
A15: 01030100 | B15: 3098 | C15: 2885 | D15: 8 | E15: 16 | F15: 34 | G15: 147 | H15: 2994 | I15: 1367 | J15: 541 | K15: 31 | L15: 1055 | M15: 385 | N15: 234 | O15: 151 | P15: 49 | Q15: 2477 | R15: 2356 | S15: 48 | T15: 269
A16: 01030100A | B16: 41 | C16: 15 | D16: 36 | AE16: 6 | AF16: 9 | AG16: 2 | AH16: 12 | AI16: 3 | AJ16: 7 | AK16: 4 | AL16: 8 | AM16: 39
A17: 01030200 | B17: 76 | C17: 60 | D17: 0 | E17: 0 | F17: 0 | G17: 1 | H17: 63 | I17: 47 | J17: 5 | K17: 0 | L17: 11 | M17: 4 | N17: 4 | O17: 0 | P17: 0 | Q17: 42 | R17: 42 | S17: 3 | T17: 6
A18: 01030200B | B18: 737 | C18: 267 | D18: 478 | AE18: 75 | AF18: 134 | AG18: 73 | AH18: 135 | AI18: 58 | AJ18: 116 | AK18: 61 | AL18: 93 | AM18: 723
A19: 01030300 | B19: 1132 | C19: 980 | D19: 0 | E19: 2 | F19: 5 | G19: 45 | H19: 962 | I19: 13 | J19: 918 | K19: 31 | L19: 0 | M19: 0 | N19: 0 | O19: 0 | P19: 15 | Q19: 352 | R19: 268 | S19: 14 | T19: 67
A20: 01030300C | B20: 48 | C20: 10 | D20: 18 | AE20: 0 | AF20: 2 | AG20: 2 | AH20: 2 | AI20: 3 | AJ20: 2 | AK20: 5 | AL20: 12 | AM20: 28
A21: 01030400 | B21: 413 | C21: 409 | H21: 161 | I21: 4 | J21: 119 | K21: 38 | L21: 0 | M21: 0 | N21: 0 | O21: 0
A22: 01030400D | B22: 283 | C22: 110 | D22: 180 | AE22: 22 | AF22: 11 | AG22: 18 | AH22: 28 | AI22: 16 | AJ22: 42 | AK22: 54 | AL22: 99 | AM22: 286
A23: 01030500 | B23: 223 | C23: 83 | D23: 140 | E23: 752 | F23: 165 | G23: 587
A24: 01030600 | B24: 734 | C24: 339 | D24: 420 | E24: 329 | F24: 119 | G24: 210
A25: 01030700 | B25: 62 | C25: 18 | D25: 19 | E25: 33 | F25: 13 | G25: 20
A26: 01030800 | B26: 19 | C26: 5 | D26: 14 | E26: 52 | F26: 20 | G26: 32
A27: 01031100 | B27: 38 | D27: 28 | E27: 10
A28: 01031300 | B28: 1 | D28: 1
A29: 01060100 | B29: 6247 | C29: 1 | D29: 25 | E29: 42 | F29: 108 | G29: 292 | H29: 1087 | I29: 4171 | J29: 521 | K29: 6113 | L29: 475
A30: 01060101 | B30: 30 | C30: 4 | D30: 11 | E30: 3 | F30: 4 | G30: 0 | H30: 5 | I30: 3 | J30: 0
A31: 01070000 | B31: 748 | C31: 5 | D31: 420 | E31: 323
A32: 01080000 | B32: 2 | C32: 0 | D32: 2 | E32: 0
A33: 01080001 | B33: 3 | D33: 0 | E33: 0 | F33: 1 | G33: 1 | H33: 0 | I33: 1 | J33: 0 | K33: 0 | L33: 0 | T33: 2 | U33: 2
A34: 01080002 | B34: 812 | D34: 5 | E34: 60 | F34: 185 | G34: 216 | H34: 201 | I34: 101 | J34: 38 | K34: 6 | L34: 0 | M34: 0 | N34: 0 | O34: 0 | P34: 0 | Q34: 0 | R34: 0 | T34: 791 | U34: 803
A35: 01080003 | B35: 43 | C35: 0 | D35: 7 | E35: 16 | F35: 19 | G35: 0 | H35: 1 | I35: 0 | J35: 0
A36: 01080004 | B36: 271 | C36: 6 | D36: 60 | E36: 67 | F36: 128 | G36: 0 | H36: 3 | I36: 1 | J36: 6
A37: 01080008 | B37: 6538 | C37: 22 | D37: 568 | E37: 1547 | F37: 1918 | G37: 1479 | H37: 783 | I37: 209 | J37: 11 | K37: 1 | L37: 0 | M37: 111 | N37: 122 | O37: 603
A38: 01080009 | B38: 5501 | C38: 12 | D38: 450 | E38: 1268 | F38: 1655 | G38: 1255 | H38: 675 | I38: 175 | J38: 10 | K38: 1 | L38: 0 | M38: 62 | N38: 87 | O38: 420
A39: 01080010 | B39: 2157 | C39: 17 | D39: 464 | E39: 800 | F39: 546 | G39: 232 | H39: 86 | I39: 11 | J39: 1 | K39: 0 | L39: 0 | M39: 29 | N39: 44 | O39: 214
A40: 01080011 | B40: 425 | C40: 1 | D40: 16 | E40: 88 | F40: 112 | G40: 102 | H40: 69 | I40: 25 | J40: 7 | K40: 4 | L40: 1 | M40: 4
A41: 01080013 | B41: 433 | C41: 7 | D41: 79 | E41: 75 | F41: 86 | G41: 72 | H41: 48 | I41: 34 | J41: 19 | K41: 11 | L41: 2 | M41: 11
A42: 01080014 | B42: 124 | C42: 3 | D42: 42 | E42: 22 | F42: 19 | G42: 20 | H42: 5 | I42: 5 | J42: 3 | K42: 3 | L42: 2 | M42: 17
A43: 01080016 | B43: 428
A44: 01080017 | B44: 78 | C44: 0 | D44: 3 | E44: 10
A45: 01080018 | B45: 529 | C45: 0 | D45: 8 | E45: 46
A46: 01080019 | B46: 716 | C46: 1 | D46: 4 | E46: 53
A47: 01080020 | B47: 9735
A48: 01080021 | B48: 2490 | C48: 116 | D48: 733 | E48: 499 | F48: 433 | G48: 315 | H48: 218 | I48: 112 | J48: 49 | K48: 14 | L48: 1 | M48: 143
A49: 01080022 | B49: 1163 | C49: 3 | D49: 80 | E49: 209 | F49: 292 | G49: 248 | H49: 144 | I49: 92 | J49: 81 | K49: 13 | L49: 1 | M49: 20
A50: 01080023 | B50: 1396 | C50: 62 | D50: 368 | E50: 321 | F50: 276 | G50: 178 | H50: 112 | I50: 56 | J50: 21 | K50: 2 | L50: 0 | M50: 68
A51: 01080030 | B51: 3 | F51: 1 | G51: 1 | H51: 1 | T51: 5 | U51: 5 | W51: 3 | X51: 16 | Y51: 6 | Z51: 0
A52: 01080040 | B52: 1339 | D52: 4 | E52: 102 | F52: 289 | G52: 397 | H52: 327 | I52: 165 | J52: 50 | K52: 1 | L52: 1 | M52: 3 | T52: 1315 | U52: 1319 | W52: 341 | X52: 1003 | Y52: 191 | Z52: 27
A53: 01080090 | B53: 277
A54: 01090010 | B54: 422 | C54: 411
A55: 01090020 | B55: 4352 | C55: 3368
A56: 01090030 | B56: 37 | C56: 42
A57: 01090040 | B57: 65 | C57: 0 | D57: 0 | E57: 6
A58: 01090050 | B58: 3442 | C58: 20 | D58: 414 | E58: 913 | F58: 930 | G58: 678 | H58: 368 | I58: 109 | J58: 9 | K58: 1 | L58: 0 | M58: 66 | N58: 62 | O58: 279
A59: 01090060 | B59: 3231 | C59: 54 | D59: 467 | E59: 768 | F59: 791 | G59: 560 | H59: 320 | I59: 153 | J59: 101 | K59: 17 | L59: 0 | M59: 89
A60: 01110106 | B60: 23 | D60: 2 | E60: 2 | F60: 2 | G60: 6 | H60: 7 | I60: 1 | J60: 3 | T60: 20 | U60: 20 | W60: 18 | X60: 26 | Y60: 2 | Z60: 0
A61: 01110107 | B61: 3921 | D61: 12 | E61: 288 | F61: 957 | G61: 1184 | H61: 860 | I61: 483 | J61: 123 | K61: 14 | L61: 0 | M61: 0 | T61: 3876 | U61: 3865 | V61: 5 | W61: 1329 | X61: 3187 | Y61: 387 | Z61: 46
A62: 01200010 | B62: 28 | C62: 7 | D62: 14 | E62: 1 | F62: 0 | G62: 0 | H62: 0 | I62: 0 | J62: 0 | K62: 0 | L62: 2 | M62: 2 | N62: 1 | O62: 2 | P62: 1 | Q62: 0 | R62: 1 | S62: 0 | T62: 2 | U62: 1 | V62: 0 | W62: 0 | X62: 3 | Y62: 0 | Z62: 0 | AA62: 0 | AB62: 1 | AC62: 1 | AD62: 1 | AE62: 0 | AF62: 0 | AG62: 0 | AH62: 1 | AI62: 0 | AJ62: 1 | AK62: 0 | AL62: 0 | AM62: 25
A63: 01200020 | B63: 14 | C63: 3 | D63: 11 | E63: 0 | F63: 0 | G63: 0 | H63: 0 | I63: 0 | J63: 1 | K63: 0 | L63: 1 | M63: 0 | N63: 0 | O63: 2 | P63: 1 | Q63: 0 | R63: 3 | S63: 0 | T63: 2 | U63: 0 | V63: 1 | W63: 0 | X63: 0 | Y63: 0 | Z63: 1 | AA63: 0 | AB63: 0 | AC63: 0 | AD63: 1 | AE63: 1 | AF63: 0 | AG63: 0 | AH63: 0 | AI63: 0 | AJ63: 0 | AK63: 0 | AL63: 0 | AM63: 14
A64: 01200030 | B64: 80 | C64: 11 | D64: 69 | E64: 0 | F64: 0 | G64: 0 | H64: 0 | I64: 0 | J64: 1 | K64: 4 | L64: 5 | M64: 1 | N64: 15 | O64: 2 | P64: 13 | Q64: 1 | R64: 10 | S64: 0 | T64: 5 | U64: 2 | V64: 6 | W64: 0 | X64: 6 | Y64: 0 | Z64: 0 | AA64: 1 | AB64: 1 | AC64: 0 | AD64: 6 | AE64: 0 | AF64: 0 | AG64: 0 | AH64: 1 | AI64: 0 | AJ64: 0 | AK64: 0 | AL64: 0 | AM64: 79
A65: 01200031 | B65: 34 | C65: 16 | D65: 18 | E65: 13 | F65: 14 | G65: 1 | H65: 3 | I65: 1 | J65: 1 | K65: 1 | L65: 0 | M65: 0 | N65: 0 | O65: 0 | P65: 0 | Q65: 0 | R65: 0 | S65: 0 | T65: 0 | U65: 0 | V65: 0 | W65: 0 | X65: 0 | Y65: 0 | Z65: 0 | AA65: 0 | AB65: 0 | AC65: 0 | AD65: 0 | AE65: 0 | AF65: 0 | AG65: 0 | AH65: 0 | AI65: 0 | AJ65: 0 | AK65: 0 | AL65: 0 | AM65: 30
A66: 01200032 | B66: 133 | C66: 74 | D66: 59 | E66: 66 | F66: 49 | G66: 5 | H66: 10 | I66: 2 | J66: 0 | K66: 1 | L66: 0 | M66: 0 | N66: 0 | AM66: 111
A67: 01200033 | B67: 2 | C67: 2 | D67: 0 | E67: 1 | I67: 1 | AM67: 1
A68: 01200034 | B68: 42 | C68: 23 | D68: 19 | E68: 13 | F68: 14 | G68: 6 | H68: 2 | I68: 2 | J68: 0 | K68: 2 | L68: 3 | M68: 0 | N68: 0 | AM68: 33
A69: 01200035 | B69: 16 | C69: 12 | D69: 4 | E69: 10 | F69: 4 | G69: 2 | H69: 0 | I69: 0 | J69: 0 | K69: 0 | L69: 0 | M69: 0 | N69: 0 | AM69: 11
A70: 01501010 | B70: 412 | C70: 157 | D70: 255 | E70: 3 | F70: 6 | G70: 1 | H70: 5 | I70: 1 | J70: 4 | K70: 4 | L70: 5 | M70: 3 | N70: 8 | O70: 6 | P70: 10 | Q70: 10 | R70: 20 | S70: 17 | T70: 31 | U70: 18 | V70: 35 | W70: 23 | X70: 22 | Y70: 19 | Z70: 32 | AA70: 20 | AB70: 35 | AC70: 15 | AD70: 25 | AE70: 17 | AF70: 17 | AG70: 340 | AH70: 0 | AI70: 1
A71: 01501020 | B71: 646 | C71: 269 | D71: 377 | E71: 1 | F71: 4 | G71: 0 | H71: 1 | I71: 2 | J71: 6 | K71: 2 | L71: 11 | M71: 4 | N71: 5 | O71: 5 | P71: 16 | Q71: 5 | R71: 21 | S71: 17 | T71: 34 | U71: 15 | V71: 43 | W71: 38 | X71: 40 | Y71: 39 | Z71: 50 | AA71: 38 | AB71: 39 | AC71: 60 | AD71: 49 | AE71: 43 | AF71: 58 | AG71: 428 | AH71: 0 | AI71: 1
A72: 01501030 | B72: 677 | C72: 285 | D72: 392 | E72: 0 | F72: 0 | G72: 0 | H72: 4 | I72: 0 | J72: 2 | K72: 3 | L72: 7 | M72: 3 | N72: 12 | O72: 7 | P72: 16 | Q72: 14 | R72: 15 | S72: 23 | T72: 25 | U72: 27 | V72: 40 | W72: 49 | X72: 50 | Y72: 51 | Z72: 65 | AA72: 43 | AB72: 58 | AC72: 35 | AD72: 56 | AE72: 30 | AF72: 42 | AG72: 480 | AH72: 9 | AI72: 0
A73: 01501040 | B73: 5 | C73: 0 | D73: 5 | E73: 0 | F73: 0 | G73: 0 | H73: 0 | I73: 0 | J73: 1 | K73: 0 | L73: 1 | M73: 0 | N73: 0 | O73: 0 | P73: 0 | Q73: 0 | R73: 0 | S73: 0 | T73: 0 | U73: 0 | V73: 0 | W73: 0 | X73: 0 | Y73: 0 | Z73: 0 | AA73: 0 | AB73: 0 | AC73: 0 | AD73: 0 | AE73: 0 | AF73: 3 | AG73: 4 | AH73: 0 | AI73: 0
A74: 02010101 | B74: 12732 | C74: 5805 | D74: 6805 | E74: 273 | F74: 4270 | G74: 430 | H74: 3147 | I74: 416 | J74: 118 | K74: 107 | L74: 77 | M74: 49 | N74: 20 | O74: 78 | P74: 121 | Q74: 135 | R74: 420 | S74: 219 | T74: 165 | U74: 99 | V74: 144 | W74: 167 | X74: 142 | Y74: 141 | Z74: 165 | AA74: 192 | AB74: 281 | AC74: 263 | AD74: 276 | AE74: 273 | AF74: 203 | AG74: 341 | AH74: 12213 | AI74: 1454 | AJ74: 10 | AK74: 505
A75: 02010103 | B75: 15377 | C75: 2419 | D75: 12791 | E75: 4238 | S75: 428 | T75: 1761 | U75: 1819 | V75: 1929 | W75: 1609 | X75: 1160 | Y75: 778 | Z75: 651 | AA75: 458 | AB75: 238 | AC75: 170 | AD75: 92 | AE75: 31 | AF75: 8 | AG75: 7 | AH75: 14894 | AI75: 1283 | AK75: 72
A76: 02010105 | B76: 169 | C76: 98 | D76: 70 | M76: 23 | N76: 6 | O76: 49 | P76: 49 | Q76: 42 | R76: 0 | AH76: 164 | AJ76: 8 | AK76: 1
A77: 02010201 | B77: 43208 | C77: 20386 | D77: 22274 | E77: 69 | F77: 151 | G77: 4033 | H77: 235 | I77: 3798 | J77: 279 | K77: 3848 | L77: 3533 | M77: 3486 | N77: 2992 | O77: 4821 | P77: 2021 | Q77: 1912 | R77: 2379 | S77: 735 | T77: 392 | U77: 217 | V77: 227 | W77: 254 | X77: 244 | Y77: 277 | Z77: 375 | AA77: 458 | AB77: 510 | AC77: 525 | AD77: 1368 | AE77: 1259 | AF77: 1238 | AG77: 1571 | AH77: 42119 | AI77: 2367 | AJ77: 1545 | AK77: 330
A78: 02010320 | B78: 6244 | C78: 3139 | D78: 3105 | E78: 30 | F78: 37 | G78: 1253 | H78: 1162 | I78: 168 | J78: 171 | K78: 1092 | L78: 1081 | M78: 581 | N78: 629 | O78: 15 | P78: 25 | Q78: 31
A79: 02010321 | B79: 478 | C79: 293 | D79: 185 | E79: 2 | F79: 1 | G79: 30 | H79: 57 | I79: 27 | J79: 12 | K79: 154 | L79: 82 | M79: 74 | N79: 32 | O79: 6 | P79: 1 | Q79: 3
A80: 02010322 | B80: 107 | C80: 74 | D80: 33 | E80: 1 | F80: 0 | G80: 8 | H80: 2 | I80: 1 | J80: 5 | K80: 36 | L80: 12 | M80: 28 | N80: 13 | O80: 0 | P80: 1 | Q80: 2
A81: 02010420 | B81: 192 | C81: 113 | D81: 79 | E81: 1 | F81: 1 | G81: 10 | H81: 8 | I81: 12 | J81: 6 | K81: 52 | L81: 43 | M81: 30 | N81: 18 | O81: 8 | P81: 3 | Q81: 0
A82: 02010421 | B82: 54 | C82: 40 | D82: 14 | E82: 1 | F82: 2 | G82: 2 | H82: 1 | I82: 5 | J82: 4 | K82: 11 | L82: 5 | M82: 18 | N82: 2 | O82: 3 | P82: 0 | Q82: 0
A83: 02010422 | B83: 20 | C83: 17 | D83: 3 | E83: 0 | F83: 0 | G83: 1 | H83: 0 | I83: 0 | J83: 1 | K83: 6 | L83: 2 | M83: 9 | N83: 0 | O83: 1 | P83: 0 | Q83: 0
A84: 02021707 | B84: 1663 | C84: 0 | D84: 6281 | E84: 0 | F84: 131 | G84: 0
A85: 02021730 | B85: 8203 | C85: 4097 | D85: 4106 | E85: 46 | F85: 47 | G85: 22 | H85: 21 | I85: 15 | J85: 22 | K85: 27 | L85: 34 | M85: 1745 | N85: 1752 | O85: 32 | P85: 61 | Q85: 14 | R85: 16 | S85: 55 | T85: 40 | U85: 1345 | V85: 1278 | W85: 796 | X85: 835
A86: 02021740 | B86: 7657 | C86: 4000 | D86: 3657 | E86: 49 | F86: 54 | G86: 1344 | H86: 1295 | I86: 242 | J86: 233 | K86: 1444 | L86: 1261 | M86: 866 | N86: 773 | O86: 55 | P86: 41 | Q86: 40
A87: 02021760 | B87: 3332 | C87: 1670 | D87: 1662 | E87: 1388 | F87: 1380 | G87: 282 | H87: 282
A88: 02021790 | B88: 407 | C88: 223 | D88: 184 | E88: 13 | F88: 27 | G88: 38 | H88: 53 | I88: 21 | J88: 13 | K88: 64 | L88: 38 | M88: 80 | N88: 48 | O88: 7 | P88: 5
A89: 02021810 | B89: 440 | C89: 275 | D89: 165 | E89: 6 | F89: 2 | G89: 26 | H89: 45 | I89: 21 | J89: 16 | K89: 144 | L89: 74 | M89: 73 | N89: 28 | O89: 5 | P89: 0
A90: 02021820 | B90: 99 | C90: 72 | D90: 27 | E90: 2 | F90: 1 | G90: 6 | H90: 2 | I90: 3 | J90: 3 | K90: 32 | L90: 11 | M90: 27 | N90: 9 | O90: 2 | P90: 1
A91: 02021830 | B91: 6206 | C91: 1623 | D91: 1555
A92: 02200010 | B92: 5242 | C92: 1978 | D92: 3264 | E92: 9 | F92: 25 | G92: 227 | H92: 336 | I92: 245 | J92: 437 | K92: 254 | L92: 420 | M92: 217 | N92: 390 | O92: 220 | P92: 393 | Q92: 183 | R92: 325 | S92: 152 | T92: 293 | U92: 131 | V92: 224 | W92: 82 | X92: 129 | Y92: 89 | Z92: 145 | AA92: 75 | AB92: 75 | AC92: 64 | AD92: 47 | AE92: 30 | AF92: 25
A93: 02200020 | B93: 4683 | C93: 1989 | D93: 2694 | E93: 2 | F93: 6 | G93: 63 | H93: 45 | I93: 90 | J93: 104 | K93: 77 | L93: 84 | M93: 66 | N93: 88 | O93: 78 | P93: 151 | Q93: 111 | R93: 167 | S93: 107 | T93: 168 | U93: 116 | V93: 110 | W93: 96 | X93: 65 | Y93: 304 | Z93: 444 | AA93: 313 | AB93: 394 | AC93: 271 | AD93: 381 | AE93: 295 | AF93: 487
A94: 02200030 | B94: 3039 | C94: 1184 | D94: 1855 | E94: 4 | F94: 4 | G94: 35 | H94: 65 | I94: 63 | J94: 60 | K94: 37 | L94: 108 | M94: 58 | N94: 112 | O94: 69 | P94: 105 | Q94: 104 | R94: 147 | S94: 89 | T94: 164 | U94: 85 | V94: 131 | W94: 72 | X94: 108 | Y94: 168 | Z94: 282 | AA94: 159 | AB94: 210 | AC94: 134 | AD94: 172 | AE94: 107 | AF94: 187
A95: 02200040 | B95: 2651 | C95: 802 | D95: 1849 | E95: 1 | F95: 3 | G95: 23 | H95: 48 | I95: 35 | J95: 98 | K95: 36 | L95: 100 | M95: 57 | N95: 87 | O95: 59 | P95: 138 | Q95: 72 | R95: 164 | S95: 66 | T95: 174 | U95: 73 | V95: 166 | W95: 50 | X95: 106 | Y95: 97 | Z95: 218 | AA95: 96 | AB95: 243 | AC95: 76 | AD95: 159 | AE95: 61 | AF95: 145
A96: 03010501 | B96: 62859 | C96: 22372 | D96: 41192 | K96: 56 | L96: 85 | M96: 65 | N96: 181 | O96: 100 | P96: 253 | Q96: 194 | R96: 521 | S96: 346 | T96: 903 | U96: 563 | V96: 1488 | W96: 969 | X96: 2534 | Y96: 1625 | Z96: 4090 | AA96: 2423 | AB96: 5153 | AC96: 3003 | AD96: 5559 | AE96: 3431 | AF96: 5729 | AG96: 3309 | AH96: 5108 | AI96: 2923 | AJ96: 4370 | AK96: 3365 | AL96: 5217 | AM96: 62342
A97: 03010502 | B97: 24030 | C97: 8449 | D97: 15154 | K97: 9 | L97: 18 | M97: 16 | N97: 45 | O97: 35 | P97: 101 | Q97: 70 | R97: 212 | S97: 130 | T97: 309 | U97: 202 | V97: 515 | W97: 374 | X97: 869 | Y97: 607 | Z97: 1405 | AA97: 838 | AB97: 1816 | AC97: 1062 | AD97: 1929 | AE97: 1424 | AF97: 2256 | AG97: 1324 | AH97: 2037 | AI97: 1210 | AJ97: 1668 | AK97: 1147 | AL97: 1974 | AM97: 22879
A98: 03010504 | B98: 20343 | C98: 6780 | D98: 13392 | H98: 1 | I98: 1 | K98: 17 | L98: 31 | M98: 24 | N98: 64 | O98: 32 | P98: 115 | Q98: 94 | R98: 214 | S98: 137 | T98: 345 | U98: 237 | V98: 583 | W98: 329 | X98: 975 | Y98: 557 | Z98: 1481 | AA98: 788 | AB98: 1831 | AC98: 914 | AD98: 1842 | AE98: 996 | AF98: 1778 | AG98: 976 | AH98: 1565 | AI98: 837 | AJ98: 1191 | AK98: 841 | AL98: 1377 | AM98: 19896
A99: 03010505 | B99: 5378 | C99: 1986 | D99: 3285 | K99: 2 | L99: 6 | M99: 1 | N99: 8 | O99: 28 | P99: 13 | Q99: 27 | R99: 70 | S99: 33 | T99: 29 | U99: 70 | V99: 119 | W99: 77 | X99: 197 | Y99: 104 | Z99: 374 | AA99: 244 | AB99: 391 | AC99: 303 | AD99: 405 | AE99: 332 | AF99: 457 | AG99: 260 | AH99: 356 | AI99: 198 | AJ99: 418 | AK99: 307 | AL99: 442 | AM99: 5262
A100: 03020101 | B100: 11337 | C100: 4883 | D100: 6454 | E100: 283 | F100: 250 | G100: 440 | H100: 481 | I100: 367 | J100: 373 | K100: 240 | L100: 186 | M100: 196 | N100: 255 | O100: 287 | P100: 382 | Q100: 320 | R100: 463 | S100: 282 | T100: 433 | U100: 283 | V100: 485 | W100: 293 | X100: 399 | Y100: 299 | Z100: 479 | AA100: 294 | AB100: 450 | AC100: 311 | AD100: 459 | AE100: 218 | AF100: 365 | AG100: 247 | AH100: 338 | AI100: 183 | AJ100: 254 | AK100: 152 | AL100: 182 | AM100: 188 | AN100: 220 | AO100: 11250 | AP100: 117 | AQ100: 118 | AR100: 25 | AS100: 16
A101: 03020201 | B101: 208 | C101: 126 | D101: 82 | E101: 30 | F101: 13 | G101: 71 | H101: 47 | I101: 27 | J101: 22 | AO101: 183 | AP101: 8 | AQ101: 6 | AR101: 1 | AS101: 0
A102: 03020301 | B102: 376 | C102: 171 | D102: 205 | E102: 11 | F102: 8 | G102: 12 | H102: 3 | I102: 7 | J102: 1 | K102: 5 | L102: 1 | M102: 0 | N102: 5 | O102: 2 | P102: 2 | Q102: 4 | R102: 2 | S102: 4 | T102: 7 | U102: 1 | V102: 9 | W102: 3 | X102: 5 | Y102: 12 | Z102: 10 | AA102: 9 | AB102: 10 | AC102: 8 | AD102: 15 | AE102: 8 | AF102: 18 | AG102: 10 | AH102: 16 | AI102: 17 | AJ102: 16 | AK102: 25 | AL102: 28 | AM102: 33 | AN102: 49 | AO102: 372 | AP102: 6 | AQ102: 4 | AR102: 0 | AS102: 0
A103: 03020401 | B103: 4179 | C103: 1781 | D103: 2398 | E103: 59 | F103: 47 | G103: 136 | H103: 91 | I103: 110 | J103: 94 | K103: 70 | L103: 60 | M103: 60 | N103: 89 | O103: 128 | P103: 175 | Q103: 146 | R103: 211 | S103: 136 | T103: 187 | U103: 97 | V103: 181 | W103: 92 | X103: 155 | Y103: 96 | Z103: 161 | AA103: 90 | AB103: 195 | AC103: 111 | AD103: 180 | AE103: 82 | AF103: 129 | AG103: 110 | AH103: 139 | AI103: 73 | AJ103: 125 | AK103: 83 | AL103: 90 | AM103: 102 | AN103: 89 | AO103: 4130 | AP103: 35 | AQ103: 22 | AR103: 8 | AS103: 93
A104: 03020402 | B104: 1186 | C104: 394 | D104: 792 | I104: 92 | J104: 63 | K104: 57 | L104: 56 | M104: 29 | N104: 34 | O104: 26 | P104: 50 | Q104: 19 | R104: 35 | S104: 20 | T104: 30 | U104: 6 | V104: 47 | W104: 7 | X104: 39 | Y104: 11 | Z104: 53 | AA104: 16 | AB104: 40 | AC104: 9 | AD104: 52 | AE104: 19 | AF104: 68 | AG104: 25 | AH104: 59 | AI104: 17 | AJ104: 70 | AK104: 20 | AL104: 49 | AM104: 21 | AN104: 47 | AO104: 1160 | AP104: 8 | AQ104: 1 | AR104: 2 | AS104: 4
A105: 03020403 | B105: 489 | C105: 248 | D105: 241 | U105: 0 | V105: 4 | W105: 5 | X105: 5 | Y105: 3 | Z105: 15 | AA105: 7 | AB105: 16 | AC105: 15 | AD105: 10 | AE105: 14 | AF105: 25 | AG105: 34 | AH105: 38 | AI105: 48 | AJ105: 33 | AK105: 58 | AL105: 40 | AM105: 64 | AN105: 55 | AO105: 492 | AP105: 10 | AQ105: 1 | AR105: 0 | AS105: 5
A106: 03020501 | B106: 219257 | C106: 79889 | D106: 139368 | E106: 2302 | F106: 2430 | G106: 3688 | H106: 3495 | I106: 3993 | J106: 3971 | K106: 3431 | L106: 3537 | M106: 3399 | N106: 5519 | O106: 3240 | P106: 5994 | Q106: 3169 | R106: 6852 | S106: 3380 | T106: 7540 | U106: 3290 | V106: 8154 | W106: 3623 | X106: 8572 | Y106: 4260 | Z106: 10672 | AA106: 5528 | AB106: 12092 | AC106: 6361 | AD106: 12767 | AE106: 6526 | AF106: 11658 | AG106: 6814 | AH106: 10782 | AI106: 5864 | AJ106: 8797 | AK106: 5111 | AL106: 7268 | AM106: 5910 | AN106: 9268 | AO106: 212976 | AP106: 1579 | AQ106: 1674 | AR106: 425 | AS106: 72
A107: 03020604 | B107: 13401 | C107: 5032 | D107: 8369 | E107: 2188 | F107: 2169 | G107: 1150 | H107: 1072 | I107: 360 | J107: 371 | K107: 136 | L107: 201 | M107: 111 | N107: 460 | O107: 42 | P107: 602 | Q107: 42 | R107: 749 | S107: 45 | T107: 636 | U107: 52 | V107: 393 | W107: 57 | X107: 214 | Y107: 57 | Z107: 176 | AA107: 77 | AB107: 205 | AC107: 98 | AD107: 218 | AE107: 104 | AF107: 213 | AG107: 142 | AH107: 200 | AI107: 133 | AJ107: 182 | AK107: 124 | AL107: 132 | AM107: 114 | AN107: 176 | AO107: 12872 | AP107: 40 | AQ107: 52 | AR107: 113 | AS107: 50
A108: 03020702 | B108: 30179 | C108: 14326 | D108: 15853 | E108: 368 | F108: 422 | G108: 547 | H108: 589 | I108: 256 | J108: 264 | K108: 112 | L108: 117 | M108: 159 | N108: 276 | O108: 134 | P108: 273 | Q108: 193 | R108: 442 | S108: 279 | T108: 473 | U108: 304 | V108: 574 | W108: 358 | X108: 696 | Y108: 654 | Z108: 942 | AA108: 1032 | AB108: 1097 | AC108: 1002 | AD108: 1132 | AE108: 1570 | AF108: 1524 | AG108: 2009 | AH108: 2162 | AI108: 1476 | AJ108: 1310 | AK108: 1830 | AL108: 1333 | AM108: 2043 | AN108: 2227 | AO108: 28896 | AP108: 478 | AQ108: 226 | AR108: 116 | AS108: 72
A109: 03020806 | B109: 32400 | C109: 11084 | D109: 21316 | E109: 879 | F109: 860 | G109: 550 | H109: 574 | I109: 660 | J109: 654 | K109: 469 | L109: 488 | M109: 449 | N109: 1086 | O109: 482 | P109: 1981 | Q109: 617 | R109: 2300 | S109: 588 | T109: 1936 | U109: 557 | V109: 1717 | W109: 511 | X109: 1372 | Y109: 601 | Z109: 1269 | AA109: 707 | AB109: 1327 | AC109: 819 | AD109: 1301 | AE109: 759 | AF109: 1088 | AG109: 644 | AH109: 880 | AI109: 570 | AJ109: 708 | AK109: 521 | AL109: 581 | AM109: 701 | AN109: 1194 | AO109: 29596 | AP109: 171 | AQ109: 1054 | AR109: 572 | AS109: 356
A110: 03020908 | B110: 8503 | C110: 2794 | D110: 5709 | E110: 60 | F110: 52 | G110: 194 | H110: 117 | I110: 593 | J110: 380 | K110: 302 | L110: 372 | M110: 309 | N110: 565 | O110: 173 | P110: 465 | Q110: 140 | R110: 421 | S110: 108 | T110: 479 | U110: 117 | V110: 445 | W110: 92 | X110: 379 | Y110: 109 | Z110: 343 | AA110: 67 | AB110: 364 | AC110: 79 | AD110: 370 | AE110: 94 | AF110: 250 | AG110: 91 | AH110: 252 | AI110: 114 | AJ110: 183 | AK110: 66 | AL110: 117 | AM110: 84 | AN110: 143 | AO110: 7410 | AP110: 51 | AQ110: 52 | AR110: 228 | AS110: 227
A111: 03021106 | B111: 3426 | C111: 1563 | D111: 1863 | E111: 9 | F111: 3 | G111: 8 | H111: 17 | I111: 17 | J111: 12 | K111: 34 | L111: 43 | M111: 42 | N111: 80 | O111: 72 | P111: 119 | Q111: 112 | R111: 186 | S111: 162 | T111: 249 | U111: 212 | V111: 226 | W111: 229 | X111: 244 | Y111: 240 | Z111: 209 | AA111: 174 | AB111: 183 | AC111: 129 | AD111: 117 | AE111: 122 | AF111: 175
A112: 03021107 | B112: 2053 | C112: 967 | D112: 1086 | E112: 3 | F112: 4 | G112: 5 | H112: 11 | I112: 13 | J112: 19 | K112: 17 | L112: 34 | M112: 38 | N112: 77 | O112: 52 | P112: 74 | Q112: 92 | R112: 122 | S112: 118 | T112: 138 | U112: 139 | V112: 152 | W112: 144 | X112: 133 | Y112: 153 | Z112: 127 | AA112: 85 | AB112: 84 | AC112: 59 | AD112: 52 | AE112: 48 | AF112: 59
A113: 03021108 | B113: 1824 | C113: 760 | D113: 1064 | E113: 2 | F113: 6 | G113: 4 | H113: 11 | I113: 10 | J113: 19 | K113: 25 | L113: 33 | M113: 41 | N113: 51 | O113: 53 | P113: 85 | Q113: 66 | R113: 103 | S113: 95 | T113: 162 | U113: 116 | V113: 132 | W113: 109 | X113: 168 | Y113: 109 | Z113: 110 | AA113: 52 | AB113: 87 | AC113: 40 | AD113: 45 | AE113: 38 | AF113: 52
A114: 03030101 | B114: 458 | C114: 192 | D114: 266
A115: 03030102 | B115: 20827 | C115: 7675 | D115: 13152
A116: 03030103 | B116: 1043 | C116: 60 | D116: 983
A117: 03030104 | B117: 1452 | C117: 544 | D117: 908
A118: 03030110 | B118: 4082 | C118: 1594 | D118: 2488
A119: 03030120 | B119: 10696 | C119: 4084 | D119: 6612 | E119: 14 | F119: 49 | G119: 242 | H119: 379 | I119: 327 | J119: 497 | K119: 320 | L119: 502 | M119: 268 | N119: 510 | O119: 274 | P119: 550 | Q119: 274 | R119: 526 | S119: 257 | T119: 453 | U119: 249 | V119: 383 | W119: 197 | X119: 260 | Y119: 472 | Z119: 735 | AA119: 458 | AB119: 638 | AC119: 377 | AD119: 534 | AE119: 355 | AF119: 596
A120: 03030130 | B120: 9169 | C120: 2595 | D120: 6574 | E120: 17 | F120: 35 | G120: 123 | H120: 365 | I120: 198 | J120: 523 | K120: 182 | L120: 554 | M120: 208 | N120: 528 | O120: 189 | P120: 500 | Q120: 210 | R120: 527 | S120: 183 | T120: 480 | U120: 142 | V120: 344 | W120: 106 | X120: 186 | Y120: 345 | Z120: 871 | AA120: 304 | AB120: 684 | AC120: 203 | AD120: 491 | AE120: 185 | AF120: 486
A121: 03030140 | B121: 17932 | C121: 6039 | D121: 12194 | E121: 96 | F121: 96 | G121: 85 | H121: 77 | I121: 95 | J121: 111 | K121: 124 | L121: 220 | M121: 124 | N121: 277 | O121: 112 | P121: 306 | Q121: 95 | R121: 459 | S121: 141 | T121: 503 | U121: 144 | V121: 586 | W121: 183 | X121: 808 | Y121: 342 | Z121: 1090 | AA121: 528 | AB121: 1292 | AC121: 646 | AD121: 1330 | AE121: 711 | AF121: 1371 | AG121: 739 | AH121: 1196 | AI121: 889 | AJ121: 924 | AK121: 986 | AL121: 1548 | AM121: 17833
A122: 03030150 | B122: 3990 | C122: 2030 | D122: 1696 | E122: 9 | F122: 13 | G122: 6 | H122: 5 | I122: 8 | J122: 6 | K122: 9 | L122: 43 | M122: 10 | N122: 22 | O122: 10 | P122: 18 | Q122: 58 | R122: 34 | S122: 19 | T122: 58 | U122: 35 | V122: 41 | W122: 42 | X122: 81 | Y122: 197 | Z122: 65 | AA122: 159 | AB122: 140 | AC122: 261 | AD122: 284 | AE122: 358 | AF122: 366 | AG122: 155 | AH122: 169 | AI122: 562 | AJ122: 163 | AK122: 132 | AL122: 188 | AM122: 3520
A123: 03030160 | B123: 1406 | C123: 350 | D123: 1068 | E123: 103 | F123: 93 | G123: 18 | H123: 14 | I123: 19 | J123: 32 | K123: 12 | L123: 69 | M123: 13 | N123: 101 | O123: 12 | P123: 100 | Q123: 19 | R123: 103 | S123: 15 | T123: 82 | U123: 11 | V123: 73 | W123: 7 | X123: 82 | Y123: 13 | Z123: 64 | AA123: 23 | AB123: 78 | AC123: 20 | AD123: 42 | AE123: 21 | AF123: 53 | AG123: 16 | AH123: 34 | AI123: 12 | AJ123: 18 | AK123: 16 | AL123: 30 | AM123: 1375
A124: 03030170 | B124: 86 | C124: 1 | D124: 48 | E124: 0 | F124: 2 | G124: 0 | H124: 0 | I124: 0 | J124: 0 | K124: 0 | L124: 4 | M124: 0 | N124: 10 | O124: 1 | P124: 10 | Q124: 0 | R124: 5 | S124: 0 | T124: 0 | U124: 0 | V124: 2 | W124: 0 | X124: 2 | Y124: 0 | Z124: 0 | AA124: 0 | AB124: 1 | AC124: 0 | AD124: 2 | AE124: 0 | AF124: 3 | AG124: 0 | AH124: 0 | AI124: 0 | AJ124: 0 | AK124: 0 | AL124: 7 | AM124: 47
A125: 03030180 | B125: 1291 | C125: 579 | D125: 700 | E125: 12 | F125: 5 | G125: 5 | H125: 1 | I125: 11 | J125: 8 | K125: 20 | L125: 4 | M125: 12 | N125: 19 | O125: 25 | P125: 31 | Q125: 33 | R125: 53 | S125: 33 | T125: 45 | U125: 17 | V125: 81 | W125: 52 | X125: 53 | Y125: 25 | Z125: 68 | AA125: 13 | AB125: 72 | AC125: 32 | AD125: 88 | AE125: 31 | AF125: 20 | AG125: 39 | AH125: 34 | AI125: 57 | AJ125: 26 | AK125: 162 | AL125: 92 | AM125: 1247
A126: 03030190 | B126: 263 | C126: 164 | D126: 104 | E126: 2 | F126: 3 | G126: 3 | H126: 4 | I126: 5 | J126: 12 | K126: 7 | L126: 4 | M126: 9 | N126: 10 | O126: 9 | P126: 8 | Q126: 8 | R126: 12 | S126: 18 | T126: 3 | U126: 17 | V126: 7 | W126: 14 | X126: 1 | Y126: 13 | Z126: 15 | AA126: 14 | AB126: 4 | AC126: 7 | AD126: 6 | AE126: 14 | AF126: 3 | AG126: 10 | AH126: 5 | AI126: 2 | AJ126: 3 | AK126: 12 | AL126: 4 | AM126: 255
A127: 03030200 | B127: 88 | C127: 52 | D127: 33 | E127: 0 | F127: 1 | G127: 0 | H127: 0 | I127: 1 | J127: 2 | K127: 3 | L127: 3 | M127: 3 | N127: 2 | O127: 2 | P127: 0 | Q127: 7 | R127: 2 | S127: 3 | T127: 2 | U127: 6 | V127: 6 | W127: 9 | X127: 0 | Y127: 3 | Z127: 8 | AA127: 3 | AB127: 1 | AC127: 6 | AD127: 3 | AE127: 2 | AF127: 2 | AG127: 1 | AH127: 0 | AI127: 0 | AJ127: 1 | AK127: 3 | AL127: 0 | AM127: 73
A128: 03030250 | B128: 6317 | C128: 3916 | D128: 2401 | E128: 497 | F128: 321 | G128: 2651 | H128: 1318 | I128: 428 | J128: 229 | K128: 39 | L128: 67 | M128: 21 | N128: 13 | O128: 3 | P128: 10 | Q128: 3 | R128: 5 | S128: 5 | T128: 4 | U128: 1 | V128: 12 | W128: 4 | X128: 5 | Y128: 9 | Z128: 13 | AA128: 16 | AB128: 17 | AC128: 56 | AD128: 34 | AE128: 29 | AF128: 44 | AG128: 29 | AH128: 96 | AI128: 26 | AJ128: 46 | AK128: 31 | AL128: 49 | AM128: 68 | AN128: 118 | AO128: 5802 | AP128: 10 | AQ128: 1 | AR128: 150 | AS128: 76
A129: 03030270 | B129: 159 | C129: 83 | D129: 76 | E129: 0 | F129: 4 | G129: 2 | H129: 7 | I129: 8 | J129: 0 | K129: 0 | L129: 2 | M129: 3 | N129: 0 | O129: 0 | P129: 0 | Q129: 5 | R129: 0 | S129: 0 | T129: 1 | U129: 9 | V129: 0 | W129: 1 | X129: 0 | Y129: 0 | Z129: 0 | AA129: 2 | AB129: 0 | AC129: 8 | AD129: 5 | AE129: 4 | AF129: 7 | AG129: 9 | AH129: 15 | AI129: 16 | AJ129: 10 | AK129: 11 | AL129: 9 | AM129: 5 | AN129: 16 | AO129: 161 | AP129: 23 | AQ129: 0 | AR129: 0 | AS129: 0
A130: 03030280 | B130: 25 | C130: 8 | D130: 17 | E130: 1 | F130: 0 | G130: 0 | H130: 0 | I130: 0 | J130: 2 | K130: 1 | L130: 0 | M130: 0 | N130: 1 | O130: 0 | P130: 3 | Q130: 1 | R130: 1 | S130: 1 | T130: 2 | U130: 0 | V130: 0 | W130: 2 | X130: 1 | Y130: 2 | Z130: 0 | AA130: 0 | AB130: 3 | AC130: 0 | AD130: 0 | AE130: 0 | AF130: 0 | AG130: 0 | AH130: 1 | AI130: 0 | AJ130: 1 | AK130: 0 | AL130: 1 | AM130: 0 | AN130: 1 | AO130: 1 | AP130: 2 | AQ130: 0 | AR130: 0 | AS130: 0
A131: 03030290 | B131: 183814
A132: 03030330 | B132: 10122 | C132: 4143 | D132: 5979 | E132: 39 | F132: 64 | G132: 286 | H132: 535 | I132: 242 | J132: 511 | K132: 234 | L132: 409 | M132: 140 | N132: 295 | O132: 149 | P132: 272 | Q132: 130 | R132: 256 | S132: 145 | T132: 237 | U132: 134 | V132: 186 | W132: 97 | X132: 159 | Y132: 606 | Z132: 707 | AA132: 572 | AB132: 705 | AC132: 621 | AD132: 621 | AE132: 748 | AF132: 1022
A133: 03030340 | B133: 1693 | C133: 687 | D133: 1006 | E133: 12 | F133: 18 | G133: 12 | H133: 43 | I133: 11 | J133: 25 | K133: 7 | L133: 16 | M133: 3 | N133: 10 | O133: 7 | P133: 5 | Q133: 4 | R133: 9 | S133: 16 | T133: 9 | U133: 9 | V133: 6 | W133: 6 | X133: 5 | Y133: 97 | Z133: 148 | AA133: 127 | AB133: 148 | AC133: 110 | AD133: 172 | AE133: 266 | AF133: 392
A134: 03030350 | B134: 3781 | C134: 1441 | D134: 2340
A135: 03030360 | B135: 5411 | C135: 2386 | D135: 3025 | E135: 12 | F135: 13 | G135: 14 | H135: 33 | I135: 30 | J135: 42 | K135: 58 | L135: 94 | M135: 94 | N135: 175 | O135: 133 | P135: 225 | Q135: 204 | R135: 326 | S135: 256 | T135: 417 | U135: 326 | V135: 380 | W135: 347 | X135: 378 | Y135: 371 | Z135: 340 | AA135: 225 | AB135: 248 | AC135: 171 | AD135: 144 | AE135: 145 | AF135: 210
A136: 03040210 | B136: 818 | D136: 818 | L136: 5 | N136: 77 | P136: 221 | R136: 234 | T136: 134 | V136: 101 | X136: 26 | Z136: 9 | AB136: 7 | AD136: 1 | AF136: 3 | AO136: 814 | AP136: 0 | AQ136: 2 | AR136: 0 | AS136: 0
A137: 03040220 | B137: 870 | D137: 870 | F137: 0 | H137: 4 | J137: 5 | L137: 25 | N137: 74 | P137: 88 | R137: 84 | T137: 99 | V137: 75 | X137: 92 | Z137: 106 | AB137: 97 | AD137: 50 | AF137: 28 | AH137: 17 | AJ137: 10 | AL137: 7 | AN137: 9 | AO137: 862 | AP137: 0 | AQ137: 2 | AR137: 0 | AS137: 0
A138: 03050400 | B138: 697 | C138: 253 | D138: 444 | E138: 138 | F138: 219 | G138: 115 | H138: 225
A139: 03050500 | B139: 117 | C139: 62 | D139: 55 | E139: 36 | F139: 33 | G139: 26 | H139: 22
A140: 03050600 | B140: 373 | C140: 134 | D140: 239 | E140: 89 | F140: 133 | G140: 45 | H140: 106
A141: 03050700 | B141: 290 | C141: 130 | D141: 160 | E141: 99 | F141: 88 | G141: 31 | H141: 72
A142: 03050710 | B142: 39 | C142: 20 | D142: 19 | E142: 14 | F142: 8 | G142: 6 | H142: 11
A143: 03051000A | B143: 10 | C143: 4 | D143: 6 | E143: 0 | F143: 0 | G143: 0 | H143: 1 | I143: 1 | J143: 1 | K143: 0 | L143: 0 | M143: 0 | N143: 0 | O143: 0 | P143: 0 | Q143: 0 | R143: 0 | S143: 3 | T143: 2 | U143: 0 | V143: 0 | W143: 0 | X143: 0 | Y143: 0 | Z143: 2
A144: 03051100 | B144: 126 | C144: 84 | D144: 42 | E144: 0 | F144: 0 | G144: 0 | H144: 1 | I144: 1 | J144: 0 | K144: 0 | L144: 0 | M144: 0 | N144: 0 | O144: 2 | P144: 0 | Q144: 2 | R144: 1 | S144: 50 | T144: 32 | U144: 5 | V144: 0 | W144: 23 | X144: 7 | Y144: 1 | Z144: 1
A145: 03051200 | B145: 110 | C145: 64 | D145: 46 | E145: 0 | F145: 0 | G145: 0 | H145: 0 | I145: 0 | J145: 0 | K145: 1 | L145: 1 | M145: 0 | N145: 0 | O145: 0 | P145: 1 | Q145: 0 | R145: 1 | S145: 39 | T145: 27 | U145: 10 | V145: 6 | W145: 10 | X145: 8 | Y145: 4 | Z145: 2
A146: 03051300 | B146: 105 | C146: 55 | D146: 50 | E146: 1 | F146: 0 | G146: 0 | H146: 1 | I146: 0 | J146: 3 | K146: 1 | L146: 0 | M146: 0 | N146: 1 | O146: 0 | P146: 0 | Q146: 0 | R146: 1 | S146: 31 | T146: 29 | U146: 8 | V146: 3 | W146: 10 | X146: 6 | Y146: 4 | Z146: 6
A147: 03051400 | B147: 18 | C147: 8 | D147: 10 | G147: 1 | I147: 1 | L147: 1 | S147: 2 | T147: 1 | X147: 1 | Y147: 4 | Z147: 7
A148: 03051500 | B148: 9 | C148: 2 | D148: 7 | E148: 0 | F148: 0 | G148: 0 | H148: 0 | I148: 1 | J148: 1 | K148: 0 | L148: 0 | M148: 0 | N148: 0 | O148: 0 | P148: 0 | Q148: 0 | R148: 1 | S148: 0 | T148: 3 | U148: 0 | V148: 0 | W148: 1 | X148: 1 | Y148: 0 | Z148: 1
A149: 03051600 | B149: 10 | C149: 7 | D149: 3 | E149: 0 | F149: 0 | G149: 0 | H149: 0 | I149: 0 | J149: 0 | K149: 0 | L149: 0 | M149: 2 | N149: 0 | O149: 0 | P149: 0 | Q149: 0 | R149: 0 | S149: 4 | T149: 3 | U149: 1 | V149: 0 | W149: 0 | X149: 0 | Y149: 0 | Z149: 0
A150: 03051700 | B150: 16 | C150: 7 | D150: 9 | E150: 0 | F150: 0 | G150: 0 | H150: 0 | I150: 0 | J150: 0 | K150: 0 | L150: 0 | M150: 0 | N150: 0 | O150: 0 | P150: 0 | Q150: 1 | R150: 0 | S150: 4 | T150: 6 | U150: 0 | V150: 2 | W150: 1 | X150: 1 | Y150: 1 | Z150: 0
A151: 03051800 | B151: 13 | C151: 3 | D151: 10 | S151: 2 | T151: 7 | U151: 1 | V151: 2 | Z151: 1
A152: 03051900 | B152: 4 | C152: 0 | D152: 4 | Z152: 4
A153: 03052000 | B153: 10 | C153: 3 | D153: 7 | E153: 0 | F153: 0 | G153: 0 | H153: 0 | I153: 1 | J153: 1 | K153: 0 | L153: 0 | M153: 0 | N153: 0 | O153: 0 | P153: 0 | Q153: 0 | R153: 1 | S153: 1 | T153: 3 | U153: 0 | V153: 0 | W153: 1 | X153: 1 | Y153: 0 | Z153: 1
A154: 03052100 | B154: 8 | C154: 4 | D154: 4 | E154: 0 | F154: 0 | G154: 0 | H154: 0 | I154: 0 | J154: 0 | K154: 1 | L154: 0 | M154: 0 | N154: 0 | O154: 1 | P154: 0 | Q154: 0 | R154: 1 | S154: 1 | T154: 3 | U154: 0 | V154: 0 | W154: 1 | X154: 0 | Y154: 0 | Z154: 0
A155: 03052200 | B155: 6 | C155: 3 | D155: 3 | E155: 0 | F155: 0 | G155: 1 | H155: 0 | I155: 0 | J155: 0 | K155: 0 | L155: 0 | M155: 0 | N155: 0 | O155: 0 | P155: 0 | Q155: 0 | R155: 1 | S155: 2 | T155: 2 | U155: 0 | V155: 0 | W155: 0 | X155: 0
A156: 03052300 | B156: 2 | C156: 2 | D156: 0 | I156: 1 | K156: 1
A157: 03052400 | B157: 1 | C157: 1 | D157: 0 | I157: 1
A158: 03052500 | B158: 9 | C158: 3 | D158: 6 | E158: 0 | F158: 0 | G158: 0 | H158: 0 | I158: 0 | J158: 0 | K158: 0 | L158: 0 | M158: 0 | N158: 0 | O158: 1 | P158: 0 | Q158: 0 | R158: 1 | S158: 1 | T158: 3 | U158: 0 | V158: 0 | W158: 1 | X158: 1 | Y158: 0 | Z158: 1
A159: 03052600 | B159: 19 | C159: 12 | D159: 7 | E159: 0 | F159: 0 | G159: 0 | H159: 0 | I159: 4 | J159: 0 | K159: 3 | L159: 2 | M159: 3 | N159: 0 | O159: 0 | P159: 0 | Q159: 1 | R159: 0 | S159: 1 | T159: 4 | U159: 0 | V159: 0 | W159: 0 | X159: 1 | Y159: 0 | Z159: 0
A160: 03052700 | B160: 26 | C160: 21 | D160: 5 | E160: 0 | F160: 0 | G160: 0 | H160: 0 | I160: 5 | J160: 3 | K160: 7 | L160: 0 | M160: 3 | N160: 0 | O160: 0 | P160: 0 | Q160: 1 | R160: 1 | S160: 5 | T160: 1 | U160: 0 | V160: 0 | W160: 0 | X160: 0 | Y160: 0 | Z160: 0
A161: 03052800 | B161: 86 | C161: 51 | D161: 35 | E161: 2 | F161: 0 | G161: 0 | H161: 0 | I161: 12 | J161: 4 | K161: 18 | L161: 1 | M161: 2 | N161: 5 | O161: 5 | P161: 0 | Q161: 0 | R161: 0 | S161: 3 | T161: 10 | U161: 1 | V161: 3 | W161: 4 | X161: 7 | Y161: 4 | Z161: 5
A162: 03052900 | B162: 16 | C162: 5 | D162: 11 | G162: 1 | I162: 1 | K162: 2 | T162: 2 | X162: 2 | Y162: 1 | Z162: 7
A163: 03053000 | B163: 10 | C163: 3 | D163: 7 | E163: 0 | F163: 0 | G163: 0 | H163: 0 | I163: 1 | J163: 1 | K163: 0 | L163: 0 | M163: 0 | N163: 0 | O163: 0 | P163: 0 | Q163: 0 | R163: 1 | S163: 1 | T163: 3 | U163: 0 | V163: 0 | W163: 1 | X163: 1 | Y163: 0 | Z163: 1
A164: 03053100 | B164: 5 | C164: 3 | D164: 2 | E164: 0 | F164: 0 | G164: 0 | H164: 0 | I164: 0 | J164: 0 | K164: 0 | L164: 0 | M164: 0 | N164: 0 | O164: 0 | P164: 0 | Q164: 2 | R164: 0 | S164: 1 | T164: 2 | U164: 0 | V164: 0 | W164: 0 | X164: 0 | Y164: 0 | Z164: 0
A165: 03053200 | B165: 17 | C165: 10 | D165: 7 | E165: 0 | F165: 0 | G165: 0 | H165: 0 | I165: 1 | J165: 1 | K165: 1 | L165: 1 | M165: 2 | N165: 0 | O165: 3 | P165: 1 | Q165: 0 | R165: 1 | S165: 3 | T165: 3 | U165: 0 | V165: 0 | W165: 0 | X165: 0 | Y165: 0 | Z165: 0
A166: 03053300 | B166: 27 | C166: 15 | D166: 12 | E166: 0 | F166: 0 | G166: 0 | H166: 0 | I166: 1 | J166: 1 | K166: 3 | L166: 1 | M166: 1 | N166: 1 | O166: 2 | P166: 1 | Q166: 0 | R166: 0 | S166: 8 | T166: 7 | U166: 0 | V166: 0 | W166: 0 | X166: 1 | Y166: 0 | Z166: 0
A167: 03053400 | B167: 8 | C167: 3 | D167: 5 | K167: 3 | L167: 1 | T167: 1 | Z167: 3
A168: 03053500 | B168: 7 | C168: 3 | D168: 4 | E168: 0 | F168: 0 | G168: 0 | H168: 0 | I168: 1 | J168: 1 | K168: 0 | L168: 0 | M168: 0 | N168: 0 | O168: 0 | P168: 0 | Q168: 0 | R168: 1 | S168: 1 | T168: 1 | U168: 0 | V168: 0 | W168: 1 | X168: 1 | Y168: 0 | Z168: 0
A169: 03053600 | B169: 1 | C169: 1 | D169: 0 | K169: 1
A170: 03053700 | B170: 17 | C170: 10 | D170: 7 | E170: 0 | F170: 0 | G170: 0 | H170: 0 | I170: 0 | J170: 0 | K170: 0 | L170: 0 | M170: 0 | N170: 0 | O170: 0 | P170: 0 | Q170: 0 | R170: 1 | S170: 7 | T170: 6 | U170: 1 | V170: 0 | W170: 2 | X170: 0 | Y170: 0 | Z170: 0
A171: 03053800 | B171: 87 | C171: 46 | D171: 41 | E171: 0 | F171: 0 | G171: 0 | H171: 0 | I171: 0 | J171: 3 | K171: 6 | L171: 4 | M171: 3 | N171: 0 | O171: 4 | P171: 3 | Q171: 6 | R171: 4 | S171: 19 | T171: 19 | U171: 3 | V171: 2 | W171: 3 | X171: 2 | Y171: 2 | Z171: 4
A172: 03053900 | B172: 16 | C172: 6 | D172: 10 | E172: 0 | F172: 0 | G172: 0 | H172: 0 | I172: 1 | J172: 0 | K172: 3 | L172: 0 | M172: 0 | N172: 0 | O172: 0 | P172: 0 | Q172: 0 | R172: 1 | S172: 1 | T172: 3 | U172: 0 | V172: 0 | W172: 0 | X172: 3 | Y172: 1 | Z172: 3
A173: 03500020 | B173: 7607 | C173: 3767 | D173: 3840 | E173: 45 | F173: 45 | G173: 22 | H173: 21 | I173: 18 | J173: 25 | K173: 25 | L173: 33 | M173: 1682 | N173: 1704 | O173: 34 | P173: 63 | Q173: 17 | R173: 17 | S173: 53 | T173: 40 | U173: 1242 | V173: 1176 | W173: 629 | X173: 716
A174: 03500030 | B174: 627 | C174: 331 | D174: 296 | E174: 1 | F174: 3 | G174: 0 | H174: 1 | I174: 0 | J174: 0 | K174: 2 | L174: 1 | M174: 71 | N174: 62 | O174: 0 | P174: 2 | Q174: 0 | R174: 0 | S174: 2 | T174: 2 | U174: 102 | V174: 106 | W174: 153 | X174: 119
A175: 03500040 | B175: 2847 | C175: 1429 | D175: 1418 | E175: 1198 | F175: 1197 | G175: 231 | H175: 221
A176: 03500050 | B176: 474 | C176: 237 | D176: 237 | E176: 188 | F176: 178 | G176: 49 | H176: 59
A177: 03500060 | B177: 11 | C177: 4 | D177: 7 | E177: 2 | F177: 5 | G177: 2 | H177: 2
A178: 03500120 | B178: 157
A179: 03500130 | B179: 192
A180: 03500140 | B180: 153
A181: 03500150 | B181: 13
A182: 03500160 | B182: 5933 | D182: 540 | E182: 469
A183: 03500170 | B183: 61 | D183: 9 | E183: 5
A184: 03500200 | B184: 3847 | C184: 469 | E184: 211
A185: 03500210 | B185: 3473 | C185: 441 | E185: 208
A186: 03500290 | B186: 2353 | C186: 1163 | D186: 1190 | E186: 5 | F186: 4 | G186: 14 | H186: 25 | I186: 270 | J186: 232 | K186: 501 | L186: 624 | M186: 330 | N186: 271 | O186: 43 | P186: 34
A187: 03500300 | B187: 315 | C187: 204 | D187: 111 | E187: 1 | F187: 0 | G187: 9 | H187: 4 | I187: 51 | J187: 19 | K187: 76 | L187: 41 | M187: 58 | N187: 40 | O187: 9 | P187: 7
A188: 03500331 | B188: 34 | C188: 23 | D188: 11 | E188: 0 | F188: 0 | G188: 3 | H188: 2 | I188: 1 | J188: 2 | K188: 6 | L188: 7 | M188: 12 | N188: 0 | O188: 1 | P188: 0 | Q188: 0
A189: 03500332 | B189: 33 | C189: 26 | D189: 7 | E189: 0 | F189: 0 | G189: 0 | H189: 0 | I189: 0 | J189: 2 | K189: 11 | L189: 3 | M189: 15 | N189: 2 | O189: 0 | P189: 0 | Q189: 0
A190: 03500333 | B190: 3 | C190: 1 | D190: 2 | H190: 1 | M190: 1 | N190: 1
A191: 03500334 | B191: 4 | C191: 3 | D191: 1 | I191: 1 | K191: 2 | L191: 1
A192: 03500335 | B192: 1 | C192: 1 | D192: 0 | M192: 1
A193: 03500336 | B193: 2 | C193: 0 | D193: 2 | E193: 0 | F193: 0 | G193: 0 | H193: 0 | I193: 0 | J193: 0 | K193: 0 | L193: 0 | M193: 0 | N193: 0 | O193: 0 | P193: 0 | Q193: 0 | R193: 0 | S193: 0 | T193: 1 | U193: 0 | V193: 0 | W193: 0 | X193: 1 | Y193: 0 | Z193: 0
A194: 03500337 | B194: 60 | C194: 41 | D194: 19 | E194: 0 | F194: 0 | G194: 0 | H194: 0 | I194: 2 | J194: 1 | K194: 2 | L194: 0 | M194: 0 | N194: 0 | O194: 2 | P194: 0 | Q194: 2 | R194: 1 | S194: 26 | T194: 14 | U194: 3 | V194: 0 | W194: 4 | X194: 3 | Y194: 0 | Z194: 0
A195: 03500338 | B195: 83 | C195: 51 | D195: 32 | E195: 0 | F195: 0 | G195: 0 | H195: 0 | I195: 4 | J195: 1 | K195: 2 | L195: 1 | M195: 2 | N195: 0 | O195: 1 | P195: 1 | Q195: 1 | R195: 2 | S195: 29 | T195: 19 | U195: 4 | V195: 2 | W195: 8 | X195: 5 | Y195: 0 | Z195: 1
A196: 03500339 | B196: 129 | C196: 68 | D196: 61 | E196: 0 | F196: 0 | G196: 0 | H196: 0 | I196: 4 | J196: 4 | K196: 11 | L196: 2 | M196: 3 | N196: 2 | O196: 6 | P196: 1 | Q196: 2 | R196: 1 | S196: 23 | T196: 34 | U196: 6 | V196: 5 | W196: 9 | X196: 6 | Y196: 4 | Z196: 6
A197: 03500340 | B197: 29 | C197: 13 | D197: 16 | E197: 0 | F197: 0 | G197: 1 | H197: 0 | I197: 2 | J197: 0 | K197: 6 | L197: 1 | M197: 0 | N197: 0 | O197: 0 | P197: 0 | Q197: 0 | R197: 1 | S197: 1 | T197: 3 | U197: 0 | V197: 0 | W197: 0 | X197: 1 | Y197: 3 | Z197: 10
A198: 03500341 | B198: 2 | C198: 0 | D198: 2 | E198: 0 | F198: 0 | G198: 0 | H198: 0 | I198: 0 | J198: 0 | K198: 0 | L198: 0 | M198: 0 | N198: 0 | O198: 0 | P198: 0 | Q198: 0 | R198: 0 | S198: 0 | T198: 1 | U198: 0 | V198: 0 | W198: 0 | X198: 1 | Y198: 0 | Z198: 0
A199: 03500342 | B199: 17 | C199: 10 | D199: 7 | E199: 0 | F199: 0 | G199: 0 | H199: 0 | I199: 2 | J199: 1 | K199: 2 | L199: 0 | M199: 0 | N199: 0 | O199: 1 | P199: 0 | Q199: 0 | R199: 0 | S199: 3 | T199: 4 | U199: 1 | V199: 0 | W199: 1 | X199: 2 | Y199: 0 | Z199: 0
A200: 03500343 | B200: 18 | C200: 12 | D200: 6 | E200: 0 | F200: 0 | G200: 0 | H200: 0 | I200: 0 | J200: 1 | K200: 0 | L200: 0 | M200: 0 | N200: 0 | O200: 1 | P200: 0 | Q200: 1 | R200: 0 | S200: 6 | T200: 3 | U200: 2 | V200: 0 | W200: 2 | X200: 1 | Y200: 0 | Z200: 1
A201: 03500344 | B201: 27 | C201: 14 | D201: 13 | E201: 0 | F201: 0 | G201: 0 | H201: 0 | I201: 0 | J201: 0 | K201: 2 | L201: 0 | M201: 1 | N201: 1 | O201: 2 | P201: 1 | Q201: 2 | R201: 0 | S201: 3 | T201: 8 | U201: 2 | V201: 1 | W201: 1 | X201: 1 | Y201: 1 | Z201: 1
... 1731 more rows

Sheet A01
B6: REM-A01. CONTROLES DE SALUD
B9: SECCIÓN A: CONTROLES DE SALUD SEXUAL Y REPRODUCTIVA
B10: TIPO DE CONTROL | C10: PROFESIONAL | D10: TOTAL | E10: POR EDAD | U10: SEXO | W10: Beneficiarios | X10: Control con pareja familiar u otro | Y10: Control de diada con presencia del padre | Z10: TIPOS DE LACTANCIA
A11: CODIGO DICCIONARIO | E11: 5 - 9 | F11: 10 - 14 | G11: 15 a 19 | H11: 20 - 24 | I11: 25 - 29 | J11: 30 - 34 | K11: 35 - 39 | L11: 40 - 44 | M11: 45 - 49 | N11: 50 - 54 | O11: 55 - 59 | P11: 60 - 64 | Q11: 65 - 69 | R11: 70 - 74 | S11: 75 - 79 | T11: 80 y mas | U11: HOMBRES | V11: MUJERES | Z11: Lactancia Materna Exclusiva | AA11: Lactancia Materna / Formula Láctea | AB11: Formula Láctea
A12: 01010101 | B12: PRE- CONCEPCIONAL | C12: MÉDICO | D12: =IFERROR(VLOOKUP($A12,Filtro!$A$4:$AX$1932,2,FALSE),0) -> 2 | E12: =IFERROR(VLOOKUP($A12,Filtro!$A$4:$AX$1932,3,FALSE),0) -> 0 | F12: =IFERROR(VLOOKUP($A12,Filtro!$A$4:$AX$1932,4,FALSE),0) -> 0 | G12: =IFERROR(VLOOKUP($A12,Filtro!$A$4:$AX$1932,5,FALSE),0) -> 0 | H12: =IFERROR(VLOOKUP($A12,Filtro!$A$4:$AX$1932,6,FALSE),0) -> 1 | I12: =IFERROR(VLOOKUP($A12,Filtro!$A$4:$AX$1932,7,FALSE),0) -> 1 | J12: =IFERROR(VLOOKUP($A12,Filtro!$A$4:$AX$1932,8,FALSE),0) -> 0 | K12: =IFERROR(VLOOKUP($A12,Filtro!$A$4:$AX$1932,9,FALSE),0) -> 0 | L12: =IFERROR(VLOOKUP($A12,Filtro!$A$4:$AX$1932,10,FALSE),0) -> 0 | M12: =IFERROR(VLOOKUP($A12,Filtro!$A$4:$AX$1932,11,FALSE),0) -> 0 | N12: =IFERROR(VLOOKUP($A12,Filtro!$A$4:$AX$1932,12,FALSE),0) -> 0 | O12: =IFERROR(VLOOKUP($A12,Filtro!$A$4:$AX$1932,13,FALSE),0) -> 0 | P12: =IFERROR(VLOOKUP($A12,Filtro!$A$4:$AX$1932,14,FALSE),0) -> 0 | Q12: =IFERROR(VLOOKUP($A12,Filtro!$A$4:$AX$1932,15,FALSE),0) -> 0 | R12: =IFERROR(VLOOKUP($A12,Filtro!$A$4:$AX$1932,16,FALSE),0) -> 0 | S12: =IFERROR(VLOOKUP($A12,Filtro!$A$4:$AX$1932,17,FALSE),0) -> 0 | T12: =IFERROR(VLOOKUP($A12,Filtro!$A$4:$AX$1932,18,FALSE),0) -> 0 | U12: =IFERROR(VLOOKUP($A12,Filtro!$A$4:$AX$1932,19,FALSE),0) -> 0 | V12: =IFERROR(VLOOKUP($A12,Filtro!$A$4:$AX$1932,20,FALSE),0) -> 1 | W12: =IFERROR(VLOOKUP($A12,Filtro!$A$4:$AX$1932,21,FALSE),0) -> 1 | X12: =IFERROR(VLOOKUP($A12,Filtro!$A$4:$AX$1932,22,FALSE),0) -> 0 | Y12: =IFERROR(VLOOKUP($A12,Filtro!$A$4:$AX$1932,23,FALSE),0) -> 0 | Z12: =IFERROR(VLOOKUP($A12,Filtro!$A$4:$AX$1932,24,FALSE),0) -> 0 | AA12: =IFERROR(VLOOKUP($A12,Filtro!$A$4:$AX$1932,25,FALSE),0) -> 0 | AB12: =IFERROR(VLOOKUP($A12,Filtro!$A$4:$AX$1932,26,FALSE),0) -> 0 | CM12: 0 | CN12: 0 | CR12: 0
A13: 01010103 | C13: MATRONA /ÓN | D13: =IFERROR(VLOOKUP($A13,Filtro!$A$4:$AX$1932,2,FALSE),0) -> 835 | E13: =IFERROR(VLOOKUP($A13,Filtro!$A$4:$AX$1932,3,FALSE),0) -> 0 | F13: =IFERROR(VLOOKUP($A13,Filtro!$A$4:$AX$1932,4,FALSE),0) -> 0 | G13: =IFERROR(VLOOKUP($A13,Filtro!$A$4:$AX$1932,5,FALSE),0) -> 50 | H13: =IFERROR(VLOOKUP($A13,Filtro!$A$4:$AX$1932,6,FALSE),0) -> 172 | I13: =IFERROR(VLOOKUP($A13,Filtro!$A$4:$AX$1932,7,FALSE),0) -> 216 | J13: =IFERROR(VLOOKUP($A13,Filtro!$A$4:$AX$1932,8,FALSE),0) -> 177 | K13: =IFERROR(VLOOKUP($A13,Filtro!$A$4:$AX$1932,9,FALSE),0) -> 143 | L13: =IFERROR(VLOOKUP($A13,Filtro!$A$4:$AX$1932,10,FALSE),0) -> 58 | M13: =IFERROR(VLOOKUP($A13,Filtro!$A$4:$AX$1932,11,FALSE),0) -> 17 | N13: =IFERROR(VLOOKUP($A13,Filtro!$A$4:$AX$1932,12,FALSE),0) -> 2 | O13: =IFERROR(VLOOKUP($A13,Filtro!$A$4:$AX$1932,13,FALSE),0) -> 0 | P13: =IFERROR(VLOOKUP($A13,Filtro!$A$4:$AX$1932,14,FALSE),0) -> 0 | Q13: =IFERROR(VLOOKUP($A13,Filtro!$A$4:$AX$1932,15,FALSE),0) -> 0 | R13: =IFERROR(VLOOKUP($A13,Filtro!$A$4:$AX$1932,16,FALSE),0) -> 0 | S13: =IFERROR(VLOOKUP($A13,Filtro!$A$4:$AX$1932,17,FALSE),0) -> 0 | T13: =IFERROR(VLOOKUP($A13,Filtro!$A$4:$AX$1932,18,FALSE),0) -> 0 | U13: =IFERROR(VLOOKUP($A13,Filtro!$A$4:$AX$1932,19,FALSE),0) -> 0 | V13: =IFERROR(VLOOKUP($A13,Filtro!$A$4:$AX$1932,20,FALSE),0) -> 837 | W13: =IFERROR(VLOOKUP($A13,Filtro!$A$4:$AX$1932,21,FALSE),0) -> 830 | X13: =IFERROR(VLOOKUP($A13,Filtro!$A$4:$AX$1932,22,FALSE),0) -> 0 | Y13: =IFERROR(VLOOKUP($A13,Filtro!$A$4:$AX$1932,23,FALSE),0) -> 0 | Z13: =IFERROR(VLOOKUP($A13,Filtro!$A$4:$AX$1932,24,FALSE),0) -> 0 | AA13: =IFERROR(VLOOKUP($A13,Filtro!$A$4:$AX$1932,25,FALSE),0) -> 0 | AB13: =IFERROR(VLOOKUP($A13,Filtro!$A$4:$AX$1932,26,FALSE),0) -> 0 | CM13: 0 | CN13: 0 | CR13: 0
A14: 01010201 | B14: PRENATAL | C14: MÉDICO | D14: =IFERROR(VLOOKUP($A14,Filtro!$A$4:$AX$1932,2,FALSE),0) -> 239 | E14: =IFERROR(VLOOKUP($A14,Filtro!$A$4:$AX$1932,3,FALSE),0) -> 0 | F14: =IFERROR(VLOOKUP($A14,Filtro!$A$4:$AX$1932,4,FALSE),0) -> 3 | G14: =IFERROR(VLOOKUP($A14,Filtro!$A$4:$AX$1932,5,FALSE),0) -> 23 | H14: =IFERROR(VLOOKUP($A14,Filtro!$A$4:$AX$1932,6,FALSE),0) -> 58 | I14: =IFERROR(VLOOKUP($A14,Filtro!$A$4:$AX$1932,7,FALSE),0) -> 64 | J14: =IFERROR(VLOOKUP($A14,Filtro!$A$4:$AX$1932,8,FALSE),0) -> 59 | K14: =IFERROR(VLOOKUP($A14,Filtro!$A$4:$AX$1932,9,FALSE),0) -> 25 | L14: =IFERROR(VLOOKUP($A14,Filtro!$A$4:$AX$1932,10,FALSE),0) -> 5 | M14: =IFERROR(VLOOKUP($A14,Filtro!$A$4:$AX$1932,11,FALSE),0) -> 0 | N14: =IFERROR(VLOOKUP($A14,Filtro!$A$4:$AX$1932,12,FALSE),0) -> 0 | O14: =IFERROR(VLOOKUP($A14,Filtro!$A$4:$AX$1932,13,FALSE),0) -> 2 | P14: =IFERROR(VLOOKUP($A14,Filtro!$A$4:$AX$1932,14,FALSE),0) -> 0 | Q14: =IFERROR(VLOOKUP($A14,Filtro!$A$4:$AX$1932,15,FALSE),0) -> 0 | R14: =IFERROR(VLOOKUP($A14,Filtro!$A$4:$AX$1932,16,FALSE),0) -> 0 | S14: =IFERROR(VLOOKUP($A14,Filtro!$A$4:$AX$1932,17,FALSE),0) -> 0 | T14: =IFERROR(VLOOKUP($A14,Filtro!$A$4:$AX$1932,18,FALSE),0) -> 0 | U14: =IFERROR(VLOOKUP($A14,Filtro!$A$4:$AX$1932,19,FALSE),0) -> 0 | V14: =IFERROR(VLOOKUP($A14,Filtro!$A$4:$AX$1932,20,FALSE),0) -> 238 | W14: =IFERROR(VLOOKUP($A14,Filtro!$A$4:$AX$1932,21,FALSE),0) -> 238 | X14: =IFERROR(VLOOKUP($A14,Filtro!$A$4:$AX$1932,22,FALSE),0) -> 21 | Y14: =IFERROR(VLOOKUP($A14,Filtro!$A$4:$AX$1932,23,FALSE),0) -> 0 | Z14: =IFERROR(VLOOKUP($A14,Filtro!$A$4:$AX$1932,24,FALSE),0) -> 0 | AA14: =IFERROR(VLOOKUP($A14,Filtro!$A$4:$AX$1932,25,FALSE),0) -> 0 | AB14: =IFERROR(VLOOKUP($A14,Filtro!$A$4:$AX$1932,26,FALSE),0) -> 0 | CM14: 0 | CN14: 0 | CO14: 0 | CR14: 0 | CS14: 0
A15: 01010203 | C15: MATRONA /ÓN | D15: =IFERROR(VLOOKUP($A15,Filtro!$A$4:$AX$1932,2,FALSE),0) -> 36867 | E15: =IFERROR(VLOOKUP($A15,Filtro!$A$4:$AX$1932,3,FALSE),0) -> 0 | F15: =IFERROR(VLOOKUP($A15,Filtro!$A$4:$AX$1932,4,FALSE),0) -> 86 | G15: =IFERROR(VLOOKUP($A15,Filtro!$A$4:$AX$1932,5,FALSE),0) -> 3289 | H15: =IFERROR(VLOOKUP($A15,Filtro!$A$4:$AX$1932,6,FALSE),0) -> 8858 | I15: =IFERROR(VLOOKUP($A15,Filtro!$A$4:$AX$1932,7,FALSE),0) -> 10644 | J15: =IFERROR(VLOOKUP($A15,Filtro!$A$4:$AX$1932,8,FALSE),0) -> 8388 | K15: =IFERROR(VLOOKUP($A15,Filtro!$A$4:$AX$1932,9,FALSE),0) -> 4392 | L15: =IFERROR(VLOOKUP($A15,Filtro!$A$4:$AX$1932,10,FALSE),0) -> 1129 | M15: =IFERROR(VLOOKUP($A15,Filtro!$A$4:$AX$1932,11,FALSE),0) -> 74 | N15: =IFERROR(VLOOKUP($A15,Filtro!$A$4:$AX$1932,12,FALSE),0) -> 3 | O15: =IFERROR(VLOOKUP($A15,Filtro!$A$4:$AX$1932,13,FALSE),0) -> 4 | P15: =IFERROR(VLOOKUP($A15,Filtro!$A$4:$AX$1932,14,FALSE),0) -> 0 | Q15: =IFERROR(VLOOKUP($A15,Filtro!$A$4:$AX$1932,15,FALSE),0) -> 0 | R15: =IFERROR(VLOOKUP($A15,Filtro!$A$4:$AX$1932,16,FALSE),0) -> 0 | S15: =IFERROR(VLOOKUP($A15,Filtro!$A$4:$AX$1932,17,FALSE),0) -> 0 | T15: =IFERROR(VLOOKUP($A15,Filtro!$A$4:$AX$1932,18,FALSE),0) -> 0 | U15: =IFERROR(VLOOKUP($A15,Filtro!$A$4:$AX$1932,19,FALSE),0) -> 0 | V15: =IFERROR(VLOOKUP($A15,Filtro!$A$4:$AX$1932,20,FALSE),0) -> 36531 | W15: =IFERROR(VLOOKUP($A15,Filtro!$A$4:$AX$1932,21,FALSE),0) -> 35684 | X15: =IFERROR(VLOOKUP($A15,Filtro!$A$4:$AX$1932,22,FALSE),0) -> 6316 | Y15: =IFERROR(VLOOKUP($A15,Filtro!$A$4:$AX$1932,23,FALSE),0) -> 0 | Z15: =IFERROR(VLOOKUP($A15,Filtro!$A$4:$AX$1932,24,FALSE),0) -> 0 | AA15: =IFERROR(VLOOKUP($A15,Filtro!$A$4:$AX$1932,25,FALSE),0) -> 0 | AB15: =IFERROR(VLOOKUP($A15,Filtro!$A$4:$AX$1932,26,FALSE),0) -> 0 | CM15: 0 | CN15: 0 | CO15: 0 | CR15: 0 | CS15: 0
A16: 01080001 | B16: POST PARTO Y POST ABORTO | C16: MÉDICO | D16: =IFERROR(VLOOKUP($A16,Filtro!$A$4:$AX$1932,2,FALSE),0) -> 3 | E16: =IFERROR(VLOOKUP($A16,Filtro!$A$4:$AX$1932,3,FALSE),0) -> 0 | F16: =IFERROR(VLOOKUP($A16,Filtro!$A$4:$AX$1932,4,FALSE),0) -> 0 | G16: =IFERROR(VLOOKUP($A16,Filtro!$A$4:$AX$1932,5,FALSE),0) -> 0 | H16: =IFERROR(VLOOKUP($A16,Filtro!$A$4:$AX$1932,6,FALSE),0) -> 1 | I16: =IFERROR(VLOOKUP($A16,Filtro!$A$4:$AX$1932,7,FALSE),0) -> 1 | J16: =IFERROR(VLOOKUP($A16,Filtro!$A$4:$AX$1932,8,FALSE),0) -> 0 | K16: =IFERROR(VLOOKUP($A16,Filtro!$A$4:$AX$1932,9,FALSE),0) -> 1 | L16: =IFERROR(VLOOKUP($A16,Filtro!$A$4:$AX$1932,10,FALSE),0) -> 0 | M16: =IFERROR(VLOOKUP($A16,Filtro!$A$4:$AX$1932,11,FALSE),0) -> 0 | N16: =IFERROR(VLOOKUP($A16,Filtro!$A$4:$AX$1932,12,FALSE),0) -> 0 | O16: =IFERROR(VLOOKUP($A16,Filtro!$A$4:$AX$1932,13,FALSE),0) -> 0 | P16: =IFERROR(VLOOKUP($A16,Filtro!$A$4:$AX$1932,14,FALSE),0) -> 0 | Q16: =IFERROR(VLOOKUP($A16,Filtro!$A$4:$AX$1932,15,FALSE),0) -> 0 | R16: =IFERROR(VLOOKUP($A16,Filtro!$A$4:$AX$1932,16,FALSE),0) -> 0 | S16: =IFERROR(VLOOKUP($A16,Filtro!$A$4:$AX$1932,17,FALSE),0) -> 0 | T16: =IFERROR(VLOOKUP($A16,Filtro!$A$4:$AX$1932,18,FALSE),0) -> 0 | U16: =IFERROR(VLOOKUP($A16,Filtro!$A$4:$AX$1932,19,FALSE),0) -> 0 | V16: =IFERROR(VLOOKUP($A16,Filtro!$A$4:$AX$1932,20,FALSE),0) -> 2 | W16: =IFERROR(VLOOKUP($A16,Filtro!$A$4:$AX$1932,21,FALSE),0) -> 2 | X16: =IFERROR(VLOOKUP($A16,Filtro!$A$4:$AX$1932,22,FALSE),0) -> 0 | Y16: =IFERROR(VLOOKUP($A16,Filtro!$A$4:$AX$1932,23,FALSE),0) -> 0 | Z16: =IFERROR(VLOOKUP($A16,Filtro!$A$4:$AX$1932,24,FALSE),0) -> 0 | AA16: =IFERROR(VLOOKUP($A16,Filtro!$A$4:$AX$1932,25,FALSE),0) -> 0 | AB16: =IFERROR(VLOOKUP($A16,Filtro!$A$4:$AX$1932,26,FALSE),0) -> 0 | CM16: 0 | CN16: 0 | CR16: 0
A17: 01080002 | C17: MATRONA /ÓN | D17: =IFERROR(VLOOKUP($A17,Filtro!$A$4:$AX$1932,2,FALSE),0) -> 812 | E17: =IFERROR(VLOOKUP($A17,Filtro!$A$4:$AX$1932,3,FALSE),0) -> 0 | F17: =IFERROR(VLOOKUP($A17,Filtro!$A$4:$AX$1932,4,FALSE),0) -> 5 | G17: =IFERROR(VLOOKUP($A17,Filtro!$A$4:$AX$1932,5,FALSE),0) -> 60 | H17: =IFERROR(VLOOKUP($A17,Filtro!$A$4:$AX$1932,6,FALSE),0) -> 185 | I17: =IFERROR(VLOOKUP($A17,Filtro!$A$4:$AX$1932,7,FALSE),0) -> 216 | J17: =IFERROR(VLOOKUP($A17,Filtro!$A$4:$AX$1932,8,FALSE),0) -> 201 | K17: =IFERROR(VLOOKUP($A17,Filtro!$A$4:$AX$1932,9,FALSE),0) -> 101 | L17: =IFERROR(VLOOKUP($A17,Filtro!$A$4:$AX$1932,10,FALSE),0) -> 38 | M17: =IFERROR(VLOOKUP($A17,Filtro!$A$4:$AX$1932,11,FALSE),0) -> 6 | N17: =IFERROR(VLOOKUP($A17,Filtro!$A$4:$AX$1932,12,FALSE),0) -> 0 | O17: =IFERROR(VLOOKUP($A17,Filtro!$A$4:$AX$1932,13,FALSE),0) -> 0 | P17: =IFERROR(VLOOKUP($A17,Filtro!$A$4:$AX$1932,14,FALSE),0) -> 0 | Q17: =IFERROR(VLOOKUP($A17,Filtro!$A$4:$AX$1932,15,FALSE),0) -> 0 | R17: =IFERROR(VLOOKUP($A17,Filtro!$A$4:$AX$1932,16,FALSE),0) -> 0 | S17: =IFERROR(VLOOKUP($A17,Filtro!$A$4:$AX$1932,17,FALSE),0) -> 0 | T17: =IFERROR(VLOOKUP($A17,Filtro!$A$4:$AX$1932,18,FALSE),0) -> 0 | U17: =IFERROR(VLOOKUP($A17,Filtro!$A$4:$AX$1932,19,FALSE),0) -> 0 | V17: =IFERROR(VLOOKUP($A17,Filtro!$A$4:$AX$1932,20,FALSE),0) -> 791 | W17: =IFERROR(VLOOKUP($A17,Filtro!$A$4:$AX$1932,21,FALSE),0) -> 803 | X17: =IFERROR(VLOOKUP($A17,Filtro!$A$4:$AX$1932,22,FALSE),0) -> 0 | Y17: =IFERROR(VLOOKUP($A17,Filtro!$A$4:$AX$1932,23,FALSE),0) -> 0 | Z17: =IFERROR(VLOOKUP($A17,Filtro!$A$4:$AX$1932,24,FALSE),0) -> 0 | AA17: =IFERROR(VLOOKUP($A17,Filtro!$A$4:$AX$1932,25,FALSE),0) -> 0 | AB17: =IFERROR(VLOOKUP($A17,Filtro!$A$4:$AX$1932,26,FALSE),0) -> 0 | CM17: 0 | CN17: 0 | CR17: 0
A18: 01110106 | B18: PUÉRPERA CON RECIÉN NACIDO HASTA 10 DÍAS DE VIDA | C18: MÉDICO | D18: =IFERROR(VLOOKUP($A18,Filtro!$A$4:$AX$1932,2,FALSE),0) -> 23 | E18: =IFERROR(VLOOKUP($A18,Filtro!$A$4:$AX$1932,3,FALSE),0) -> 0 | F18: =IFERROR(VLOOKUP($A18,Filtro!$A$4:$AX$1932,4,FALSE),0) -> 2 | G18: =IFERROR(VLOOKUP($A18,Filtro!$A$4:$AX$1932,5,FALSE),0) -> 2 | H18: =IFERROR(VLOOKUP($A18,Filtro!$A$4:$AX$1932,6,FALSE),0) -> 2 | I18: =IFERROR(VLOOKUP($A18,Filtro!$A$4:$AX$1932,7,FALSE),0) -> 6 | J18: =IFERROR(VLOOKUP($A18,Filtro!$A$4:$AX$1932,8,FALSE),0) -> 7 | K18: =IFERROR(VLOOKUP($A18,Filtro!$A$4:$AX$1932,9,FALSE),0) -> 1 | L18: =IFERROR(VLOOKUP($A18,Filtro!$A$4:$AX$1932,10,FALSE),0) -> 3 | M18: =IFERROR(VLOOKUP($A18,Filtro!$A$4:$AX$1932,11,FALSE),0) -> 0 | N18: =IFERROR(VLOOKUP($A18,Filtro!$A$4:$AX$1932,12,FALSE),0) -> 0 | O18: =IFERROR(VLOOKUP($A18,Filtro!$A$4:$AX$1932,13,FALSE),0) -> 0 | P18: =IFERROR(VLOOKUP($A18,Filtro!$A$4:$AX$1932,14,FALSE),0) -> 0 | Q18: =IFERROR(VLOOKUP($A18,Filtro!$A$4:$AX$1932,15,FALSE),0) -> 0 | R18: =IFERROR(VLOOKUP($A18,Filtro!$A$4:$AX$1932,16,FALSE),0) -> 0 | S18: =IFERROR(VLOOKUP($A18,Filtro!$A$4:$AX$1932,17,FALSE),0) -> 0 | T18: =IFERROR(VLOOKUP($A18,Filtro!$A$4:$AX$1932,18,FALSE),0) -> 0 | U18: =IFERROR(VLOOKUP($A18,Filtro!$A$4:$AX$1932,19,FALSE),0) -> 0 | V18: =IFERROR(VLOOKUP($A18,Filtro!$A$4:$AX$1932,20,FALSE),0) -> 20 | W18: =IFERROR(VLOOKUP($A18,Filtro!$A$4:$AX$1932,21,FALSE),0) -> 20 | X18: =IFERROR(VLOOKUP($A18,Filtro!$A$4:$AX$1932,22,FALSE),0) -> 0 | Y18: =IFERROR(VLOOKUP($A18,Filtro!$A$4:$AX$1932,23,FALSE),0) -> 18 | Z18: =IFERROR(VLOOKUP($A18,Filtro!$A$4:$AX$1932,24,FALSE),0) -> 26 | AA18: =IFERROR(VLOOKUP($A18,Filtro!$A$4:$AX$1932,25,FALSE),0) -> 2 | AB18: =IFERROR(VLOOKUP($A18,Filtro!$A$4:$AX$1932,26,FALSE),0) -> 0 | CG18: =IF(AND(D18<>0,'A05'!D50=""),"* No olvide registrar ingresos a control de salud de los respectivos RN, en REM A05-secci„n E. ","") ->  | CM18: 0 | CN18: 0 | CP18: 0 | CQ18: 0 | CR18: 0 | CT18: 0 | CU18: 0
A19: 01110107 | C19: MATRONA /ÓN | D19: =IFERROR(VLOOKUP($A19,Filtro!$A$4:$AX$1932,2,FALSE),0) -> 3921 | E19: =IFERROR(VLOOKUP($A19,Filtro!$A$4:$AX$1932,3,FALSE),0) -> 0 | F19: =IFERROR(VLOOKUP($A19,Filtro!$A$4:$AX$1932,4,FALSE),0) -> 12 | G19: =IFERROR(VLOOKUP($A19,Filtro!$A$4:$AX$1932,5,FALSE),0) -> 288 | H19: =IFERROR(VLOOKUP($A19,Filtro!$A$4:$AX$1932,6,FALSE),0) -> 957 | I19: =IFERROR(VLOOKUP($A19,Filtro!$A$4:$AX$1932,7,FALSE),0) -> 1184 | J19: =IFERROR(VLOOKUP($A19,Filtro!$A$4:$AX$1932,8,FALSE),0) -> 860 | K19: =IFERROR(VLOOKUP($A19,Filtro!$A$4:$AX$1932,9,FALSE),0) -> 483 | L19: =IFERROR(VLOOKUP($A19,Filtro!$A$4:$AX$1932,10,FALSE),0) -> 123 | M19: =IFERROR(VLOOKUP($A19,Filtro!$A$4:$AX$1932,11,FALSE),0) -> 14 | N19: =IFERROR(VLOOKUP($A19,Filtro!$A$4:$AX$1932,12,FALSE),0) -> 0 | O19: =IFERROR(VLOOKUP($A19,Filtro!$A$4:$AX$1932,13,FALSE),0) -> 0 | P19: =IFERROR(VLOOKUP($A19,Filtro!$A$4:$AX$1932,14,FALSE),0) -> 0 | Q19: =IFERROR(VLOOKUP($A19,Filtro!$A$4:$AX$1932,15,FALSE),0) -> 0 | R19: =IFERROR(VLOOKUP($A19,Filtro!$A$4:$AX$1932,16,FALSE),0) -> 0 | S19: =IFERROR(VLOOKUP($A19,Filtro!$A$4:$AX$1932,17,FALSE),0) -> 0 | T19: =IFERROR(VLOOKUP($A19,Filtro!$A$4:$AX$1932,18,FALSE),0) -> 0 | U19: =IFERROR(VLOOKUP($A19,Filtro!$A$4:$AX$1932,19,FALSE),0) -> 0 | V19: =IFERROR(VLOOKUP($A19,Filtro!$A$4:$AX$1932,20,FALSE),0) -> 3876 | W19: =IFERROR(VLOOKUP($A19,Filtro!$A$4:$AX$1932,21,FALSE),0) -> 3865 | X19: =IFERROR(VLOOKUP($A19,Filtro!$A$4:$AX$1932,22,FALSE),0) -> 5 | Y19: =IFERROR(VLOOKUP($A19,Filtro!$A$4:$AX$1932,23,FALSE),0) -> 1329 | Z19: =IFERROR(VLOOKUP($A19,Filtro!$A$4:$AX$1932,24,FALSE),0) -> 3187 | AA19: =IFERROR(VLOOKUP($A19,Filtro!$A$4:$AX$1932,25,FALSE),0) -> 387 | AB19: =IFERROR(VLOOKUP($A19,Filtro!$A$4:$AX$1932,26,FALSE),0) -> 46 | CG19: =IF(AND(D19<>0,'A05'!D50=""),"* No olvide registrar ingresos a control de salud de los respectivos RN, en REM A05-secci„n E. ","") ->  | CM19: 0 | CN19: 0 | CP19: 0 | CQ19: 0 | CR19: 0 | CT19: 0 | CU19: 0
A20: 01080030 | B20: PUÉRPERA CON RECIÉN NACIDO ENTRE 11 y 28 DÍAS | C20: MÉDICO | D20: =IFERROR(VLOOKUP($A20,Filtro!$A$4:$AX$1932,2,FALSE),0) -> 3 | E20: =IFERROR(VLOOKUP($A20,Filtro!$A$4:$AX$1932,3,FALSE),0) -> 0 | F20: =IFERROR(VLOOKUP($A20,Filtro!$A$4:$AX$1932,4,FALSE),0) -> 0 | G20: =IFERROR(VLOOKUP($A20,Filtro!$A$4:$AX$1932,5,FALSE),0) -> 0 | H20: =IFERROR(VLOOKUP($A20,Filtro!$A$4:$AX$1932,6,FALSE),0) -> 1 | I20: =IFERROR(VLOOKUP($A20,Filtro!$A$4:$AX$1932,7,FALSE),0) -> 1 | J20: =IFERROR(VLOOKUP($A20,Filtro!$A$4:$AX$1932,8,FALSE),0) -> 1 | K20: =IFERROR(VLOOKUP($A20,Filtro!$A$4:$AX$1932,9,FALSE),0) -> 0 | L20: =IFERROR(VLOOKUP($A20,Filtro!$A$4:$AX$1932,10,FALSE),0) -> 0 | M20: =IFERROR(VLOOKUP($A20,Filtro!$A$4:$AX$1932,11,FALSE),0) -> 0 | N20: =IFERROR(VLOOKUP($A20,Filtro!$A$4:$AX$1932,12,FALSE),0) -> 0 | O20: =IFERROR(VLOOKUP($A20,Filtro!$A$4:$AX$1932,13,FALSE),0) -> 0 | P20: =IFERROR(VLOOKUP($A20,Filtro!$A$4:$AX$1932,14,FALSE),0) -> 0 | Q20: =IFERROR(VLOOKUP($A20,Filtro!$A$4:$AX$1932,15,FALSE),0) -> 0 | R20: =IFERROR(VLOOKUP($A20,Filtro!$A$4:$AX$1932,16,FALSE),0) -> 0 | S20: =IFERROR(VLOOKUP($A20,Filtro!$A$4:$AX$1932,17,FALSE),0) -> 0 | T20: =IFERROR(VLOOKUP($A20,Filtro!$A$4:$AX$1932,18,FALSE),0) -> 0 | U20: =IFERROR(VLOOKUP($A20,Filtro!$A$4:$AX$1932,19,FALSE),0) -> 0 | V20: =IFERROR(VLOOKUP($A20,Filtro!$A$4:$AX$1932,20,FALSE),0) -> 5 | W20: =IFERROR(VLOOKUP($A20,Filtro!$A$4:$AX$1932,21,FALSE),0) -> 5 | X20: =IFERROR(VLOOKUP($A20,Filtro!$A$4:$AX$1932,22,FALSE),0) -> 0 | Y20: =IFERROR(VLOOKUP($A20,Filtro!$A$4:$AX$1932,23,FALSE),0) -> 3 | Z20: =IFERROR(VLOOKUP($A20,Filtro!$A$4:$AX$1932,24,FALSE),0) -> 16 | AA20: =IFERROR(VLOOKUP($A20,Filtro!$A$4:$AX$1932,25,FALSE),0) -> 6 | AB20: =IFERROR(VLOOKUP($A20,Filtro!$A$4:$AX$1932,26,FALSE),0) -> 0 | CG20: =IF(AND(D20<>0,'A05'!D50=""),"* No olvide registrar ingresos a control de salud de los respectivos RN, en REM A05-secci„n E. ","") ->  | CM20: 0 | CN20: 0 | CP20: 0 | CQ20: 0 | CR20: 0 | CT20: 0 | CU20: 0
A21: 01080040 | C21: MATRONA /ÓN | D21: =IFERROR(VLOOKUP($A21,Filtro!$A$4:$AX$1932,2,FALSE),0) -> 1339 | E21: =IFERROR(VLOOKUP($A21,Filtro!$A$4:$AX$1932,3,FALSE),0) -> 0 | F21: =IFERROR(VLOOKUP($A21,Filtro!$A$4:$AX$1932,4,FALSE),0) -> 4 | G21: =IFERROR(VLOOKUP($A21,Filtro!$A$4:$AX$1932,5,FALSE),0) -> 102 | H21: =IFERROR(VLOOKUP($A21,Filtro!$A$4:$AX$1932,6,FALSE),0) -> 289 | I21: =IFERROR(VLOOKUP($A21,Filtro!$A$4:$AX$1932,7,FALSE),0) -> 397 | J21: =IFERROR(VLOOKUP($A21,Filtro!$A$4:$AX$1932,8,FALSE),0) -> 327 | K21: =IFERROR(VLOOKUP($A21,Filtro!$A$4:$AX$1932,9,FALSE),0) -> 165 | L21: =IFERROR(VLOOKUP($A21,Filtro!$A$4:$AX$1932,10,FALSE),0) -> 50 | M21: =IFERROR(VLOOKUP($A21,Filtro!$A$4:$AX$1932,11,FALSE),0) -> 1 | N21: =IFERROR(VLOOKUP($A21,Filtro!$A$4:$AX$1932,12,FALSE),0) -> 1 | O21: =IFERROR(VLOOKUP($A21,Filtro!$A$4:$AX$1932,13,FALSE),0) -> 3 | P21: =IFERROR(VLOOKUP($A21,Filtro!$A$4:$AX$1932,14,FALSE),0) -> 0 | Q21: =IFERROR(VLOOKUP($A21,Filtro!$A$4:$AX$1932,15,FALSE),0) -> 0 | R21: =IFERROR(VLOOKUP($A21,Filtro!$A$4:$AX$1932,16,FALSE),0) -> 0 | S21: =IFERROR(VLOOKUP($A21,Filtro!$A$4:$AX$1932,17,FALSE),0) -> 0 | T21: =IFERROR(VLOOKUP($A21,Filtro!$A$4:$AX$1932,18,FALSE),0) -> 0 | U21: =IFERROR(VLOOKUP($A21,Filtro!$A$4:$AX$1932,19,FALSE),0) -> 0 | V21: =IFERROR(VLOOKUP($A21,Filtro!$A$4:$AX$1932,20,FALSE),0) -> 1315 | W21: =IFERROR(VLOOKUP($A21,Filtro!$A$4:$AX$1932,21,FALSE),0) -> 1319 | X21: =IFERROR(VLOOKUP($A21,Filtro!$A$4:$AX$1932,22,FALSE),0) -> 0 | Y21: =IFERROR(VLOOKUP($A21,Filtro!$A$4:$AX$1932,23,FALSE),0) -> 341 | Z21: =IFERROR(VLOOKUP($A21,Filtro!$A$4:$AX$1932,24,FALSE),0) -> 1003 | AA21: =IFERROR(VLOOKUP($A21,Filtro!$A$4:$AX$1932,25,FALSE),0) -> 191 | AB21: =IFERROR(VLOOKUP($A21,Filtro!$A$4:$AX$1932,26,FALSE),0) -> 27 | CG21: =IF(AND(D21<>0,'A05'!D50=""),"* No olvide registrar ingresos a control de salud de los respectivos RN, en REM A05-secci„n E. ","") ->  | CM21: 0 | CN21: 0 | CP21: 0 | CQ21: 0 | CR21: 0 | CT21: 0 | CU21: 0
A22: 01010601 | B22: GINECOLÓGICO | C22: MÉDICO | D22: =IFERROR(VLOOKUP($A22,Filtro!$A$4:$AX$1932,2,FALSE),0) -> 44 | E22: =IFERROR(VLOOKUP($A22,Filtro!$A$4:$AX$1932,3,FALSE),0) -> 0 | F22: =IFERROR(VLOOKUP($A22,Filtro!$A$4:$AX$1932,4,FALSE),0) -> 0 | G22: =IFERROR(VLOOKUP($A22,Filtro!$A$4:$AX$1932,5,FALSE),0) -> 1 | H22: =IFERROR(VLOOKUP($A22,Filtro!$A$4:$AX$1932,6,FALSE),0) -> 0 | I22: =IFERROR(VLOOKUP($A22,Filtro!$A$4:$AX$1932,7,FALSE),0) -> 6 | J22: =IFERROR(VLOOKUP($A22,Filtro!$A$4:$AX$1932,8,FALSE),0) -> 7 | K22: =IFERROR(VLOOKUP($A22,Filtro!$A$4:$AX$1932,9,FALSE),0) -> 5 | L22: =IFERROR(VLOOKUP($A22,Filtro!$A$4:$AX$1932,10,FALSE),0) -> 5 | M22: =IFERROR(VLOOKUP($A22,Filtro!$A$4:$AX$1932,11,FALSE),0) -> 10 | N22: =IFERROR(VLOOKUP($A22,Filtro!$A$4:$AX$1932,12,FALSE),0) -> 4 | O22: =IFERROR(VLOOKUP($A22,Filtro!$A$4:$AX$1932,13,FALSE),0) -> 2 | P22: =IFERROR(VLOOKUP($A22,Filtro!$A$4:$AX$1932,14,FALSE),0) -> 1 | Q22: =IFERROR(VLOOKUP($A22,Filtro!$A$4:$AX$1932,15,FALSE),0) -> 2 | R22: =IFERROR(VLOOKUP($A22,Filtro!$A$4:$AX$1932,16,FALSE),0) -> 0 | S22: =IFERROR(VLOOKUP($A22,Filtro!$A$4:$AX$1932,17,FALSE),0) -> 1 | T22: =IFERROR(VLOOKUP($A22,Filtro!$A$4:$AX$1932,18,FALSE),0) -> 0 | U22: =IFERROR(VLOOKUP($A22,Filtro!$A$4:$AX$1932,19,FALSE),0) -> 0 | V22: =IFERROR(VLOOKUP($A22,Filtro!$A$4:$AX$1932,20,FALSE),0) -> 40 | W22: =IFERROR(VLOOKUP($A22,Filtro!$A$4:$AX$1932,21,FALSE),0) -> 40 | X22: =IFERROR(VLOOKUP($A22,Filtro!$A$4:$AX$1932,22,FALSE),0) -> 0 | Y22: =IFERROR(VLOOKUP($A22,Filtro!$A$4:$AX$1932,23,FALSE),0) -> 0 | Z22: =IFERROR(VLOOKUP($A22,Filtro!$A$4:$AX$1932,24,FALSE),0) -> 0 | AA22: =IFERROR(VLOOKUP($A22,Filtro!$A$4:$AX$1932,25,FALSE),0) -> 0 | AB22: =IFERROR(VLOOKUP($A22,Filtro!$A$4:$AX$1932,26,FALSE),0) -> 0 | CM22: 0 | CN22: 0 | CR22: 0
A23: 01010603 | C23: MATRONA /ÓN | D23: =IFERROR(VLOOKUP($A23,Filtro!$A$4:$AX$1932,2,FALSE),0) -> 15155 | E23: =IFERROR(VLOOKUP($A23,Filtro!$A$4:$AX$1932,3,FALSE),0) -> 0 | F23: =IFERROR(VLOOKUP($A23,Filtro!$A$4:$AX$1932,4,FALSE),0) -> 73 | G23: =IFERROR(VLOOKUP($A23,Filtro!$A$4:$AX$1932,5,FALSE),0) -> 323 | H23: =IFERROR(VLOOKUP($A23,Filtro!$A$4:$AX$1932,6,FALSE),0) -> 829 | I23: =IFERROR(VLOOKUP($A23,Filtro!$A$4:$AX$1932,7,FALSE),0) -> 1297 | J23: =IFERROR(VLOOKUP($A23,Filtro!$A$4:$AX$1932,8,FALSE),0) -> 1429 | K23: =IFERROR(VLOOKUP($A23,Filtro!$A$4:$AX$1932,9,FALSE),0) -> 1564 | L23: =IFERROR(VLOOKUP($A23,Filtro!$A$4:$AX$1932,10,FALSE),0) -> 1727 | M23: =IFERROR(VLOOKUP($A23,Filtro!$A$4:$AX$1932,11,FALSE),0) -> 1938 | N23: =IFERROR(VLOOKUP($A23,Filtro!$A$4:$AX$1932,12,FALSE),0) -> 2064 | O23: =IFERROR(VLOOKUP($A23,Filtro!$A$4:$AX$1932,13,FALSE),0) -> 1730 | P23: =IFERROR(VLOOKUP($A23,Filtro!$A$4:$AX$1932,14,FALSE),0) -> 1231 | Q23: =IFERROR(VLOOKUP($A23,Filtro!$A$4:$AX$1932,15,FALSE),0) -> 608 | R23: =IFERROR(VLOOKUP($A23,Filtro!$A$4:$AX$1932,16,FALSE),0) -> 208 | S23: =IFERROR(VLOOKUP($A23,Filtro!$A$4:$AX$1932,17,FALSE),0) -> 93 | T23: =IFERROR(VLOOKUP($A23,Filtro!$A$4:$AX$1932,18,FALSE),0) -> 41 | U23: =IFERROR(VLOOKUP($A23,Filtro!$A$4:$AX$1932,19,FALSE),0) -> 0 | V23: =IFERROR(VLOOKUP($A23,Filtro!$A$4:$AX$1932,20,FALSE),0) -> 15014 | W23: =IFERROR(VLOOKUP($A23,Filtro!$A$4:$AX$1932,21,FALSE),0) -> 14839 | X23: =IFERROR(VLOOKUP($A23,Filtro!$A$4:$AX$1932,22,FALSE),0) -> 0 | Y23: =IFERROR(VLOOKUP($A23,Filtro!$A$4:$AX$1932,23,FALSE),0) -> 0 | Z23: =IFERROR(VLOOKUP($A23,Filtro!$A$4:$AX$1932,24,FALSE),0) -> 0 | AA23: =IFERROR(VLOOKUP($A23,Filtro!$A$4:$AX$1932,25,FALSE),0) -> 0 | AB23: =IFERROR(VLOOKUP($A23,Filtro!$A$4:$AX$1932,26,FALSE),0) -> 0 | CM23: 0 | CN23: 0 | CR23: 0
A24: 01010901 | B24: CLIMATERIO | C24: MÉDICO | D24: =IFERROR(VLOOKUP($A24,Filtro!$A$4:$AX$1932,2,FALSE),0) -> 2 | E24: =IFERROR(VLOOKUP($A24,Filtro!$A$4:$AX$1932,3,FALSE),0) -> 0 | F24: =IFERROR(VLOOKUP($A24,Filtro!$A$4:$AX$1932,4,FALSE),0) -> 0 | G24: =IFERROR(VLOOKUP($A24,Filtro!$A$4:$AX$1932,5,FALSE),0) -> 0 | H24: =IFERROR(VLOOKUP($A24,Filtro!$A$4:$AX$1932,6,FALSE),0) -> 0 | I24: =IFERROR(VLOOKUP($A24,Filtro!$A$4:$AX$1932,7,FALSE),0) -> 0 | J24: =IFERROR(VLOOKUP($A24,Filtro!$A$4:$AX$1932,8,FALSE),0) -> 0 | K24: =IFERROR(VLOOKUP($A24,Filtro!$A$4:$AX$1932,9,FALSE),0) -> 0 | L24: =IFERROR(VLOOKUP($A24,Filtro!$A$4:$AX$1932,10,FALSE),0) -> 0 | M24: =IFERROR(VLOOKUP($A24,Filtro!$A$4:$AX$1932,11,FALSE),0) -> 1 | N24: =IFERROR(VLOOKUP($A24,Filtro!$A$4:$AX$1932,12,FALSE),0) -> 1 | O24: =IFERROR(VLOOKUP($A24,Filtro!$A$4:$AX$1932,13,FALSE),0) -> 0 | P24: =IFERROR(VLOOKUP($A24,Filtro!$A$4:$AX$1932,14,FALSE),0) -> 0 | Q24: =IFERROR(VLOOKUP($A24,Filtro!$A$4:$AX$1932,15,FALSE),0) -> 0 | R24: =IFERROR(VLOOKUP($A24,Filtro!$A$4:$AX$1932,16,FALSE),0) -> 0 | S24: =IFERROR(VLOOKUP($A24,Filtro!$A$4:$AX$1932,17,FALSE),0) -> 0 | T24: =IFERROR(VLOOKUP($A24,Filtro!$A$4:$AX$1932,18,FALSE),0) -> 0 | U24: =IFERROR(VLOOKUP($A24,Filtro!$A$4:$AX$1932,19,FALSE),0) -> 0 | V24: =IFERROR(VLOOKUP($A24,Filtro!$A$4:$AX$1932,20,FALSE),0) -> 55 | W24: =IFERROR(VLOOKUP($A24,Filtro!$A$4:$AX$1932,21,FALSE),0) -> 55 | X24: =IFERROR(VLOOKUP($A24,Filtro!$A$4:$AX$1932,22,FALSE),0) -> 0 | Y24: =IFERROR(VLOOKUP($A24,Filtro!$A$4:$AX$1932,23,FALSE),0) -> 0 | Z24: =IFERROR(VLOOKUP($A24,Filtro!$A$4:$AX$1932,24,FALSE),0) -> 0 | AA24: =IFERROR(VLOOKUP($A24,Filtro!$A$4:$AX$1932,25,FALSE),0) -> 0 | AB24: =IFERROR(VLOOKUP($A24,Filtro!$A$4:$AX$1932,26,FALSE),0) -> 0 | CM24: 0 | CN24: 0 | CR24: 0
A25: 01010903 | C25: MATRONA /ÓN | D25: =IFERROR(VLOOKUP($A25,Filtro!$A$4:$AX$1932,2,FALSE),0) -> 962 | E25: =IFERROR(VLOOKUP($A25,Filtro!$A$4:$AX$1932,3,FALSE),0) -> 0 | F25: =IFERROR(VLOOKUP($A25,Filtro!$A$4:$AX$1932,4,FALSE),0) -> 0 | G25: =IFERROR(VLOOKUP($A25,Filtro!$A$4:$AX$1932,5,FALSE),0) -> 0 | H25: =IFERROR(VLOOKUP($A25,Filtro!$A$4:$AX$1932,6,FALSE),0) -> 0 | I25: =IFERROR(VLOOKUP($A25,Filtro!$A$4:$AX$1932,7,FALSE),0) -> 0 | J25: =IFERROR(VLOOKUP($A25,Filtro!$A$4:$AX$1932,8,FALSE),0) -> 0 | K25: =IFERROR(VLOOKUP($A25,Filtro!$A$4:$AX$1932,9,FALSE),0) -> 0 | L25: =IFERROR(VLOOKUP($A25,Filtro!$A$4:$AX$1932,10,FALSE),0) -> 0 | M25: =IFERROR(VLOOKUP($A25,Filtro!$A$4:$AX$1932,11,FALSE),0) -> 305 | N25: =IFERROR(VLOOKUP($A25,Filtro!$A$4:$AX$1932,12,FALSE),0) -> 384 | O25: =IFERROR(VLOOKUP($A25,Filtro!$A$4:$AX$1932,13,FALSE),0) -> 204 | P25: =IFERROR(VLOOKUP($A25,Filtro!$A$4:$AX$1932,14,FALSE),0) -> 69 | Q25: =IFERROR(VLOOKUP($A25,Filtro!$A$4:$AX$1932,15,FALSE),0) -> 0 | R25: =IFERROR(VLOOKUP($A25,Filtro!$A$4:$AX$1932,16,FALSE),0) -> 0 | S25: =IFERROR(VLOOKUP($A25,Filtro!$A$4:$AX$1932,17,FALSE),0) -> 0 | T25: =IFERROR(VLOOKUP($A25,Filtro!$A$4:$AX$1932,18,FALSE),0) -> 0 | U25: =IFERROR(VLOOKUP($A25,Filtro!$A$4:$AX$1932,19,FALSE),0) -> 0 | V25: =IFERROR(VLOOKUP($A25,Filtro!$A$4:$AX$1932,20,FALSE),0) -> 986 | W25: =IFERROR(VLOOKUP($A25,Filtro!$A$4:$AX$1932,21,FALSE),0) -> 966 | X25: =IFERROR(VLOOKUP($A25,Filtro!$A$4:$AX$1932,22,FALSE),0) -> 0 | Y25: =IFERROR(VLOOKUP($A25,Filtro!$A$4:$AX$1932,23,FALSE),0) -> 0 | Z25: =IFERROR(VLOOKUP($A25,Filtro!$A$4:$AX$1932,24,FALSE),0) -> 0 | AA25: =IFERROR(VLOOKUP($A25,Filtro!$A$4:$AX$1932,25,FALSE),0) -> 0 | AB25: =IFERROR(VLOOKUP($A25,Filtro!$A$4:$AX$1932,26,FALSE),0) -> 0 | CM25: 0 | CN25: 0 | CR25: 0
A26: 01010401 | B26: REGULACIÓN DE FECUNDIDAD | C26: MÉDICO | D26: =IFERROR(VLOOKUP($A26,Filtro!$A$4:$AX$1932,2,FALSE),0) -> 6 | E26: =IFERROR(VLOOKUP($A26,Filtro!$A$4:$AX$1932,3,FALSE),0) -> 0 | F26: =IFERROR(VLOOKUP($A26,Filtro!$A$4:$AX$1932,4,FALSE),0) -> 0 | G26: =IFERROR(VLOOKUP($A26,Filtro!$A$4:$AX$1932,5,FALSE),0) -> 0 | H26: =IFERROR(VLOOKUP($A26,Filtro!$A$4:$AX$1932,6,FALSE),0) -> 0 | I26: =IFERROR(VLOOKUP($A26,Filtro!$A$4:$AX$1932,7,FALSE),0) -> 2 | J26: =IFERROR(VLOOKUP($A26,Filtro!$A$4:$AX$1932,8,FALSE),0) -> 0 | K26: =IFERROR(VLOOKUP($A26,Filtro!$A$4:$AX$1932,9,FALSE),0) -> 1 | L26: =IFERROR(VLOOKUP($A26,Filtro!$A$4:$AX$1932,10,FALSE),0) -> 0 | M26: =IFERROR(VLOOKUP($A26,Filtro!$A$4:$AX$1932,11,FALSE),0) -> 1 | N26: =IFERROR(VLOOKUP($A26,Filtro!$A$4:$AX$1932,12,FALSE),0) -> 2 | O26: =IFERROR(VLOOKUP($A26,Filtro!$A$4:$AX$1932,13,FALSE),0) -> 0 | P26: =IFERROR(VLOOKUP($A26,Filtro!$A$4:$AX$1932,14,FALSE),0) -> 0 | Q26: =IFERROR(VLOOKUP($A26,Filtro!$A$4:$AX$1932,15,FALSE),0) -> 0 | R26: =IFERROR(VLOOKUP($A26,Filtro!$A$4:$AX$1932,16,FALSE),0) -> 0 | S26: =IFERROR(VLOOKUP($A26,Filtro!$A$4:$AX$1932,17,FALSE),0) -> 0 | T26: =IFERROR(VLOOKUP($A26,Filtro!$A$4:$AX$1932,18,FALSE),0) -> 0 | U26: =IFERROR(VLOOKUP($A26,Filtro!$A$4:$AX$1932,19,FALSE),0) -> 0 | V26: =IFERROR(VLOOKUP($A26,Filtro!$A$4:$AX$1932,20,FALSE),0) -> 11 | W26: =IFERROR(VLOOKUP($A26,Filtro!$A$4:$AX$1932,21,FALSE),0) -> 11 | X26: =IFERROR(VLOOKUP($A26,Filtro!$A$4:$AX$1932,22,FALSE),0) -> 0 | Y26: =IFERROR(VLOOKUP($A26,Filtro!$A$4:$AX$1932,23,FALSE),0) -> 0 | Z26: =IFERROR(VLOOKUP($A26,Filtro!$A$4:$AX$1932,24,FALSE),0) -> 0 | AA26: =IFERROR(VLOOKUP($A26,Filtro!$A$4:$AX$1932,25,FALSE),0) -> 0 | AB26: =IFERROR(VLOOKUP($A26,Filtro!$A$4:$AX$1932,26,FALSE),0) -> 0 | CM26: 0 | CN26: 0 | CR26: 0
A27: 01010403 | C27: MATRONA /ÓN | D27: =IFERROR(VLOOKUP($A27,Filtro!$A$4:$AX$1932,2,FALSE),0) -> 47421 | E27: =IFERROR(VLOOKUP($A27,Filtro!$A$4:$AX$1932,3,FALSE),0) -> 0 | F27: =IFERROR(VLOOKUP($A27,Filtro!$A$4:$AX$1932,4,FALSE),0) -> 635 | G27: =IFERROR(VLOOKUP($A27,Filtro!$A$4:$AX$1932,5,FALSE),0) -> 7081 | H27: =IFERROR(VLOOKUP($A27,Filtro!$A$4:$AX$1932,6,FALSE),0) -> 8971 | I27: =IFERROR(VLOOKUP($A27,Filtro!$A$4:$AX$1932,7,FALSE),0) -> 9024 | J27: =IFERROR(VLOOKUP($A27,Filtro!$A$4:$AX$1932,8,FALSE),0) -> 7441 | K27: =IFERROR(VLOOKUP($A27,Filtro!$A$4:$AX$1932,9,FALSE),0) -> 5498 | L27: =IFERROR(VLOOKUP($A27,Filtro!$A$4:$AX$1932,10,FALSE),0) -> 4343 | M27: =IFERROR(VLOOKUP($A27,Filtro!$A$4:$AX$1932,11,FALSE),0) -> 3203 | N27: =IFERROR(VLOOKUP($A27,Filtro!$A$4:$AX$1932,12,FALSE),0) -> 1085 | O27: =IFERROR(VLOOKUP($A27,Filtro!$A$4:$AX$1932,13,FALSE),0) -> 107 | P27: =IFERROR(VLOOKUP($A27,Filtro!$A$4:$AX$1932,14,FALSE),0) -> 20 | Q27: =IFERROR(VLOOKUP($A27,Filtro!$A$4:$AX$1932,15,FALSE),0) -> 8 | R27: =IFERROR(VLOOKUP($A27,Filtro!$A$4:$AX$1932,16,FALSE),0) -> 5 | S27: =IFERROR(VLOOKUP($A27,Filtro!$A$4:$AX$1932,17,FALSE),0) -> 0 | T27: =IFERROR(VLOOKUP($A27,Filtro!$A$4:$AX$1932,18,FALSE),0) -> 0 | U27: =IFERROR(VLOOKUP($A27,Filtro!$A$4:$AX$1932,19,FALSE),0) -> 118 | V27: =IFERROR(VLOOKUP($A27,Filtro!$A$4:$AX$1932,20,FALSE),0) -> 46076 | W27: =IFERROR(VLOOKUP($A27,Filtro!$A$4:$AX$1932,21,FALSE),0) -> 46662 | X27: =IFERROR(VLOOKUP($A27,Filtro!$A$4:$AX$1932,22,FALSE),0) -> 10 | Y27: =IFERROR(VLOOKUP($A27,Filtro!$A$4:$AX$1932,23,FALSE),0) -> 0 | Z27: =IFERROR(VLOOKUP($A27,Filtro!$A$4:$AX$1932,24,FALSE),0) -> 0 | AA27: =IFERROR(VLOOKUP($A27,Filtro!$A$4:$AX$1932,25,FALSE),0) -> 0 | AB27: =IFERROR(VLOOKUP($A27,Filtro!$A$4:$AX$1932,26,FALSE),0) -> 0 | CM27: 0 | CN27: 0 | CR27: 0
B28: SECCIÓN B: CONTROLES DE SALUD SEGÚN CICLO VITAL
B29: TIPO DE CONTROL | C29: PROFESIONAL | D29: TOTAL | G29: POR EDAD | AJ29: Beneficiarios | AK29: CONTROL CON PRESENCIA DEL PADRE | AM29: Niños, Niñas, Adolescentes y Jóvenes Población SENAME
D30: Ambos Sexos | E30: Hombres | F30: Mujeres | G30: Menor de 1 mes | H30: 1 mes | I30: 2 meses | J30: 3 meses | K30: 4 meses | L30: 5 meses | M30: 6 meses | N30: 7 - 11 meses | O30: 12 a 17 meses | P30: 18 - 23 meses | Q30: 24 - 47 meses | R30: 48 - 59 meses | S30: 60 - 71 meses | T30: 6 - 9 | U30: 10 - 14 | V30: 15 - 19 | W30: 20 - 24 | X30: 25 - 29 | Y30: 30 - 34 | Z30: 35 - 39 | AA30: 40 - 44 | AB30: 45 - 49 | AC30: 50 - 54 | AD30: 55 - 59 | AE30: 60 - 64 | AF30: 65 - 69 | AG30: 70 - 74 | AH30: 75 - 79 | AI30: 80 y mas | AK30: menor 1 año | AL30: 1 año a 3 años 11 meses 29 días
A31: 02010101 | B31: DE SALUD | C31: MÉDICO | D31: =IFERROR(VLOOKUP($A31,Filtro!$A$4:$AX$1932,2,FALSE),0) -> 12732 | E31: =IFERROR(VLOOKUP($A31,Filtro!$A$4:$AX$1932,3,FALSE),0) -> 5805 | F31: =IFERROR(VLOOKUP($A31,Filtro!$A$4:$AX$1932,4,FALSE),0) -> 6805 | G31: =IFERROR(VLOOKUP($A31,Filtro!$A$4:$AX$1932,5,FALSE),0) -> 273 | H31: =IFERROR(VLOOKUP($A31,Filtro!$A$4:$AX$1932,6,FALSE),0) -> 4270 | I31: =IFERROR(VLOOKUP($A31,Filtro!$A$4:$AX$1932,7,FALSE),0) -> 430 | J31: =IFERROR(VLOOKUP($A31,Filtro!$A$4:$AX$1932,8,FALSE),0) -> 3147 | K31: =IFERROR(VLOOKUP($A31,Filtro!$A$4:$AX$1932,9,FALSE),0) -> 416 | L31: =IFERROR(VLOOKUP($A31,Filtro!$A$4:$AX$1932,10,FALSE),0) -> 118 | M31: =IFERROR(VLOOKUP($A31,Filtro!$A$4:$AX$1932,11,FALSE),0) -> 107 | N31: =IFERROR(VLOOKUP($A31,Filtro!$A$4:$AX$1932,12,FALSE),0) -> 77 | O31: =IFERROR(VLOOKUP($A31,Filtro!$A$4:$AX$1932,13,FALSE),0) -> 49 | P31: =IFERROR(VLOOKUP($A31,Filtro!$A$4:$AX$1932,14,FALSE),0) -> 20 | Q31: =IFERROR(VLOOKUP($A31,Filtro!$A$4:$AX$1932,15,FALSE),0) -> 78 | R31: =IFERROR(VLOOKUP($A31,Filtro!$A$4:$AX$1932,16,FALSE),0) -> 121 | S31: =IFERROR(VLOOKUP($A31,Filtro!$A$4:$AX$1932,17,FALSE),0) -> 135 | T31: =IFERROR(VLOOKUP($A31,Filtro!$A$4:$AX$1932,18,FALSE),0) -> 420 | U31: =IFERROR(VLOOKUP($A31,Filtro!$A$4:$AX$1932,19,FALSE),0) -> 219 | V31: =IFERROR(VLOOKUP($A31,Filtro!$A$4:$AX$1932,20,FALSE),0) -> 165 | W31: =IFERROR(VLOOKUP($A31,Filtro!$A$4:$AX$1932,21,FALSE),0) -> 99 | X31: =IFERROR(VLOOKUP($A31,Filtro!$A$4:$AX$1932,22,FALSE),0) -> 144 | Y31: =IFERROR(VLOOKUP($A31,Filtro!$A$4:$AX$1932,23,FALSE),0) -> 167 | Z31: =IFERROR(VLOOKUP($A31,Filtro!$A$4:$AX$1932,24,FALSE),0) -> 142 | AA31: =IFERROR(VLOOKUP($A31,Filtro!$A$4:$AX$1932,25,FALSE),0) -> 141 | AB31: =IFERROR(VLOOKUP($A31,Filtro!$A$4:$AX$1932,26,FALSE),0) -> 165 | AC31: =IFERROR(VLOOKUP($A31,Filtro!$A$4:$AX$1932,27,FALSE),0) -> 192 | AD31: =IFERROR(VLOOKUP($A31,Filtro!$A$4:$AX$1932,28,FALSE),0) -> 281 | AE31: =IFERROR(VLOOKUP($A31,Filtro!$A$4:$AX$1932,29,FALSE),0) -> 263 | AF31: =IFERROR(VLOOKUP($A31,Filtro!$A$4:$AX$1932,30,FALSE),0) -> 276 | AG31: =IFERROR(VLOOKUP($A31,Filtro!$A$4:$AX$1932,31,FALSE),0) -> 273 | AH31: =IFERROR(VLOOKUP($A31,Filtro!$A$4:$AX$1932,32,FALSE),0) -> 203 | AI31: =IFERROR(VLOOKUP($A31,Filtro!$A$4:$AX$1932,33,FALSE),0) -> 341 | AJ31: =IFERROR(VLOOKUP($A31,Filtro!$A$4:$AX$1932,34,FALSE),0) -> 12213 | AK31: =IFERROR(VLOOKUP($A31,Filtro!$A$4:$AX$1932,35,FALSE),0) -> 1454 | AL31: =IFERROR(VLOOKUP($A31,Filtro!$A$4:$AX$1932,36,FALSE),0) -> 10 | AM31: =IFERROR(VLOOKUP($A31,Filtro!$A$4:$AX$1932,37,FALSE),0) -> 505 | CD31: =IF(AK31>SUM(G31:N31),"* Los controles con presencia del padre NO DEBE ser mayor que el total Controles Menor 1 año. ",IF(AL31>SUM(O31:Q31),"* Los controles con presencia del padre NO DEBE ser mayor que el total Controles 1 año a 3 años 11 meses 29 dÍas. ","")) ->  | CE31: =IF(AND(G31<>0,'A05'!D50=""),"* NO OLVIDE REGISTRAR INGRESOS A CONTROL DE SALUD DE LOS RESPECTIVOS RN, EN REM A05-SECCIÓN E. ","") ->  | CI31: 0 | CJ31: =IF(AK31>SUM(G31:N31),1,IF(AL31>SUM(O31:Q31),1,0)) -> 0 | CK31: 0
A32: 02010201 | C32: ENFERMERA /O | D32: =IFERROR(VLOOKUP($A32,Filtro!$A$4:$AX$1932,2,FALSE),0) -> 43208 | E32: =IFERROR(VLOOKUP($A32,Filtro!$A$4:$AX$1932,3,FALSE),0) -> 20386 | F32: =IFERROR(VLOOKUP($A32,Filtro!$A$4:$AX$1932,4,FALSE),0) -> 22274 | G32: =IFERROR(VLOOKUP($A32,Filtro!$A$4:$AX$1932,5,FALSE),0) -> 69 | H32: =IFERROR(VLOOKUP($A32,Filtro!$A$4:$AX$1932,6,FALSE),0) -> 151 | I32: =IFERROR(VLOOKUP($A32,Filtro!$A$4:$AX$1932,7,FALSE),0) -> 4033 | J32: =IFERROR(VLOOKUP($A32,Filtro!$A$4:$AX$1932,8,FALSE),0) -> 235 | K32: =IFERROR(VLOOKUP($A32,Filtro!$A$4:$AX$1932,9,FALSE),0) -> 3798 | L32: =IFERROR(VLOOKUP($A32,Filtro!$A$4:$AX$1932,10,FALSE),0) -> 279 | M32: =IFERROR(VLOOKUP($A32,Filtro!$A$4:$AX$1932,11,FALSE),0) -> 3848 | N32: =IFERROR(VLOOKUP($A32,Filtro!$A$4:$AX$1932,12,FALSE),0) -> 3533 | O32: =IFERROR(VLOOKUP($A32,Filtro!$A$4:$AX$1932,13,FALSE),0) -> 3486 | P32: =IFERROR(VLOOKUP($A32,Filtro!$A$4:$AX$1932,14,FALSE),0) -> 2992 | Q32: =IFERROR(VLOOKUP($A32,Filtro!$A$4:$AX$1932,15,FALSE),0) -> 4821 | R32: =IFERROR(VLOOKUP($A32,Filtro!$A$4:$AX$1932,16,FALSE),0) -> 2021 | S32: =IFERROR(VLOOKUP($A32,Filtro!$A$4:$AX$1932,17,FALSE),0) -> 1912 | T32: =IFERROR(VLOOKUP($A32,Filtro!$A$4:$AX$1932,18,FALSE),0) -> 2379 | U32: =IFERROR(VLOOKUP($A32,Filtro!$A$4:$AX$1932,19,FALSE),0) -> 735 | V32: =IFERROR(VLOOKUP($A32,Filtro!$A$4:$AX$1932,20,FALSE),0) -> 392 | W32: =IFERROR(VLOOKUP($A32,Filtro!$A$4:$AX$1932,21,FALSE),0) -> 217 | X32: =IFERROR(VLOOKUP($A32,Filtro!$A$4:$AX$1932,22,FALSE),0) -> 227 | Y32: =IFERROR(VLOOKUP($A32,Filtro!$A$4:$AX$1932,23,FALSE),0) -> 254 | Z32: =IFERROR(VLOOKUP($A32,Filtro!$A$4:$AX$1932,24,FALSE),0) -> 244 | AA32: =IFERROR(VLOOKUP($A32,Filtro!$A$4:$AX$1932,25,FALSE),0) -> 277 | AB32: =IFERROR(VLOOKUP($A32,Filtro!$A$4:$AX$1932,26,FALSE),0) -> 375 | AC32: =IFERROR(VLOOKUP($A32,Filtro!$A$4:$AX$1932,27,FALSE),0) -> 458 | AD32: =IFERROR(VLOOKUP($A32,Filtro!$A$4:$AX$1932,28,FALSE),0) -> 510 | AE32: =IFERROR(VLOOKUP($A32,Filtro!$A$4:$AX$1932,29,FALSE),0) -> 525 | AF32: =IFERROR(VLOOKUP($A32,Filtro!$A$4:$AX$1932,30,FALSE),0) -> 1368 | AG32: =IFERROR(VLOOKUP($A32,Filtro!$A$4:$AX$1932,31,FALSE),0) -> 1259 | AH32: =IFERROR(VLOOKUP($A32,Filtro!$A$4:$AX$1932,32,FALSE),0) -> 1238 | AI32: =IFERROR(VLOOKUP($A32,Filtro!$A$4:$AX$1932,33,FALSE),0) -> 1571 | AJ32: =IFERROR(VLOOKUP($A32,Filtro!$A$4:$AX$1932,34,FALSE),0) -> 42119 | AK32: =IFERROR(VLOOKUP($A32,Filtro!$A$4:$AX$1932,35,FALSE),0) -> 2367 | AL32: =IFERROR(VLOOKUP($A32,Filtro!$A$4:$AX$1932,36,FALSE),0) -> 1545 | AM32: =IFERROR(VLOOKUP($A32,Filtro!$A$4:$AX$1932,37,FALSE),0) -> 330 | CD32: =IF(AK32>SUM(G32:N32),"* Los controles con presencia del padre NO DEBE ser mayor que el total Controles Menor 1 año. ",IF(AL32>SUM(O32:Q32),"* Los controles con presencia del padre NO DEBE ser mayor que el total Controles 1 año a 3 años 11 meses 29 dÍas. ","")) ->  | CE32: =IF(AND(G32<>0,'A05'!D50=""),"* NO OLVIDE REGISTRAR INGRESOS A CONTROL DE SALUD DE LOS RESPECTIVOS RN, EN REM A05-SECCIÓN E. ","") ->  | CI32: 0 | CJ32: =IF(AK32>SUM(G32:N32),1,IF(AL32>SUM(O32:Q32),1,0)) -> 0 | CK32: 0
A33: 02010103 | C33: MATRONA /ÓN | D33: =IFERROR(VLOOKUP($A33,Filtro!$A$4:$AX$1932,2,FALSE),0) -> 15377 | E33: =IFERROR(VLOOKUP($A33,Filtro!$A$4:$AX$1932,3,FALSE),0) -> 2419 | F33: =IFERROR(VLOOKUP($A33,Filtro!$A$4:$AX$1932,4,FALSE),0) -> 12791 | G33: =IFERROR(VLOOKUP($A33,Filtro!$A$4:$AX$1932,5,FALSE),0) -> 4238 | H33: =IFERROR(VLOOKUP($A33,Filtro!$A$4:$AX$1932,6,FALSE),0) -> 0 | I33: =IFERROR(VLOOKUP($A33,Filtro!$A$4:$AX$1932,7,FALSE),0) -> 0 | J33: =IFERROR(VLOOKUP($A33,Filtro!$A$4:$AX$1932,8,FALSE),0) -> 0 | K33: =IFERROR(VLOOKUP($A33,Filtro!$A$4:$AX$1932,9,FALSE),0) -> 0 | L33: =IFERROR(VLOOKUP($A33,Filtro!$A$4:$AX$1932,10,FALSE),0) -> 0 | M33: =IFERROR(VLOOKUP($A33,Filtro!$A$4:$AX$1932,11,FALSE),0) -> 0 | N33: =IFERROR(VLOOKUP($A33,Filtro!$A$4:$AX$1932,12,FALSE),0) -> 0 | O33: =IFERROR(VLOOKUP($A33,Filtro!$A$4:$AX$1932,13,FALSE),0) -> 0 | P33: =IFERROR(VLOOKUP($A33,Filtro!$A$4:$AX$1932,14,FALSE),0) -> 0 | Q33: =IFERROR(VLOOKUP($A33,Filtro!$A$4:$AX$1932,15,FALSE),0) -> 0 | R33: =IFERROR(VLOOKUP($A33,Filtro!$A$4:$AX$1932,16,FALSE),0) -> 0 | S33: =IFERROR(VLOOKUP($A33,Filtro!$A$4:$AX$1932,17,FALSE),0) -> 0 | T33: =IFERROR(VLOOKUP($A33,Filtro!$A$4:$AX$1932,18,FALSE),0) -> 0 | U33: =IFERROR(VLOOKUP($A33,Filtro!$A$4:$AX$1932,19,FALSE),0) -> 428 | V33: =IFERROR(VLOOKUP($A33,Filtro!$A$4:$AX$1932,20,FALSE),0) -> 1761 | W33: =IFERROR(VLOOKUP($A33,Filtro!$A$4:$AX$1932,21,FALSE),0) -> 1819 | X33: =IFERROR(VLOOKUP($A33,Filtro!$A$4:$AX$1932,22,FALSE),0) -> 1929 | Y33: =IFERROR(VLOOKUP($A33,Filtro!$A$4:$AX$1932,23,FALSE),0) -> 1609 | Z33: =IFERROR(VLOOKUP($A33,Filtro!$A$4:$AX$1932,24,FALSE),0) -> 1160 | AA33: =IFERROR(VLOOKUP($A33,Filtro!$A$4:$AX$1932,25,FALSE),0) -> 778 | AB33: =IFERROR(VLOOKUP($A33,Filtro!$A$4:$AX$1932,26,FALSE),0) -> 651 | AC33: =IFERROR(VLOOKUP($A33,Filtro!$A$4:$AX$1932,27,FALSE),0) -> 458 | AD33: =IFERROR(VLOOKUP($A33,Filtro!$A$4:$AX$1932,28,FALSE),0) -> 238 | AE33: =IFERROR(VLOOKUP($A33,Filtro!$A$4:$AX$1932,29,FALSE),0) -> 170 | AF33: =IFERROR(VLOOKUP($A33,Filtro!$A$4:$AX$1932,30,FALSE),0) -> 92 | AG33: =IFERROR(VLOOKUP($A33,Filtro!$A$4:$AX$1932,31,FALSE),0) -> 31 | AH33: =IFERROR(VLOOKUP($A33,Filtro!$A$4:$AX$1932,32,FALSE),0) -> 8 | AI33: =IFERROR(VLOOKUP($A33,Filtro!$A$4:$AX$1932,33,FALSE),0) -> 7 | AJ33: =IFERROR(VLOOKUP($A33,Filtro!$A$4:$AX$1932,34,FALSE),0) -> 14894 | AK33: =IFERROR(VLOOKUP($A33,Filtro!$A$4:$AX$1932,35,FALSE),0) -> 1283 | AL33: =IFERROR(VLOOKUP($A33,Filtro!$A$4:$AX$1932,36,FALSE),0) -> 0 | AM33: =IFERROR(VLOOKUP($A33,Filtro!$A$4:$AX$1932,37,FALSE),0) -> 72 | CD33: =IF((AK33>G33),"* Los controles con presencia del padre NO DEBE ser mayor que el total Controles Menor 1 año. ","") ->  | CE33: =IF(AND(G33<>0,'A05'!D50=""),"* NO OLVIDE REGISTRAR INGRESOS A CONTROL DE SALUD DE LOS RESPECTIVOS RN, EN REM A05-SECCIÓN E. ","") ->  | CI33: 0 | CJ33: =IF(AK33>SUM(G33:N33),1,IF(AL33>SUM(O33:Q33),1,0)) -> 0 | CK33: 0
A34: 02010105 | C34: TÉCNICO PARAMÉDICO | D34: =IFERROR(VLOOKUP($A34,Filtro!$A$4:$AX$1932,2,FALSE),0) -> 169 | E34: =IFERROR(VLOOKUP($A34,Filtro!$A$4:$AX$1932,3,FALSE),0) -> 98 | F34: =IFERROR(VLOOKUP($A34,Filtro!$A$4:$AX$1932,4,FALSE),0) -> 70 | G34: =IFERROR(VLOOKUP($A34,Filtro!$A$4:$AX$1932,5,FALSE),0) -> 0 | H34: =IFERROR(VLOOKUP($A34,Filtro!$A$4:$AX$1932,6,FALSE),0) -> 0 | I34: =IFERROR(VLOOKUP($A34,Filtro!$A$4:$AX$1932,7,FALSE),0) -> 0 | J34: =IFERROR(VLOOKUP($A34,Filtro!$A$4:$AX$1932,8,FALSE),0) -> 0 | K34: =IFERROR(VLOOKUP($A34,Filtro!$A$4:$AX$1932,9,FALSE),0) -> 0 | L34: =IFERROR(VLOOKUP($A34,Filtro!$A$4:$AX$1932,10,FALSE),0) -> 0 | M34: =IFERROR(VLOOKUP($A34,Filtro!$A$4:$AX$1932,11,FALSE),0) -> 0 | N34: =IFERROR(VLOOKUP($A34,Filtro!$A$4:$AX$1932,12,FALSE),0) -> 0 | O34: =IFERROR(VLOOKUP($A34,Filtro!$A$4:$AX$1932,13,FALSE),0) -> 23 | P34: =IFERROR(VLOOKUP($A34,Filtro!$A$4:$AX$1932,14,FALSE),0) -> 6 | Q34: =IFERROR(VLOOKUP($A34,Filtro!$A$4:$AX$1932,15,FALSE),0) -> 49 | R34: =IFERROR(VLOOKUP($A34,Filtro!$A$4:$AX$1932,16,FALSE),0) -> 49 | S34: =IFERROR(VLOOKUP($A34,Filtro!$A$4:$AX$1932,17,FALSE),0) -> 42 | T34: =IFERROR(VLOOKUP($A34,Filtro!$A$4:$AX$1932,18,FALSE),0) -> 0 | U34: =IFERROR(VLOOKUP($A34,Filtro!$A$4:$AX$1932,19,FALSE),0) -> 0 | V34: =IFERROR(VLOOKUP($A34,Filtro!$A$4:$AX$1932,20,FALSE),0) -> 0 | W34: =IFERROR(VLOOKUP($A34,Filtro!$A$4:$AX$1932,21,FALSE),0) -> 0 | X34: =IFERROR(VLOOKUP($A34,Filtro!$A$4:$AX$1932,22,FALSE),0) -> 0 | Y34: =IFERROR(VLOOKUP($A34,Filtro!$A$4:$AX$1932,23,FALSE),0) -> 0 | Z34: =IFERROR(VLOOKUP($A34,Filtro!$A$4:$AX$1932,24,FALSE),0) -> 0 | AA34: =IFERROR(VLOOKUP($A34,Filtro!$A$4:$AX$1932,25,FALSE),0) -> 0 | AB34: =IFERROR(VLOOKUP($A34,Filtro!$A$4:$AX$1932,26,FALSE),0) -> 0 | AC34: =IFERROR(VLOOKUP($A34,Filtro!$A$4:$AX$1932,27,FALSE),0) -> 0 | AD34: =IFERROR(VLOOKUP($A34,Filtro!$A$4:$AX$1932,28,FALSE),0) -> 0 | AE34: =IFERROR(VLOOKUP($A34,Filtro!$A$4:$AX$1932,29,FALSE),0) -> 0 | AF34: =IFERROR(VLOOKUP($A34,Filtro!$A$4:$AX$1932,30,FALSE),0) -> 0 | AG34: =IFERROR(VLOOKUP($A34,Filtro!$A$4:$AX$1932,31,FALSE),0) -> 0 | AH34: =IFERROR(VLOOKUP($A34,Filtro!$A$4:$AX$1932,32,FALSE),0) -> 0 | AI34: =IFERROR(VLOOKUP($A34,Filtro!$A$4:$AX$1932,33,FALSE),0) -> 0 | AJ34: =IFERROR(VLOOKUP($A34,Filtro!$A$4:$AX$1932,34,FALSE),0) -> 164 | AK34: =IFERROR(VLOOKUP($A34,Filtro!$A$4:$AX$1932,35,FALSE),0) -> 0 | AL34: =IFERROR(VLOOKUP($A34,Filtro!$A$4:$AX$1932,36,FALSE),0) -> 8 | AM34: =IFERROR(VLOOKUP($A34,Filtro!$A$4:$AX$1932,37,FALSE),0) -> 1 | CD34: =IF(AL34>SUM(O34:T34),"* Los controles con presencia del padre NO DEBE ser mayor que el total Controles 1año a 3 años 11 meses 29 dÍas. ","") ->  | CI34: 0 | CJ34: =IF(AK34>SUM(G34:N34),1,IF(AL34>SUM(O34:Q34),1,0)) -> 0 | CK34: 0
B35: SECCIÓN C: CONTROLES SEGÚN PROBLEMA DE SALUD
B36: TIPO DE CONTROL | C36: PROFESIONAL | D36: TOTAL | G36: POR EDAD | AO36: Beneficiarios
G37: 0 - 4 | I37: 5 - 9 | K37: 10 - 14 | M37: 15 a 19 | O37: 20 - 24 | Q37: 25 - 29 | S37: 30 - 34 | U37: 35 - 39 | W37: 40 - 44 | Y37: 45 - 49 | AA37: 50 - 54 | AC37: 55 - 59 | AE37: 60 - 64 | AG37: 65 - 69 | AI37: 70 - 74 | AK37: 75 - 79 | AM37: 80 y mas
D38: Ambos Sexos | E38: Hombres | F38: Mujeres | G38: Hombres | H38: Mujeres | I38: Hombres | J38: Mujeres | K38: Hombres | L38: Mujeres | M38: Hombres | N38: Mujeres | O38: Hombres | P38: Mujeres | Q38: Hombres | R38: Mujeres | S38: Hombres | T38: Mujeres | U38: Hombres | V38: Mujeres | W38: Hombres | X38: Mujeres | Y38: Hombres | Z38: Mujeres | AA38: Hombres | AB38: Mujeres | AC38: Hombres | AD38: Mujeres | AE38: Hombres | AF38: Mujeres | AG38: Hombres | AH38: Mujeres | AI38: Hombres | AJ38: Mujeres | AK38: Hombres | AL38: Mujeres | AM38: Hombres | AN38: Mujeres
A39: 03010501 | B39: DE SALUD CARDIOVASCULAR | C39: MÉDICO | D39: =IFERROR(VLOOKUP($A39,Filtro!$A$4:$AX$1932,2,FALSE),0) -> 62859 | E39: =IFERROR(VLOOKUP($A39,Filtro!$A$4:$AX$1932,3,FALSE),0) -> 22372 | F39: =IFERROR(VLOOKUP($A39,Filtro!$A$4:$AX$1932,4,FALSE),0) -> 41192 | G39: =IFERROR(VLOOKUP($A39,Filtro!$A$4:$AX$1932,5,FALSE),0) -> 0 | H39: =IFERROR(VLOOKUP($A39,Filtro!$A$4:$AX$1932,6,FALSE),0) -> 0 | I39: =IFERROR(VLOOKUP($A39,Filtro!$A$4:$AX$1932,7,FALSE),0) -> 0 | J39: =IFERROR(VLOOKUP($A39,Filtro!$A$4:$AX$1932,8,FALSE),0) -> 0 | K39: =IFERROR(VLOOKUP($A39,Filtro!$A$4:$AX$1932,9,FALSE),0) -> 0 | L39: =IFERROR(VLOOKUP($A39,Filtro!$A$4:$AX$1932,10,FALSE),0) -> 0 | M39: =IFERROR(VLOOKUP($A39,Filtro!$A$4:$AX$1932,11,FALSE),0) -> 56 | N39: =IFERROR(VLOOKUP($A39,Filtro!$A$4:$AX$1932,12,FALSE),0) -> 85 | O39: =IFERROR(VLOOKUP($A39,Filtro!$A$4:$AX$1932,13,FALSE),0) -> 65 | P39: =IFERROR(VLOOKUP($A39,Filtro!$A$4:$AX$1932,14,FALSE),0) -> 181 | Q39: =IFERROR(VLOOKUP($A39,Filtro!$A$4:$AX$1932,15,FALSE),0) -> 100 | R39: =IFERROR(VLOOKUP($A39,Filtro!$A$4:$AX$1932,16,FALSE),0) -> 253 | S39: =IFERROR(VLOOKUP($A39,Filtro!$A$4:$AX$1932,17,FALSE),0) -> 194 | T39: =IFERROR(VLOOKUP($A39,Filtro!$A$4:$AX$1932,18,FALSE),0) -> 521 | U39: =IFERROR(VLOOKUP($A39,Filtro!$A$4:$AX$1932,19,FALSE),0) -> 346 | V39: =IFERROR(VLOOKUP($A39,Filtro!$A$4:$AX$1932,20,FALSE),0) -> 903 | W39: =IFERROR(VLOOKUP($A39,Filtro!$A$4:$AX$1932,21,FALSE),0) -> 563 | X39: =IFERROR(VLOOKUP($A39,Filtro!$A$4:$AX$1932,22,FALSE),0) -> 1488 | Y39: =IFERROR(VLOOKUP($A39,Filtro!$A$4:$AX$1932,23,FALSE),0) -> 969 | Z39: =IFERROR(VLOOKUP($A39,Filtro!$A$4:$AX$1932,24,FALSE),0) -> 2534 | AA39: =IFERROR(VLOOKUP($A39,Filtro!$A$4:$AX$1932,25,FALSE),0) -> 1625 | AB39: =IFERROR(VLOOKUP($A39,Filtro!$A$4:$AX$1932,26,FALSE),0) -> 4090 | AC39: =IFERROR(VLOOKUP($A39,Filtro!$A$4:$AX$1932,27,FALSE),0) -> 2423 | AD39: =IFERROR(VLOOKUP($A39,Filtro!$A$4:$AX$1932,28,FALSE),0) -> 5153 | AE39: =IFERROR(VLOOKUP($A39,Filtro!$A$4:$AX$1932,29,FALSE),0) -> 3003 | AF39: =IFERROR(VLOOKUP($A39,Filtro!$A$4:$AX$1932,30,FALSE),0) -> 5559 | AG39: =IFERROR(VLOOKUP($A39,Filtro!$A$4:$AX$1932,31,FALSE),0) -> 3431 | AH39: =IFERROR(VLOOKUP($A39,Filtro!$A$4:$AX$1932,32,FALSE),0) -> 5729 | AI39: =IFERROR(VLOOKUP($A39,Filtro!$A$4:$AX$1932,33,FALSE),0) -> 3309 | AJ39: =IFERROR(VLOOKUP($A39,Filtro!$A$4:$AX$1932,34,FALSE),0) -> 5108 | AK39: =IFERROR(VLOOKUP($A39,Filtro!$A$4:$AX$1932,35,FALSE),0) -> 2923 | AL39: =IFERROR(VLOOKUP($A39,Filtro!$A$4:$AX$1932,36,FALSE),0) -> 4370 | AM39: =IFERROR(VLOOKUP($A39,Filtro!$A$4:$AX$1932,37,FALSE),0) -> 3365 | AN39: =IFERROR(VLOOKUP($A39,Filtro!$A$4:$AX$1932,38,FALSE),0) -> 5217 | AO39: =IFERROR(VLOOKUP($A39,Filtro!$A$4:$AX$1932,39,FALSE),0) -> 62342 | CJ39: 0
A40: 03010502 | C40: ENFERMERA /O | D40: =IFERROR(VLOOKUP($A40,Filtro!$A$4:$AX$1932,2,FALSE),0) -> 24030 | E40: =IFERROR(VLOOKUP($A40,Filtro!$A$4:$AX$1932,3,FALSE),0) -> 8449 | F40: =IFERROR(VLOOKUP($A40,Filtro!$A$4:$AX$1932,4,FALSE),0) -> 15154 | G40: =IFERROR(VLOOKUP($A40,Filtro!$A$4:$AX$1932,5,FALSE),0) -> 0 | H40: =IFERROR(VLOOKUP($A40,Filtro!$A$4:$AX$1932,6,FALSE),0) -> 0 | I40: =IFERROR(VLOOKUP($A40,Filtro!$A$4:$AX$1932,7,FALSE),0) -> 0 | J40: =IFERROR(VLOOKUP($A40,Filtro!$A$4:$AX$1932,8,FALSE),0) -> 0 | K40: =IFERROR(VLOOKUP($A40,Filtro!$A$4:$AX$1932,9,FALSE),0) -> 0 | L40: =IFERROR(VLOOKUP($A40,Filtro!$A$4:$AX$1932,10,FALSE),0) -> 0 | M40: =IFERROR(VLOOKUP($A40,Filtro!$A$4:$AX$1932,11,FALSE),0) -> 9 | N40: =IFERROR(VLOOKUP($A40,Filtro!$A$4:$AX$1932,12,FALSE),0) -> 18 | O40: =IFERROR(VLOOKUP($A40,Filtro!$A$4:$AX$1932,13,FALSE),0) -> 16 | P40: =IFERROR(VLOOKUP($A40,Filtro!$A$4:$AX$1932,14,FALSE),0) -> 45 | Q40: =IFERROR(VLOOKUP($A40,Filtro!$A$4:$AX$1932,15,FALSE),0) -> 35 | R40: =IFERROR(VLOOKUP($A40,Filtro!$A$4:$AX$1932,16,FALSE),0) -> 101 | S40: =IFERROR(VLOOKUP($A40,Filtro!$A$4:$AX$1932,17,FALSE),0) -> 70 | T40: =IFERROR(VLOOKUP($A40,Filtro!$A$4:$AX$1932,18,FALSE),0) -> 212 | U40: =IFERROR(VLOOKUP($A40,Filtro!$A$4:$AX$1932,19,FALSE),0) -> 130 | V40: =IFERROR(VLOOKUP($A40,Filtro!$A$4:$AX$1932,20,FALSE),0) -> 309 | W40: =IFERROR(VLOOKUP($A40,Filtro!$A$4:$AX$1932,21,FALSE),0) -> 202 | X40: =IFERROR(VLOOKUP($A40,Filtro!$A$4:$AX$1932,22,FALSE),0) -> 515 | Y40: =IFERROR(VLOOKUP($A40,Filtro!$A$4:$AX$1932,23,FALSE),0) -> 374 | Z40: =IFERROR(VLOOKUP($A40,Filtro!$A$4:$AX$1932,24,FALSE),0) -> 869 | AA40: =IFERROR(VLOOKUP($A40,Filtro!$A$4:$AX$1932,25,FALSE),0) -> 607 | AB40: =IFERROR(VLOOKUP($A40,Filtro!$A$4:$AX$1932,26,FALSE),0) -> 1405 | AC40: =IFERROR(VLOOKUP($A40,Filtro!$A$4:$AX$1932,27,FALSE),0) -> 838 | AD40: =IFERROR(VLOOKUP($A40,Filtro!$A$4:$AX$1932,28,FALSE),0) -> 1816 | AE40: =IFERROR(VLOOKUP($A40,Filtro!$A$4:$AX$1932,29,FALSE),0) -> 1062 | AF40: =IFERROR(VLOOKUP($A40,Filtro!$A$4:$AX$1932,30,FALSE),0) -> 1929 | AG40: =IFERROR(VLOOKUP($A40,Filtro!$A$4:$AX$1932,31,FALSE),0) -> 1424 | AH40: =IFERROR(VLOOKUP($A40,Filtro!$A$4:$AX$1932,32,FALSE),0) -> 2256 | AI40: =IFERROR(VLOOKUP($A40,Filtro!$A$4:$AX$1932,33,FALSE),0) -> 1324 | AJ40: =IFERROR(VLOOKUP($A40,Filtro!$A$4:$AX$1932,34,FALSE),0) -> 2037 | AK40: =IFERROR(VLOOKUP($A40,Filtro!$A$4:$AX$1932,35,FALSE),0) -> 1210 | AL40: =IFERROR(VLOOKUP($A40,Filtro!$A$4:$AX$1932,36,FALSE),0) -> 1668 | AM40: =IFERROR(VLOOKUP($A40,Filtro!$A$4:$AX$1932,37,FALSE),0) -> 1147 | AN40: =IFERROR(VLOOKUP($A40,Filtro!$A$4:$AX$1932,38,FALSE),0) -> 1974 | AO40: =IFERROR(VLOOKUP($A40,Filtro!$A$4:$AX$1932,39,FALSE),0) -> 22879 | CJ40: 0
A41: 03010504 | C41: NUTRICIONISTA | D41: =IFERROR(VLOOKUP($A41,Filtro!$A$4:$AX$1932,2,FALSE),0) -> 20343 | E41: =IFERROR(VLOOKUP($A41,Filtro!$A$4:$AX$1932,3,FALSE),0) -> 6780 | F41: =IFERROR(VLOOKUP($A41,Filtro!$A$4:$AX$1932,4,FALSE),0) -> 13392 | G41: =IFERROR(VLOOKUP($A41,Filtro!$A$4:$AX$1932,5,FALSE),0) -> 0 | H41: =IFERROR(VLOOKUP($A41,Filtro!$A$4:$AX$1932,6,FALSE),0) -> 0 | I41: =IFERROR(VLOOKUP($A41,Filtro!$A$4:$AX$1932,7,FALSE),0) -> 0 | J41: =IFERROR(VLOOKUP($A41,Filtro!$A$4:$AX$1932,8,FALSE),0) -> 1 | K41: =IFERROR(VLOOKUP($A41,Filtro!$A$4:$AX$1932,9,FALSE),0) -> 1 | L41: =IFERROR(VLOOKUP($A41,Filtro!$A$4:$AX$1932,10,FALSE),0) -> 0 | M41: =IFERROR(VLOOKUP($A41,Filtro!$A$4:$AX$1932,11,FALSE),0) -> 17 | N41: =IFERROR(VLOOKUP($A41,Filtro!$A$4:$AX$1932,12,FALSE),0) -> 31 | O41: =IFERROR(VLOOKUP($A41,Filtro!$A$4:$AX$1932,13,FALSE),0) -> 24 | P41: =IFERROR(VLOOKUP($A41,Filtro!$A$4:$AX$1932,14,FALSE),0) -> 64 | Q41: =IFERROR(VLOOKUP($A41,Filtro!$A$4:$AX$1932,15,FALSE),0) -> 32 | R41: =IFERROR(VLOOKUP($A41,Filtro!$A$4:$AX$1932,16,FALSE),0) -> 115 | S41: =IFERROR(VLOOKUP($A41,Filtro!$A$4:$AX$1932,17,FALSE),0) -> 94 | T41: =IFERROR(VLOOKUP($A41,Filtro!$A$4:$AX$1932,18,FALSE),0) -> 214 | U41: =IFERROR(VLOOKUP($A41,Filtro!$A$4:$AX$1932,19,FALSE),0) -> 137 | V41: =IFERROR(VLOOKUP($A41,Filtro!$A$4:$AX$1932,20,FALSE),0) -> 345 | W41: =IFERROR(VLOOKUP($A41,Filtro!$A$4:$AX$1932,21,FALSE),0) -> 237 | X41: =IFERROR(VLOOKUP($A41,Filtro!$A$4:$AX$1932,22,FALSE),0) -> 583 | Y41: =IFERROR(VLOOKUP($A41,Filtro!$A$4:$AX$1932,23,FALSE),0) -> 329 | Z41: =IFERROR(VLOOKUP($A41,Filtro!$A$4:$AX$1932,24,FALSE),0) -> 975 | AA41: =IFERROR(VLOOKUP($A41,Filtro!$A$4:$AX$1932,25,FALSE),0) -> 557 | AB41: =IFERROR(VLOOKUP($A41,Filtro!$A$4:$AX$1932,26,FALSE),0) -> 1481 | AC41: =IFERROR(VLOOKUP($A41,Filtro!$A$4:$AX$1932,27,FALSE),0) -> 788 | AD41: =IFERROR(VLOOKUP($A41,Filtro!$A$4:$AX$1932,28,FALSE),0) -> 1831 | AE41: =IFERROR(VLOOKUP($A41,Filtro!$A$4:$AX$1932,29,FALSE),0) -> 914 | AF41: =IFERROR(VLOOKUP($A41,Filtro!$A$4:$AX$1932,30,FALSE),0) -> 1842 | AG41: =IFERROR(VLOOKUP($A41,Filtro!$A$4:$AX$1932,31,FALSE),0) -> 996 | AH41: =IFERROR(VLOOKUP($A41,Filtro!$A$4:$AX$1932,32,FALSE),0) -> 1778 | AI41: =IFERROR(VLOOKUP($A41,Filtro!$A$4:$AX$1932,33,FALSE),0) -> 976 | AJ41: =IFERROR(VLOOKUP($A41,Filtro!$A$4:$AX$1932,34,FALSE),0) -> 1565 | AK41: =IFERROR(VLOOKUP($A41,Filtro!$A$4:$AX$1932,35,FALSE),0) -> 837 | AL41: =IFERROR(VLOOKUP($A41,Filtro!$A$4:$AX$1932,36,FALSE),0) -> 1191 | AM41: =IFERROR(VLOOKUP($A41,Filtro!$A$4:$AX$1932,37,FALSE),0) -> 841 | AN41: =IFERROR(VLOOKUP($A41,Filtro!$A$4:$AX$1932,38,FALSE),0) -> 1377 | AO41: =IFERROR(VLOOKUP($A41,Filtro!$A$4:$AX$1932,39,FALSE),0) -> 19896 | CJ41: 0
A42: 03010505 | C42: TÉCNICO PARAMÉDICO | D42: =IFERROR(VLOOKUP($A42,Filtro!$A$4:$AX$1932,2,FALSE),0) -> 5378 | E42: =IFERROR(VLOOKUP($A42,Filtro!$A$4:$AX$1932,3,FALSE),0) -> 1986 | F42: =IFERROR(VLOOKUP($A42,Filtro!$A$4:$AX$1932,4,FALSE),0) -> 3285 | G42: =IFERROR(VLOOKUP($A42,Filtro!$A$4:$AX$1932,5,FALSE),0) -> 0 | H42: =IFERROR(VLOOKUP($A42,Filtro!$A$4:$AX$1932,6,FALSE),0) -> 0 | I42: =IFERROR(VLOOKUP($A42,Filtro!$A$4:$AX$1932,7,FALSE),0) -> 0 | J42: =IFERROR(VLOOKUP($A42,Filtro!$A$4:$AX$1932,8,FALSE),0) -> 0 | K42: =IFERROR(VLOOKUP($A42,Filtro!$A$4:$AX$1932,9,FALSE),0) -> 0 | L42: =IFERROR(VLOOKUP($A42,Filtro!$A$4:$AX$1932,10,FALSE),0) -> 0 | M42: =IFERROR(VLOOKUP($A42,Filtro!$A$4:$AX$1932,11,FALSE),0) -> 2 | N42: =IFERROR(VLOOKUP($A42,Filtro!$A$4:$AX$1932,12,FALSE),0) -> 6 | O42: =IFERROR(VLOOKUP($A42,Filtro!$A$4:$AX$1932,13,FALSE),0) -> 1 | P42: =IFERROR(VLOOKUP($A42,Filtro!$A$4:$AX$1932,14,FALSE),0) -> 8 | Q42: =IFERROR(VLOOKUP($A42,Filtro!$A$4:$AX$1932,15,FALSE),0) -> 28 | R42: =IFERROR(VLOOKUP($A42,Filtro!$A$4:$AX$1932,16,FALSE),0) -> 13 | S42: =IFERROR(VLOOKUP($A42,Filtro!$A$4:$AX$1932,17,FALSE),0) -> 27 | T42: =IFERROR(VLOOKUP($A42,Filtro!$A$4:$AX$1932,18,FALSE),0) -> 70 | U42: =IFERROR(VLOOKUP($A42,Filtro!$A$4:$AX$1932,19,FALSE),0) -> 33 | V42: =IFERROR(VLOOKUP($A42,Filtro!$A$4:$AX$1932,20,FALSE),0) -> 29 | W42: =IFERROR(VLOOKUP($A42,Filtro!$A$4:$AX$1932,21,FALSE),0) -> 70 | X42: =IFERROR(VLOOKUP($A42,Filtro!$A$4:$AX$1932,22,FALSE),0) -> 119 | Y42: =IFERROR(VLOOKUP($A42,Filtro!$A$4:$AX$1932,23,FALSE),0) -> 77 | Z42: =IFERROR(VLOOKUP($A42,Filtro!$A$4:$AX$1932,24,FALSE),0) -> 197 | AA42: =IFERROR(VLOOKUP($A42,Filtro!$A$4:$AX$1932,25,FALSE),0) -> 104 | AB42: =IFERROR(VLOOKUP($A42,Filtro!$A$4:$AX$1932,26,FALSE),0) -> 374 | AC42: =IFERROR(VLOOKUP($A42,Filtro!$A$4:$AX$1932,27,FALSE),0) -> 244 | AD42: =IFERROR(VLOOKUP($A42,Filtro!$A$4:$AX$1932,28,FALSE),0) -> 391 | AE42: =IFERROR(VLOOKUP($A42,Filtro!$A$4:$AX$1932,29,FALSE),0) -> 303 | AF42: =IFERROR(VLOOKUP($A42,Filtro!$A$4:$AX$1932,30,FALSE),0) -> 405 | AG42: =IFERROR(VLOOKUP($A42,Filtro!$A$4:$AX$1932,31,FALSE),0) -> 332 | AH42: =IFERROR(VLOOKUP($A42,Filtro!$A$4:$AX$1932,32,FALSE),0) -> 457 | AI42: =IFERROR(VLOOKUP($A42,Filtro!$A$4:$AX$1932,33,FALSE),0) -> 260 | AJ42: =IFERROR(VLOOKUP($A42,Filtro!$A$4:$AX$1932,34,FALSE),0) -> 356 | AK42: =IFERROR(VLOOKUP($A42,Filtro!$A$4:$AX$1932,35,FALSE),0) -> 198 | AL42: =IFERROR(VLOOKUP($A42,Filtro!$A$4:$AX$1932,36,FALSE),0) -> 418 | AM42: =IFERROR(VLOOKUP($A42,Filtro!$A$4:$AX$1932,37,FALSE),0) -> 307 | AN42: =IFERROR(VLOOKUP($A42,Filtro!$A$4:$AX$1932,38,FALSE),0) -> 442 | AO42: =IFERROR(VLOOKUP($A42,Filtro!$A$4:$AX$1932,39,FALSE),0) -> 5262 | CJ42: 0
A43: 03030190 | B43: DE TUBERCULOSIS | C43: MÉDICO | D43: =IFERROR(VLOOKUP($A43,Filtro!$A$4:$AX$1932,2,FALSE),0) -> 263 | E43: =IFERROR(VLOOKUP($A43,Filtro!$A$4:$AX$1932,3,FALSE),0) -> 164 | F43: =IFERROR(VLOOKUP($A43,Filtro!$A$4:$AX$1932,4,FALSE),0) -> 104 | G43: =IFERROR(VLOOKUP($A43,Filtro!$A$4:$AX$1932,5,FALSE),0) -> 2 | H43: =IFERROR(VLOOKUP($A43,Filtro!$A$4:$AX$1932,6,FALSE),0) -> 3 | I43: =IFERROR(VLOOKUP($A43,Filtro!$A$4:$AX$1932,7,FALSE),0) -> 3 | J43: =IFERROR(VLOOKUP($A43,Filtro!$A$4:$AX$1932,8,FALSE),0) -> 4 | K43: =IFERROR(VLOOKUP($A43,Filtro!$A$4:$AX$1932,9,FALSE),0) -> 5 | L43: =IFERROR(VLOOKUP($A43,Filtro!$A$4:$AX$1932,10,FALSE),0) -> 12 | M43: =IFERROR(VLOOKUP($A43,Filtro!$A$4:$AX$1932,11,FALSE),0) -> 7 | N43: =IFERROR(VLOOKUP($A43,Filtro!$A$4:$AX$1932,12,FALSE),0) -> 4 | O43: =IFERROR(VLOOKUP($A43,Filtro!$A$4:$AX$1932,13,FALSE),0) -> 9 | P43: =IFERROR(VLOOKUP($A43,Filtro!$A$4:$AX$1932,14,FALSE),0) -> 10 | Q43: =IFERROR(VLOOKUP($A43,Filtro!$A$4:$AX$1932,15,FALSE),0) -> 9 | R43: =IFERROR(VLOOKUP($A43,Filtro!$A$4:$AX$1932,16,FALSE),0) -> 8 | S43: =IFERROR(VLOOKUP($A43,Filtro!$A$4:$AX$1932,17,FALSE),0) -> 8 | T43: =IFERROR(VLOOKUP($A43,Filtro!$A$4:$AX$1932,18,FALSE),0) -> 12 | U43: =IFERROR(VLOOKUP($A43,Filtro!$A$4:$AX$1932,19,FALSE),0) -> 18 | V43: =IFERROR(VLOOKUP($A43,Filtro!$A$4:$AX$1932,20,FALSE),0) -> 3 | W43: =IFERROR(VLOOKUP($A43,Filtro!$A$4:$AX$1932,21,FALSE),0) -> 17 | X43: =IFERROR(VLOOKUP($A43,Filtro!$A$4:$AX$1932,22,FALSE),0) -> 7 | Y43: =IFERROR(VLOOKUP($A43,Filtro!$A$4:$AX$1932,23,FALSE),0) -> 14 | Z43: =IFERROR(VLOOKUP($A43,Filtro!$A$4:$AX$1932,24,FALSE),0) -> 1 | AA43: =IFERROR(VLOOKUP($A43,Filtro!$A$4:$AX$1932,25,FALSE),0) -> 13 | AB43: =IFERROR(VLOOKUP($A43,Filtro!$A$4:$AX$1932,26,FALSE),0) -> 15 | AC43: =IFERROR(VLOOKUP($A43,Filtro!$A$4:$AX$1932,27,FALSE),0) -> 14 | AD43: =IFERROR(VLOOKUP($A43,Filtro!$A$4:$AX$1932,28,FALSE),0) -> 4 | AE43: =IFERROR(VLOOKUP($A43,Filtro!$A$4:$AX$1932,29,FALSE),0) -> 7 | AF43: =IFERROR(VLOOKUP($A43,Filtro!$A$4:$AX$1932,30,FALSE),0) -> 6 | AG43: =IFERROR(VLOOKUP($A43,Filtro!$A$4:$AX$1932,31,FALSE),0) -> 14 | AH43: =IFERROR(VLOOKUP($A43,Filtro!$A$4:$AX$1932,32,FALSE),0) -> 3 | AI43: =IFERROR(VLOOKUP($A43,Filtro!$A$4:$AX$1932,33,FALSE),0) -> 10 | AJ43: =IFERROR(VLOOKUP($A43,Filtro!$A$4:$AX$1932,34,FALSE),0) -> 5 | AK43: =IFERROR(VLOOKUP($A43,Filtro!$A$4:$AX$1932,35,FALSE),0) -> 2 | AL43: =IFERROR(VLOOKUP($A43,Filtro!$A$4:$AX$1932,36,FALSE),0) -> 3 | AM43: =IFERROR(VLOOKUP($A43,Filtro!$A$4:$AX$1932,37,FALSE),0) -> 12 | AN43: =IFERROR(VLOOKUP($A43,Filtro!$A$4:$AX$1932,38,FALSE),0) -> 4 | AO43: =IFERROR(VLOOKUP($A43,Filtro!$A$4:$AX$1932,39,FALSE),0) -> 255 | CJ43: 0
A44: 03030200 | C44: ENFERMERA /O | D44: =IFERROR(VLOOKUP($A44,Filtro!$A$4:$AX$1932,2,FALSE),0) -> 88 | E44: =IFERROR(VLOOKUP($A44,Filtro!$A$4:$AX$1932,3,FALSE),0) -> 52 | F44: =IFERROR(VLOOKUP($A44,Filtro!$A$4:$AX$1932,4,FALSE),0) -> 33 | G44: =IFERROR(VLOOKUP($A44,Filtro!$A$4:$AX$1932,5,FALSE),0) -> 0 | H44: =IFERROR(VLOOKUP($A44,Filtro!$A$4:$AX$1932,6,FALSE),0) -> 1 | I44: =IFERROR(VLOOKUP($A44,Filtro!$A$4:$AX$1932,7,FALSE),0) -> 0 | J44: =IFERROR(VLOOKUP($A44,Filtro!$A$4:$AX$1932,8,FALSE),0) -> 0 | K44: =IFERROR(VLOOKUP($A44,Filtro!$A$4:$AX$1932,9,FALSE),0) -> 1 | L44: =IFERROR(VLOOKUP($A44,Filtro!$A$4:$AX$1932,10,FALSE),0) -> 2 | M44: =IFERROR(VLOOKUP($A44,Filtro!$A$4:$AX$1932,11,FALSE),0) -> 3 | N44: =IFERROR(VLOOKUP($A44,Filtro!$A$4:$AX$1932,12,FALSE),0) -> 3 | O44: =IFERROR(VLOOKUP($A44,Filtro!$A$4:$AX$1932,13,FALSE),0) -> 3 | P44: =IFERROR(VLOOKUP($A44,Filtro!$A$4:$AX$1932,14,FALSE),0) -> 2 | Q44: =IFERROR(VLOOKUP($A44,Filtro!$A$4:$AX$1932,15,FALSE),0) -> 2 | R44: =IFERROR(VLOOKUP($A44,Filtro!$A$4:$AX$1932,16,FALSE),0) -> 0 | S44: =IFERROR(VLOOKUP($A44,Filtro!$A$4:$AX$1932,17,FALSE),0) -> 7 | T44: =IFERROR(VLOOKUP($A44,Filtro!$A$4:$AX$1932,18,FALSE),0) -> 2 | U44: =IFERROR(VLOOKUP($A44,Filtro!$A$4:$AX$1932,19,FALSE),0) -> 3 | V44: =IFERROR(VLOOKUP($A44,Filtro!$A$4:$AX$1932,20,FALSE),0) -> 2 | W44: =IFERROR(VLOOKUP($A44,Filtro!$A$4:$AX$1932,21,FALSE),0) -> 6 | X44: =IFERROR(VLOOKUP($A44,Filtro!$A$4:$AX$1932,22,FALSE),0) -> 6 | Y44: =IFERROR(VLOOKUP($A44,Filtro!$A$4:$AX$1932,23,FALSE),0) -> 9 | Z44: =IFERROR(VLOOKUP($A44,Filtro!$A$4:$AX$1932,24,FALSE),0) -> 0 | AA44: =IFERROR(VLOOKUP($A44,Filtro!$A$4:$AX$1932,25,FALSE),0) -> 3 | AB44: =IFERROR(VLOOKUP($A44,Filtro!$A$4:$AX$1932,26,FALSE),0) -> 8 | AC44: =IFERROR(VLOOKUP($A44,Filtro!$A$4:$AX$1932,27,FALSE),0) -> 3 | AD44: =IFERROR(VLOOKUP($A44,Filtro!$A$4:$AX$1932,28,FALSE),0) -> 1 | AE44: =IFERROR(VLOOKUP($A44,Filtro!$A$4:$AX$1932,29,FALSE),0) -> 6 | AF44: =IFERROR(VLOOKUP($A44,Filtro!$A$4:$AX$1932,30,FALSE),0) -> 3 | AG44: =IFERROR(VLOOKUP($A44,Filtro!$A$4:$AX$1932,31,FALSE),0) -> 2 | AH44: =IFERROR(VLOOKUP($A44,Filtro!$A$4:$AX$1932,32,FALSE),0) -> 2 | AI44: =IFERROR(VLOOKUP($A44,Filtro!$A$4:$AX$1932,33,FALSE),0) -> 1 | AJ44: =IFERROR(VLOOKUP($A44,Filtro!$A$4:$AX$1932,34,FALSE),0) -> 0 | AK44: =IFERROR(VLOOKUP($A44,Filtro!$A$4:$AX$1932,35,FALSE),0) -> 0 | AL44: =IFERROR(VLOOKUP($A44,Filtro!$A$4:$AX$1932,36,FALSE),0) -> 1 | AM44: =IFERROR(VLOOKUP($A44,Filtro!$A$4:$AX$1932,37,FALSE),0) -> 3 | AN44: =IFERROR(VLOOKUP($A44,Filtro!$A$4:$AX$1932,38,FALSE),0) -> 0 | AO44: =IFERROR(VLOOKUP($A44,Filtro!$A$4:$AX$1932,39,FALSE),0) -> 73 | CJ44: 0
A45: 01030100A | B45: SEGUIMIENTO AUTOVALENTE CON RIESGO | C45: MÉDICO | D45: =IFERROR(VLOOKUP($A45,Filtro!$A$4:$AX$1932,2,FALSE),0) -> 41 | E45: =IFERROR(VLOOKUP($A45,Filtro!$A$4:$AX$1932,3,FALSE),0) -> 15 | F45: =IFERROR(VLOOKUP($A45,Filtro!$A$4:$AX$1932,4,FALSE),0) -> 36 | G45: =IFERROR(VLOOKUP($A45,Filtro!$A$4:$AX$1932,5,FALSE),0) -> 0 | H45: =IFERROR(VLOOKUP($A45,Filtro!$A$4:$AX$1932,6,FALSE),0) -> 0 | I45: =IFERROR(VLOOKUP($A45,Filtro!$A$4:$AX$1932,7,FALSE),0) -> 0 | J45: =IFERROR(VLOOKUP($A45,Filtro!$A$4:$AX$1932,8,FALSE),0) -> 0 | K45: =IFERROR(VLOOKUP($A45,Filtro!$A$4:$AX$1932,9,FALSE),0) -> 0 | L45: =IFERROR(VLOOKUP($A45,Filtro!$A$4:$AX$1932,10,FALSE),0) -> 0 | M45: =IFERROR(VLOOKUP($A45,Filtro!$A$4:$AX$1932,11,FALSE),0) -> 0 | N45: =IFERROR(VLOOKUP($A45,Filtro!$A$4:$AX$1932,12,FALSE),0) -> 0 | O45: =IFERROR(VLOOKUP($A45,Filtro!$A$4:$AX$1932,13,FALSE),0) -> 0 | P45: =IFERROR(VLOOKUP($A45,Filtro!$A$4:$AX$1932,14,FALSE),0) -> 0 | Q45: =IFERROR(VLOOKUP($A45,Filtro!$A$4:$AX$1932,15,FALSE),0) -> 0 | R45: =IFERROR(VLOOKUP($A45,Filtro!$A$4:$AX$1932,16,FALSE),0) -> 0 | S45: =IFERROR(VLOOKUP($A45,Filtro!$A$4:$AX$1932,17,FALSE),0) -> 0 | T45: =IFERROR(VLOOKUP($A45,Filtro!$A$4:$AX$1932,18,FALSE),0) -> 0 | U45: =IFERROR(VLOOKUP($A45,Filtro!$A$4:$AX$1932,19,FALSE),0) -> 0 | V45: =IFERROR(VLOOKUP($A45,Filtro!$A$4:$AX$1932,20,FALSE),0) -> 0 | W45: =IFERROR(VLOOKUP($A45,Filtro!$A$4:$AX$1932,21,FALSE),0) -> 0 | X45: =IFERROR(VLOOKUP($A45,Filtro!$A$4:$AX$1932,22,FALSE),0) -> 0 | Y45: =IFERROR(VLOOKUP($A45,Filtro!$A$4:$AX$1932,23,FALSE),0) -> 0 | Z45: =IFERROR(VLOOKUP($A45,Filtro!$A$4:$AX$1932,24,FALSE),0) -> 0 | AA45: =IFERROR(VLOOKUP($A45,Filtro!$A$4:$AX$1932,25,FALSE),0) -> 0 | AB45: =IFERROR(VLOOKUP($A45,Filtro!$A$4:$AX$1932,26,FALSE),0) -> 0 | AC45: =IFERROR(VLOOKUP($A45,Filtro!$A$4:$AX$1932,27,FALSE),0) -> 0 | AD45: =IFERROR(VLOOKUP($A45,Filtro!$A$4:$AX$1932,28,FALSE),0) -> 0 | AE45: =IFERROR(VLOOKUP($A45,Filtro!$A$4:$AX$1932,29,FALSE),0) -> 0 | AF45: =IFERROR(VLOOKUP($A45,Filtro!$A$4:$AX$1932,30,FALSE),0) -> 0 | AG45: =IFERROR(VLOOKUP($A45,Filtro!$A$4:$AX$1932,31,FALSE),0) -> 6 | AH45: =IFERROR(VLOOKUP($A45,Filtro!$A$4:$AX$1932,32,FALSE),0) -> 9 | AI45: =IFERROR(VLOOKUP($A45,Filtro!$A$4:$AX$1932,33,FALSE),0) -> 2 | AJ45: =IFERROR(VLOOKUP($A45,Filtro!$A$4:$AX$1932,34,FALSE),0) -> 12 | AK45: =IFERROR(VLOOKUP($A45,Filtro!$A$4:$AX$1932,35,FALSE),0) -> 3 | AL45: =IFERROR(VLOOKUP($A45,Filtro!$A$4:$AX$1932,36,FALSE),0) -> 7 | AM45: =IFERROR(VLOOKUP($A45,Filtro!$A$4:$AX$1932,37,FALSE),0) -> 4 | AN45: =IFERROR(VLOOKUP($A45,Filtro!$A$4:$AX$1932,38,FALSE),0) -> 8 | AO45: =IFERROR(VLOOKUP($A45,Filtro!$A$4:$AX$1932,39,FALSE),0) -> 39 | CJ45: 0
A46: 01030200B | C46: ENFERMERA /O | D46: =IFERROR(VLOOKUP($A46,Filtro!$A$4:$AX$1932,2,FALSE),0) -> 737 | E46: =IFERROR(VLOOKUP($A46,Filtro!$A$4:$AX$1932,3,FALSE),0) -> 267 | F46: =IFERROR(VLOOKUP($A46,Filtro!$A$4:$AX$1932,4,FALSE),0) -> 478 | G46: =IFERROR(VLOOKUP($A46,Filtro!$A$4:$AX$1932,5,FALSE),0) -> 0 | H46: =IFERROR(VLOOKUP($A46,Filtro!$A$4:$AX$1932,6,FALSE),0) -> 0 | I46: =IFERROR(VLOOKUP($A46,Filtro!$A$4:$AX$1932,7,FALSE),0) -> 0 | J46: =IFERROR(VLOOKUP($A46,Filtro!$A$4:$AX$1932,8,FALSE),0) -> 0 | K46: =IFERROR(VLOOKUP($A46,Filtro!$A$4:$AX$1932,9,FALSE),0) -> 0 | L46: =IFERROR(VLOOKUP($A46,Filtro!$A$4:$AX$1932,10,FALSE),0) -> 0 | M46: =IFERROR(VLOOKUP($A46,Filtro!$A$4:$AX$1932,11,FALSE),0) -> 0 | N46: =IFERROR(VLOOKUP($A46,Filtro!$A$4:$AX$1932,12,FALSE),0) -> 0 | O46: =IFERROR(VLOOKUP($A46,Filtro!$A$4:$AX$1932,13,FALSE),0) -> 0 | P46: =IFERROR(VLOOKUP($A46,Filtro!$A$4:$AX$1932,14,FALSE),0) -> 0 | Q46: =IFERROR(VLOOKUP($A46,Filtro!$A$4:$AX$1932,15,FALSE),0) -> 0 | R46: =IFERROR(VLOOKUP($A46,Filtro!$A$4:$AX$1932,16,FALSE),0) -> 0 | S46: =IFERROR(VLOOKUP($A46,Filtro!$A$4:$AX$1932,17,FALSE),0) -> 0 | T46: =IFERROR(VLOOKUP($A46,Filtro!$A$4:$AX$1932,18,FALSE),0) -> 0 | U46: =IFERROR(VLOOKUP($A46,Filtro!$A$4:$AX$1932,19,FALSE),0) -> 0 | V46: =IFERROR(VLOOKUP($A46,Filtro!$A$4:$AX$1932,20,FALSE),0) -> 0 | W46: =IFERROR(VLOOKUP($A46,Filtro!$A$4:$AX$1932,21,FALSE),0) -> 0 | X46: =IFERROR(VLOOKUP($A46,Filtro!$A$4:$AX$1932,22,FALSE),0) -> 0 | Y46: =IFERROR(VLOOKUP($A46,Filtro!$A$4:$AX$1932,23,FALSE),0) -> 0 | Z46: =IFERROR(VLOOKUP($A46,Filtro!$A$4:$AX$1932,24,FALSE),0) -> 0 | AA46: =IFERROR(VLOOKUP($A46,Filtro!$A$4:$AX$1932,25,FALSE),0) -> 0 | AB46: =IFERROR(VLOOKUP($A46,Filtro!$A$4:$AX$1932,26,FALSE),0) -> 0 | AC46: =IFERROR(VLOOKUP($A46,Filtro!$A$4:$AX$1932,27,FALSE),0) -> 0 | AD46: =IFERROR(VLOOKUP($A46,Filtro!$A$4:$AX$1932,28,FALSE),0) -> 0 | AE46: =IFERROR(VLOOKUP($A46,Filtro!$A$4:$AX$1932,29,FALSE),0) -> 0 | AF46: =IFERROR(VLOOKUP($A46,Filtro!$A$4:$AX$1932,30,FALSE),0) -> 0 | AG46: =IFERROR(VLOOKUP($A46,Filtro!$A$4:$AX$1932,31,FALSE),0) -> 75 | AH46: =IFERROR(VLOOKUP($A46,Filtro!$A$4:$AX$1932,32,FALSE),0) -> 134 | AI46: =IFERROR(VLOOKUP($A46,Filtro!$A$4:$AX$1932,33,FALSE),0) -> 73 | AJ46: =IFERROR(VLOOKUP($A46,Filtro!$A$4:$AX$1932,34,FALSE),0) -> 135 | AK46: =IFERROR(VLOOKUP($A46,Filtro!$A$4:$AX$1932,35,FALSE),0) -> 58 | AL46: =IFERROR(VLOOKUP($A46,Filtro!$A$4:$AX$1932,36,FALSE),0) -> 116 | AM46: =IFERROR(VLOOKUP($A46,Filtro!$A$4:$AX$1932,37,FALSE),0) -> 61 | AN46: =IFERROR(VLOOKUP($A46,Filtro!$A$4:$AX$1932,38,FALSE),0) -> 93 | AO46: =IFERROR(VLOOKUP($A46,Filtro!$A$4:$AX$1932,39,FALSE),0) -> 723 | CJ46: 0
A47: 01030300C | B47: SEGUIMIENTO RIESGO DEPENDENCIA | C47: MÉDICO | D47: =IFERROR(VLOOKUP($A47,Filtro!$A$4:$AX$1932,2,FALSE),0) -> 48 | E47: =IFERROR(VLOOKUP($A47,Filtro!$A$4:$AX$1932,3,FALSE),0) -> 10 | F47: =IFERROR(VLOOKUP($A47,Filtro!$A$4:$AX$1932,4,FALSE),0) -> 18 | G47: =IFERROR(VLOOKUP($A47,Filtro!$A$4:$AX$1932,5,FALSE),0) -> 0 | H47: =IFERROR(VLOOKUP($A47,Filtro!$A$4:$AX$1932,6,FALSE),0) -> 0 | I47: =IFERROR(VLOOKUP($A47,Filtro!$A$4:$AX$1932,7,FALSE),0) -> 0 | J47: =IFERROR(VLOOKUP($A47,Filtro!$A$4:$AX$1932,8,FALSE),0) -> 0 | K47: =IFERROR(VLOOKUP($A47,Filtro!$A$4:$AX$1932,9,FALSE),0) -> 0 | L47: =IFERROR(VLOOKUP($A47,Filtro!$A$4:$AX$1932,10,FALSE),0) -> 0 | M47: =IFERROR(VLOOKUP($A47,Filtro!$A$4:$AX$1932,11,FALSE),0) -> 0 | N47: =IFERROR(VLOOKUP($A47,Filtro!$A$4:$AX$1932,12,FALSE),0) -> 0 | O47: =IFERROR(VLOOKUP($A47,Filtro!$A$4:$AX$1932,13,FALSE),0) -> 0 | P47: =IFERROR(VLOOKUP($A47,Filtro!$A$4:$AX$1932,14,FALSE),0) -> 0 | Q47: =IFERROR(VLOOKUP($A47,Filtro!$A$4:$AX$1932,15,FALSE),0) -> 0 | R47: =IFERROR(VLOOKUP($A47,Filtro!$A$4:$AX$1932,16,FALSE),0) -> 0 | S47: =IFERROR(VLOOKUP($A47,Filtro!$A$4:$AX$1932,17,FALSE),0) -> 0 | T47: =IFERROR(VLOOKUP($A47,Filtro!$A$4:$AX$1932,18,FALSE),0) -> 0 | U47: =IFERROR(VLOOKUP($A47,Filtro!$A$4:$AX$1932,19,FALSE),0) -> 0 | V47: =IFERROR(VLOOKUP($A47,Filtro!$A$4:$AX$1932,20,FALSE),0) -> 0 | W47: =IFERROR(VLOOKUP($A47,Filtro!$A$4:$AX$1932,21,FALSE),0) -> 0 | X47: =IFERROR(VLOOKUP($A47,Filtro!$A$4:$AX$1932,22,FALSE),0) -> 0 | Y47: =IFERROR(VLOOKUP($A47,Filtro!$A$4:$AX$1932,23,FALSE),0) -> 0 | Z47: =IFERROR(VLOOKUP($A47,Filtro!$A$4:$AX$1932,24,FALSE),0) -> 0 | AA47: =IFERROR(VLOOKUP($A47,Filtro!$A$4:$AX$1932,25,FALSE),0) -> 0 | AB47: =IFERROR(VLOOKUP($A47,Filtro!$A$4:$AX$1932,26,FALSE),0) -> 0 | AC47: =IFERROR(VLOOKUP($A47,Filtro!$A$4:$AX$1932,27,FALSE),0) -> 0 | AD47: =IFERROR(VLOOKUP($A47,Filtro!$A$4:$AX$1932,28,FALSE),0) -> 0 | AE47: =IFERROR(VLOOKUP($A47,Filtro!$A$4:$AX$1932,29,FALSE),0) -> 0 | AF47: =IFERROR(VLOOKUP($A47,Filtro!$A$4:$AX$1932,30,FALSE),0) -> 0 | AG47: =IFERROR(VLOOKUP($A47,Filtro!$A$4:$AX$1932,31,FALSE),0) -> 0 | AH47: =IFERROR(VLOOKUP($A47,Filtro!$A$4:$AX$1932,32,FALSE),0) -> 2 | AI47: =IFERROR(VLOOKUP($A47,Filtro!$A$4:$AX$1932,33,FALSE),0) -> 2 | AJ47: =IFERROR(VLOOKUP($A47,Filtro!$A$4:$AX$1932,34,FALSE),0) -> 2 | AK47: =IFERROR(VLOOKUP($A47,Filtro!$A$4:$AX$1932,35,FALSE),0) -> 3 | AL47: =IFERROR(VLOOKUP($A47,Filtro!$A$4:$AX$1932,36,FALSE),0) -> 2 | AM47: =IFERROR(VLOOKUP($A47,Filtro!$A$4:$AX$1932,37,FALSE),0) -> 5 | AN47: =IFERROR(VLOOKUP($A47,Filtro!$A$4:$AX$1932,38,FALSE),0) -> 12 | AO47: =IFERROR(VLOOKUP($A47,Filtro!$A$4:$AX$1932,39,FALSE),0) -> 28 | CJ47: 0
A48: 01030400D | C48: ENFERMERA /O | D48: =IFERROR(VLOOKUP($A48,Filtro!$A$4:$AX$1932,2,FALSE),0) -> 283 | E48: =IFERROR(VLOOKUP($A48,Filtro!$A$4:$AX$1932,3,FALSE),0) -> 110 | F48: =IFERROR(VLOOKUP($A48,Filtro!$A$4:$AX$1932,4,FALSE),0) -> 180 | G48: =IFERROR(VLOOKUP($A48,Filtro!$A$4:$AX$1932,5,FALSE),0) -> 0 | H48: =IFERROR(VLOOKUP($A48,Filtro!$A$4:$AX$1932,6,FALSE),0) -> 0 | I48: =IFERROR(VLOOKUP($A48,Filtro!$A$4:$AX$1932,7,FALSE),0) -> 0 | J48: =IFERROR(VLOOKUP($A48,Filtro!$A$4:$AX$1932,8,FALSE),0) -> 0 | K48: =IFERROR(VLOOKUP($A48,Filtro!$A$4:$AX$1932,9,FALSE),0) -> 0 | L48: =IFERROR(VLOOKUP($A48,Filtro!$A$4:$AX$1932,10,FALSE),0) -> 0 | M48: =IFERROR(VLOOKUP($A48,Filtro!$A$4:$AX$1932,11,FALSE),0) -> 0 | N48: =IFERROR(VLOOKUP($A48,Filtro!$A$4:$AX$1932,12,FALSE),0) -> 0 | O48: =IFERROR(VLOOKUP($A48,Filtro!$A$4:$AX$1932,13,FALSE),0) -> 0 | P48: =IFERROR(VLOOKUP($A48,Filtro!$A$4:$AX$1932,14,FALSE),0) -> 0 | Q48: =IFERROR(VLOOKUP($A48,Filtro!$A$4:$AX$1932,15,FALSE),0) -> 0 | R48: =IFERROR(VLOOKUP($A48,Filtro!$A$4:$AX$1932,16,FALSE),0) -> 0 | S48: =IFERROR(VLOOKUP($A48,Filtro!$A$4:$AX$1932,17,FALSE),0) -> 0 | T48: =IFERROR(VLOOKUP($A48,Filtro!$A$4:$AX$1932,18,FALSE),0) -> 0 | U48: =IFERROR(VLOOKUP($A48,Filtro!$A$4:$AX$1932,19,FALSE),0) -> 0 | V48: =IFERROR(VLOOKUP($A48,Filtro!$A$4:$AX$1932,20,FALSE),0) -> 0 | W48: =IFERROR(VLOOKUP($A48,Filtro!$A$4:$AX$1932,21,FALSE),0) -> 0 | X48: =IFERROR(VLOOKUP($A48,Filtro!$A$4:$AX$1932,22,FALSE),0) -> 0 | Y48: =IFERROR(VLOOKUP($A48,Filtro!$A$4:$AX$1932,23,FALSE),0) -> 0 | Z48: =IFERROR(VLOOKUP($A48,Filtro!$A$4:$AX$1932,24,FALSE),0) -> 0 | AA48: =IFERROR(VLOOKUP($A48,Filtro!$A$4:$AX$1932,25,FALSE),0) -> 0 | AB48: =IFERROR(VLOOKUP($A48,Filtro!$A$4:$AX$1932,26,FALSE),0) -> 0 | AC48: =IFERROR(VLOOKUP($A48,Filtro!$A$4:$AX$1932,27,FALSE),0) -> 0 | AD48: =IFERROR(VLOOKUP($A48,Filtro!$A$4:$AX$1932,28,FALSE),0) -> 0 | AE48: =IFERROR(VLOOKUP($A48,Filtro!$A$4:$AX$1932,29,FALSE),0) -> 0 | AF48: =IFERROR(VLOOKUP($A48,Filtro!$A$4:$AX$1932,30,FALSE),0) -> 0 | AG48: =IFERROR(VLOOKUP($A48,Filtro!$A$4:$AX$1932,31,FALSE),0) -> 22 | AH48: =IFERROR(VLOOKUP($A48,Filtro!$A$4:$AX$1932,32,FALSE),0) -> 11 | AI48: =IFERROR(VLOOKUP($A48,Filtro!$A$4:$AX$1932,33,FALSE),0) -> 18 | AJ48: =IFERROR(VLOOKUP($A48,Filtro!$A$4:$AX$1932,34,FALSE),0) -> 28 | AK48: =IFERROR(VLOOKUP($A48,Filtro!$A$4:$AX$1932,35,FALSE),0) -> 16 | AL48: =IFERROR(VLOOKUP($A48,Filtro!$A$4:$AX$1932,36,FALSE),0) -> 42 | AM48: =IFERROR(VLOOKUP($A48,Filtro!$A$4:$AX$1932,37,FALSE),0) -> 54 | AN48: =IFERROR(VLOOKUP($A48,Filtro!$A$4:$AX$1932,38,FALSE),0) -> 99 | AO48: =IFERROR(VLOOKUP($A48,Filtro!$A$4:$AX$1932,39,FALSE),0) -> 286 | CJ48: 0
A49: 01200010 | B49: DE INFECCIÓN TRANSMISIÓN SEXUAL | C49: MÉDICO | D49: =IFERROR(VLOOKUP($A49,Filtro!$A$4:$AX$1932,2,FALSE),0) -> 28 | E49: =IFERROR(VLOOKUP($A49,Filtro!$A$4:$AX$1932,3,FALSE),0) -> 7 | F49: =IFERROR(VLOOKUP($A49,Filtro!$A$4:$AX$1932,4,FALSE),0) -> 14 | G49: =IFERROR(VLOOKUP($A49,Filtro!$A$4:$AX$1932,5,FALSE),0) -> 1 | H49: =IFERROR(VLOOKUP($A49,Filtro!$A$4:$AX$1932,6,FALSE),0) -> 0 | I49: =IFERROR(VLOOKUP($A49,Filtro!$A$4:$AX$1932,7,FALSE),0) -> 0 | J49: =IFERROR(VLOOKUP($A49,Filtro!$A$4:$AX$1932,8,FALSE),0) -> 0 | K49: =IFERROR(VLOOKUP($A49,Filtro!$A$4:$AX$1932,9,FALSE),0) -> 0 | L49: =IFERROR(VLOOKUP($A49,Filtro!$A$4:$AX$1932,10,FALSE),0) -> 0 | M49: =IFERROR(VLOOKUP($A49,Filtro!$A$4:$AX$1932,11,FALSE),0) -> 0 | N49: =IFERROR(VLOOKUP($A49,Filtro!$A$4:$AX$1932,12,FALSE),0) -> 2 | O49: =IFERROR(VLOOKUP($A49,Filtro!$A$4:$AX$1932,13,FALSE),0) -> 2 | P49: =IFERROR(VLOOKUP($A49,Filtro!$A$4:$AX$1932,14,FALSE),0) -> 1 | Q49: =IFERROR(VLOOKUP($A49,Filtro!$A$4:$AX$1932,15,FALSE),0) -> 2 | R49: =IFERROR(VLOOKUP($A49,Filtro!$A$4:$AX$1932,16,FALSE),0) -> 1 | S49: =IFERROR(VLOOKUP($A49,Filtro!$A$4:$AX$1932,17,FALSE),0) -> 0 | T49: =IFERROR(VLOOKUP($A49,Filtro!$A$4:$AX$1932,18,FALSE),0) -> 1 | U49: =IFERROR(VLOOKUP($A49,Filtro!$A$4:$AX$1932,19,FALSE),0) -> 0 | V49: =IFERROR(VLOOKUP($A49,Filtro!$A$4:$AX$1932,20,FALSE),0) -> 2 | W49: =IFERROR(VLOOKUP($A49,Filtro!$A$4:$AX$1932,21,FALSE),0) -> 1 | X49: =IFERROR(VLOOKUP($A49,Filtro!$A$4:$AX$1932,22,FALSE),0) -> 0 | Y49: =IFERROR(VLOOKUP($A49,Filtro!$A$4:$AX$1932,23,FALSE),0) -> 0 | Z49: =IFERROR(VLOOKUP($A49,Filtro!$A$4:$AX$1932,24,FALSE),0) -> 3 | AA49: =IFERROR(VLOOKUP($A49,Filtro!$A$4:$AX$1932,25,FALSE),0) -> 0 | AB49: =IFERROR(VLOOKUP($A49,Filtro!$A$4:$AX$1932,26,FALSE),0) -> 0 | AC49: =IFERROR(VLOOKUP($A49,Filtro!$A$4:$AX$1932,27,FALSE),0) -> 0 | AD49: =IFERROR(VLOOKUP($A49,Filtro!$A$4:$AX$1932,28,FALSE),0) -> 1 | AE49: =IFERROR(VLOOKUP($A49,Filtro!$A$4:$AX$1932,29,FALSE),0) -> 1 | AF49: =IFERROR(VLOOKUP($A49,Filtro!$A$4:$AX$1932,30,FALSE),0) -> 1 | AG49: =IFERROR(VLOOKUP($A49,Filtro!$A$4:$AX$1932,31,FALSE),0) -> 0 | AH49: =IFERROR(VLOOKUP($A49,Filtro!$A$4:$AX$1932,32,FALSE),0) -> 0 | AI49: =IFERROR(VLOOKUP($A49,Filtro!$A$4:$AX$1932,33,FALSE),0) -> 0 | AJ49: =IFERROR(VLOOKUP($A49,Filtro!$A$4:$AX$1932,34,FALSE),0) -> 1 | AK49: =IFERROR(VLOOKUP($A49,Filtro!$A$4:$AX$1932,35,FALSE),0) -> 0 | AL49: =IFERROR(VLOOKUP($A49,Filtro!$A$4:$AX$1932,36,FALSE),0) -> 1 | AM49: =IFERROR(VLOOKUP($A49,Filtro!$A$4:$AX$1932,37,FALSE),0) -> 0 | AN49: =IFERROR(VLOOKUP($A49,Filtro!$A$4:$AX$1932,38,FALSE),0) -> 0 | AO49: =IFERROR(VLOOKUP($A49,Filtro!$A$4:$AX$1932,39,FALSE),0) -> 25 | CJ49: 0
A50: 01200020 | C50: ENFERMERA /O | D50: =IFERROR(VLOOKUP($A50,Filtro!$A$4:$AX$1932,2,FALSE),0) -> 14 | E50: =IFERROR(VLOOKUP($A50,Filtro!$A$4:$AX$1932,3,FALSE),0) -> 3 | F50: =IFERROR(VLOOKUP($A50,Filtro!$A$4:$AX$1932,4,FALSE),0) -> 11 | G50: =IFERROR(VLOOKUP($A50,Filtro!$A$4:$AX$1932,5,FALSE),0) -> 0 | H50: =IFERROR(VLOOKUP($A50,Filtro!$A$4:$AX$1932,6,FALSE),0) -> 0 | I50: =IFERROR(VLOOKUP($A50,Filtro!$A$4:$AX$1932,7,FALSE),0) -> 0 | J50: =IFERROR(VLOOKUP($A50,Filtro!$A$4:$AX$1932,8,FALSE),0) -> 0 | K50: =IFERROR(VLOOKUP($A50,Filtro!$A$4:$AX$1932,9,FALSE),0) -> 0 | L50: =IFERROR(VLOOKUP($A50,Filtro!$A$4:$AX$1932,10,FALSE),0) -> 1 | M50: =IFERROR(VLOOKUP($A50,Filtro!$A$4:$AX$1932,11,FALSE),0) -> 0 | N50: =IFERROR(VLOOKUP($A50,Filtro!$A$4:$AX$1932,12,FALSE),0) -> 1 | O50: =IFERROR(VLOOKUP($A50,Filtro!$A$4:$AX$1932,13,FALSE),0) -> 0 | P50: =IFERROR(VLOOKUP($A50,Filtro!$A$4:$AX$1932,14,FALSE),0) -> 0 | Q50: =IFERROR(VLOOKUP($A50,Filtro!$A$4:$AX$1932,15,FALSE),0) -> 2 | R50: =IFERROR(VLOOKUP($A50,Filtro!$A$4:$AX$1932,16,FALSE),0) -> 1 | S50: =IFERROR(VLOOKUP($A50,Filtro!$A$4:$AX$1932,17,FALSE),0) -> 0 | T50: =IFERROR(VLOOKUP($A50,Filtro!$A$4:$AX$1932,18,FALSE),0) -> 3 | U50: =IFERROR(VLOOKUP($A50,Filtro!$A$4:$AX$1932,19,FALSE),0) -> 0 | V50: =IFERROR(VLOOKUP($A50,Filtro!$A$4:$AX$1932,20,FALSE),0) -> 2 | W50: =IFERROR(VLOOKUP($A50,Filtro!$A$4:$AX$1932,21,FALSE),0) -> 0 | X50: =IFERROR(VLOOKUP($A50,Filtro!$A$4:$AX$1932,22,FALSE),0) -> 1 | Y50: =IFERROR(VLOOKUP($A50,Filtro!$A$4:$AX$1932,23,FALSE),0) -> 0 | Z50: =IFERROR(VLOOKUP($A50,Filtro!$A$4:$AX$1932,24,FALSE),0) -> 0 | AA50: =IFERROR(VLOOKUP($A50,Filtro!$A$4:$AX$1932,25,FALSE),0) -> 0 | AB50: =IFERROR(VLOOKUP($A50,Filtro!$A$4:$AX$1932,26,FALSE),0) -> 1 | AC50: =IFERROR(VLOOKUP($A50,Filtro!$A$4:$AX$1932,27,FALSE),0) -> 0 | AD50: =IFERROR(VLOOKUP($A50,Filtro!$A$4:$AX$1932,28,FALSE),0) -> 0 | AE50: =IFERROR(VLOOKUP($A50,Filtro!$A$4:$AX$1932,29,FALSE),0) -> 0 | AF50: =IFERROR(VLOOKUP($A50,Filtro!$A$4:$AX$1932,30,FALSE),0) -> 1 | AG50: =IFERROR(VLOOKUP($A50,Filtro!$A$4:$AX$1932,31,FALSE),0) -> 1 | AH50: =IFERROR(VLOOKUP($A50,Filtro!$A$4:$AX$1932,32,FALSE),0) -> 0 | AI50: =IFERROR(VLOOKUP($A50,Filtro!$A$4:$AX$1932,33,FALSE),0) -> 0 | AJ50: =IFERROR(VLOOKUP($A50,Filtro!$A$4:$AX$1932,34,FALSE),0) -> 0 | AK50: =IFERROR(VLOOKUP($A50,Filtro!$A$4:$AX$1932,35,FALSE),0) -> 0 | AL50: =IFERROR(VLOOKUP($A50,Filtro!$A$4:$AX$1932,36,FALSE),0) -> 0 | AM50: =IFERROR(VLOOKUP($A50,Filtro!$A$4:$AX$1932,37,FALSE),0) -> 0 | AN50: =IFERROR(VLOOKUP($A50,Filtro!$A$4:$AX$1932,38,FALSE),0) -> 0 | AO50: =IFERROR(VLOOKUP($A50,Filtro!$A$4:$AX$1932,39,FALSE),0) -> 14 | CJ50: 0
A51: 01200030 | C51: MATRONA /ÓN | D51: =IFERROR(VLOOKUP($A51,Filtro!$A$4:$AX$1932,2,FALSE),0) -> 80 | E51: =IFERROR(VLOOKUP($A51,Filtro!$A$4:$AX$1932,3,FALSE),0) -> 11 | F51: =IFERROR(VLOOKUP($A51,Filtro!$A$4:$AX$1932,4,FALSE),0) -> 69 | G51: =IFERROR(VLOOKUP($A51,Filtro!$A$4:$AX$1932,5,FALSE),0) -> 0 | H51: =IFERROR(VLOOKUP($A51,Filtro!$A$4:$AX$1932,6,FALSE),0) -> 0 | I51: =IFERROR(VLOOKUP($A51,Filtro!$A$4:$AX$1932,7,FALSE),0) -> 0 | J51: =IFERROR(VLOOKUP($A51,Filtro!$A$4:$AX$1932,8,FALSE),0) -> 0 | K51: =IFERROR(VLOOKUP($A51,Filtro!$A$4:$AX$1932,9,FALSE),0) -> 0 | L51: =IFERROR(VLOOKUP($A51,Filtro!$A$4:$AX$1932,10,FALSE),0) -> 1 | M51: =IFERROR(VLOOKUP($A51,Filtro!$A$4:$AX$1932,11,FALSE),0) -> 4 | N51: =IFERROR(VLOOKUP($A51,Filtro!$A$4:$AX$1932,12,FALSE),0) -> 5 | O51: =IFERROR(VLOOKUP($A51,Filtro!$A$4:$AX$1932,13,FALSE),0) -> 1 | P51: =IFERROR(VLOOKUP($A51,Filtro!$A$4:$AX$1932,14,FALSE),0) -> 15 | Q51: =IFERROR(VLOOKUP($A51,Filtro!$A$4:$AX$1932,15,FALSE),0) -> 2 | R51: =IFERROR(VLOOKUP($A51,Filtro!$A$4:$AX$1932,16,FALSE),0) -> 13 | S51: =IFERROR(VLOOKUP($A51,Filtro!$A$4:$AX$1932,17,FALSE),0) -> 1 | T51: =IFERROR(VLOOKUP($A51,Filtro!$A$4:$AX$1932,18,FALSE),0) -> 10 | U51: =IFERROR(VLOOKUP($A51,Filtro!$A$4:$AX$1932,19,FALSE),0) -> 0 | V51: =IFERROR(VLOOKUP($A51,Filtro!$A$4:$AX$1932,20,FALSE),0) -> 5 | W51: =IFERROR(VLOOKUP($A51,Filtro!$A$4:$AX$1932,21,FALSE),0) -> 2 | X51: =IFERROR(VLOOKUP($A51,Filtro!$A$4:$AX$1932,22,FALSE),0) -> 6 | Y51: =IFERROR(VLOOKUP($A51,Filtro!$A$4:$AX$1932,23,FALSE),0) -> 0 | Z51: =IFERROR(VLOOKUP($A51,Filtro!$A$4:$AX$1932,24,FALSE),0) -> 6 | AA51: =IFERROR(VLOOKUP($A51,Filtro!$A$4:$AX$1932,25,FALSE),0) -> 0 | AB51: =IFERROR(VLOOKUP($A51,Filtro!$A$4:$AX$1932,26,FALSE),0) -> 0 | AC51: =IFERROR(VLOOKUP($A51,Filtro!$A$4:$AX$1932,27,FALSE),0) -> 1 | AD51: =IFERROR(VLOOKUP($A51,Filtro!$A$4:$AX$1932,28,FALSE),0) -> 1 | AE51: =IFERROR(VLOOKUP($A51,Filtro!$A$4:$AX$1932,29,FALSE),0) -> 0 | AF51: =IFERROR(VLOOKUP($A51,Filtro!$A$4:$AX$1932,30,FALSE),0) -> 6 | AG51: =IFERROR(VLOOKUP($A51,Filtro!$A$4:$AX$1932,31,FALSE),0) -> 0 | AH51: =IFERROR(VLOOKUP($A51,Filtro!$A$4:$AX$1932,32,FALSE),0) -> 0 | AI51: =IFERROR(VLOOKUP($A51,Filtro!$A$4:$AX$1932,33,FALSE),0) -> 0 | AJ51: =IFERROR(VLOOKUP($A51,Filtro!$A$4:$AX$1932,34,FALSE),0) -> 1 | AK51: =IFERROR(VLOOKUP($A51,Filtro!$A$4:$AX$1932,35,FALSE),0) -> 0 | AL51: =IFERROR(VLOOKUP($A51,Filtro!$A$4:$AX$1932,36,FALSE),0) -> 0 | AM51: =IFERROR(VLOOKUP($A51,Filtro!$A$4:$AX$1932,37,FALSE),0) -> 0 | AN51: =IFERROR(VLOOKUP($A51,Filtro!$A$4:$AX$1932,38,FALSE),0) -> 0 | AO51: =IFERROR(VLOOKUP($A51,Filtro!$A$4:$AX$1932,39,FALSE),0) -> 79 | CJ51: 0
A52: 03030140 | B52: OTROS PROBLEMAS DE SALUD | C52: MÉDICO | D52: =IFERROR(VLOOKUP($A52,Filtro!$A$4:$AX$1932,2,FALSE),0) -> 17932 | E52: =IFERROR(VLOOKUP($A52,Filtro!$A$4:$AX$1932,3,FALSE),0) -> 6039 | F52: =IFERROR(VLOOKUP($A52,Filtro!$A$4:$AX$1932,4,FALSE),0) -> 12194 | G52: =IFERROR(VLOOKUP($A52,Filtro!$A$4:$AX$1932,5,FALSE),0) -> 96 | H52: =IFERROR(VLOOKUP($A52,Filtro!$A$4:$AX$1932,6,FALSE),0) -> 96 | I52: =IFERROR(VLOOKUP($A52,Filtro!$A$4:$AX$1932,7,FALSE),0) -> 85 | J52: =IFERROR(VLOOKUP($A52,Filtro!$A$4:$AX$1932,8,FALSE),0) -> 77 | K52: =IFERROR(VLOOKUP($A52,Filtro!$A$4:$AX$1932,9,FALSE),0) -> 95 | L52: =IFERROR(VLOOKUP($A52,Filtro!$A$4:$AX$1932,10,FALSE),0) -> 111 | M52: =IFERROR(VLOOKUP($A52,Filtro!$A$4:$AX$1932,11,FALSE),0) -> 124 | N52: =IFERROR(VLOOKUP($A52,Filtro!$A$4:$AX$1932,12,FALSE),0) -> 220 | O52: =IFERROR(VLOOKUP($A52,Filtro!$A$4:$AX$1932,13,FALSE),0) -> 124 | P52: =IFERROR(VLOOKUP($A52,Filtro!$A$4:$AX$1932,14,FALSE),0) -> 277 | Q52: =IFERROR(VLOOKUP($A52,Filtro!$A$4:$AX$1932,15,FALSE),0) -> 112 | R52: =IFERROR(VLOOKUP($A52,Filtro!$A$4:$AX$1932,16,FALSE),0) -> 306 | S52: =IFERROR(VLOOKUP($A52,Filtro!$A$4:$AX$1932,17,FALSE),0) -> 95 | T52: =IFERROR(VLOOKUP($A52,Filtro!$A$4:$AX$1932,18,FALSE),0) -> 459 | U52: =IFERROR(VLOOKUP($A52,Filtro!$A$4:$AX$1932,19,FALSE),0) -> 141 | V52: =IFERROR(VLOOKUP($A52,Filtro!$A$4:$AX$1932,20,FALSE),0) -> 503 | W52: =IFERROR(VLOOKUP($A52,Filtro!$A$4:$AX$1932,21,FALSE),0) -> 144 | X52: =IFERROR(VLOOKUP($A52,Filtro!$A$4:$AX$1932,22,FALSE),0) -> 586 | Y52: =IFERROR(VLOOKUP($A52,Filtro!$A$4:$AX$1932,23,FALSE),0) -> 183 | Z52: =IFERROR(VLOOKUP($A52,Filtro!$A$4:$AX$1932,24,FALSE),0) -> 808 | AA52: =IFERROR(VLOOKUP($A52,Filtro!$A$4:$AX$1932,25,FALSE),0) -> 342 | AB52: =IFERROR(VLOOKUP($A52,Filtro!$A$4:$AX$1932,26,FALSE),0) -> 1090 | AC52: =IFERROR(VLOOKUP($A52,Filtro!$A$4:$AX$1932,27,FALSE),0) -> 528 | AD52: =IFERROR(VLOOKUP($A52,Filtro!$A$4:$AX$1932,28,FALSE),0) -> 1292 | AE52: =IFERROR(VLOOKUP($A52,Filtro!$A$4:$AX$1932,29,FALSE),0) -> 646 | AF52: =IFERROR(VLOOKUP($A52,Filtro!$A$4:$AX$1932,30,FALSE),0) -> 1330 | AG52: =IFERROR(VLOOKUP($A52,Filtro!$A$4:$AX$1932,31,FALSE),0) -> 711 | AH52: =IFERROR(VLOOKUP($A52,Filtro!$A$4:$AX$1932,32,FALSE),0) -> 1371 | AI52: =IFERROR(VLOOKUP($A52,Filtro!$A$4:$AX$1932,33,FALSE),0) -> 739 | AJ52: =IFERROR(VLOOKUP($A52,Filtro!$A$4:$AX$1932,34,FALSE),0) -> 1196 | AK52: =IFERROR(VLOOKUP($A52,Filtro!$A$4:$AX$1932,35,FALSE),0) -> 889 | AL52: =IFERROR(VLOOKUP($A52,Filtro!$A$4:$AX$1932,36,FALSE),0) -> 924 | AM52: =IFERROR(VLOOKUP($A52,Filtro!$A$4:$AX$1932,37,FALSE),0) -> 986 | AN52: =IFERROR(VLOOKUP($A52,Filtro!$A$4:$AX$1932,38,FALSE),0) -> 1548 | AO52: =IFERROR(VLOOKUP($A52,Filtro!$A$4:$AX$1932,39,FALSE),0) -> 17833 | CJ52: 0
A53: 03030150 | C53: ENFERMERA /O | D53: =IFERROR(VLOOKUP($A53,Filtro!$A$4:$AX$1932,2,FALSE),0) -> 3990 | E53: =IFERROR(VLOOKUP($A53,Filtro!$A$4:$AX$1932,3,FALSE),0) -> 2030 | F53: =IFERROR(VLOOKUP($A53,Filtro!$A$4:$AX$1932,4,FALSE),0) -> 1696 | G53: =IFERROR(VLOOKUP($A53,Filtro!$A$4:$AX$1932,5,FALSE),0) -> 9 | H53: =IFERROR(VLOOKUP($A53,Filtro!$A$4:$AX$1932,6,FALSE),0) -> 13 | I53: =IFERROR(VLOOKUP($A53,Filtro!$A$4:$AX$1932,7,FALSE),0) -> 6 | J53: =IFERROR(VLOOKUP($A53,Filtro!$A$4:$AX$1932,8,FALSE),0) -> 5 | K53: =IFERROR(VLOOKUP($A53,Filtro!$A$4:$AX$1932,9,FALSE),0) -> 8 | L53: =IFERROR(VLOOKUP($A53,Filtro!$A$4:$AX$1932,10,FALSE),0) -> 6 | M53: =IFERROR(VLOOKUP($A53,Filtro!$A$4:$AX$1932,11,FALSE),0) -> 9 | N53: =IFERROR(VLOOKUP($A53,Filtro!$A$4:$AX$1932,12,FALSE),0) -> 43 | O53: =IFERROR(VLOOKUP($A53,Filtro!$A$4:$AX$1932,13,FALSE),0) -> 10 | P53: =IFERROR(VLOOKUP($A53,Filtro!$A$4:$AX$1932,14,FALSE),0) -> 22 | Q53: =IFERROR(VLOOKUP($A53,Filtro!$A$4:$AX$1932,15,FALSE),0) -> 10 | R53: =IFERROR(VLOOKUP($A53,Filtro!$A$4:$AX$1932,16,FALSE),0) -> 18 | S53: =IFERROR(VLOOKUP($A53,Filtro!$A$4:$AX$1932,17,FALSE),0) -> 58 | T53: =IFERROR(VLOOKUP($A53,Filtro!$A$4:$AX$1932,18,FALSE),0) -> 34 | U53: =IFERROR(VLOOKUP($A53,Filtro!$A$4:$AX$1932,19,FALSE),0) -> 19 | V53: =IFERROR(VLOOKUP($A53,Filtro!$A$4:$AX$1932,20,FALSE),0) -> 58 | W53: =IFERROR(VLOOKUP($A53,Filtro!$A$4:$AX$1932,21,FALSE),0) -> 35 | X53: =IFERROR(VLOOKUP($A53,Filtro!$A$4:$AX$1932,22,FALSE),0) -> 41 | Y53: =IFERROR(VLOOKUP($A53,Filtro!$A$4:$AX$1932,23,FALSE),0) -> 42 | Z53: =IFERROR(VLOOKUP($A53,Filtro!$A$4:$AX$1932,24,FALSE),0) -> 81 | AA53: =IFERROR(VLOOKUP($A53,Filtro!$A$4:$AX$1932,25,FALSE),0) -> 197 | AB53: =IFERROR(VLOOKUP($A53,Filtro!$A$4:$AX$1932,26,FALSE),0) -> 65 | AC53: =IFERROR(VLOOKUP($A53,Filtro!$A$4:$AX$1932,27,FALSE),0) -> 159 | AD53: =IFERROR(VLOOKUP($A53,Filtro!$A$4:$AX$1932,28,FALSE),0) -> 140 | AE53: =IFERROR(VLOOKUP($A53,Filtro!$A$4:$AX$1932,29,FALSE),0) -> 261 | AF53: =IFERROR(VLOOKUP($A53,Filtro!$A$4:$AX$1932,30,FALSE),0) -> 284 | AG53: =IFERROR(VLOOKUP($A53,Filtro!$A$4:$AX$1932,31,FALSE),0) -> 358 | AH53: =IFERROR(VLOOKUP($A53,Filtro!$A$4:$AX$1932,32,FALSE),0) -> 366 | AI53: =IFERROR(VLOOKUP($A53,Filtro!$A$4:$AX$1932,33,FALSE),0) -> 155 | AJ53: =IFERROR(VLOOKUP($A53,Filtro!$A$4:$AX$1932,34,FALSE),0) -> 169 | AK53: =IFERROR(VLOOKUP($A53,Filtro!$A$4:$AX$1932,35,FALSE),0) -> 562 | AL53: =IFERROR(VLOOKUP($A53,Filtro!$A$4:$AX$1932,36,FALSE),0) -> 163 | AM53: =IFERROR(VLOOKUP($A53,Filtro!$A$4:$AX$1932,37,FALSE),0) -> 132 | AN53: =IFERROR(VLOOKUP($A53,Filtro!$A$4:$AX$1932,38,FALSE),0) -> 188 | AO53: =IFERROR(VLOOKUP($A53,Filtro!$A$4:$AX$1932,39,FALSE),0) -> 3520 | CJ53: 0
A54: 03030170 | C54: MATRONA /ÓN | D54: =IFERROR(VLOOKUP($A54,Filtro!$A$4:$AX$1932,2,FALSE),0) -> 86 | E54: =IFERROR(VLOOKUP($A54,Filtro!$A$4:$AX$1932,3,FALSE),0) -> 1 | F54: =IFERROR(VLOOKUP($A54,Filtro!$A$4:$AX$1932,4,FALSE),0) -> 48 | G54: =IFERROR(VLOOKUP($A54,Filtro!$A$4:$AX$1932,5,FALSE),0) -> 0 | H54: =IFERROR(VLOOKUP($A54,Filtro!$A$4:$AX$1932,6,FALSE),0) -> 2 | I54: =IFERROR(VLOOKUP($A54,Filtro!$A$4:$AX$1932,7,FALSE),0) -> 0 | J54: =IFERROR(VLOOKUP($A54,Filtro!$A$4:$AX$1932,8,FALSE),0) -> 0 | K54: =IFERROR(VLOOKUP($A54,Filtro!$A$4:$AX$1932,9,FALSE),0) -> 0 | L54: =IFERROR(VLOOKUP($A54,Filtro!$A$4:$AX$1932,10,FALSE),0) -> 0 | M54: =IFERROR(VLOOKUP($A54,Filtro!$A$4:$AX$1932,11,FALSE),0) -> 0 | N54: =IFERROR(VLOOKUP($A54,Filtro!$A$4:$AX$1932,12,FALSE),0) -> 4 | O54: =IFERROR(VLOOKUP($A54,Filtro!$A$4:$AX$1932,13,FALSE),0) -> 0 | P54: =IFERROR(VLOOKUP($A54,Filtro!$A$4:$AX$1932,14,FALSE),0) -> 10 | Q54: =IFERROR(VLOOKUP($A54,Filtro!$A$4:$AX$1932,15,FALSE),0) -> 1 | R54: =IFERROR(VLOOKUP($A54,Filtro!$A$4:$AX$1932,16,FALSE),0) -> 10 | S54: =IFERROR(VLOOKUP($A54,Filtro!$A$4:$AX$1932,17,FALSE),0) -> 0 | T54: =IFERROR(VLOOKUP($A54,Filtro!$A$4:$AX$1932,18,FALSE),0) -> 5 | U54: =IFERROR(VLOOKUP($A54,Filtro!$A$4:$AX$1932,19,FALSE),0) -> 0 | V54: =IFERROR(VLOOKUP($A54,Filtro!$A$4:$AX$1932,20,FALSE),0) -> 0 | W54: =IFERROR(VLOOKUP($A54,Filtro!$A$4:$AX$1932,21,FALSE),0) -> 0 | X54: =IFERROR(VLOOKUP($A54,Filtro!$A$4:$AX$1932,22,FALSE),0) -> 2 | Y54: =IFERROR(VLOOKUP($A54,Filtro!$A$4:$AX$1932,23,FALSE),0) -> 0 | Z54: =IFERROR(VLOOKUP($A54,Filtro!$A$4:$AX$1932,24,FALSE),0) -> 2 | AA54: =IFERROR(VLOOKUP($A54,Filtro!$A$4:$AX$1932,25,FALSE),0) -> 0 | AB54: =IFERROR(VLOOKUP($A54,Filtro!$A$4:$AX$1932,26,FALSE),0) -> 0 | AC54: =IFERROR(VLOOKUP($A54,Filtro!$A$4:$AX$1932,27,FALSE),0) -> 0 | AD54: =IFERROR(VLOOKUP($A54,Filtro!$A$4:$AX$1932,28,FALSE),0) -> 1 | AE54: =IFERROR(VLOOKUP($A54,Filtro!$A$4:$AX$1932,29,FALSE),0) -> 0 | AF54: =IFERROR(VLOOKUP($A54,Filtro!$A$4:$AX$1932,30,FALSE),0) -> 2 | AG54: =IFERROR(VLOOKUP($A54,Filtro!$A$4:$AX$1932,31,FALSE),0) -> 0 | AH54: =IFERROR(VLOOKUP($A54,Filtro!$A$4:$AX$1932,32,FALSE),0) -> 3 | AI54: =IFERROR(VLOOKUP($A54,Filtro!$A$4:$AX$1932,33,FALSE),0) -> 0 | AJ54: =IFERROR(VLOOKUP($A54,Filtro!$A$4:$AX$1932,34,FALSE),0) -> 0 | AK54: =IFERROR(VLOOKUP($A54,Filtro!$A$4:$AX$1932,35,FALSE),0) -> 0 | AL54: =IFERROR(VLOOKUP($A54,Filtro!$A$4:$AX$1932,36,FALSE),0) -> 0 | AM54: =IFERROR(VLOOKUP($A54,Filtro!$A$4:$AX$1932,37,FALSE),0) -> 0 | AN54: =IFERROR(VLOOKUP($A54,Filtro!$A$4:$AX$1932,38,FALSE),0) -> 7 | AO54: =IFERROR(VLOOKUP($A54,Filtro!$A$4:$AX$1932,39,FALSE),0) -> 47 | CJ54: 0
A55: 03030160 | C55: NUTRICIONISTA | D55: =IFERROR(VLOOKUP($A55,Filtro!$A$4:$AX$1932,2,FALSE),0) -> 1406 | E55: =IFERROR(VLOOKUP($A55,Filtro!$A$4:$AX$1932,3,FALSE),0) -> 350 | F55: =IFERROR(VLOOKUP($A55,Filtro!$A$4:$AX$1932,4,FALSE),0) -> 1068 | G55: =IFERROR(VLOOKUP($A55,Filtro!$A$4:$AX$1932,5,FALSE),0) -> 103 | H55: =IFERROR(VLOOKUP($A55,Filtro!$A$4:$AX$1932,6,FALSE),0) -> 93 | I55: =IFERROR(VLOOKUP($A55,Filtro!$A$4:$AX$1932,7,FALSE),0) -> 18 | J55: =IFERROR(VLOOKUP($A55,Filtro!$A$4:$AX$1932,8,FALSE),0) -> 14 | K55: =IFERROR(VLOOKUP($A55,Filtro!$A$4:$AX$1932,9,FALSE),0) -> 19 | L55: =IFERROR(VLOOKUP($A55,Filtro!$A$4:$AX$1932,10,FALSE),0) -> 32 | M55: =IFERROR(VLOOKUP($A55,Filtro!$A$4:$AX$1932,11,FALSE),0) -> 12 | N55: =IFERROR(VLOOKUP($A55,Filtro!$A$4:$AX$1932,12,FALSE),0) -> 69 | O55: =IFERROR(VLOOKUP($A55,Filtro!$A$4:$AX$1932,13,FALSE),0) -> 13 | P55: =IFERROR(VLOOKUP($A55,Filtro!$A$4:$AX$1932,14,FALSE),0) -> 101 | Q55: =IFERROR(VLOOKUP($A55,Filtro!$A$4:$AX$1932,15,FALSE),0) -> 12 | R55: =IFERROR(VLOOKUP($A55,Filtro!$A$4:$AX$1932,16,FALSE),0) -> 100 | S55: =IFERROR(VLOOKUP($A55,Filtro!$A$4:$AX$1932,17,FALSE),0) -> 19 | T55: =IFERROR(VLOOKUP($A55,Filtro!$A$4:$AX$1932,18,FALSE),0) -> 103 | U55: =IFERROR(VLOOKUP($A55,Filtro!$A$4:$AX$1932,19,FALSE),0) -> 15 | V55: =IFERROR(VLOOKUP($A55,Filtro!$A$4:$AX$1932,20,FALSE),0) -> 82 | W55: =IFERROR(VLOOKUP($A55,Filtro!$A$4:$AX$1932,21,FALSE),0) -> 11 | X55: =IFERROR(VLOOKUP($A55,Filtro!$A$4:$AX$1932,22,FALSE),0) -> 73 | Y55: =IFERROR(VLOOKUP($A55,Filtro!$A$4:$AX$1932,23,FALSE),0) -> 7 | Z55: =IFERROR(VLOOKUP($A55,Filtro!$A$4:$AX$1932,24,FALSE),0) -> 82 | AA55: =IFERROR(VLOOKUP($A55,Filtro!$A$4:$AX$1932,25,FALSE),0) -> 13 | AB55: =IFERROR(VLOOKUP($A55,Filtro!$A$4:$AX$1932,26,FALSE),0) -> 64 | AC55: =IFERROR(VLOOKUP($A55,Filtro!$A$4:$AX$1932,27,FALSE),0) -> 23 | AD55: =IFERROR(VLOOKUP($A55,Filtro!$A$4:$AX$1932,28,FALSE),0) -> 78 | AE55: =IFERROR(VLOOKUP($A55,Filtro!$A$4:$AX$1932,29,FALSE),0) -> 20 | AF55: =IFERROR(VLOOKUP($A55,Filtro!$A$4:$AX$1932,30,FALSE),0) -> 42 | AG55: =IFERROR(VLOOKUP($A55,Filtro!$A$4:$AX$1932,31,FALSE),0) -> 21 | AH55: =IFERROR(VLOOKUP($A55,Filtro!$A$4:$AX$1932,32,FALSE),0) -> 53 | AI55: =IFERROR(VLOOKUP($A55,Filtro!$A$4:$AX$1932,33,FALSE),0) -> 16 | AJ55: =IFERROR(VLOOKUP($A55,Filtro!$A$4:$AX$1932,34,FALSE),0) -> 34 | AK55: =IFERROR(VLOOKUP($A55,Filtro!$A$4:$AX$1932,35,FALSE),0) -> 12 | AL55: =IFERROR(VLOOKUP($A55,Filtro!$A$4:$AX$1932,36,FALSE),0) -> 18 | AM55: =IFERROR(VLOOKUP($A55,Filtro!$A$4:$AX$1932,37,FALSE),0) -> 16 | AN55: =IFERROR(VLOOKUP($A55,Filtro!$A$4:$AX$1932,38,FALSE),0) -> 30 | AO55: =IFERROR(VLOOKUP($A55,Filtro!$A$4:$AX$1932,39,FALSE),0) -> 1375 | CJ55: 0
A56: 03030180 | C56: TÉCNICO PARAMÉDICO | D56: =IFERROR(VLOOKUP($A56,Filtro!$A$4:$AX$1932,2,FALSE),0) -> 1291 | E56: =IFERROR(VLOOKUP($A56,Filtro!$A$4:$AX$1932,3,FALSE),0) -> 579 | F56: =IFERROR(VLOOKUP($A56,Filtro!$A$4:$AX$1932,4,FALSE),0) -> 700 | G56: =IFERROR(VLOOKUP($A56,Filtro!$A$4:$AX$1932,5,FALSE),0) -> 12 | H56: =IFERROR(VLOOKUP($A56,Filtro!$A$4:$AX$1932,6,FALSE),0) -> 5 | I56: =IFERROR(VLOOKUP($A56,Filtro!$A$4:$AX$1932,7,FALSE),0) -> 5 | J56: =IFERROR(VLOOKUP($A56,Filtro!$A$4:$AX$1932,8,FALSE),0) -> 1 | K56: =IFERROR(VLOOKUP($A56,Filtro!$A$4:$AX$1932,9,FALSE),0) -> 11 | L56: =IFERROR(VLOOKUP($A56,Filtro!$A$4:$AX$1932,10,FALSE),0) -> 8 | M56: =IFERROR(VLOOKUP($A56,Filtro!$A$4:$AX$1932,11,FALSE),0) -> 20 | N56: =IFERROR(VLOOKUP($A56,Filtro!$A$4:$AX$1932,12,FALSE),0) -> 4 | O56: =IFERROR(VLOOKUP($A56,Filtro!$A$4:$AX$1932,13,FALSE),0) -> 12 | P56: =IFERROR(VLOOKUP($A56,Filtro!$A$4:$AX$1932,14,FALSE),0) -> 19 | Q56: =IFERROR(VLOOKUP($A56,Filtro!$A$4:$AX$1932,15,FALSE),0) -> 25 | R56: =IFERROR(VLOOKUP($A56,Filtro!$A$4:$AX$1932,16,FALSE),0) -> 31 | S56: =IFERROR(VLOOKUP($A56,Filtro!$A$4:$AX$1932,17,FALSE),0) -> 33 | T56: =IFERROR(VLOOKUP($A56,Filtro!$A$4:$AX$1932,18,FALSE),0) -> 53 | U56: =IFERROR(VLOOKUP($A56,Filtro!$A$4:$AX$1932,19,FALSE),0) -> 33 | V56: =IFERROR(VLOOKUP($A56,Filtro!$A$4:$AX$1932,20,FALSE),0) -> 45 | W56: =IFERROR(VLOOKUP($A56,Filtro!$A$4:$AX$1932,21,FALSE),0) -> 17 | X56: =IFERROR(VLOOKUP($A56,Filtro!$A$4:$AX$1932,22,FALSE),0) -> 81 | Y56: =IFERROR(VLOOKUP($A56,Filtro!$A$4:$AX$1932,23,FALSE),0) -> 52 | Z56: =IFERROR(VLOOKUP($A56,Filtro!$A$4:$AX$1932,24,FALSE),0) -> 53 | AA56: =IFERROR(VLOOKUP($A56,Filtro!$A$4:$AX$1932,25,FALSE),0) -> 25 | AB56: =IFERROR(VLOOKUP($A56,Filtro!$A$4:$AX$1932,26,FALSE),0) -> 68 | AC56: =IFERROR(VLOOKUP($A56,Filtro!$A$4:$AX$1932,27,FALSE),0) -> 13 | AD56: =IFERROR(VLOOKUP($A56,Filtro!$A$4:$AX$1932,28,FALSE),0) -> 72 | AE56: =IFERROR(VLOOKUP($A56,Filtro!$A$4:$AX$1932,29,FALSE),0) -> 32 | AF56: =IFERROR(VLOOKUP($A56,Filtro!$A$4:$AX$1932,30,FALSE),0) -> 88 | AG56: =IFERROR(VLOOKUP($A56,Filtro!$A$4:$AX$1932,31,FALSE),0) -> 31 | AH56: =IFERROR(VLOOKUP($A56,Filtro!$A$4:$AX$1932,32,FALSE),0) -> 20 | AI56: =IFERROR(VLOOKUP($A56,Filtro!$A$4:$AX$1932,33,FALSE),0) -> 39 | AJ56: =IFERROR(VLOOKUP($A56,Filtro!$A$4:$AX$1932,34,FALSE),0) -> 34 | AK56: =IFERROR(VLOOKUP($A56,Filtro!$A$4:$AX$1932,35,FALSE),0) -> 57 | AL56: =IFERROR(VLOOKUP($A56,Filtro!$A$4:$AX$1932,36,FALSE),0) -> 26 | AM56: =IFERROR(VLOOKUP($A56,Filtro!$A$4:$AX$1932,37,FALSE),0) -> 162 | AN56: =IFERROR(VLOOKUP($A56,Filtro!$A$4:$AX$1932,38,FALSE),0) -> 92 | AO56: =IFERROR(VLOOKUP($A56,Filtro!$A$4:$AX$1932,39,FALSE),0) -> 1247 | CJ56: 0
A57: 01200031 | B57: NIÑOS CON NECESIDADES ESPECIALES | C57: MÉDICO | D57: =IFERROR(VLOOKUP($A57,Filtro!$A$4:$AX$1932,2,FALSE),0) -> 34 | E57: =IFERROR(VLOOKUP($A57,Filtro!$A$4:$AX$1932,3,FALSE),0) -> 16 | F57: =IFERROR(VLOOKUP($A57,Filtro!$A$4:$AX$1932,4,FALSE),0) -> 18 | G57: =IFERROR(VLOOKUP($A57,Filtro!$A$4:$AX$1932,5,FALSE),0) -> 13 | H57: =IFERROR(VLOOKUP($A57,Filtro!$A$4:$AX$1932,6,FALSE),0) -> 14 | I57: =IFERROR(VLOOKUP($A57,Filtro!$A$4:$AX$1932,7,FALSE),0) -> 1 | J57: =IFERROR(VLOOKUP($A57,Filtro!$A$4:$AX$1932,8,FALSE),0) -> 3 | K57: =IFERROR(VLOOKUP($A57,Filtro!$A$4:$AX$1932,9,FALSE),0) -> 1 | L57: =IFERROR(VLOOKUP($A57,Filtro!$A$4:$AX$1932,10,FALSE),0) -> 1 | M57: =IFERROR(VLOOKUP($A57,Filtro!$A$4:$AX$1932,11,FALSE),0) -> 1 | N57: =IFERROR(VLOOKUP($A57,Filtro!$A$4:$AX$1932,12,FALSE),0) -> 0 | O57: =IFERROR(VLOOKUP($A57,Filtro!$A$4:$AX$1932,13,FALSE),0) -> 0 | P57: =IFERROR(VLOOKUP($A57,Filtro!$A$4:$AX$1932,14,FALSE),0) -> 0 | Q57: =IFERROR(VLOOKUP($A57,Filtro!$A$4:$AX$1932,15,FALSE),0) -> 0 | R57: =IFERROR(VLOOKUP($A57,Filtro!$A$4:$AX$1932,16,FALSE),0) -> 0 | S57: =IFERROR(VLOOKUP($A57,Filtro!$A$4:$AX$1932,17,FALSE),0) -> 0 | T57: =IFERROR(VLOOKUP($A57,Filtro!$A$4:$AX$1932,18,FALSE),0) -> 0 | U57: =IFERROR(VLOOKUP($A57,Filtro!$A$4:$AX$1932,19,FALSE),0) -> 0 | V57: =IFERROR(VLOOKUP($A57,Filtro!$A$4:$AX$1932,20,FALSE),0) -> 0 | W57: =IFERROR(VLOOKUP($A57,Filtro!$A$4:$AX$1932,21,FALSE),0) -> 0 | X57: =IFERROR(VLOOKUP($A57,Filtro!$A$4:$AX$1932,22,FALSE),0) -> 0 | Y57: =IFERROR(VLOOKUP($A57,Filtro!$A$4:$AX$1932,23,FALSE),0) -> 0 | Z57: =IFERROR(VLOOKUP($A57,Filtro!$A$4:$AX$1932,24,FALSE),0) -> 0 | AA57: =IFERROR(VLOOKUP($A57,Filtro!$A$4:$AX$1932,25,FALSE),0) -> 0 | AB57: =IFERROR(VLOOKUP($A57,Filtro!$A$4:$AX$1932,26,FALSE),0) -> 0 | AC57: =IFERROR(VLOOKUP($A57,Filtro!$A$4:$AX$1932,27,FALSE),0) -> 0 | AD57: =IFERROR(VLOOKUP($A57,Filtro!$A$4:$AX$1932,28,FALSE),0) -> 0 | AE57: =IFERROR(VLOOKUP($A57,Filtro!$A$4:$AX$1932,29,FALSE),0) -> 0 | AF57: =IFERROR(VLOOKUP($A57,Filtro!$A$4:$AX$1932,30,FALSE),0) -> 0 | AG57: =IFERROR(VLOOKUP($A57,Filtro!$A$4:$AX$1932,31,FALSE),0) -> 0 | AH57: =IFERROR(VLOOKUP($A57,Filtro!$A$4:$AX$1932,32,FALSE),0) -> 0 | AI57: =IFERROR(VLOOKUP($A57,Filtro!$A$4:$AX$1932,33,FALSE),0) -> 0 | AJ57: =IFERROR(VLOOKUP($A57,Filtro!$A$4:$AX$1932,34,FALSE),0) -> 0 | AK57: =IFERROR(VLOOKUP($A57,Filtro!$A$4:$AX$1932,35,FALSE),0) -> 0 | AL57: =IFERROR(VLOOKUP($A57,Filtro!$A$4:$AX$1932,36,FALSE),0) -> 0 | AM57: =IFERROR(VLOOKUP($A57,Filtro!$A$4:$AX$1932,37,FALSE),0) -> 0 | AN57: =IFERROR(VLOOKUP($A57,Filtro!$A$4:$AX$1932,38,FALSE),0) -> 0 | AO57: =IFERROR(VLOOKUP($A57,Filtro!$A$4:$AX$1932,39,FALSE),0) -> 30 | CJ57: 0
A58: 01200032 | C58: ENFERMERA /O | D58: =IFERROR(VLOOKUP($A58,Filtro!$A$4:$AX$1932,2,FALSE),0) -> 133 | E58: =IFERROR(VLOOKUP($A58,Filtro!$A$4:$AX$1932,3,FALSE),0) -> 74 | F58: =IFERROR(VLOOKUP($A58,Filtro!$A$4:$AX$1932,4,FALSE),0) -> 59 | G58: =IFERROR(VLOOKUP($A58,Filtro!$A$4:$AX$1932,5,FALSE),0) -> 66 | H58: =IFERROR(VLOOKUP($A58,Filtro!$A$4:$AX$1932,6,FALSE),0) -> 49 | I58: =IFERROR(VLOOKUP($A58,Filtro!$A$4:$AX$1932,7,FALSE),0) -> 5 | J58: =IFERROR(VLOOKUP($A58,Filtro!$A$4:$AX$1932,8,FALSE),0) -> 10 | K58: =IFERROR(VLOOKUP($A58,Filtro!$A$4:$AX$1932,9,FALSE),0) -> 2 | L58: =IFERROR(VLOOKUP($A58,Filtro!$A$4:$AX$1932,10,FALSE),0) -> 0 | M58: =IFERROR(VLOOKUP($A58,Filtro!$A$4:$AX$1932,11,FALSE),0) -> 1 | N58: =IFERROR(VLOOKUP($A58,Filtro!$A$4:$AX$1932,12,FALSE),0) -> 0 | O58: =IFERROR(VLOOKUP($A58,Filtro!$A$4:$AX$1932,13,FALSE),0) -> 0 | P58: =IFERROR(VLOOKUP($A58,Filtro!$A$4:$AX$1932,14,FALSE),0) -> 0 | Q58: =IFERROR(VLOOKUP($A58,Filtro!$A$4:$AX$1932,15,FALSE),0) -> 0 | R58: =IFERROR(VLOOKUP($A58,Filtro!$A$4:$AX$1932,16,FALSE),0) -> 0 | S58: =IFERROR(VLOOKUP($A58,Filtro!$A$4:$AX$1932,17,FALSE),0) -> 0 | T58: =IFERROR(VLOOKUP($A58,Filtro!$A$4:$AX$1932,18,FALSE),0) -> 0 | U58: =IFERROR(VLOOKUP($A58,Filtro!$A$4:$AX$1932,19,FALSE),0) -> 0 | V58: =IFERROR(VLOOKUP($A58,Filtro!$A$4:$AX$1932,20,FALSE),0) -> 0 | W58: =IFERROR(VLOOKUP($A58,Filtro!$A$4:$AX$1932,21,FALSE),0) -> 0 | X58: =IFERROR(VLOOKUP($A58,Filtro!$A$4:$AX$1932,22,FALSE),0) -> 0 | Y58: =IFERROR(VLOOKUP($A58,Filtro!$A$4:$AX$1932,23,FALSE),0) -> 0 | Z58: =IFERROR(VLOOKUP($A58,Filtro!$A$4:$AX$1932,24,FALSE),0) -> 0 | AA58: =IFERROR(VLOOKUP($A58,Filtro!$A$4:$AX$1932,25,FALSE),0) -> 0 | AB58: =IFERROR(VLOOKUP($A58,Filtro!$A$4:$AX$1932,26,FALSE),0) -> 0 | AC58: =IFERROR(VLOOKUP($A58,Filtro!$A$4:$AX$1932,27,FALSE),0) -> 0 | AD58: =IFERROR(VLOOKUP($A58,Filtro!$A$4:$AX$1932,28,FALSE),0) -> 0 | AE58: =IFERROR(VLOOKUP($A58,Filtro!$A$4:$AX$1932,29,FALSE),0) -> 0 | AF58: =IFERROR(VLOOKUP($A58,Filtro!$A$4:$AX$1932,30,FALSE),0) -> 0 | AG58: =IFERROR(VLOOKUP($A58,Filtro!$A$4:$AX$1932,31,FALSE),0) -> 0 | AH58: =IFERROR(VLOOKUP($A58,Filtro!$A$4:$AX$1932,32,FALSE),0) -> 0 | AI58: =IFERROR(VLOOKUP($A58,Filtro!$A$4:$AX$1932,33,FALSE),0) -> 0 | AJ58: =IFERROR(VLOOKUP($A58,Filtro!$A$4:$AX$1932,34,FALSE),0) -> 0 | AK58: =IFERROR(VLOOKUP($A58,Filtro!$A$4:$AX$1932,35,FALSE),0) -> 0 | AL58: =IFERROR(VLOOKUP($A58,Filtro!$A$4:$AX$1932,36,FALSE),0) -> 0 | AM58: =IFERROR(VLOOKUP($A58,Filtro!$A$4:$AX$1932,37,FALSE),0) -> 0 | AN58: =IFERROR(VLOOKUP($A58,Filtro!$A$4:$AX$1932,38,FALSE),0) -> 0 | AO58: =IFERROR(VLOOKUP($A58,Filtro!$A$4:$AX$1932,39,FALSE),0) -> 111 | CJ58: 0
A59: 01200033 | C59: MATRONA /ÓN | D59: =IFERROR(VLOOKUP($A59,Filtro!$A$4:$AX$1932,2,FALSE),0) -> 2 | E59: =IFERROR(VLOOKUP($A59,Filtro!$A$4:$AX$1932,3,FALSE),0) -> 2 | F59: =IFERROR(VLOOKUP($A59,Filtro!$A$4:$AX$1932,4,FALSE),0) -> 0 | G59: =IFERROR(VLOOKUP($A59,Filtro!$A$4:$AX$1932,5,FALSE),0) -> 1 | H59: =IFERROR(VLOOKUP($A59,Filtro!$A$4:$AX$1932,6,FALSE),0) -> 0 | I59: =IFERROR(VLOOKUP($A59,Filtro!$A$4:$AX$1932,7,FALSE),0) -> 0 | J59: =IFERROR(VLOOKUP($A59,Filtro!$A$4:$AX$1932,8,FALSE),0) -> 0 | K59: =IFERROR(VLOOKUP($A59,Filtro!$A$4:$AX$1932,9,FALSE),0) -> 1 | L59: =IFERROR(VLOOKUP($A59,Filtro!$A$4:$AX$1932,10,FALSE),0) -> 0 | M59: =IFERROR(VLOOKUP($A59,Filtro!$A$4:$AX$1932,11,FALSE),0) -> 0 | N59: =IFERROR(VLOOKUP($A59,Filtro!$A$4:$AX$1932,12,FALSE),0) -> 0 | O59: =IFERROR(VLOOKUP($A59,Filtro!$A$4:$AX$1932,13,FALSE),0) -> 0 | P59: =IFERROR(VLOOKUP($A59,Filtro!$A$4:$AX$1932,14,FALSE),0) -> 0 | Q59: =IFERROR(VLOOKUP($A59,Filtro!$A$4:$AX$1932,15,FALSE),0) -> 0 | R59: =IFERROR(VLOOKUP($A59,Filtro!$A$4:$AX$1932,16,FALSE),0) -> 0 | S59: =IFERROR(VLOOKUP($A59,Filtro!$A$4:$AX$1932,17,FALSE),0) -> 0 | T59: =IFERROR(VLOOKUP($A59,Filtro!$A$4:$AX$1932,18,FALSE),0) -> 0 | U59: =IFERROR(VLOOKUP($A59,Filtro!$A$4:$AX$1932,19,FALSE),0) -> 0 | V59: =IFERROR(VLOOKUP($A59,Filtro!$A$4:$AX$1932,20,FALSE),0) -> 0 | W59: =IFERROR(VLOOKUP($A59,Filtro!$A$4:$AX$1932,21,FALSE),0) -> 0 | X59: =IFERROR(VLOOKUP($A59,Filtro!$A$4:$AX$1932,22,FALSE),0) -> 0 | Y59: =IFERROR(VLOOKUP($A59,Filtro!$A$4:$AX$1932,23,FALSE),0) -> 0 | Z59: =IFERROR(VLOOKUP($A59,Filtro!$A$4:$AX$1932,24,FALSE),0) -> 0 | AA59: =IFERROR(VLOOKUP($A59,Filtro!$A$4:$AX$1932,25,FALSE),0) -> 0 | AB59: =IFERROR(VLOOKUP($A59,Filtro!$A$4:$AX$1932,26,FALSE),0) -> 0 | AC59: =IFERROR(VLOOKUP($A59,Filtro!$A$4:$AX$1932,27,FALSE),0) -> 0 | AD59: =IFERROR(VLOOKUP($A59,Filtro!$A$4:$AX$1932,28,FALSE),0) -> 0 | AE59: =IFERROR(VLOOKUP($A59,Filtro!$A$4:$AX$1932,29,FALSE),0) -> 0 | AF59: =IFERROR(VLOOKUP($A59,Filtro!$A$4:$AX$1932,30,FALSE),0) -> 0 | AG59: =IFERROR(VLOOKUP($A59,Filtro!$A$4:$AX$1932,31,FALSE),0) -> 0 | AH59: =IFERROR(VLOOKUP($A59,Filtro!$A$4:$AX$1932,32,FALSE),0) -> 0 | AI59: =IFERROR(VLOOKUP($A59,Filtro!$A$4:$AX$1932,33,FALSE),0) -> 0 | AJ59: =IFERROR(VLOOKUP($A59,Filtro!$A$4:$AX$1932,34,FALSE),0) -> 0 | AK59: =IFERROR(VLOOKUP($A59,Filtro!$A$4:$AX$1932,35,FALSE),0) -> 0 | AL59: =IFERROR(VLOOKUP($A59,Filtro!$A$4:$AX$1932,36,FALSE),0) -> 0 | AM59: =IFERROR(VLOOKUP($A59,Filtro!$A$4:$AX$1932,37,FALSE),0) -> 0 | AN59: =IFERROR(VLOOKUP($A59,Filtro!$A$4:$AX$1932,38,FALSE),0) -> 0 | AO59: =IFERROR(VLOOKUP($A59,Filtro!$A$4:$AX$1932,39,FALSE),0) -> 1 | CJ59: 0
A60: 01200034 | C60: NUTRICIONISTA | D60: =IFERROR(VLOOKUP($A60,Filtro!$A$4:$AX$1932,2,FALSE),0) -> 42 | E60: =IFERROR(VLOOKUP($A60,Filtro!$A$4:$AX$1932,3,FALSE),0) -> 23 | F60: =IFERROR(VLOOKUP($A60,Filtro!$A$4:$AX$1932,4,FALSE),0) -> 19 | G60: =IFERROR(VLOOKUP($A60,Filtro!$A$4:$AX$1932,5,FALSE),0) -> 13 | H60: =IFERROR(VLOOKUP($A60,Filtro!$A$4:$AX$1932,6,FALSE),0) -> 14 | I60: =IFERROR(VLOOKUP($A60,Filtro!$A$4:$AX$1932,7,FALSE),0) -> 6 | J60: =IFERROR(VLOOKUP($A60,Filtro!$A$4:$AX$1932,8,FALSE),0) -> 2 | K60: =IFERROR(VLOOKUP($A60,Filtro!$A$4:$AX$1932,9,FALSE),0) -> 2 | L60: =IFERROR(VLOOKUP($A60,Filtro!$A$4:$AX$1932,10,FALSE),0) -> 0 | M60: =IFERROR(VLOOKUP($A60,Filtro!$A$4:$AX$1932,11,FALSE),0) -> 2 | N60: =IFERROR(VLOOKUP($A60,Filtro!$A$4:$AX$1932,12,FALSE),0) -> 3 | O60: =IFERROR(VLOOKUP($A60,Filtro!$A$4:$AX$1932,13,FALSE),0) -> 0 | P60: =IFERROR(VLOOKUP($A60,Filtro!$A$4:$AX$1932,14,FALSE),0) -> 0 | Q60: =IFERROR(VLOOKUP($A60,Filtro!$A$4:$AX$1932,15,FALSE),0) -> 0 | R60: =IFERROR(VLOOKUP($A60,Filtro!$A$4:$AX$1932,16,FALSE),0) -> 0 | S60: =IFERROR(VLOOKUP($A60,Filtro!$A$4:$AX$1932,17,FALSE),0) -> 0 | T60: =IFERROR(VLOOKUP($A60,Filtro!$A$4:$AX$1932,18,FALSE),0) -> 0 | U60: =IFERROR(VLOOKUP($A60,Filtro!$A$4:$AX$1932,19,FALSE),0) -> 0 | V60: =IFERROR(VLOOKUP($A60,Filtro!$A$4:$AX$1932,20,FALSE),0) -> 0 | W60: =IFERROR(VLOOKUP($A60,Filtro!$A$4:$AX$1932,21,FALSE),0) -> 0 | X60: =IFERROR(VLOOKUP($A60,Filtro!$A$4:$AX$1932,22,FALSE),0) -> 0 | Y60: =IFERROR(VLOOKUP($A60,Filtro!$A$4:$AX$1932,23,FALSE),0) -> 0 | Z60: =IFERROR(VLOOKUP($A60,Filtro!$A$4:$AX$1932,24,FALSE),0) -> 0 | AA60: =IFERROR(VLOOKUP($A60,Filtro!$A$4:$AX$1932,25,FALSE),0) -> 0 | AB60: =IFERROR(VLOOKUP($A60,Filtro!$A$4:$AX$1932,26,FALSE),0) -> 0 | AC60: =IFERROR(VLOOKUP($A60,Filtro!$A$4:$AX$1932,27,FALSE),0) -> 0 | AD60: =IFERROR(VLOOKUP($A60,Filtro!$A$4:$AX$1932,28,FALSE),0) -> 0 | AE60: =IFERROR(VLOOKUP($A60,Filtro!$A$4:$AX$1932,29,FALSE),0) -> 0 | AF60: =IFERROR(VLOOKUP($A60,Filtro!$A$4:$AX$1932,30,FALSE),0) -> 0 | AG60: =IFERROR(VLOOKUP($A60,Filtro!$A$4:$AX$1932,31,FALSE),0) -> 0 | AH60: =IFERROR(VLOOKUP($A60,Filtro!$A$4:$AX$1932,32,FALSE),0) -> 0 | AI60: =IFERROR(VLOOKUP($A60,Filtro!$A$4:$AX$1932,33,FALSE),0) -> 0 | AJ60: =IFERROR(VLOOKUP($A60,Filtro!$A$4:$AX$1932,34,FALSE),0) -> 0 | AK60: =IFERROR(VLOOKUP($A60,Filtro!$A$4:$AX$1932,35,FALSE),0) -> 0 | AL60: =IFERROR(VLOOKUP($A60,Filtro!$A$4:$AX$1932,36,FALSE),0) -> 0 | AM60: =IFERROR(VLOOKUP($A60,Filtro!$A$4:$AX$1932,37,FALSE),0) -> 0 | AN60: =IFERROR(VLOOKUP($A60,Filtro!$A$4:$AX$1932,38,FALSE),0) -> 0 | AO60: =IFERROR(VLOOKUP($A60,Filtro!$A$4:$AX$1932,39,FALSE),0) -> 33 | CJ60: 0
A61: 01200035 | C61: TÉCNICO PARAMÉDICO | D61: =IFERROR(VLOOKUP($A61,Filtro!$A$4:$AX$1932,2,FALSE),0) -> 16 | E61: =IFERROR(VLOOKUP($A61,Filtro!$A$4:$AX$1932,3,FALSE),0) -> 12 | F61: =IFERROR(VLOOKUP($A61,Filtro!$A$4:$AX$1932,4,FALSE),0) -> 4 | G61: =IFERROR(VLOOKUP($A61,Filtro!$A$4:$AX$1932,5,FALSE),0) -> 10 | H61: =IFERROR(VLOOKUP($A61,Filtro!$A$4:$AX$1932,6,FALSE),0) -> 4 | I61: =IFERROR(VLOOKUP($A61,Filtro!$A$4:$AX$1932,7,FALSE),0) -> 2 | J61: =IFERROR(VLOOKUP($A61,Filtro!$A$4:$AX$1932,8,FALSE),0) -> 0 | K61: =IFERROR(VLOOKUP($A61,Filtro!$A$4:$AX$1932,9,FALSE),0) -> 0 | L61: =IFERROR(VLOOKUP($A61,Filtro!$A$4:$AX$1932,10,FALSE),0) -> 0 | M61: =IFERROR(VLOOKUP($A61,Filtro!$A$4:$AX$1932,11,FALSE),0) -> 0 | N61: =IFERROR(VLOOKUP($A61,Filtro!$A$4:$AX$1932,12,FALSE),0) -> 0 | O61: =IFERROR(VLOOKUP($A61,Filtro!$A$4:$AX$1932,13,FALSE),0) -> 0 | P61: =IFERROR(VLOOKUP($A61,Filtro!$A$4:$AX$1932,14,FALSE),0) -> 0 | Q61: =IFERROR(VLOOKUP($A61,Filtro!$A$4:$AX$1932,15,FALSE),0) -> 0 | R61: =IFERROR(VLOOKUP($A61,Filtro!$A$4:$AX$1932,16,FALSE),0) -> 0 | S61: =IFERROR(VLOOKUP($A61,Filtro!$A$4:$AX$1932,17,FALSE),0) -> 0 | T61: =IFERROR(VLOOKUP($A61,Filtro!$A$4:$AX$1932,18,FALSE),0) -> 0 | U61: =IFERROR(VLOOKUP($A61,Filtro!$A$4:$AX$1932,19,FALSE),0) -> 0 | V61: =IFERROR(VLOOKUP($A61,Filtro!$A$4:$AX$1932,20,FALSE),0) -> 0 | W61: =IFERROR(VLOOKUP($A61,Filtro!$A$4:$AX$1932,21,FALSE),0) -> 0 | X61: =IFERROR(VLOOKUP($A61,Filtro!$A$4:$AX$1932,22,FALSE),0) -> 0 | Y61: =IFERROR(VLOOKUP($A61,Filtro!$A$4:$AX$1932,23,FALSE),0) -> 0 | Z61: =IFERROR(VLOOKUP($A61,Filtro!$A$4:$AX$1932,24,FALSE),0) -> 0 | AA61: =IFERROR(VLOOKUP($A61,Filtro!$A$4:$AX$1932,25,FALSE),0) -> 0 | AB61: =IFERROR(VLOOKUP($A61,Filtro!$A$4:$AX$1932,26,FALSE),0) -> 0 | AC61: =IFERROR(VLOOKUP($A61,Filtro!$A$4:$AX$1932,27,FALSE),0) -> 0 | AD61: =IFERROR(VLOOKUP($A61,Filtro!$A$4:$AX$1932,28,FALSE),0) -> 0 | AE61: =IFERROR(VLOOKUP($A61,Filtro!$A$4:$AX$1932,29,FALSE),0) -> 0 | AF61: =IFERROR(VLOOKUP($A61,Filtro!$A$4:$AX$1932,30,FALSE),0) -> 0 | AG61: =IFERROR(VLOOKUP($A61,Filtro!$A$4:$AX$1932,31,FALSE),0) -> 0 | AH61: =IFERROR(VLOOKUP($A61,Filtro!$A$4:$AX$1932,32,FALSE),0) -> 0 | AI61: =IFERROR(VLOOKUP($A61,Filtro!$A$4:$AX$1932,33,FALSE),0) -> 0 | AJ61: =IFERROR(VLOOKUP($A61,Filtro!$A$4:$AX$1932,34,FALSE),0) -> 0 | AK61: =IFERROR(VLOOKUP($A61,Filtro!$A$4:$AX$1932,35,FALSE),0) -> 0 | AL61: =IFERROR(VLOOKUP($A61,Filtro!$A$4:$AX$1932,36,FALSE),0) -> 0 | AM61: =IFERROR(VLOOKUP($A61,Filtro!$A$4:$AX$1932,37,FALSE),0) -> 0 | AN61: =IFERROR(VLOOKUP($A61,Filtro!$A$4:$AX$1932,38,FALSE),0) -> 0 | AO61: =IFERROR(VLOOKUP($A61,Filtro!$A$4:$AX$1932,39,FALSE),0) -> 11 | CJ61: 0
B62: SECCIÓN D: CONTROL DE SALUD INTEGRAL DE ADOLESCENTES (incluidos en sección B)
B63: LUGAR DEL CONTROL, SEGÚN EDAD | D63: 10 A 14 AÑOS | G63: 15 A 19 AÑOS
D64: Ambos Sexos | E64: Hombres | F64: Mujeres | G64: Ambos Sexos | H64: Hombres | I64: Mujeres
A65: 01030500 | B65: EN ESPACIO AMIGABLE | D65: =IFERROR(VLOOKUP($A65,Filtro!$A$4:$AX$1932,2,FALSE),0) -> 223 | E65: =IFERROR(VLOOKUP($A65,Filtro!$A$4:$AX$1932,3,FALSE),0) -> 83 | F65: =IFERROR(VLOOKUP($A65,Filtro!$A$4:$AX$1932,4,FALSE),0) -> 140 | G65: =IFERROR(VLOOKUP($A65,Filtro!$A$4:$AX$1932,5,FALSE),0) -> 752 | H65: =IFERROR(VLOOKUP($A65,Filtro!$A$4:$AX$1932,6,FALSE),0) -> 165 | I65: =IFERROR(VLOOKUP($A65,Filtro!$A$4:$AX$1932,7,FALSE),0) -> 587
A66: 01030600 | B66: EN OTROS ESPACIOS DEL ESTABLECIMIENTO DE SALUD | D66: =IFERROR(VLOOKUP($A66,Filtro!$A$4:$AX$1932,2,FALSE),0) -> 734 | E66: =IFERROR(VLOOKUP($A66,Filtro!$A$4:$AX$1932,3,FALSE),0) -> 339 | F66: =IFERROR(VLOOKUP($A66,Filtro!$A$4:$AX$1932,4,FALSE),0) -> 420 | G66: =IFERROR(VLOOKUP($A66,Filtro!$A$4:$AX$1932,5,FALSE),0) -> 329 | H66: =IFERROR(VLOOKUP($A66,Filtro!$A$4:$AX$1932,6,FALSE),0) -> 119 | I66: =IFERROR(VLOOKUP($A66,Filtro!$A$4:$AX$1932,7,FALSE),0) -> 210
A67: 01030700 | B67: EN ESTABLECIMIENTOS EDUCACIONALES | D67: =IFERROR(VLOOKUP($A67,Filtro!$A$4:$AX$1932,2,FALSE),0) -> 62 | E67: =IFERROR(VLOOKUP($A67,Filtro!$A$4:$AX$1932,3,FALSE),0) -> 18 | F67: =IFERROR(VLOOKUP($A67,Filtro!$A$4:$AX$1932,4,FALSE),0) -> 19 | G67: =IFERROR(VLOOKUP($A67,Filtro!$A$4:$AX$1932,5,FALSE),0) -> 33 | H67: =IFERROR(VLOOKUP($A67,Filtro!$A$4:$AX$1932,6,FALSE),0) -> 13 | I67: =IFERROR(VLOOKUP($A67,Filtro!$A$4:$AX$1932,7,FALSE),0) -> 20
A68: 01030800 | B68: EN OTROS LUGARES FUERA DEL ESTABLECIMIENTO DE SALUD | D68: =IFERROR(VLOOKUP($A68,Filtro!$A$4:$AX$1932,2,FALSE),0) -> 19 | E68: =IFERROR(VLOOKUP($A68,Filtro!$A$4:$AX$1932,3,FALSE),0) -> 5 | F68: =IFERROR(VLOOKUP($A68,Filtro!$A$4:$AX$1932,4,FALSE),0) -> 14 | G68: =IFERROR(VLOOKUP($A68,Filtro!$A$4:$AX$1932,5,FALSE),0) -> 52 | H68: =IFERROR(VLOOKUP($A68,Filtro!$A$4:$AX$1932,6,FALSE),0) -> 20 | I68: =IFERROR(VLOOKUP($A68,Filtro!$A$4:$AX$1932,7,FALSE),0) -> 32
B69: TOTAL | D69: =SUM(D65:D68) -> 1038 | E69: 445 | F69: 593 | G69: 1166 | H69: 317 | I69: 849
B70: SECCIÓN E: CONTROLES DE SALUD EN ESTABLECIMIENTO EDUCACIONAL (Los controles individuales deben estar incluídos en la Sección B)
B71: TIPO DE CONTROLES | C71: CURSO | D71: TOTAL* | E71: TOTAL NIÑOS Y NIÑAS | F71: SEXO
F72: Hombres | G72: Mujeres
A73: 01031000 | B73: CONTROLES INDIVIDUALES | C73: KÍNDER | D73: =IFERROR(VLOOKUP($A73,Filtro!$A$4:$AX$1932,2,FALSE),0) -> 0 | E73: =IFERROR(VLOOKUP($A73,Filtro!$A$4:$AX$1932,3,FALSE),0) -> 0 | F73: =IFERROR(VLOOKUP($A73,Filtro!$A$4:$AX$1932,4,FALSE),0) -> 0 | G73: =IFERROR(VLOOKUP($A73,Filtro!$A$4:$AX$1932,5,FALSE),0) -> 0
A74: 01031100 | C74: PRIMERO BÁSICO | D74: =IFERROR(VLOOKUP($A74,Filtro!$A$4:$AX$1932,2,FALSE),0) -> 38 | E74: =IFERROR(VLOOKUP($A74,Filtro!$A$4:$AX$1932,3,FALSE),0) -> 0 | F74: =IFERROR(VLOOKUP($A74,Filtro!$A$4:$AX$1932,4,FALSE),0) -> 28 | G74: =IFERROR(VLOOKUP($A74,Filtro!$A$4:$AX$1932,5,FALSE),0) -> 10
A75: 01031200 | C75: SEGUNDO BÁSICO | D75: =IFERROR(VLOOKUP($A75,Filtro!$A$4:$AX$1932,2,FALSE),0) -> 0 | E75: =IFERROR(VLOOKUP($A75,Filtro!$A$4:$AX$1932,3,FALSE),0) -> 0 | F75: =IFERROR(VLOOKUP($A75,Filtro!$A$4:$AX$1932,4,FALSE),0) -> 0 | G75: =IFERROR(VLOOKUP($A75,Filtro!$A$4:$AX$1932,5,FALSE),0) -> 0
A76: 01031300 | C76: TERCERO BÁSICO | D76: =IFERROR(VLOOKUP($A76,Filtro!$A$4:$AX$1932,2,FALSE),0) -> 1 | E76: =IFERROR(VLOOKUP($A76,Filtro!$A$4:$AX$1932,3,FALSE),0) -> 0 | F76: =IFERROR(VLOOKUP($A76,Filtro!$A$4:$AX$1932,4,FALSE),0) -> 1 | G76: =IFERROR(VLOOKUP($A76,Filtro!$A$4:$AX$1932,5,FALSE),0) -> 0
A77: 01031400 | C77: CUARTO BÁSICO | D77: =IFERROR(VLOOKUP($A77,Filtro!$A$4:$AX$1932,2,FALSE),0) -> 0 | E77: =IFERROR(VLOOKUP($A77,Filtro!$A$4:$AX$1932,3,FALSE),0) -> 0 | F77: =IFERROR(VLOOKUP($A77,Filtro!$A$4:$AX$1932,4,FALSE),0) -> 0 | G77: =IFERROR(VLOOKUP($A77,Filtro!$A$4:$AX$1932,5,FALSE),0) -> 0
A78: 01031500 | B78: CONTROLES GRUPALES * | C78: KÍNDER | D78: =IFERROR(VLOOKUP($A78,Filtro!$A$4:$AX$1932,2,FALSE),0) -> 0 | E78: =IFERROR(VLOOKUP($A78,Filtro!$A$4:$AX$1932,3,FALSE),0) -> 0 | F78: =IFERROR(VLOOKUP($A78,Filtro!$A$4:$AX$1932,4,FALSE),0) -> 0 | G78: =IFERROR(VLOOKUP($A78,Filtro!$A$4:$AX$1932,5,FALSE),0) -> 0
A79: 01031600 | C79: PRIMERO BÁSICO | D79: =IFERROR(VLOOKUP($A79,Filtro!$A$4:$AX$1932,2,FALSE),0) -> 0 | E79: =IFERROR(VLOOKUP($A79,Filtro!$A$4:$AX$1932,3,FALSE),0) -> 0 | F79: =IFERROR(VLOOKUP($A79,Filtro!$A$4:$AX$1932,4,FALSE),0) -> 0 | G79: =IFERROR(VLOOKUP($A79,Filtro!$A$4:$AX$1932,5,FALSE),0) -> 0
A80: 01031700 | C80: SEGUNDO BÁSICO | D80: =IFERROR(VLOOKUP($A80,Filtro!$A$4:$AX$1932,2,FALSE),0) -> 0 | E80: =IFERROR(VLOOKUP($A80,Filtro!$A$4:$AX$1932,3,FALSE),0) -> 0 | F80: =IFERROR(VLOOKUP($A80,Filtro!$A$4:$AX$1932,4,FALSE),0) -> 0 | G80: =IFERROR(VLOOKUP($A80,Filtro!$A$4:$AX$1932,5,FALSE),0) -> 0
A81: 01031800 | C81: TERCERO BÁSICO | D81: =IFERROR(VLOOKUP($A81,Filtro!$A$4:$AX$1932,2,FALSE),0) -> 0 | E81: =IFERROR(VLOOKUP($A81,Filtro!$A$4:$AX$1932,3,FALSE),0) -> 0 | F81: =IFERROR(VLOOKUP($A81,Filtro!$A$4:$AX$1932,4,FALSE),0) -> 0 | G81: =IFERROR(VLOOKUP($A81,Filtro!$A$4:$AX$1932,5,FALSE),0) -> 0
A82: 01031900 | C82: CUARTO BÁSICO | D82: =IFERROR(VLOOKUP($A82,Filtro!$A$4:$AX$1932,2,FALSE),0) -> 0 | E82: =IFERROR(VLOOKUP($A82,Filtro!$A$4:$AX$1932,3,FALSE),0) -> 0 | F82: =IFERROR(VLOOKUP($A82,Filtro!$A$4:$AX$1932,4,FALSE),0) -> 0 | G82: =IFERROR(VLOOKUP($A82,Filtro!$A$4:$AX$1932,5,FALSE),0) -> 0
B83: En Total* se registra el número de controles grupales
B84: SECCIÓN F: CONTROLES INTEGRALES DE PERSONAS CON CONDICIONES CRÓNICAS
B85: TIPO DE CONTROL | C85: TOTAL | F85: POR EDAD | AH85: Beneficiarios | AI85: Migrantes | AJ85: Pueblos Originarios
F86: 15 a 19 | H86: 20 - 24 | J86: 25 - 29 | L86: 30 - 34 | N86: 35 - 39 | P86: 40 - 44 | R86: 45 - 49 | T86: 50 - 54 | V86: 55 - 59 | X86: 60 - 64 | Z86: 65 - 69 | AB86: 70 - 74 | AD86: 75 - 79 | AF86: 80 y mas
C87: Ambos Sexos | D87: Hombres | E87: Mujeres | F87: Hombres | G87: Mujeres | H87: Hombres | I87: Mujeres | J87: Hombres | K87: Mujeres | L87: Hombres | M87: Mujeres | N87: Hombres | O87: Mujeres | P87: Hombres | Q87: Mujeres | R87: Hombres | S87: Mujeres | T87: Hombres | U87: Mujeres | V87: Hombres | W87: Mujeres | X87: Hombres | Y87: Mujeres | Z87: Hombres | AA87: Mujeres | AB87: Hombres | AC87: Mujeres | AD87: Hombres | AE87: Mujeres | AF87: Hombres | AG87: Mujeres
A88: 01501010 | B88: CONTROL INTEGRAL CON RIESGO LEVE (G1) | C88: =IFERROR(VLOOKUP($A88,Filtro!$A$4:$AX$1932,2,FALSE),0) -> 412 | D88: =IFERROR(VLOOKUP($A88,Filtro!$A$4:$AX$1932,3,FALSE),0) -> 157 | E88: =IFERROR(VLOOKUP($A88,Filtro!$A$4:$AX$1932,4,FALSE),0) -> 255 | F88: =IFERROR(VLOOKUP($A88,Filtro!$A$4:$AX$1932,5,FALSE),0) -> 3 | G88: =IFERROR(VLOOKUP($A88,Filtro!$A$4:$AX$1932,6,FALSE),0) -> 6 | H88: =IFERROR(VLOOKUP($A88,Filtro!$A$4:$AX$1932,7,FALSE),0) -> 1 | I88: =IFERROR(VLOOKUP($A88,Filtro!$A$4:$AX$1932,8,FALSE),0) -> 5 | J88: =IFERROR(VLOOKUP($A88,Filtro!$A$4:$AX$1932,9,FALSE),0) -> 1 | K88: =IFERROR(VLOOKUP($A88,Filtro!$A$4:$AX$1932,10,FALSE),0) -> 4 | L88: =IFERROR(VLOOKUP($A88,Filtro!$A$4:$AX$1932,11,FALSE),0) -> 4 | M88: =IFERROR(VLOOKUP($A88,Filtro!$A$4:$AX$1932,12,FALSE),0) -> 5 | N88: =IFERROR(VLOOKUP($A88,Filtro!$A$4:$AX$1932,13,FALSE),0) -> 3 | O88: =IFERROR(VLOOKUP($A88,Filtro!$A$4:$AX$1932,14,FALSE),0) -> 8 | P88: =IFERROR(VLOOKUP($A88,Filtro!$A$4:$AX$1932,15,FALSE),0) -> 6 | Q88: =IFERROR(VLOOKUP($A88,Filtro!$A$4:$AX$1932,16,FALSE),0) -> 10 | R88: =IFERROR(VLOOKUP($A88,Filtro!$A$4:$AX$1932,17,FALSE),0) -> 10 | S88: =IFERROR(VLOOKUP($A88,Filtro!$A$4:$AX$1932,18,FALSE),0) -> 20 | T88: =IFERROR(VLOOKUP($A88,Filtro!$A$4:$AX$1932,19,FALSE),0) -> 17 | U88: =IFERROR(VLOOKUP($A88,Filtro!$A$4:$AX$1932,20,FALSE),0) -> 31 | V88: =IFERROR(VLOOKUP($A88,Filtro!$A$4:$AX$1932,21,FALSE),0) -> 18 | W88: =IFERROR(VLOOKUP($A88,Filtro!$A$4:$AX$1932,22,FALSE),0) -> 35 | X88: =IFERROR(VLOOKUP($A88,Filtro!$A$4:$AX$1932,23,FALSE),0) -> 23 | Y88: =IFERROR(VLOOKUP($A88,Filtro!$A$4:$AX$1932,24,FALSE),0) -> 22 | Z88: =IFERROR(VLOOKUP($A88,Filtro!$A$4:$AX$1932,25,FALSE),0) -> 19 | AA88: =IFERROR(VLOOKUP($A88,Filtro!$A$4:$AX$1932,26,FALSE),0) -> 32 | AB88: =IFERROR(VLOOKUP($A88,Filtro!$A$4:$AX$1932,27,FALSE),0) -> 20 | AC88: =IFERROR(VLOOKUP($A88,Filtro!$A$4:$AX$1932,28,FALSE),0) -> 35 | AD88: =IFERROR(VLOOKUP($A88,Filtro!$A$4:$AX$1932,29,FALSE),0) -> 15 | AE88: =IFERROR(VLOOKUP($A88,Filtro!$A$4:$AX$1932,30,FALSE),0) -> 25 | AF88: =IFERROR(VLOOKUP($A88,Filtro!$A$4:$AX$1932,31,FALSE),0) -> 17 | AG88: =IFERROR(VLOOKUP($A88,Filtro!$A$4:$AX$1932,32,FALSE),0) -> 17 | AH88: =IFERROR(VLOOKUP($A88,Filtro!$A$4:$AX$1932,33,FALSE),0) -> 340 | AI88: =IFERROR(VLOOKUP($A88,Filtro!$A$4:$AX$1932,34,FALSE),0) -> 0 | AJ88: =IFERROR(VLOOKUP($A88,Filtro!$A$4:$AX$1932,35,FALSE),0) -> 1
A89: 01501020 | B89: CONTROL INTEGRAL CON RIESGO MODERADO (G2) | C89: =IFERROR(VLOOKUP($A89,Filtro!$A$4:$AX$1932,2,FALSE),0) -> 646 | D89: =IFERROR(VLOOKUP($A89,Filtro!$A$4:$AX$1932,3,FALSE),0) -> 269 | E89: =IFERROR(VLOOKUP($A89,Filtro!$A$4:$AX$1932,4,FALSE),0) -> 377 | F89: =IFERROR(VLOOKUP($A89,Filtro!$A$4:$AX$1932,5,FALSE),0) -> 1 | G89: =IFERROR(VLOOKUP($A89,Filtro!$A$4:$AX$1932,6,FALSE),0) -> 4 | H89: =IFERROR(VLOOKUP($A89,Filtro!$A$4:$AX$1932,7,FALSE),0) -> 0 | I89: =IFERROR(VLOOKUP($A89,Filtro!$A$4:$AX$1932,8,FALSE),0) -> 1 | J89: =IFERROR(VLOOKUP($A89,Filtro!$A$4:$AX$1932,9,FALSE),0) -> 2 | K89: =IFERROR(VLOOKUP($A89,Filtro!$A$4:$AX$1932,10,FALSE),0) -> 6 | L89: =IFERROR(VLOOKUP($A89,Filtro!$A$4:$AX$1932,11,FALSE),0) -> 2 | M89: =IFERROR(VLOOKUP($A89,Filtro!$A$4:$AX$1932,12,FALSE),0) -> 11 | N89: =IFERROR(VLOOKUP($A89,Filtro!$A$4:$AX$1932,13,FALSE),0) -> 4 | O89: =IFERROR(VLOOKUP($A89,Filtro!$A$4:$AX$1932,14,FALSE),0) -> 5 | P89: =IFERROR(VLOOKUP($A89,Filtro!$A$4:$AX$1932,15,FALSE),0) -> 5 | Q89: =IFERROR(VLOOKUP($A89,Filtro!$A$4:$AX$1932,16,FALSE),0) -> 16 | R89: =IFERROR(VLOOKUP($A89,Filtro!$A$4:$AX$1932,17,FALSE),0) -> 5 | S89: =IFERROR(VLOOKUP($A89,Filtro!$A$4:$AX$1932,18,FALSE),0) -> 21 | T89: =IFERROR(VLOOKUP($A89,Filtro!$A$4:$AX$1932,19,FALSE),0) -> 17 | U89: =IFERROR(VLOOKUP($A89,Filtro!$A$4:$AX$1932,20,FALSE),0) -> 34 | V89: =IFERROR(VLOOKUP($A89,Filtro!$A$4:$AX$1932,21,FALSE),0) -> 15 | W89: =IFERROR(VLOOKUP($A89,Filtro!$A$4:$AX$1932,22,FALSE),0) -> 43 | X89: =IFERROR(VLOOKUP($A89,Filtro!$A$4:$AX$1932,23,FALSE),0) -> 38 | Y89: =IFERROR(VLOOKUP($A89,Filtro!$A$4:$AX$1932,24,FALSE),0) -> 40 | Z89: =IFERROR(VLOOKUP($A89,Filtro!$A$4:$AX$1932,25,FALSE),0) -> 39 | AA89: =IFERROR(VLOOKUP($A89,Filtro!$A$4:$AX$1932,26,FALSE),0) -> 50 | AB89: =IFERROR(VLOOKUP($A89,Filtro!$A$4:$AX$1932,27,FALSE),0) -> 38 | AC89: =IFERROR(VLOOKUP($A89,Filtro!$A$4:$AX$1932,28,FALSE),0) -> 39 | AD89: =IFERROR(VLOOKUP($A89,Filtro!$A$4:$AX$1932,29,FALSE),0) -> 60 | AE89: =IFERROR(VLOOKUP($A89,Filtro!$A$4:$AX$1932,30,FALSE),0) -> 49 | AF89: =IFERROR(VLOOKUP($A89,Filtro!$A$4:$AX$1932,31,FALSE),0) -> 43 | AG89: =IFERROR(VLOOKUP($A89,Filtro!$A$4:$AX$1932,32,FALSE),0) -> 58 | AH89: =IFERROR(VLOOKUP($A89,Filtro!$A$4:$AX$1932,33,FALSE),0) -> 428 | AI89: =IFERROR(VLOOKUP($A89,Filtro!$A$4:$AX$1932,34,FALSE),0) -> 0 | AJ89: =IFERROR(VLOOKUP($A89,Filtro!$A$4:$AX$1932,35,FALSE),0) -> 1
A90: 01501030 | B90: CONTROL INTEGRAL CON RIESGO ALTO (G3) | C90: =IFERROR(VLOOKUP($A90,Filtro!$A$4:$AX$1932,2,FALSE),0) -> 677 | D90: =IFERROR(VLOOKUP($A90,Filtro!$A$4:$AX$1932,3,FALSE),0) -> 285 | E90: =IFERROR(VLOOKUP($A90,Filtro!$A$4:$AX$1932,4,FALSE),0) -> 392 | F90: =IFERROR(VLOOKUP($A90,Filtro!$A$4:$AX$1932,5,FALSE),0) -> 0 | G90: =IFERROR(VLOOKUP($A90,Filtro!$A$4:$AX$1932,6,FALSE),0) -> 0 | H90: =IFERROR(VLOOKUP($A90,Filtro!$A$4:$AX$1932,7,FALSE),0) -> 0 | I90: =IFERROR(VLOOKUP($A90,Filtro!$A$4:$AX$1932,8,FALSE),0) -> 4 | J90: =IFERROR(VLOOKUP($A90,Filtro!$A$4:$AX$1932,9,FALSE),0) -> 0 | K90: =IFERROR(VLOOKUP($A90,Filtro!$A$4:$AX$1932,10,FALSE),0) -> 2 | L90: =IFERROR(VLOOKUP($A90,Filtro!$A$4:$AX$1932,11,FALSE),0) -> 3 | M90: =IFERROR(VLOOKUP($A90,Filtro!$A$4:$AX$1932,12,FALSE),0) -> 7 | N90: =IFERROR(VLOOKUP($A90,Filtro!$A$4:$AX$1932,13,FALSE),0) -> 3 | O90: =IFERROR(VLOOKUP($A90,Filtro!$A$4:$AX$1932,14,FALSE),0) -> 12 | P90: =IFERROR(VLOOKUP($A90,Filtro!$A$4:$AX$1932,15,FALSE),0) -> 7 | Q90: =IFERROR(VLOOKUP($A90,Filtro!$A$4:$AX$1932,16,FALSE),0) -> 16 | R90: =IFERROR(VLOOKUP($A90,Filtro!$A$4:$AX$1932,17,FALSE),0) -> 14 | S90: =IFERROR(VLOOKUP($A90,Filtro!$A$4:$AX$1932,18,FALSE),0) -> 15 | T90: =IFERROR(VLOOKUP($A90,Filtro!$A$4:$AX$1932,19,FALSE),0) -> 23 | U90: =IFERROR(VLOOKUP($A90,Filtro!$A$4:$AX$1932,20,FALSE),0) -> 25 | V90: =IFERROR(VLOOKUP($A90,Filtro!$A$4:$AX$1932,21,FALSE),0) -> 27 | W90: =IFERROR(VLOOKUP($A90,Filtro!$A$4:$AX$1932,22,FALSE),0) -> 40 | X90: =IFERROR(VLOOKUP($A90,Filtro!$A$4:$AX$1932,23,FALSE),0) -> 49 | Y90: =IFERROR(VLOOKUP($A90,Filtro!$A$4:$AX$1932,24,FALSE),0) -> 50 | Z90: =IFERROR(VLOOKUP($A90,Filtro!$A$4:$AX$1932,25,FALSE),0) -> 51 | AA90: =IFERROR(VLOOKUP($A90,Filtro!$A$4:$AX$1932,26,FALSE),0) -> 65 | AB90: =IFERROR(VLOOKUP($A90,Filtro!$A$4:$AX$1932,27,FALSE),0) -> 43 | AC90: =IFERROR(VLOOKUP($A90,Filtro!$A$4:$AX$1932,28,FALSE),0) -> 58 | AD90: =IFERROR(VLOOKUP($A90,Filtro!$A$4:$AX$1932,29,FALSE),0) -> 35 | AE90: =IFERROR(VLOOKUP($A90,Filtro!$A$4:$AX$1932,30,FALSE),0) -> 56 | AF90: =IFERROR(VLOOKUP($A90,Filtro!$A$4:$AX$1932,31,FALSE),0) -> 30 | AG90: =IFERROR(VLOOKUP($A90,Filtro!$A$4:$AX$1932,32,FALSE),0) -> 42 | AH90: =IFERROR(VLOOKUP($A90,Filtro!$A$4:$AX$1932,33,FALSE),0) -> 480 | AI90: =IFERROR(VLOOKUP($A90,Filtro!$A$4:$AX$1932,34,FALSE),0) -> 9 | AJ90: =IFERROR(VLOOKUP($A90,Filtro!$A$4:$AX$1932,35,FALSE),0) -> 0
A91: 01501040 | B91: SEGUIMIENTO A DISTANCIA CON RIESGO ALTO (G3) | C91: =IFERROR(VLOOKUP($A91,Filtro!$A$4:$AX$1932,2,FALSE),0) -> 5 | D91: =IFERROR(VLOOKUP($A91,Filtro!$A$4:$AX$1932,3,FALSE),0) -> 0 | E91: =IFERROR(VLOOKUP($A91,Filtro!$A$4:$AX$1932,4,FALSE),0) -> 5 | F91: =IFERROR(VLOOKUP($A91,Filtro!$A$4:$AX$1932,5,FALSE),0) -> 0 | G91: =IFERROR(VLOOKUP($A91,Filtro!$A$4:$AX$1932,6,FALSE),0) -> 0 | H91: =IFERROR(VLOOKUP($A91,Filtro!$A$4:$AX$1932,7,FALSE),0) -> 0 | I91: =IFERROR(VLOOKUP($A91,Filtro!$A$4:$AX$1932,8,FALSE),0) -> 0 | J91: =IFERROR(VLOOKUP($A91,Filtro!$A$4:$AX$1932,9,FALSE),0) -> 0 | K91: =IFERROR(VLOOKUP($A91,Filtro!$A$4:$AX$1932,10,FALSE),0) -> 1 | L91: =IFERROR(VLOOKUP($A91,Filtro!$A$4:$AX$1932,11,FALSE),0) -> 0 | M91: =IFERROR(VLOOKUP($A91,Filtro!$A$4:$AX$1932,12,FALSE),0) -> 1 | N91: =IFERROR(VLOOKUP($A91,Filtro!$A$4:$AX$1932,13,FALSE),0) -> 0 | O91: =IFERROR(VLOOKUP($A91,Filtro!$A$4:$AX$1932,14,FALSE),0) -> 0 | P91: =IFERROR(VLOOKUP($A91,Filtro!$A$4:$AX$1932,15,FALSE),0) -> 0 | Q91: =IFERROR(VLOOKUP($A91,Filtro!$A$4:$AX$1932,16,FALSE),0) -> 0 | R91: =IFERROR(VLOOKUP($A91,Filtro!$A$4:$AX$1932,17,FALSE),0) -> 0 | S91: =IFERROR(VLOOKUP($A91,Filtro!$A$4:$AX$1932,18,FALSE),0) -> 0 | T91: =IFERROR(VLOOKUP($A91,Filtro!$A$4:$AX$1932,19,FALSE),0) -> 0 | U91: =IFERROR(VLOOKUP($A91,Filtro!$A$4:$AX$1932,20,FALSE),0) -> 0 | V91: =IFERROR(VLOOKUP($A91,Filtro!$A$4:$AX$1932,21,FALSE),0) -> 0 | W91: =IFERROR(VLOOKUP($A91,Filtro!$A$4:$AX$1932,22,FALSE),0) -> 0 | X91: =IFERROR(VLOOKUP($A91,Filtro!$A$4:$AX$1932,23,FALSE),0) -> 0 | Y91: =IFERROR(VLOOKUP($A91,Filtro!$A$4:$AX$1932,24,FALSE),0) -> 0 | Z91: =IFERROR(VLOOKUP($A91,Filtro!$A$4:$AX$1932,25,FALSE),0) -> 0 | AA91: =IFERROR(VLOOKUP($A91,Filtro!$A$4:$AX$1932,26,FALSE),0) -> 0 | AB91: =IFERROR(VLOOKUP($A91,Filtro!$A$4:$AX$1932,27,FALSE),0) -> 0 | AC91: =IFERROR(VLOOKUP($A91,Filtro!$A$4:$AX$1932,28,FALSE),0) -> 0 | AD91: =IFERROR(VLOOKUP($A91,Filtro!$A$4:$AX$1932,29,FALSE),0) -> 0 | AE91: =IFERROR(VLOOKUP($A91,Filtro!$A$4:$AX$1932,30,FALSE),0) -> 0 | AF91: =IFERROR(VLOOKUP($A91,Filtro!$A$4:$AX$1932,31,FALSE),0) -> 0 | AG91: =IFERROR(VLOOKUP($A91,Filtro!$A$4:$AX$1932,32,FALSE),0) -> 3 | AH91: =IFERROR(VLOOKUP($A91,Filtro!$A$4:$AX$1932,33,FALSE),0) -> 4 | AI91: =IFERROR(VLOOKUP($A91,Filtro!$A$4:$AX$1932,34,FALSE),0) -> 0 | AJ91: =IFERROR(VLOOKUP($A91,Filtro!$A$4:$AX$1932,35,FALSE),0) -> 0
A97: CODIGOS NUEVOS
A98: 01501010
A99: 01501020
A100: 01501030
A101: 01501040
B186: =SUM(D12:D27,W12:W27,U26:V27,Y18:AB21,X14:X15,D31:D34,E31:F34,AJ31:AJ34,D39:F61,D65:D69,G65:G69,D73:D77,E78:E82) -> 766317 | C186: =SUM(CH1:CV82) -> 0

Sheet A02
B6: REM-A02. EXAMEN DE MEDICINA PREVENTIVA EN MAYORES DE 15 AÑOS
B8: SECCIÓN A: EMP REALIZADO POR PROFESIONAL
A9: CODIGO DICCIONARIO | B9: PROFESIONAL | C9: TOTAL
C10: Ambos Sexos | D10: Hombres | E10: Mujeres
B11: TOTAL | C11: =SUM(C12:C17) -> 982080 | D11: =SUM(D12:D17) -> 356779 | E11: =SUM(E12:E17) -> 625301
A12: 03030101 | B12: MÉDICO | C12: =SUM(C13:C16) -> 475200 | D12: 172635 | E12: 302565
A13: 03030102 | B13: ENFERMERA /O | C13: =SUM(C14:C17) -> 253440 | D13: 92072 | E13: 161368
A14: 03030103 | B14: MATRONA /ÓN | C14: =SUM(C15:C18) -> 126720 | D14: 46036 | E14: 80684
A15: 03030104 | B15: NUTRICIONISTA | C15: =SUM(C16:C19) -> 63360 | D15: 23018 | E15: 40342
A16: 03030350 | B16: OTRO PROFESIONAL | C16: =SUM(C17:C20) -> 31680 | D16: 11509 | E16: 20171
A17: 03030110 | B17: TÉCNICO PARAMÉDICO | C17: =SUM(C18:C21) -> 31680 | D17: 11509 | E17: 20171
B18: SECCIÓN B: EMP SEGÚN RESULTADO DEL ESTADO NUTRICIONAL
B19: ESTADO NUTRICIONAL | C19: TOTAL | F19: 15 a 19 | H19: 20 a 24 | J19: 25 a 29 | L19: 30 a 34 | N19: 35 a 39 | P19: 40 a 44 | R19: 45 a 49 | T19: 50 a 54 | V19: 55 a 59 | X19: 60 a 64 | Z19: 65 a 69 | AB19: 70 a 74 | AD19: 75 a 79 | AF19: 80 y más
C20: Ambos Sexos | D20: Hombres | E20: Mujeres | F20: Hombres | G20: Mujeres | H20: Hombres | I20: Mujeres | J20: Hombres | K20: Mujeres | L20: Hombres | M20: Mujeres | N20: Hombres | O20: Mujeres | P20: Hombres | Q20: Mujeres | R20: Hombres | S20: Mujeres | T20: Hombres | U20: Mujeres | V20: Hombres | W20: Mujeres | X20: Hombres | Y20: Mujeres | Z20: Hombres | AA20: Mujeres | AB20: Hombres | AC20: Mujeres | AD20: Hombres | AE20: Mujeres | AF20: Hombres | AG20: Mujeres
B21: TOTAL | C21: =SUM(C22:C25) -> 31680 | D21: 11509 | E21: 20171 | F21: 82 | G21: 166 | H21: 663 | I21: 1322 | J21: 778 | K21: 1556 | L21: 743 | M21: 1481 | N21: 619 | O21: 1343 | P21: 619 | Q21: 1327 | R21: 618 | S21: 1318 | T21: 601 | U21: 1179 | V21: 534 | W21: 919 | X21: 406 | Y21: 610 | Z21: 1520 | AA21: 2461 | AB21: 1461 | AC21: 2175 | AD21: 1311 | AE21: 1818 | AF21: 1554 | AG21: 2496 | CJ21: 0
A22: 03030330 | B22: NORMAL | C22: =IFERROR(VLOOKUP($A22,Filtro!$A$4:$AX$1932,2,FALSE),0) -> 10122 | D22: =IFERROR(VLOOKUP($A22,Filtro!$A$4:$AX$1932,3,FALSE),0) -> 4143 | E22: =IFERROR(VLOOKUP($A22,Filtro!$A$4:$AX$1932,4,FALSE),0) -> 5979 | F22: =IFERROR(VLOOKUP($A22,Filtro!$A$4:$AX$1932,5,FALSE),0) -> 39 | G22: =IFERROR(VLOOKUP($A22,Filtro!$A$4:$AX$1932,6,FALSE),0) -> 64 | H22: =IFERROR(VLOOKUP($A22,Filtro!$A$4:$AX$1932,7,FALSE),0) -> 286 | I22: =IFERROR(VLOOKUP($A22,Filtro!$A$4:$AX$1932,8,FALSE),0) -> 535 | J22: =IFERROR(VLOOKUP($A22,Filtro!$A$4:$AX$1932,9,FALSE),0) -> 242 | K22: =IFERROR(VLOOKUP($A22,Filtro!$A$4:$AX$1932,10,FALSE),0) -> 511 | L22: =IFERROR(VLOOKUP($A22,Filtro!$A$4:$AX$1932,11,FALSE),0) -> 234 | M22: =IFERROR(VLOOKUP($A22,Filtro!$A$4:$AX$1932,12,FALSE),0) -> 409 | N22: =IFERROR(VLOOKUP($A22,Filtro!$A$4:$AX$1932,13,FALSE),0) -> 140 | O22: =IFERROR(VLOOKUP($A22,Filtro!$A$4:$AX$1932,14,FALSE),0) -> 295 | P22: =IFERROR(VLOOKUP($A22,Filtro!$A$4:$AX$1932,15,FALSE),0) -> 149 | Q22: =IFERROR(VLOOKUP($A22,Filtro!$A$4:$AX$1932,16,FALSE),0) -> 272 | R22: =IFERROR(VLOOKUP($A22,Filtro!$A$4:$AX$1932,17,FALSE),0) -> 130 | S22: =IFERROR(VLOOKUP($A22,Filtro!$A$4:$AX$1932,18,FALSE),0) -> 256 | T22: =IFERROR(VLOOKUP($A22,Filtro!$A$4:$AX$1932,19,FALSE),0) -> 145 | U22: =IFERROR(VLOOKUP($A22,Filtro!$A$4:$AX$1932,20,FALSE),0) -> 237 | V22: =IFERROR(VLOOKUP($A22,Filtro!$A$4:$AX$1932,21,FALSE),0) -> 134 | W22: =IFERROR(VLOOKUP($A22,Filtro!$A$4:$AX$1932,22,FALSE),0) -> 186 | X22: =IFERROR(VLOOKUP($A22,Filtro!$A$4:$AX$1932,23,FALSE),0) -> 97 | Y22: =IFERROR(VLOOKUP($A22,Filtro!$A$4:$AX$1932,24,FALSE),0) -> 159 | Z22: =IFERROR(VLOOKUP($A22,Filtro!$A$4:$AX$1932,25,FALSE),0) -> 606 | AA22: =IFERROR(VLOOKUP($A22,Filtro!$A$4:$AX$1932,26,FALSE),0) -> 707 | AB22: =IFERROR(VLOOKUP($A22,Filtro!$A$4:$AX$1932,27,FALSE),0) -> 572 | AC22: =IFERROR(VLOOKUP($A22,Filtro!$A$4:$AX$1932,28,FALSE),0) -> 705 | AD22: =IFERROR(VLOOKUP($A22,Filtro!$A$4:$AX$1932,29,FALSE),0) -> 621 | AE22: =IFERROR(VLOOKUP($A22,Filtro!$A$4:$AX$1932,30,FALSE),0) -> 621 | AF22: =IFERROR(VLOOKUP($A22,Filtro!$A$4:$AX$1932,31,FALSE),0) -> 748 | AG22: =IFERROR(VLOOKUP($A22,Filtro!$A$4:$AX$1932,32,FALSE),0) -> 1022
A23: 03030340 | B23: BAJO PESO | C23: =IFERROR(VLOOKUP($A23,Filtro!$A$4:$AX$1932,2,FALSE),0) -> 1693 | D23: =IFERROR(VLOOKUP($A23,Filtro!$A$4:$AX$1932,3,FALSE),0) -> 687 | E23: =IFERROR(VLOOKUP($A23,Filtro!$A$4:$AX$1932,4,FALSE),0) -> 1006 | F23: =IFERROR(VLOOKUP($A23,Filtro!$A$4:$AX$1932,5,FALSE),0) -> 12 | G23: =IFERROR(VLOOKUP($A23,Filtro!$A$4:$AX$1932,6,FALSE),0) -> 18 | H23: =IFERROR(VLOOKUP($A23,Filtro!$A$4:$AX$1932,7,FALSE),0) -> 12 | I23: =IFERROR(VLOOKUP($A23,Filtro!$A$4:$AX$1932,8,FALSE),0) -> 43 | J23: =IFERROR(VLOOKUP($A23,Filtro!$A$4:$AX$1932,9,FALSE),0) -> 11 | K23: =IFERROR(VLOOKUP($A23,Filtro!$A$4:$AX$1932,10,FALSE),0) -> 25 | L23: =IFERROR(VLOOKUP($A23,Filtro!$A$4:$AX$1932,11,FALSE),0) -> 7 | M23: =IFERROR(VLOOKUP($A23,Filtro!$A$4:$AX$1932,12,FALSE),0) -> 16 | N23: =IFERROR(VLOOKUP($A23,Filtro!$A$4:$AX$1932,13,FALSE),0) -> 3 | O23: =IFERROR(VLOOKUP($A23,Filtro!$A$4:$AX$1932,14,FALSE),0) -> 10 | P23: =IFERROR(VLOOKUP($A23,Filtro!$A$4:$AX$1932,15,FALSE),0) -> 7 | Q23: =IFERROR(VLOOKUP($A23,Filtro!$A$4:$AX$1932,16,FALSE),0) -> 5 | R23: =IFERROR(VLOOKUP($A23,Filtro!$A$4:$AX$1932,17,FALSE),0) -> 4 | S23: =IFERROR(VLOOKUP($A23,Filtro!$A$4:$AX$1932,18,FALSE),0) -> 9 | T23: =IFERROR(VLOOKUP($A23,Filtro!$A$4:$AX$1932,19,FALSE),0) -> 16 | U23: =IFERROR(VLOOKUP($A23,Filtro!$A$4:$AX$1932,20,FALSE),0) -> 9 | V23: =IFERROR(VLOOKUP($A23,Filtro!$A$4:$AX$1932,21,FALSE),0) -> 9 | W23: =IFERROR(VLOOKUP($A23,Filtro!$A$4:$AX$1932,22,FALSE),0) -> 6 | X23: =IFERROR(VLOOKUP($A23,Filtro!$A$4:$AX$1932,23,FALSE),0) -> 6 | Y23: =IFERROR(VLOOKUP($A23,Filtro!$A$4:$AX$1932,24,FALSE),0) -> 5 | Z23: =IFERROR(VLOOKUP($A23,Filtro!$A$4:$AX$1932,25,FALSE),0) -> 97 | AA23: =IFERROR(VLOOKUP($A23,Filtro!$A$4:$AX$1932,26,FALSE),0) -> 148 | AB23: =IFERROR(VLOOKUP($A23,Filtro!$A$4:$AX$1932,27,FALSE),0) -> 127 | AC23: =IFERROR(VLOOKUP($A23,Filtro!$A$4:$AX$1932,28,FALSE),0) -> 148 | AD23: =IFERROR(VLOOKUP($A23,Filtro!$A$4:$AX$1932,29,FALSE),0) -> 110 | AE23: =IFERROR(VLOOKUP($A23,Filtro!$A$4:$AX$1932,30,FALSE),0) -> 172 | AF23: =IFERROR(VLOOKUP($A23,Filtro!$A$4:$AX$1932,31,FALSE),0) -> 266 | AG23: =IFERROR(VLOOKUP($A23,Filtro!$A$4:$AX$1932,32,FALSE),0) -> 392
A24: 03030120 | B24: SOBREPESO | C24: =IFERROR(VLOOKUP($A24,Filtro!$A$4:$AX$1932,2,FALSE),0) -> 10696 | D24: =IFERROR(VLOOKUP($A24,Filtro!$A$4:$AX$1932,3,FALSE),0) -> 4084 | E24: =IFERROR(VLOOKUP($A24,Filtro!$A$4:$AX$1932,4,FALSE),0) -> 6612 | F24: =IFERROR(VLOOKUP($A24,Filtro!$A$4:$AX$1932,5,FALSE),0) -> 14 | G24: =IFERROR(VLOOKUP($A24,Filtro!$A$4:$AX$1932,6,FALSE),0) -> 49 | H24: =IFERROR(VLOOKUP($A24,Filtro!$A$4:$AX$1932,7,FALSE),0) -> 242 | I24: =IFERROR(VLOOKUP($A24,Filtro!$A$4:$AX$1932,8,FALSE),0) -> 379 | J24: =IFERROR(VLOOKUP($A24,Filtro!$A$4:$AX$1932,9,FALSE),0) -> 327 | K24: =IFERROR(VLOOKUP($A24,Filtro!$A$4:$AX$1932,10,FALSE),0) -> 497 | L24: =IFERROR(VLOOKUP($A24,Filtro!$A$4:$AX$1932,11,FALSE),0) -> 320 | M24: =IFERROR(VLOOKUP($A24,Filtro!$A$4:$AX$1932,12,FALSE),0) -> 502 | N24: =IFERROR(VLOOKUP($A24,Filtro!$A$4:$AX$1932,13,FALSE),0) -> 268 | O24: =IFERROR(VLOOKUP($A24,Filtro!$A$4:$AX$1932,14,FALSE),0) -> 510 | P24: =IFERROR(VLOOKUP($A24,Filtro!$A$4:$AX$1932,15,FALSE),0) -> 274 | Q24: =IFERROR(VLOOKUP($A24,Filtro!$A$4:$AX$1932,16,FALSE),0) -> 550 | R24: =IFERROR(VLOOKUP($A24,Filtro!$A$4:$AX$1932,17,FALSE),0) -> 274 | S24: =IFERROR(VLOOKUP($A24,Filtro!$A$4:$AX$1932,18,FALSE),0) -> 526 | T24: =IFERROR(VLOOKUP($A24,Filtro!$A$4:$AX$1932,19,FALSE),0) -> 257 | U24: =IFERROR(VLOOKUP($A24,Filtro!$A$4:$AX$1932,20,FALSE),0) -> 453 | V24: =IFERROR(VLOOKUP($A24,Filtro!$A$4:$AX$1932,21,FALSE),0) -> 249 | W24: =IFERROR(VLOOKUP($A24,Filtro!$A$4:$AX$1932,22,FALSE),0) -> 383 | X24: =IFERROR(VLOOKUP($A24,Filtro!$A$4:$AX$1932,23,FALSE),0) -> 197 | Y24: =IFERROR(VLOOKUP($A24,Filtro!$A$4:$AX$1932,24,FALSE),0) -> 260 | Z24: =IFERROR(VLOOKUP($A24,Filtro!$A$4:$AX$1932,25,FALSE),0) -> 472 | AA24: =IFERROR(VLOOKUP($A24,Filtro!$A$4:$AX$1932,26,FALSE),0) -> 735 | AB24: =IFERROR(VLOOKUP($A24,Filtro!$A$4:$AX$1932,27,FALSE),0) -> 458 | AC24: =IFERROR(VLOOKUP($A24,Filtro!$A$4:$AX$1932,28,FALSE),0) -> 638 | AD24: =IFERROR(VLOOKUP($A24,Filtro!$A$4:$AX$1932,29,FALSE),0) -> 377 | AE24: =IFERROR(VLOOKUP($A24,Filtro!$A$4:$AX$1932,30,FALSE),0) -> 534 | AF24: =IFERROR(VLOOKUP($A24,Filtro!$A$4:$AX$1932,31,FALSE),0) -> 355 | AG24: =IFERROR(VLOOKUP($A24,Filtro!$A$4:$AX$1932,32,FALSE),0) -> 596
A25: 03030130 | B25: OBESOS | C25: =IFERROR(VLOOKUP($A25,Filtro!$A$4:$AX$1932,2,FALSE),0) -> 9169 | D25: =IFERROR(VLOOKUP($A25,Filtro!$A$4:$AX$1932,3,FALSE),0) -> 2595 | E25: =IFERROR(VLOOKUP($A25,Filtro!$A$4:$AX$1932,4,FALSE),0) -> 6574 | F25: =IFERROR(VLOOKUP($A25,Filtro!$A$4:$AX$1932,5,FALSE),0) -> 17 | G25: =IFERROR(VLOOKUP($A25,Filtro!$A$4:$AX$1932,6,FALSE),0) -> 35 | H25: =IFERROR(VLOOKUP($A25,Filtro!$A$4:$AX$1932,7,FALSE),0) -> 123 | I25: =IFERROR(VLOOKUP($A25,Filtro!$A$4:$AX$1932,8,FALSE),0) -> 365 | J25: =IFERROR(VLOOKUP($A25,Filtro!$A$4:$AX$1932,9,FALSE),0) -> 198 | K25: =IFERROR(VLOOKUP($A25,Filtro!$A$4:$AX$1932,10,FALSE),0) -> 523 | L25: =IFERROR(VLOOKUP($A25,Filtro!$A$4:$AX$1932,11,FALSE),0) -> 182 | M25: =IFERROR(VLOOKUP($A25,Filtro!$A$4:$AX$1932,12,FALSE),0) -> 554 | N25: =IFERROR(VLOOKUP($A25,Filtro!$A$4:$AX$1932,13,FALSE),0) -> 208 | O25: =IFERROR(VLOOKUP($A25,Filtro!$A$4:$AX$1932,14,FALSE),0) -> 528 | P25: =IFERROR(VLOOKUP($A25,Filtro!$A$4:$AX$1932,15,FALSE),0) -> 189 | Q25: =IFERROR(VLOOKUP($A25,Filtro!$A$4:$AX$1932,16,FALSE),0) -> 500 | R25: =IFERROR(VLOOKUP($A25,Filtro!$A$4:$AX$1932,17,FALSE),0) -> 210 | S25: =IFERROR(VLOOKUP($A25,Filtro!$A$4:$AX$1932,18,FALSE),0) -> 527 | T25: =IFERROR(VLOOKUP($A25,Filtro!$A$4:$AX$1932,19,FALSE),0) -> 183 | U25: =IFERROR(VLOOKUP($A25,Filtro!$A$4:$AX$1932,20,FALSE),0) -> 480 | V25: =IFERROR(VLOOKUP($A25,Filtro!$A$4:$AX$1932,21,FALSE),0) -> 142 | W25: =IFERROR(VLOOKUP($A25,Filtro!$A$4:$AX$1932,22,FALSE),0) -> 344 | X25: =IFERROR(VLOOKUP($A25,Filtro!$A$4:$AX$1932,23,FALSE),0) -> 106 | Y25: =IFERROR(VLOOKUP($A25,Filtro!$A$4:$AX$1932,24,FALSE),0) -> 186 | Z25: =IFERROR(VLOOKUP($A25,Filtro!$A$4:$AX$1932,25,FALSE),0) -> 345 | AA25: =IFERROR(VLOOKUP($A25,Filtro!$A$4:$AX$1932,26,FALSE),0) -> 871 | AB25: =IFERROR(VLOOKUP($A25,Filtro!$A$4:$AX$1932,27,FALSE),0) -> 304 | AC25: =IFERROR(VLOOKUP($A25,Filtro!$A$4:$AX$1932,28,FALSE),0) -> 684 | AD25: =IFERROR(VLOOKUP($A25,Filtro!$A$4:$AX$1932,29,FALSE),0) -> 203 | AE25: =IFERROR(VLOOKUP($A25,Filtro!$A$4:$AX$1932,30,FALSE),0) -> 491 | AF25: =IFERROR(VLOOKUP($A25,Filtro!$A$4:$AX$1932,31,FALSE),0) -> 185 | AG25: =IFERROR(VLOOKUP($A25,Filtro!$A$4:$AX$1932,32,FALSE),0) -> 486
B26: SECCIÓN C: RESULTADOS DE EMP SEGÚN ESTADO DE SALUD
B27: ESTADO DE SALUD | C27: TOTAL | F27: 15 a 19 | H27: 20 a 24 | J27: 25 a 29 | L27: 30 a 34 | N27: 35 a 39 | P27: 40 a 44 | R27: 45 a 49 | T27: 50 a 54 | V27: 55 a 59 | X27: 60 a 64 | Z27: 65 a 69 | AB27: 70 a 74 | AD27: 75 a 79 | AF27: 80 y más
C28: Ambos Sexos | D28: Hombres | E28: Mujeres | F28: Hombres | G28: Mujeres | H28: Hombres | I28: Mujeres | J28: Hombres | K28: Mujeres | L28: Hombres | M28: Mujeres | N28: Hombres | O28: Mujeres | P28: Hombres | Q28: Mujeres | R28: Hombres | S28: Mujeres | T28: Hombres | U28: Mujeres | V28: Hombres | W28: Mujeres | X28: Hombres | Y28: Mujeres | Z28: Hombres | AA28: Mujeres | AB28: Hombres | AC28: Mujeres | AD28: Hombres | AE28: Mujeres | AF28: Hombres | AG28: Mujeres
A29: 02200010 | B29: TABAQUISMO | C29: =IFERROR(VLOOKUP($A29,Filtro!$A$4:$AX$1932,2,FALSE),0) -> 5242 | D29: =IFERROR(VLOOKUP($A29,Filtro!$A$4:$AX$1932,3,FALSE),0) -> 1978 | E29: =IFERROR(VLOOKUP($A29,Filtro!$A$4:$AX$1932,4,FALSE),0) -> 3264 | F29: =IFERROR(VLOOKUP($A29,Filtro!$A$4:$AX$1932,5,FALSE),0) -> 9 | G29: =IFERROR(VLOOKUP($A29,Filtro!$A$4:$AX$1932,6,FALSE),0) -> 25 | H29: =IFERROR(VLOOKUP($A29,Filtro!$A$4:$AX$1932,7,FALSE),0) -> 227 | I29: =IFERROR(VLOOKUP($A29,Filtro!$A$4:$AX$1932,8,FALSE),0) -> 336 | J29: =IFERROR(VLOOKUP($A29,Filtro!$A$4:$AX$1932,9,FALSE),0) -> 245 | K29: =IFERROR(VLOOKUP($A29,Filtro!$A$4:$AX$1932,10,FALSE),0) -> 437 | L29: =IFERROR(VLOOKUP($A29,Filtro!$A$4:$AX$1932,11,FALSE),0) -> 254 | M29: =IFERROR(VLOOKUP($A29,Filtro!$A$4:$AX$1932,12,FALSE),0) -> 420 | N29: =IFERROR(VLOOKUP($A29,Filtro!$A$4:$AX$1932,13,FALSE),0) -> 217 | O29: =IFERROR(VLOOKUP($A29,Filtro!$A$4:$AX$1932,14,FALSE),0) -> 390 | P29: =IFERROR(VLOOKUP($A29,Filtro!$A$4:$AX$1932,15,FALSE),0) -> 220 | Q29: =IFERROR(VLOOKUP($A29,Filtro!$A$4:$AX$1932,16,FALSE),0) -> 393 | R29: =IFERROR(VLOOKUP($A29,Filtro!$A$4:$AX$1932,17,FALSE),0) -> 183 | S29: =IFERROR(VLOOKUP($A29,Filtro!$A$4:$AX$1932,18,FALSE),0) -> 325 | T29: =IFERROR(VLOOKUP($A29,Filtro!$A$4:$AX$1932,19,FALSE),0) -> 152 | U29: =IFERROR(VLOOKUP($A29,Filtro!$A$4:$AX$1932,20,FALSE),0) -> 293 | V29: =IFERROR(VLOOKUP($A29,Filtro!$A$4:$AX$1932,21,FALSE),0) -> 131 | W29: =IFERROR(VLOOKUP($A29,Filtro!$A$4:$AX$1932,22,FALSE),0) -> 224 | X29: =IFERROR(VLOOKUP($A29,Filtro!$A$4:$AX$1932,23,FALSE),0) -> 82 | Y29: =IFERROR(VLOOKUP($A29,Filtro!$A$4:$AX$1932,24,FALSE),0) -> 129 | Z29: =IFERROR(VLOOKUP($A29,Filtro!$A$4:$AX$1932,25,FALSE),0) -> 89 | AA29: =IFERROR(VLOOKUP($A29,Filtro!$A$4:$AX$1932,26,FALSE),0) -> 145 | AB29: =IFERROR(VLOOKUP($A29,Filtro!$A$4:$AX$1932,27,FALSE),0) -> 75 | AC29: =IFERROR(VLOOKUP($A29,Filtro!$A$4:$AX$1932,28,FALSE),0) -> 75 | AD29: =IFERROR(VLOOKUP($A29,Filtro!$A$4:$AX$1932,29,FALSE),0) -> 64 | AE29: =IFERROR(VLOOKUP($A29,Filtro!$A$4:$AX$1932,30,FALSE),0) -> 47 | AF29: =IFERROR(VLOOKUP($A29,Filtro!$A$4:$AX$1932,31,FALSE),0) -> 30 | AG29: =IFERROR(VLOOKUP($A29,Filtro!$A$4:$AX$1932,32,FALSE),0) -> 25 | CH29: 0
A30: 02200020 | B30: PRESIÓN ARTERIAL ELEVADA (= >140/90 mmHg) | C30: =IFERROR(VLOOKUP($A30,Filtro!$A$4:$AX$1932,2,FALSE),0) -> 4683 | D30: =IFERROR(VLOOKUP($A30,Filtro!$A$4:$AX$1932,3,FALSE),0) -> 1989 | E30: =IFERROR(VLOOKUP($A30,Filtro!$A$4:$AX$1932,4,FALSE),0) -> 2694 | F30: =IFERROR(VLOOKUP($A30,Filtro!$A$4:$AX$1932,5,FALSE),0) -> 2 | G30: =IFERROR(VLOOKUP($A30,Filtro!$A$4:$AX$1932,6,FALSE),0) -> 6 | H30: =IFERROR(VLOOKUP($A30,Filtro!$A$4:$AX$1932,7,FALSE),0) -> 63 | I30: =IFERROR(VLOOKUP($A30,Filtro!$A$4:$AX$1932,8,FALSE),0) -> 45 | J30: =IFERROR(VLOOKUP($A30,Filtro!$A$4:$AX$1932,9,FALSE),0) -> 90 | K30: =IFERROR(VLOOKUP($A30,Filtro!$A$4:$AX$1932,10,FALSE),0) -> 104 | L30: =IFERROR(VLOOKUP($A30,Filtro!$A$4:$AX$1932,11,FALSE),0) -> 77 | M30: =IFERROR(VLOOKUP($A30,Filtro!$A$4:$AX$1932,12,FALSE),0) -> 84 | N30: =IFERROR(VLOOKUP($A30,Filtro!$A$4:$AX$1932,13,FALSE),0) -> 66 | O30: =IFERROR(VLOOKUP($A30,Filtro!$A$4:$AX$1932,14,FALSE),0) -> 88 | P30: =IFERROR(VLOOKUP($A30,Filtro!$A$4:$AX$1932,15,FALSE),0) -> 78 | Q30: =IFERROR(VLOOKUP($A30,Filtro!$A$4:$AX$1932,16,FALSE),0) -> 151 | R30: =IFERROR(VLOOKUP($A30,Filtro!$A$4:$AX$1932,17,FALSE),0) -> 111 | S30: =IFERROR(VLOOKUP($A30,Filtro!$A$4:$AX$1932,18,FALSE),0) -> 167 | T30: =IFERROR(VLOOKUP($A30,Filtro!$A$4:$AX$1932,19,FALSE),0) -> 107 | U30: =IFERROR(VLOOKUP($A30,Filtro!$A$4:$AX$1932,20,FALSE),0) -> 168 | V30: =IFERROR(VLOOKUP($A30,Filtro!$A$4:$AX$1932,21,FALSE),0) -> 116 | W30: =IFERROR(VLOOKUP($A30,Filtro!$A$4:$AX$1932,22,FALSE),0) -> 110 | X30: =IFERROR(VLOOKUP($A30,Filtro!$A$4:$AX$1932,23,FALSE),0) -> 96 | Y30: =IFERROR(VLOOKUP($A30,Filtro!$A$4:$AX$1932,24,FALSE),0) -> 65 | Z30: =IFERROR(VLOOKUP($A30,Filtro!$A$4:$AX$1932,25,FALSE),0) -> 304 | AA30: =IFERROR(VLOOKUP($A30,Filtro!$A$4:$AX$1932,26,FALSE),0) -> 444 | AB30: =IFERROR(VLOOKUP($A30,Filtro!$A$4:$AX$1932,27,FALSE),0) -> 313 | AC30: =IFERROR(VLOOKUP($A30,Filtro!$A$4:$AX$1932,28,FALSE),0) -> 394 | AD30: =IFERROR(VLOOKUP($A30,Filtro!$A$4:$AX$1932,29,FALSE),0) -> 271 | AE30: =IFERROR(VLOOKUP($A30,Filtro!$A$4:$AX$1932,30,FALSE),0) -> 381 | AF30: =IFERROR(VLOOKUP($A30,Filtro!$A$4:$AX$1932,31,FALSE),0) -> 295 | AG30: =IFERROR(VLOOKUP($A30,Filtro!$A$4:$AX$1932,32,FALSE),0) -> 487 | CH30: 0
B31: SECCIÓN D: RESULTADOS DE EMP SEGÚN ESTADO DE SALUD (EXÁMENES DE LABORATORIO)
B32: ESTADO DE SALUD | C32: TOTAL | F32: 15 a 19 años | H32: 20 a 24 años | J32: 25 a 29 | L32: 30 a 34 | N32: 35 a 39 | P32: 40 a 44 | R32: 45 a 49 | T32: 50 a 54 | V32: 55 a 59 | X32: 60 a 64 | Z32: 65 a 69 | AB32: 70 a 74 | AD32: 75 a 79 | AF32: 80 y más
C33: Ambos Sexos | D33: Hombres | E33: Mujeres | F33: Hombres | G33: Mujeres | H33: Hombres | I33: Mujeres | J33: Hombres | K33: Mujeres | L33: Hombres | M33: Mujeres | N33: Hombres | O33: Mujeres | P33: Hombres | Q33: Mujeres | R33: Hombres | S33: Mujeres | T33: Hombres | U33: Mujeres | V33: Hombres | W33: Mujeres | X33: Hombres | Y33: Mujeres | Z33: Hombres | AA33: Mujeres | AB33: Hombres | AC33: Mujeres | AD33: Hombres | AE33: Mujeres | AF33: Hombres | AG33: Mujeres
A34: 02200030 | B34: GLICEMIA ALTERADA (= > a 100 mg/dl) | C34: =IFERROR(VLOOKUP($A34,Filtro!$A$4:$AX$1932,2,FALSE),0) -> 3039 | D34: =IFERROR(VLOOKUP($A34,Filtro!$A$4:$AX$1932,3,FALSE),0) -> 1184 | E34: =IFERROR(VLOOKUP($A34,Filtro!$A$4:$AX$1932,4,FALSE),0) -> 1855 | F34: =IFERROR(VLOOKUP($A34,Filtro!$A$4:$AX$1932,5,FALSE),0) -> 4 | G34: =IFERROR(VLOOKUP($A34,Filtro!$A$4:$AX$1932,6,FALSE),0) -> 4 | H34: =IFERROR(VLOOKUP($A34,Filtro!$A$4:$AX$1932,7,FALSE),0) -> 35 | I34: =IFERROR(VLOOKUP($A34,Filtro!$A$4:$AX$1932,8,FALSE),0) -> 65 | J34: =IFERROR(VLOOKUP($A34,Filtro!$A$4:$AX$1932,9,FALSE),0) -> 63 | K34: =IFERROR(VLOOKUP($A34,Filtro!$A$4:$AX$1932,10,FALSE),0) -> 60 | L34: =IFERROR(VLOOKUP($A34,Filtro!$A$4:$AX$1932,11,FALSE),0) -> 37 | M34: =IFERROR(VLOOKUP($A34,Filtro!$A$4:$AX$1932,12,FALSE),0) -> 108 | N34: =IFERROR(VLOOKUP($A34,Filtro!$A$4:$AX$1932,13,FALSE),0) -> 58 | O34: =IFERROR(VLOOKUP($A34,Filtro!$A$4:$AX$1932,14,FALSE),0) -> 112 | P34: =IFERROR(VLOOKUP($A34,Filtro!$A$4:$AX$1932,15,FALSE),0) -> 69 | Q34: =IFERROR(VLOOKUP($A34,Filtro!$A$4:$AX$1932,16,FALSE),0) -> 105 | R34: =IFERROR(VLOOKUP($A34,Filtro!$A$4:$AX$1932,17,FALSE),0) -> 104 | S34: =IFERROR(VLOOKUP($A34,Filtro!$A$4:$AX$1932,18,FALSE),0) -> 147 | T34: =IFERROR(VLOOKUP($A34,Filtro!$A$4:$AX$1932,19,FALSE),0) -> 89 | U34: =IFERROR(VLOOKUP($A34,Filtro!$A$4:$AX$1932,20,FALSE),0) -> 164 | V34: =IFERROR(VLOOKUP($A34,Filtro!$A$4:$AX$1932,21,FALSE),0) -> 85 | W34: =IFERROR(VLOOKUP($A34,Filtro!$A$4:$AX$1932,22,FALSE),0) -> 131 | X34: =IFERROR(VLOOKUP($A34,Filtro!$A$4:$AX$1932,23,FALSE),0) -> 72 | Y34: =IFERROR(VLOOKUP($A34,Filtro!$A$4:$AX$1932,24,FALSE),0) -> 108 | Z34: =IFERROR(VLOOKUP($A34,Filtro!$A$4:$AX$1932,25,FALSE),0) -> 168 | AA34: =IFERROR(VLOOKUP($A34,Filtro!$A$4:$AX$1932,26,FALSE),0) -> 282 | AB34: =IFERROR(VLOOKUP($A34,Filtro!$A$4:$AX$1932,27,FALSE),0) -> 159 | AC34: =IFERROR(VLOOKUP($A34,Filtro!$A$4:$AX$1932,28,FALSE),0) -> 210 | AD34: =IFERROR(VLOOKUP($A34,Filtro!$A$4:$AX$1932,29,FALSE),0) -> 134 | AE34: =IFERROR(VLOOKUP($A34,Filtro!$A$4:$AX$1932,30,FALSE),0) -> 172 | AF34: =IFERROR(VLOOKUP($A34,Filtro!$A$4:$AX$1932,31,FALSE),0) -> 107 | AG34: =IFERROR(VLOOKUP($A34,Filtro!$A$4:$AX$1932,32,FALSE),0) -> 187
A35: 02200040 | B35: COLESTEROL ELEVADO (= > 200 mg/dl) | C35: =IFERROR(VLOOKUP($A35,Filtro!$A$4:$AX$1932,2,FALSE),0) -> 2651 | D35: =IFERROR(VLOOKUP($A35,Filtro!$A$4:$AX$1932,3,FALSE),0) -> 802 | E35: =IFERROR(VLOOKUP($A35,Filtro!$A$4:$AX$1932,4,FALSE),0) -> 1849 | F35: =IFERROR(VLOOKUP($A35,Filtro!$A$4:$AX$1932,5,FALSE),0) -> 1 | G35: =IFERROR(VLOOKUP($A35,Filtro!$A$4:$AX$1932,6,FALSE),0) -> 3 | H35: =IFERROR(VLOOKUP($A35,Filtro!$A$4:$AX$1932,7,FALSE),0) -> 23 | I35: =IFERROR(VLOOKUP($A35,Filtro!$A$4:$AX$1932,8,FALSE),0) -> 48 | J35: =IFERROR(VLOOKUP($A35,Filtro!$A$4:$AX$1932,9,FALSE),0) -> 35 | K35: =IFERROR(VLOOKUP($A35,Filtro!$A$4:$AX$1932,10,FALSE),0) -> 98 | L35: =IFERROR(VLOOKUP($A35,Filtro!$A$4:$AX$1932,11,FALSE),0) -> 36 | M35: =IFERROR(VLOOKUP($A35,Filtro!$A$4:$AX$1932,12,FALSE),0) -> 100 | N35: =IFERROR(VLOOKUP($A35,Filtro!$A$4:$AX$1932,13,FALSE),0) -> 57 | O35: =IFERROR(VLOOKUP($A35,Filtro!$A$4:$AX$1932,14,FALSE),0) -> 87 | P35: =IFERROR(VLOOKUP($A35,Filtro!$A$4:$AX$1932,15,FALSE),0) -> 59 | Q35: =IFERROR(VLOOKUP($A35,Filtro!$A$4:$AX$1932,16,FALSE),0) -> 138 | R35: =IFERROR(VLOOKUP($A35,Filtro!$A$4:$AX$1932,17,FALSE),0) -> 72 | S35: =IFERROR(VLOOKUP($A35,Filtro!$A$4:$AX$1932,18,FALSE),0) -> 164 | T35: =IFERROR(VLOOKUP($A35,Filtro!$A$4:$AX$1932,19,FALSE),0) -> 66 | U35: =IFERROR(VLOOKUP($A35,Filtro!$A$4:$AX$1932,20,FALSE),0) -> 174 | V35: =IFERROR(VLOOKUP($A35,Filtro!$A$4:$AX$1932,21,FALSE),0) -> 73 | W35: =IFERROR(VLOOKUP($A35,Filtro!$A$4:$AX$1932,22,FALSE),0) -> 166 | X35: =IFERROR(VLOOKUP($A35,Filtro!$A$4:$AX$1932,23,FALSE),0) -> 50 | Y35: =IFERROR(VLOOKUP($A35,Filtro!$A$4:$AX$1932,24,FALSE),0) -> 106 | Z35: =IFERROR(VLOOKUP($A35,Filtro!$A$4:$AX$1932,25,FALSE),0) -> 97 | AA35: =IFERROR(VLOOKUP($A35,Filtro!$A$4:$AX$1932,26,FALSE),0) -> 218 | AB35: =IFERROR(VLOOKUP($A35,Filtro!$A$4:$AX$1932,27,FALSE),0) -> 96 | AC35: =IFERROR(VLOOKUP($A35,Filtro!$A$4:$AX$1932,28,FALSE),0) -> 243 | AD35: =IFERROR(VLOOKUP($A35,Filtro!$A$4:$AX$1932,29,FALSE),0) -> 76 | AE35: =IFERROR(VLOOKUP($A35,Filtro!$A$4:$AX$1932,30,FALSE),0) -> 159 | AF35: =IFERROR(VLOOKUP($A35,Filtro!$A$4:$AX$1932,31,FALSE),0) -> 61 | AG35: =IFERROR(VLOOKUP($A35,Filtro!$A$4:$AX$1932,32,FALSE),0) -> 145
B195: =SUM(C12:C17,C21:C25,C29:C30,C34:C35) -> 1061055 | C195: =SUM(CH7:CN52) -> 0

Sheet A03
B6: REM-A03. APLICACIÓN Y RESULTADOS DE ESCALAS DE EVALUACIÓN
B7: SECCIÓN A: APLICACIÓN DE INSTRUMENTO Y RESULTADO EN EL NIÑO (A)
B8: SECCIÓN A.1: APLICACIÓN Y RESULTADOS DE PAUTA BREVE
A9: CODIGO DICCIONARIO | B9: EVALUACIONES POR EDAD DEL NIÑO | D9: TOTAL | G9: GRUPO DE EDAD
G10: Menor de 1 mes | I10: 1 mes | K10: 2 meses | M10: 3 meses | O10: 4 meses | Q10: 5 meses | S10: 6 meses | U10: 7 - 11 meses | W10: 12 - 17 meses | Y10: 18 - 24 meses
D11: Ambos Sexos | E11: Hombres | F11: Mujeres | G11: Hombres | H11: Mujeres | I11: Hombres | J11: Mujeres | K11: Hombres | L11: Mujeres | M11: Hombres | N11: Mujeres | O11: Hombres | P11: Mujeres | Q11: Hombres | R11: Mujeres | S11: Hombres | T11: Mujeres | U11: Hombres | V11: Mujeres | W11: Hombres | X11: Mujeres | Y11: Hombres | Z11: Mujeres
A12: 02021730 | B12: APLICACIÓN PAUTA BREVE | D12: =IFERROR(VLOOKUP($A12,Filtro!$A$4:$AX$1932,2,FALSE),0) -> 8203 | E12: =IFERROR(VLOOKUP($A12,Filtro!$A$4:$AX$1932,3,FALSE),0) -> 4097 | F12: =IFERROR(VLOOKUP($A12,Filtro!$A$4:$AX$1932,4,FALSE),0) -> 4106 | G12: =IFERROR(VLOOKUP($A12,Filtro!$A$4:$AX$1932,5,FALSE),0) -> 46 | H12: =IFERROR(VLOOKUP($A12,Filtro!$A$4:$AX$1932,6,FALSE),0) -> 47 | I12: =IFERROR(VLOOKUP($A12,Filtro!$A$4:$AX$1932,7,FALSE),0) -> 22 | J12: =IFERROR(VLOOKUP($A12,Filtro!$A$4:$AX$1932,8,FALSE),0) -> 21 | K12: =IFERROR(VLOOKUP($A12,Filtro!$A$4:$AX$1932,9,FALSE),0) -> 15 | L12: =IFERROR(VLOOKUP($A12,Filtro!$A$4:$AX$1932,10,FALSE),0) -> 22 | M12: =IFERROR(VLOOKUP($A12,Filtro!$A$4:$AX$1932,11,FALSE),0) -> 27 | N12: =IFERROR(VLOOKUP($A12,Filtro!$A$4:$AX$1932,12,FALSE),0) -> 34 | O12: =IFERROR(VLOOKUP($A12,Filtro!$A$4:$AX$1932,13,FALSE),0) -> 1745 | P12: =IFERROR(VLOOKUP($A12,Filtro!$A$4:$AX$1932,14,FALSE),0) -> 1752 | Q12: =IFERROR(VLOOKUP($A12,Filtro!$A$4:$AX$1932,15,FALSE),0) -> 32 | R12: =IFERROR(VLOOKUP($A12,Filtro!$A$4:$AX$1932,16,FALSE),0) -> 61 | S12: =IFERROR(VLOOKUP($A12,Filtro!$A$4:$AX$1932,17,FALSE),0) -> 14 | T12: =IFERROR(VLOOKUP($A12,Filtro!$A$4:$AX$1932,18,FALSE),0) -> 16 | U12: =IFERROR(VLOOKUP($A12,Filtro!$A$4:$AX$1932,19,FALSE),0) -> 55 | V12: =IFERROR(VLOOKUP($A12,Filtro!$A$4:$AX$1932,20,FALSE),0) -> 40 | W12: =IFERROR(VLOOKUP($A12,Filtro!$A$4:$AX$1932,21,FALSE),0) -> 1345 | X12: =IFERROR(VLOOKUP($A12,Filtro!$A$4:$AX$1932,22,FALSE),0) -> 1278 | Y12: =IFERROR(VLOOKUP($A12,Filtro!$A$4:$AX$1932,23,FALSE),0) -> 796 | Z12: =IFERROR(VLOOKUP($A12,Filtro!$A$4:$AX$1932,24,FALSE),0) -> 835
A13: 03500020 | B13: RESULTADOS | C13: NORMAL | D13: =IFERROR(VLOOKUP($A13,Filtro!$A$4:$AX$1932,2,FALSE),0) -> 7607 | E13: =IFERROR(VLOOKUP($A13,Filtro!$A$4:$AX$1932,3,FALSE),0) -> 3767 | F13: =IFERROR(VLOOKUP($A13,Filtro!$A$4:$AX$1932,4,FALSE),0) -> 3840 | G13: =IFERROR(VLOOKUP($A13,Filtro!$A$4:$AX$1932,5,FALSE),0) -> 45 | H13: =IFERROR(VLOOKUP($A13,Filtro!$A$4:$AX$1932,6,FALSE),0) -> 45 | I13: =IFERROR(VLOOKUP($A13,Filtro!$A$4:$AX$1932,7,FALSE),0) -> 22 | J13: =IFERROR(VLOOKUP($A13,Filtro!$A$4:$AX$1932,8,FALSE),0) -> 21 | K13: =IFERROR(VLOOKUP($A13,Filtro!$A$4:$AX$1932,9,FALSE),0) -> 18 | L13: =IFERROR(VLOOKUP($A13,Filtro!$A$4:$AX$1932,10,FALSE),0) -> 25 | M13: =IFERROR(VLOOKUP($A13,Filtro!$A$4:$AX$1932,11,FALSE),0) -> 25 | N13: =IFERROR(VLOOKUP($A13,Filtro!$A$4:$AX$1932,12,FALSE),0) -> 33 | O13: =IFERROR(VLOOKUP($A13,Filtro!$A$4:$AX$1932,13,FALSE),0) -> 1682 | P13: =IFERROR(VLOOKUP($A13,Filtro!$A$4:$AX$1932,14,FALSE),0) -> 1704 | Q13: =IFERROR(VLOOKUP($A13,Filtro!$A$4:$AX$1932,15,FALSE),0) -> 34 | R13: =IFERROR(VLOOKUP($A13,Filtro!$A$4:$AX$1932,16,FALSE),0) -> 63 | S13: =IFERROR(VLOOKUP($A13,Filtro!$A$4:$AX$1932,17,FALSE),0) -> 17 | T13: =IFERROR(VLOOKUP($A13,Filtro!$A$4:$AX$1932,18,FALSE),0) -> 17 | U13: =IFERROR(VLOOKUP($A13,Filtro!$A$4:$AX$1932,19,FALSE),0) -> 53 | V13: =IFERROR(VLOOKUP($A13,Filtro!$A$4:$AX$1932,20,FALSE),0) -> 40 | W13: =IFERROR(VLOOKUP($A13,Filtro!$A$4:$AX$1932,21,FALSE),0) -> 1242 | X13: =IFERROR(VLOOKUP($A13,Filtro!$A$4:$AX$1932,22,FALSE),0) -> 1176 | Y13: =IFERROR(VLOOKUP($A13,Filtro!$A$4:$AX$1932,23,FALSE),0) -> 629 | Z13: =IFERROR(VLOOKUP($A13,Filtro!$A$4:$AX$1932,24,FALSE),0) -> 716 | DG13: 0 | DH13: 0 | DI13: 0 | DJ13: 0 | DK13: 0 | DL13: 0 | DM13: 0 | DN13: 0 | DO13: 0 | DP13: 0 | DQ13: 0 | DR13: 0 | DS13: 0 | DT13: 0 | DU13: 0 | DV13: 0 | DW13: 0 | DX13: 0 | DY13: 0 | DZ13: 0
A14: 03500030 | C14: ALTERADO | D14: =IFERROR(VLOOKUP($A14,Filtro!$A$4:$AX$1932,2,FALSE),0) -> 627 | E14: =IFERROR(VLOOKUP($A14,Filtro!$A$4:$AX$1932,3,FALSE),0) -> 331 | F14: =IFERROR(VLOOKUP($A14,Filtro!$A$4:$AX$1932,4,FALSE),0) -> 296 | G14: =IFERROR(VLOOKUP($A14,Filtro!$A$4:$AX$1932,5,FALSE),0) -> 1 | H14: =IFERROR(VLOOKUP($A14,Filtro!$A$4:$AX$1932,6,FALSE),0) -> 3 | I14: =IFERROR(VLOOKUP($A14,Filtro!$A$4:$AX$1932,7,FALSE),0) -> 0 | J14: =IFERROR(VLOOKUP($A14,Filtro!$A$4:$AX$1932,8,FALSE),0) -> 1 | K14: =IFERROR(VLOOKUP($A14,Filtro!$A$4:$AX$1932,9,FALSE),0) -> 0 | L14: =IFERROR(VLOOKUP($A14,Filtro!$A$4:$AX$1932,10,FALSE),0) -> 0 | M14: =IFERROR(VLOOKUP($A14,Filtro!$A$4:$AX$1932,11,FALSE),0) -> 2 | N14: =IFERROR(VLOOKUP($A14,Filtro!$A$4:$AX$1932,12,FALSE),0) -> 1 | O14: =IFERROR(VLOOKUP($A14,Filtro!$A$4:$AX$1932,13,FALSE),0) -> 71 | P14: =IFERROR(VLOOKUP($A14,Filtro!$A$4:$AX$1932,14,FALSE),0) -> 62 | Q14: =IFERROR(VLOOKUP($A14,Filtro!$A$4:$AX$1932,15,FALSE),0) -> 0 | R14: =IFERROR(VLOOKUP($A14,Filtro!$A$4:$AX$1932,16,FALSE),0) -> 2 | S14: =IFERROR(VLOOKUP($A14,Filtro!$A$4:$AX$1932,17,FALSE),0) -> 0 | T14: =IFERROR(VLOOKUP($A14,Filtro!$A$4:$AX$1932,18,FALSE),0) -> 0 | U14: =IFERROR(VLOOKUP($A14,Filtro!$A$4:$AX$1932,19,FALSE),0) -> 2 | V14: =IFERROR(VLOOKUP($A14,Filtro!$A$4:$AX$1932,20,FALSE),0) -> 2 | W14: =IFERROR(VLOOKUP($A14,Filtro!$A$4:$AX$1932,21,FALSE),0) -> 102 | X14: =IFERROR(VLOOKUP($A14,Filtro!$A$4:$AX$1932,22,FALSE),0) -> 106 | Y14: =IFERROR(VLOOKUP($A14,Filtro!$A$4:$AX$1932,23,FALSE),0) -> 153 | Z14: =IFERROR(VLOOKUP($A14,Filtro!$A$4:$AX$1932,24,FALSE),0) -> 119
B16: SECCIÓN A.2: RESULTADOS DE LA APLICACIÓN DE ESCALA DE EVALUACIÓN DEL DESARROLLO PSICOMOTOR
B17: ACTIVIDAD | C17: RESULTADO | D17: TOTAL | G17: POR EDAD | S17: MIGRANTES
G18: Menor 7 meses | I18: 7 - 11 meses | K18: 12 - 17 meses | M18: 18 - 23 meses | O18: 24 - 47 meses | Q18: 48 - 59 meses
D19: Ambos Sexos | E19: Hombres | F19: Mujeres | G19: Hombres | H19: Mujeres | I19: Hombres | J19: Mujeres | K19: Hombres | L19: Mujeres | M19: Hombres | N19: Mujeres | O19: Hombres | P19: Mujeres | Q19: Hombres | R19: Mujeres
A20: 02021740 | B20: APLICACIÓN TEST DE DESARROLLO PSICOMOTOR | D20: =IFERROR(VLOOKUP($A20,Filtro!$A$4:$AX$1932,2,FALSE),0) -> 7657 | E20: =IFERROR(VLOOKUP($A20,Filtro!$A$4:$AX$1932,3,FALSE),0) -> 4000 | F20: =IFERROR(VLOOKUP($A20,Filtro!$A$4:$AX$1932,4,FALSE),0) -> 3657 | G20: =IFERROR(VLOOKUP($A20,Filtro!$A$4:$AX$1932,5,FALSE),0) -> 49 | H20: =IFERROR(VLOOKUP($A20,Filtro!$A$4:$AX$1932,6,FALSE),0) -> 54 | I20: =IFERROR(VLOOKUP($A20,Filtro!$A$4:$AX$1932,7,FALSE),0) -> 1344 | J20: =IFERROR(VLOOKUP($A20,Filtro!$A$4:$AX$1932,8,FALSE),0) -> 1295 | K20: =IFERROR(VLOOKUP($A20,Filtro!$A$4:$AX$1932,9,FALSE),0) -> 242 | L20: =IFERROR(VLOOKUP($A20,Filtro!$A$4:$AX$1932,10,FALSE),0) -> 233 | M20: =IFERROR(VLOOKUP($A20,Filtro!$A$4:$AX$1932,11,FALSE),0) -> 1444 | N20: =IFERROR(VLOOKUP($A20,Filtro!$A$4:$AX$1932,12,FALSE),0) -> 1261 | O20: =IFERROR(VLOOKUP($A20,Filtro!$A$4:$AX$1932,13,FALSE),0) -> 866 | P20: =IFERROR(VLOOKUP($A20,Filtro!$A$4:$AX$1932,14,FALSE),0) -> 773 | Q20: =IFERROR(VLOOKUP($A20,Filtro!$A$4:$AX$1932,15,FALSE),0) -> 55 | R20: =IFERROR(VLOOKUP($A20,Filtro!$A$4:$AX$1932,16,FALSE),0) -> 41 | S20: =IFERROR(VLOOKUP($A20,Filtro!$A$4:$AX$1932,17,FALSE),0) -> 40 | CH20: 0 | CI20: 0 | CJ20: 0 | CK20: 0 | CL20: 0 | CM20: 0 | CN20: 0 | CO20: 0
A21: 02010320 | B21: PRIMERA EVALUACIÓN | C21: NORMAL | D21: =IFERROR(VLOOKUP($A21,Filtro!$A$4:$AX$1932,2,FALSE),0) -> 6244 | E21: =IFERROR(VLOOKUP($A21,Filtro!$A$4:$AX$1932,3,FALSE),0) -> 3139 | F21: =IFERROR(VLOOKUP($A21,Filtro!$A$4:$AX$1932,4,FALSE),0) -> 3105 | G21: =IFERROR(VLOOKUP($A21,Filtro!$A$4:$AX$1932,5,FALSE),0) -> 30 | H21: =IFERROR(VLOOKUP($A21,Filtro!$A$4:$AX$1932,6,FALSE),0) -> 37 | I21: =IFERROR(VLOOKUP($A21,Filtro!$A$4:$AX$1932,7,FALSE),0) -> 1253 | J21: =IFERROR(VLOOKUP($A21,Filtro!$A$4:$AX$1932,8,FALSE),0) -> 1162 | K21: =IFERROR(VLOOKUP($A21,Filtro!$A$4:$AX$1932,9,FALSE),0) -> 168 | L21: =IFERROR(VLOOKUP($A21,Filtro!$A$4:$AX$1932,10,FALSE),0) -> 171 | M21: =IFERROR(VLOOKUP($A21,Filtro!$A$4:$AX$1932,11,FALSE),0) -> 1092 | N21: =IFERROR(VLOOKUP($A21,Filtro!$A$4:$AX$1932,12,FALSE),0) -> 1081 | O21: =IFERROR(VLOOKUP($A21,Filtro!$A$4:$AX$1932,13,FALSE),0) -> 581 | P21: =IFERROR(VLOOKUP($A21,Filtro!$A$4:$AX$1932,14,FALSE),0) -> 629 | Q21: =IFERROR(VLOOKUP($A21,Filtro!$A$4:$AX$1932,15,FALSE),0) -> 15 | R21: =IFERROR(VLOOKUP($A21,Filtro!$A$4:$AX$1932,16,FALSE),0) -> 25 | S21: =IFERROR(VLOOKUP($A21,Filtro!$A$4:$AX$1932,17,FALSE),0) -> 31
A22: 05225303 | C22: NORMAL CON REZAGO | D22: =IFERROR(VLOOKUP($A22,Filtro!$A$4:$AX$1932,2,FALSE),0) -> 366 | E22: =IFERROR(VLOOKUP($A22,Filtro!$A$4:$AX$1932,3,FALSE),0) -> 200 | F22: =IFERROR(VLOOKUP($A22,Filtro!$A$4:$AX$1932,4,FALSE),0) -> 166 | G22: =IFERROR(VLOOKUP($A22,Filtro!$A$4:$AX$1932,5,FALSE),0) -> 1 | H22: =IFERROR(VLOOKUP($A22,Filtro!$A$4:$AX$1932,6,FALSE),0) -> 5 | I22: =IFERROR(VLOOKUP($A22,Filtro!$A$4:$AX$1932,7,FALSE),0) -> 39 | J22: =IFERROR(VLOOKUP($A22,Filtro!$A$4:$AX$1932,8,FALSE),0) -> 54 | K22: =IFERROR(VLOOKUP($A22,Filtro!$A$4:$AX$1932,9,FALSE),0) -> 13 | L22: =IFERROR(VLOOKUP($A22,Filtro!$A$4:$AX$1932,10,FALSE),0) -> 12 | M22: =IFERROR(VLOOKUP($A22,Filtro!$A$4:$AX$1932,11,FALSE),0) -> 69 | N22: =IFERROR(VLOOKUP($A22,Filtro!$A$4:$AX$1932,12,FALSE),0) -> 46 | O22: =IFERROR(VLOOKUP($A22,Filtro!$A$4:$AX$1932,13,FALSE),0) -> 75 | P22: =IFERROR(VLOOKUP($A22,Filtro!$A$4:$AX$1932,14,FALSE),0) -> 48 | Q22: =IFERROR(VLOOKUP($A22,Filtro!$A$4:$AX$1932,15,FALSE),0) -> 3 | R22: =IFERROR(VLOOKUP($A22,Filtro!$A$4:$AX$1932,16,FALSE),0) -> 1 | S22: =IFERROR(VLOOKUP($A22,Filtro!$A$4:$AX$1932,17,FALSE),0) -> 1
A23: 02010321 | C23: RIESGO | D23: =IFERROR(VLOOKUP($A23,Filtro!$A$4:$AX$1932,2,FALSE),0) -> 478 | E23: =IFERROR(VLOOKUP($A23,Filtro!$A$4:$AX$1932,3,FALSE),0) -> 293 | F23: =IFERROR(VLOOKUP($A23,Filtro!$A$4:$AX$1932,4,FALSE),0) -> 185 | G23: =IFERROR(VLOOKUP($A23,Filtro!$A$4:$AX$1932,5,FALSE),0) -> 2 | H23: =IFERROR(VLOOKUP($A23,Filtro!$A$4:$AX$1932,6,FALSE),0) -> 1 | I23: =IFERROR(VLOOKUP($A23,Filtro!$A$4:$AX$1932,7,FALSE),0) -> 30 | J23: =IFERROR(VLOOKUP($A23,Filtro!$A$4:$AX$1932,8,FALSE),0) -> 57 | K23: =IFERROR(VLOOKUP($A23,Filtro!$A$4:$AX$1932,9,FALSE),0) -> 27 | L23: =IFERROR(VLOOKUP($A23,Filtro!$A$4:$AX$1932,10,FALSE),0) -> 12 | M23: =IFERROR(VLOOKUP($A23,Filtro!$A$4:$AX$1932,11,FALSE),0) -> 154 | N23: =IFERROR(VLOOKUP($A23,Filtro!$A$4:$AX$1932,12,FALSE),0) -> 82 | O23: =IFERROR(VLOOKUP($A23,Filtro!$A$4:$AX$1932,13,FALSE),0) -> 74 | P23: =IFERROR(VLOOKUP($A23,Filtro!$A$4:$AX$1932,14,FALSE),0) -> 32 | Q23: =IFERROR(VLOOKUP($A23,Filtro!$A$4:$AX$1932,15,FALSE),0) -> 6 | R23: =IFERROR(VLOOKUP($A23,Filtro!$A$4:$AX$1932,16,FALSE),0) -> 1 | S23: =IFERROR(VLOOKUP($A23,Filtro!$A$4:$AX$1932,17,FALSE),0) -> 3
A24: 02010322 | C24: RETRASO | D24: =IFERROR(VLOOKUP($A24,Filtro!$A$4:$AX$1932,2,FALSE),0) -> 107 | E24: =IFERROR(VLOOKUP($A24,Filtro!$A$4:$AX$1932,3,FALSE),0) -> 74 | F24: =IFERROR(VLOOKUP($A24,Filtro!$A$4:$AX$1932,4,FALSE),0) -> 33 | G24: =IFERROR(VLOOKUP($A24,Filtro!$A$4:$AX$1932,5,FALSE),0) -> 1 | H24: =IFERROR(VLOOKUP($A24,Filtro!$A$4:$AX$1932,6,FALSE),0) -> 0 | I24: =IFERROR(VLOOKUP($A24,Filtro!$A$4:$AX$1932,7,FALSE),0) -> 8 | J24: =IFERROR(VLOOKUP($A24,Filtro!$A$4:$AX$1932,8,FALSE),0) -> 2 | K24: =IFERROR(VLOOKUP($A24,Filtro!$A$4:$AX$1932,9,FALSE),0) -> 1 | L24: =IFERROR(VLOOKUP($A24,Filtro!$A$4:$AX$1932,10,FALSE),0) -> 5 | M24: =IFERROR(VLOOKUP($A24,Filtro!$A$4:$AX$1932,11,FALSE),0) -> 36 | N24: =IFERROR(VLOOKUP($A24,Filtro!$A$4:$AX$1932,12,FALSE),0) -> 12 | O24: =IFERROR(VLOOKUP($A24,Filtro!$A$4:$AX$1932,13,FALSE),0) -> 28 | P24: =IFERROR(VLOOKUP($A24,Filtro!$A$4:$AX$1932,14,FALSE),0) -> 13 | Q24: =IFERROR(VLOOKUP($A24,Filtro!$A$4:$AX$1932,15,FALSE),0) -> 0 | R24: =IFERROR(VLOOKUP($A24,Filtro!$A$4:$AX$1932,16,FALSE),0) -> 1 | S24: =IFERROR(VLOOKUP($A24,Filtro!$A$4:$AX$1932,17,FALSE),0) -> 2
A25: 05225304 | B25: REEVALUACIÓN | C25: NORMAL (desde normal con rezago) | D25: =IFERROR(VLOOKUP($A25,Filtro!$A$4:$AX$1932,2,FALSE),0) -> 147 | E25: =IFERROR(VLOOKUP($A25,Filtro!$A$4:$AX$1932,3,FALSE),0) -> 87 | F25: =IFERROR(VLOOKUP($A25,Filtro!$A$4:$AX$1932,4,FALSE),0) -> 60 | G25: =IFERROR(VLOOKUP($A25,Filtro!$A$4:$AX$1932,5,FALSE),0) -> 2 | H25: =IFERROR(VLOOKUP($A25,Filtro!$A$4:$AX$1932,6,FALSE),0) -> 2 | I25: =IFERROR(VLOOKUP($A25,Filtro!$A$4:$AX$1932,7,FALSE),0) -> 15 | J25: =IFERROR(VLOOKUP($A25,Filtro!$A$4:$AX$1932,8,FALSE),0) -> 20 | K25: =IFERROR(VLOOKUP($A25,Filtro!$A$4:$AX$1932,9,FALSE),0) -> 7 | L25: =IFERROR(VLOOKUP($A25,Filtro!$A$4:$AX$1932,10,FALSE),0) -> 6 | M25: =IFERROR(VLOOKUP($A25,Filtro!$A$4:$AX$1932,11,FALSE),0) -> 24 | N25: =IFERROR(VLOOKUP($A25,Filtro!$A$4:$AX$1932,12,FALSE),0) -> 8 | O25: =IFERROR(VLOOKUP($A25,Filtro!$A$4:$AX$1932,13,FALSE),0) -> 29 | P25: =IFERROR(VLOOKUP($A25,Filtro!$A$4:$AX$1932,14,FALSE),0) -> 17 | Q25: =IFERROR(VLOOKUP($A25,Filtro!$A$4:$AX$1932,15,FALSE),0) -> 10 | R25: =IFERROR(VLOOKUP($A25,Filtro!$A$4:$AX$1932,16,FALSE),0) -> 7 | S25: =IFERROR(VLOOKUP($A25,Filtro!$A$4:$AX$1932,17,FALSE),0) -> 1
A26: 02010420 | C26: NORMAL (desde riesgo) | D26: =IFERROR(VLOOKUP($A26,Filtro!$A$4:$AX$1932,2,FALSE),0) -> 192 | E26: =IFERROR(VLOOKUP($A26,Filtro!$A$4:$AX$1932,3,FALSE),0) -> 113 | F26: =IFERROR(VLOOKUP($A26,Filtro!$A$4:$AX$1932,4,FALSE),0) -> 79 | G26: =IFERROR(VLOOKUP($A26,Filtro!$A$4:$AX$1932,5,FALSE),0) -> 1 | H26: =IFERROR(VLOOKUP($A26,Filtro!$A$4:$AX$1932,6,FALSE),0) -> 1 | I26: =IFERROR(VLOOKUP($A26,Filtro!$A$4:$AX$1932,7,FALSE),0) -> 10 | J26: =IFERROR(VLOOKUP($A26,Filtro!$A$4:$AX$1932,8,FALSE),0) -> 8 | K26: =IFERROR(VLOOKUP($A26,Filtro!$A$4:$AX$1932,9,FALSE),0) -> 12 | L26: =IFERROR(VLOOKUP($A26,Filtro!$A$4:$AX$1932,10,FALSE),0) -> 6 | M26: =IFERROR(VLOOKUP($A26,Filtro!$A$4:$AX$1932,11,FALSE),0) -> 52 | N26: =IFERROR(VLOOKUP($A26,Filtro!$A$4:$AX$1932,12,FALSE),0) -> 43 | O26: =IFERROR(VLOOKUP($A26,Filtro!$A$4:$AX$1932,13,FALSE),0) -> 30 | P26: =IFERROR(VLOOKUP($A26,Filtro!$A$4:$AX$1932,14,FALSE),0) -> 18 | Q26: =IFERROR(VLOOKUP($A26,Filtro!$A$4:$AX$1932,15,FALSE),0) -> 8 | R26: =IFERROR(VLOOKUP($A26,Filtro!$A$4:$AX$1932,16,FALSE),0) -> 3 | S26: =IFERROR(VLOOKUP($A26,Filtro!$A$4:$AX$1932,17,FALSE),0) -> 0
A27: 05225305 | C27: NORMAL (desde retraso) | D27: =IFERROR(VLOOKUP($A27,Filtro!$A$4:$AX$1932,2,FALSE),0) -> 23 | E27: =IFERROR(VLOOKUP($A27,Filtro!$A$4:$AX$1932,3,FALSE),0) -> 13 | F27: =IFERROR(VLOOKUP($A27,Filtro!$A$4:$AX$1932,4,FALSE),0) -> 10 | G27: =IFERROR(VLOOKUP($A27,Filtro!$A$4:$AX$1932,5,FALSE),0) -> 0 | H27: =IFERROR(VLOOKUP($A27,Filtro!$A$4:$AX$1932,6,FALSE),0) -> 0 | I27: =IFERROR(VLOOKUP($A27,Filtro!$A$4:$AX$1932,7,FALSE),0) -> 1 | J27: =IFERROR(VLOOKUP($A27,Filtro!$A$4:$AX$1932,8,FALSE),0) -> 0 | K27: =IFERROR(VLOOKUP($A27,Filtro!$A$4:$AX$1932,9,FALSE),0) -> 0 | L27: =IFERROR(VLOOKUP($A27,Filtro!$A$4:$AX$1932,10,FALSE),0) -> 1 | M27: =IFERROR(VLOOKUP($A27,Filtro!$A$4:$AX$1932,11,FALSE),0) -> 5 | N27: =IFERROR(VLOOKUP($A27,Filtro!$A$4:$AX$1932,12,FALSE),0) -> 3 | O27: =IFERROR(VLOOKUP($A27,Filtro!$A$4:$AX$1932,13,FALSE),0) -> 6 | P27: =IFERROR(VLOOKUP($A27,Filtro!$A$4:$AX$1932,14,FALSE),0) -> 3 | Q27: =IFERROR(VLOOKUP($A27,Filtro!$A$4:$AX$1932,15,FALSE),0) -> 1 | R27: =IFERROR(VLOOKUP($A27,Filtro!$A$4:$AX$1932,16,FALSE),0) -> 3 | S27: =IFERROR(VLOOKUP($A27,Filtro!$A$4:$AX$1932,17,FALSE),0) -> 1
A28: 03500366 | C28: NORMAL CON REZAGO (desde riesgo) | D28: =IFERROR(VLOOKUP($A28,Filtro!$A$4:$AX$1932,2,FALSE),0) -> 37 | E28: =IFERROR(VLOOKUP($A28,Filtro!$A$4:$AX$1932,3,FALSE),0) -> 24 | F28: =IFERROR(VLOOKUP($A28,Filtro!$A$4:$AX$1932,4,FALSE),0) -> 13 | G28: =IFERROR(VLOOKUP($A28,Filtro!$A$4:$AX$1932,5,FALSE),0) -> 0 | H28: =IFERROR(VLOOKUP($A28,Filtro!$A$4:$AX$1932,6,FALSE),0) -> 0 | I28: =IFERROR(VLOOKUP($A28,Filtro!$A$4:$AX$1932,7,FALSE),0) -> 4 | J28: =IFERROR(VLOOKUP($A28,Filtro!$A$4:$AX$1932,8,FALSE),0) -> 3 | K28: =IFERROR(VLOOKUP($A28,Filtro!$A$4:$AX$1932,9,FALSE),0) -> 4 | L28: =IFERROR(VLOOKUP($A28,Filtro!$A$4:$AX$1932,10,FALSE),0) -> 0 | M28: =IFERROR(VLOOKUP($A28,Filtro!$A$4:$AX$1932,11,FALSE),0) -> 6 | N28: =IFERROR(VLOOKUP($A28,Filtro!$A$4:$AX$1932,12,FALSE),0) -> 2 | O28: =IFERROR(VLOOKUP($A28,Filtro!$A$4:$AX$1932,13,FALSE),0) -> 6 | P28: =IFERROR(VLOOKUP($A28,Filtro!$A$4:$AX$1932,14,FALSE),0) -> 8 | Q28: =IFERROR(VLOOKUP($A28,Filtro!$A$4:$AX$1932,15,FALSE),0) -> 4 | R28: =IFERROR(VLOOKUP($A28,Filtro!$A$4:$AX$1932,16,FALSE),0) -> 0 | S28: =IFERROR(VLOOKUP($A28,Filtro!$A$4:$AX$1932,17,FALSE),0) -> 1
A29: 03500400 | C29: NORMAL CON REZAGO (desde retraso) | D29: =IFERROR(VLOOKUP($A29,Filtro!$A$4:$AX$1932,2,FALSE),0) -> 7 | E29: =IFERROR(VLOOKUP($A29,Filtro!$A$4:$AX$1932,3,FALSE),0) -> 6 | F29: =IFERROR(VLOOKUP($A29,Filtro!$A$4:$AX$1932,4,FALSE),0) -> 1 | G29: =IFERROR(VLOOKUP($A29,Filtro!$A$4:$AX$1932,5,FALSE),0) -> 0 | H29: =IFERROR(VLOOKUP($A29,Filtro!$A$4:$AX$1932,6,FALSE),0) -> 0 | I29: =IFERROR(VLOOKUP($A29,Filtro!$A$4:$AX$1932,7,FALSE),0) -> 0 | J29: =IFERROR(VLOOKUP($A29,Filtro!$A$4:$AX$1932,8,FALSE),0) -> 0 | K29: =IFERROR(VLOOKUP($A29,Filtro!$A$4:$AX$1932,9,FALSE),0) -> 0 | L29: =IFERROR(VLOOKUP($A29,Filtro!$A$4:$AX$1932,10,FALSE),0) -> 0 | M29: =IFERROR(VLOOKUP($A29,Filtro!$A$4:$AX$1932,11,FALSE),0) -> 3 | N29: =IFERROR(VLOOKUP($A29,Filtro!$A$4:$AX$1932,12,FALSE),0) -> 0 | O29: =IFERROR(VLOOKUP($A29,Filtro!$A$4:$AX$1932,13,FALSE),0) -> 2 | P29: =IFERROR(VLOOKUP($A29,Filtro!$A$4:$AX$1932,14,FALSE),0) -> 1 | Q29: =IFERROR(VLOOKUP($A29,Filtro!$A$4:$AX$1932,15,FALSE),0) -> 1 | R29: =IFERROR(VLOOKUP($A29,Filtro!$A$4:$AX$1932,16,FALSE),0) -> 0 | S29: =IFERROR(VLOOKUP($A29,Filtro!$A$4:$AX$1932,17,FALSE),0) -> 0
A30: 03500401 | C30: RIESGO (desde retraso) | D30: =IFERROR(VLOOKUP($A30,Filtro!$A$4:$AX$1932,2,FALSE),0) -> 9 | E30: =IFERROR(VLOOKUP($A30,Filtro!$A$4:$AX$1932,3,FALSE),0) -> 6 | F30: =IFERROR(VLOOKUP($A30,Filtro!$A$4:$AX$1932,4,FALSE),0) -> 3 | G30: =IFERROR(VLOOKUP($A30,Filtro!$A$4:$AX$1932,5,FALSE),0) -> 0 | H30: =IFERROR(VLOOKUP($A30,Filtro!$A$4:$AX$1932,6,FALSE),0) -> 0 | I30: =IFERROR(VLOOKUP($A30,Filtro!$A$4:$AX$1932,7,FALSE),0) -> 1 | J30: =IFERROR(VLOOKUP($A30,Filtro!$A$4:$AX$1932,8,FALSE),0) -> 0 | K30: =IFERROR(VLOOKUP($A30,Filtro!$A$4:$AX$1932,9,FALSE),0) -> 2 | L30: =IFERROR(VLOOKUP($A30,Filtro!$A$4:$AX$1932,10,FALSE),0) -> 0 | M30: =IFERROR(VLOOKUP($A30,Filtro!$A$4:$AX$1932,11,FALSE),0) -> 1 | N30: =IFERROR(VLOOKUP($A30,Filtro!$A$4:$AX$1932,12,FALSE),0) -> 1 | O30: =IFERROR(VLOOKUP($A30,Filtro!$A$4:$AX$1932,13,FALSE),0) -> 1 | P30: =IFERROR(VLOOKUP($A30,Filtro!$A$4:$AX$1932,14,FALSE),0) -> 2 | Q30: =IFERROR(VLOOKUP($A30,Filtro!$A$4:$AX$1932,15,FALSE),0) -> 1 | R30: =IFERROR(VLOOKUP($A30,Filtro!$A$4:$AX$1932,16,FALSE),0) -> 0 | S30: =IFERROR(VLOOKUP($A30,Filtro!$A$4:$AX$1932,17,FALSE),0) -> 0
A31: 05225306 | C31: NORMAL CON REZAGO (desde normal con rezago) | D31: =IFERROR(VLOOKUP($A31,Filtro!$A$4:$AX$1932,2,FALSE),0) -> 33 | E31: =IFERROR(VLOOKUP($A31,Filtro!$A$4:$AX$1932,3,FALSE),0) -> 19 | F31: =IFERROR(VLOOKUP($A31,Filtro!$A$4:$AX$1932,4,FALSE),0) -> 14 | G31: =IFERROR(VLOOKUP($A31,Filtro!$A$4:$AX$1932,5,FALSE),0) -> 0 | H31: =IFERROR(VLOOKUP($A31,Filtro!$A$4:$AX$1932,6,FALSE),0) -> 0 | I31: =IFERROR(VLOOKUP($A31,Filtro!$A$4:$AX$1932,7,FALSE),0) -> 0 | J31: =IFERROR(VLOOKUP($A31,Filtro!$A$4:$AX$1932,8,FALSE),0) -> 4 | K31: =IFERROR(VLOOKUP($A31,Filtro!$A$4:$AX$1932,9,FALSE),0) -> 1 | L31: =IFERROR(VLOOKUP($A31,Filtro!$A$4:$AX$1932,10,FALSE),0) -> 4 | M31: =IFERROR(VLOOKUP($A31,Filtro!$A$4:$AX$1932,11,FALSE),0) -> 3 | N31: =IFERROR(VLOOKUP($A31,Filtro!$A$4:$AX$1932,12,FALSE),0) -> 2 | O31: =IFERROR(VLOOKUP($A31,Filtro!$A$4:$AX$1932,13,FALSE),0) -> 12 | P31: =IFERROR(VLOOKUP($A31,Filtro!$A$4:$AX$1932,14,FALSE),0) -> 4 | Q31: =IFERROR(VLOOKUP($A31,Filtro!$A$4:$AX$1932,15,FALSE),0) -> 3 | R31: =IFERROR(VLOOKUP($A31,Filtro!$A$4:$AX$1932,16,FALSE),0) -> 0 | S31: =IFERROR(VLOOKUP($A31,Filtro!$A$4:$AX$1932,17,FALSE),0) -> 0
A32: 02010421 | C32: RIESGO (desde riesgo) | D32: =IFERROR(VLOOKUP($A32,Filtro!$A$4:$AX$1932,2,FALSE),0) -> 54 | E32: =IFERROR(VLOOKUP($A32,Filtro!$A$4:$AX$1932,3,FALSE),0) -> 40 | F32: =IFERROR(VLOOKUP($A32,Filtro!$A$4:$AX$1932,4,FALSE),0) -> 14 | G32: =IFERROR(VLOOKUP($A32,Filtro!$A$4:$AX$1932,5,FALSE),0) -> 1 | H32: =IFERROR(VLOOKUP($A32,Filtro!$A$4:$AX$1932,6,FALSE),0) -> 2 | I32: =IFERROR(VLOOKUP($A32,Filtro!$A$4:$AX$1932,7,FALSE),0) -> 2 | J32: =IFERROR(VLOOKUP($A32,Filtro!$A$4:$AX$1932,8,FALSE),0) -> 1 | K32: =IFERROR(VLOOKUP($A32,Filtro!$A$4:$AX$1932,9,FALSE),0) -> 5 | L32: =IFERROR(VLOOKUP($A32,Filtro!$A$4:$AX$1932,10,FALSE),0) -> 4 | M32: =IFERROR(VLOOKUP($A32,Filtro!$A$4:$AX$1932,11,FALSE),0) -> 11 | N32: =IFERROR(VLOOKUP($A32,Filtro!$A$4:$AX$1932,12,FALSE),0) -> 5 | O32: =IFERROR(VLOOKUP($A32,Filtro!$A$4:$AX$1932,13,FALSE),0) -> 18 | P32: =IFERROR(VLOOKUP($A32,Filtro!$A$4:$AX$1932,14,FALSE),0) -> 2 | Q32: =IFERROR(VLOOKUP($A32,Filtro!$A$4:$AX$1932,15,FALSE),0) -> 3 | R32: =IFERROR(VLOOKUP($A32,Filtro!$A$4:$AX$1932,16,FALSE),0) -> 0 | S32: =IFERROR(VLOOKUP($A32,Filtro!$A$4:$AX$1932,17,FALSE),0) -> 0
A33: 02010422 | C33: RETRASO (desde retraso) | D33: =IFERROR(VLOOKUP($A33,Filtro!$A$4:$AX$1932,2,FALSE),0) -> 20 | E33: =IFERROR(VLOOKUP($A33,Filtro!$A$4:$AX$1932,3,FALSE),0) -> 17 | F33: =IFERROR(VLOOKUP($A33,Filtro!$A$4:$AX$1932,4,FALSE),0) -> 3 | G33: =IFERROR(VLOOKUP($A33,Filtro!$A$4:$AX$1932,5,FALSE),0) -> 0 | H33: =IFERROR(VLOOKUP($A33,Filtro!$A$4:$AX$1932,6,FALSE),0) -> 0 | I33: =IFERROR(VLOOKUP($A33,Filtro!$A$4:$AX$1932,7,FALSE),0) -> 1 | J33: =IFERROR(VLOOKUP($A33,Filtro!$A$4:$AX$1932,8,FALSE),0) -> 0 | K33: =IFERROR(VLOOKUP($A33,Filtro!$A$4:$AX$1932,9,FALSE),0) -> 0 | L33: =IFERROR(VLOOKUP($A33,Filtro!$A$4:$AX$1932,10,FALSE),0) -> 1 | M33: =IFERROR(VLOOKUP($A33,Filtro!$A$4:$AX$1932,11,FALSE),0) -> 6 | N33: =IFERROR(VLOOKUP($A33,Filtro!$A$4:$AX$1932,12,FALSE),0) -> 2 | O33: =IFERROR(VLOOKUP($A33,Filtro!$A$4:$AX$1932,13,FALSE),0) -> 9 | P33: =IFERROR(VLOOKUP($A33,Filtro!$A$4:$AX$1932,14,FALSE),0) -> 0 | Q33: =IFERROR(VLOOKUP($A33,Filtro!$A$4:$AX$1932,15,FALSE),0) -> 1 | R33: =IFERROR(VLOOKUP($A33,Filtro!$A$4:$AX$1932,16,FALSE),0) -> 0 | S33: =IFERROR(VLOOKUP($A33,Filtro!$A$4:$AX$1932,17,FALSE),0) -> 0
A34: 03500331 | B34: DERIVADOS A ESPECIALIDAD | C34: RIESGO | D34: =IFERROR(VLOOKUP($A34,Filtro!$A$4:$AX$1932,2,FALSE),0) -> 34 | E34: =IFERROR(VLOOKUP($A34,Filtro!$A$4:$AX$1932,3,FALSE),0) -> 23 | F34: =IFERROR(VLOOKUP($A34,Filtro!$A$4:$AX$1932,4,FALSE),0) -> 11 | G34: =IFERROR(VLOOKUP($A34,Filtro!$A$4:$AX$1932,5,FALSE),0) -> 0 | H34: =IFERROR(VLOOKUP($A34,Filtro!$A$4:$AX$1932,6,FALSE),0) -> 0 | I34: =IFERROR(VLOOKUP($A34,Filtro!$A$4:$AX$1932,7,FALSE),0) -> 3 | J34: =IFERROR(VLOOKUP($A34,Filtro!$A$4:$AX$1932,8,FALSE),0) -> 2 | K34: =IFERROR(VLOOKUP($A34,Filtro!$A$4:$AX$1932,9,FALSE),0) -> 1 | L34: =IFERROR(VLOOKUP($A34,Filtro!$A$4:$AX$1932,10,FALSE),0) -> 2 | M34: =IFERROR(VLOOKUP($A34,Filtro!$A$4:$AX$1932,11,FALSE),0) -> 6 | N34: =IFERROR(VLOOKUP($A34,Filtro!$A$4:$AX$1932,12,FALSE),0) -> 7 | O34: =IFERROR(VLOOKUP($A34,Filtro!$A$4:$AX$1932,13,FALSE),0) -> 12 | P34: =IFERROR(VLOOKUP($A34,Filtro!$A$4:$AX$1932,14,FALSE),0) -> 0 | Q34: =IFERROR(VLOOKUP($A34,Filtro!$A$4:$AX$1932,15,FALSE),0) -> 1 | R34: =IFERROR(VLOOKUP($A34,Filtro!$A$4:$AX$1932,16,FALSE),0) -> 0 | S34: =IFERROR(VLOOKUP($A34,Filtro!$A$4:$AX$1932,17,FALSE),0) -> 0
A35: 03500332 | C35: RETRASO | D35: =IFERROR(VLOOKUP($A35,Filtro!$A$4:$AX$1932,2,FALSE),0) -> 33 | E35: =IFERROR(VLOOKUP($A35,Filtro!$A$4:$AX$1932,3,FALSE),0) -> 26 | F35: =IFERROR(VLOOKUP($A35,Filtro!$A$4:$AX$1932,4,FALSE),0) -> 7 | G35: =IFERROR(VLOOKUP($A35,Filtro!$A$4:$AX$1932,5,FALSE),0) -> 0 | H35: =IFERROR(VLOOKUP($A35,Filtro!$A$4:$AX$1932,6,FALSE),0) -> 0 | I35: =IFERROR(VLOOKUP($A35,Filtro!$A$4:$AX$1932,7,FALSE),0) -> 0 | J35: =IFERROR(VLOOKUP($A35,Filtro!$A$4:$AX$1932,8,FALSE),0) -> 0 | K35: =IFERROR(VLOOKUP($A35,Filtro!$A$4:$AX$1932,9,FALSE),0) -> 0 | L35: =IFERROR(VLOOKUP($A35,Filtro!$A$4:$AX$1932,10,FALSE),0) -> 2 | M35: =IFERROR(VLOOKUP($A35,Filtro!$A$4:$AX$1932,11,FALSE),0) -> 11 | N35: =IFERROR(VLOOKUP($A35,Filtro!$A$4:$AX$1932,12,FALSE),0) -> 3 | O35: =IFERROR(VLOOKUP($A35,Filtro!$A$4:$AX$1932,13,FALSE),0) -> 15 | P35: =IFERROR(VLOOKUP($A35,Filtro!$A$4:$AX$1932,14,FALSE),0) -> 2 | Q35: =IFERROR(VLOOKUP($A35,Filtro!$A$4:$AX$1932,15,FALSE),0) -> 0 | R35: =IFERROR(VLOOKUP($A35,Filtro!$A$4:$AX$1932,16,FALSE),0) -> 0 | S35: =IFERROR(VLOOKUP($A35,Filtro!$A$4:$AX$1932,17,FALSE),0) -> 0
A36: 03500333 | B36: TRASLADO DE ESTABLECIMIENTO | C36: NORMAL CON REZAGO | D36: =IFERROR(VLOOKUP($A36,Filtro!$A$4:$AX$1932,2,FALSE),0) -> 3 | E36: =IFERROR(VLOOKUP($A36,Filtro!$A$4:$AX$1932,3,FALSE),0) -> 1 | F36: =IFERROR(VLOOKUP($A36,Filtro!$A$4:$AX$1932,4,FALSE),0) -> 2 | G36: =IFERROR(VLOOKUP($A36,Filtro!$A$4:$AX$1932,5,FALSE),0) -> 0 | H36: =IFERROR(VLOOKUP($A36,Filtro!$A$4:$AX$1932,6,FALSE),0) -> 0 | I36: =IFERROR(VLOOKUP($A36,Filtro!$A$4:$AX$1932,7,FALSE),0) -> 0 | J36: =IFERROR(VLOOKUP($A36,Filtro!$A$4:$AX$1932,8,FALSE),0) -> 1 | K36: =IFERROR(VLOOKUP($A36,Filtro!$A$4:$AX$1932,9,FALSE),0) -> 0 | L36: =IFERROR(VLOOKUP($A36,Filtro!$A$4:$AX$1932,10,FALSE),0) -> 0 | M36: =IFERROR(VLOOKUP($A36,Filtro!$A$4:$AX$1932,11,FALSE),0) -> 0 | N36: =IFERROR(VLOOKUP($A36,Filtro!$A$4:$AX$1932,12,FALSE),0) -> 0 | O36: =IFERROR(VLOOKUP($A36,Filtro!$A$4:$AX$1932,13,FALSE),0) -> 1 | P36: =IFERROR(VLOOKUP($A36,Filtro!$A$4:$AX$1932,14,FALSE),0) -> 1 | Q36: =IFERROR(VLOOKUP($A36,Filtro!$A$4:$AX$1932,15,FALSE),0) -> 0 | R36: =IFERROR(VLOOKUP($A36,Filtro!$A$4:$AX$1932,16,FALSE),0) -> 0 | S36: =IFERROR(VLOOKUP($A36,Filtro!$A$4:$AX$1932,17,FALSE),0) -> 0
A37: 03500334 | C37: RIESGO | D37: =IFERROR(VLOOKUP($A37,Filtro!$A$4:$AX$1932,2,FALSE),0) -> 4 | E37: =IFERROR(VLOOKUP($A37,Filtro!$A$4:$AX$1932,3,FALSE),0) -> 3 | F37: =IFERROR(VLOOKUP($A37,Filtro!$A$4:$AX$1932,4,FALSE),0) -> 1 | G37: =IFERROR(VLOOKUP($A37,Filtro!$A$4:$AX$1932,5,FALSE),0) -> 0 | H37: =IFERROR(VLOOKUP($A37,Filtro!$A$4:$AX$1932,6,FALSE),0) -> 0 | I37: =IFERROR(VLOOKUP($A37,Filtro!$A$4:$AX$1932,7,FALSE),0) -> 0 | J37: =IFERROR(VLOOKUP($A37,Filtro!$A$4:$AX$1932,8,FALSE),0) -> 0 | K37: =IFERROR(VLOOKUP($A37,Filtro!$A$4:$AX$1932,9,FALSE),0) -> 1 | L37: =IFERROR(VLOOKUP($A37,Filtro!$A$4:$AX$1932,10,FALSE),0) -> 0 | M37: =IFERROR(VLOOKUP($A37,Filtro!$A$4:$AX$1932,11,FALSE),0) -> 2 | N37: =IFERROR(VLOOKUP($A37,Filtro!$A$4:$AX$1932,12,FALSE),0) -> 1 | O37: =IFERROR(VLOOKUP($A37,Filtro!$A$4:$AX$1932,13,FALSE),0) -> 0 | P37: =IFERROR(VLOOKUP($A37,Filtro!$A$4:$AX$1932,14,FALSE),0) -> 0 | Q37: =IFERROR(VLOOKUP($A37,Filtro!$A$4:$AX$1932,15,FALSE),0) -> 0 | R37: =IFERROR(VLOOKUP($A37,Filtro!$A$4:$AX$1932,16,FALSE),0) -> 0 | S37: =IFERROR(VLOOKUP($A37,Filtro!$A$4:$AX$1932,17,FALSE),0) -> 0
A38: 03500335 | C38: RETRASO | D38: =IFERROR(VLOOKUP($A38,Filtro!$A$4:$AX$1932,2,FALSE),0) -> 1 | E38: =IFERROR(VLOOKUP($A38,Filtro!$A$4:$AX$1932,3,FALSE),0) -> 1 | F38: =IFERROR(VLOOKUP($A38,Filtro!$A$4:$AX$1932,4,FALSE),0) -> 0 | G38: =IFERROR(VLOOKUP($A38,Filtro!$A$4:$AX$1932,5,FALSE),0) -> 0 | H38: =IFERROR(VLOOKUP($A38,Filtro!$A$4:$AX$1932,6,FALSE),0) -> 0 | I38: =IFERROR(VLOOKUP($A38,Filtro!$A$4:$AX$1932,7,FALSE),0) -> 0 | J38: =IFERROR(VLOOKUP($A38,Filtro!$A$4:$AX$1932,8,FALSE),0) -> 0 | K38: =IFERROR(VLOOKUP($A38,Filtro!$A$4:$AX$1932,9,FALSE),0) -> 0 | L38: =IFERROR(VLOOKUP($A38,Filtro!$A$4:$AX$1932,10,FALSE),0) -> 0 | M38: =IFERROR(VLOOKUP($A38,Filtro!$A$4:$AX$1932,11,FALSE),0) -> 0 | N38: =IFERROR(VLOOKUP($A38,Filtro!$A$4:$AX$1932,12,FALSE),0) -> 0 | O38: =IFERROR(VLOOKUP($A38,Filtro!$A$4:$AX$1932,13,FALSE),0) -> 1 | P38: =IFERROR(VLOOKUP($A38,Filtro!$A$4:$AX$1932,14,FALSE),0) -> 0 | Q38: =IFERROR(VLOOKUP($A38,Filtro!$A$4:$AX$1932,15,FALSE),0) -> 0 | R38: =IFERROR(VLOOKUP($A38,Filtro!$A$4:$AX$1932,16,FALSE),0) -> 0 | S38: =IFERROR(VLOOKUP($A38,Filtro!$A$4:$AX$1932,17,FALSE),0) -> 0
B39: SECCIÓN A.3: NIÑOS Y NIÑAS CON REZAGO, DÉFICIT U OTRA VULNERABILIDAD DERIVADOS A ALGUNA MODALIDAD DE ESTIMULACIÓN EN LA PRIMERA EVALUACIÓN
B40: NIÑO / A | D40: TOTAL | G40: POR EDAD
G41: Menor 7 meses | I41: 7 - 11 meses | K41: 12 - 17 meses | M41: 18 - 23 meses | O41: 24 - 47 meses | Q41: 48 - 59 meses
D42: Ambos Sexos | E42: Hombres | F42: Mujeres | G42: Hombres | H42: Mujeres | I42: Hombres | J42: Mujeres | K42: Hombres | L42: Mujeres | M42: Hombres | N42: Mujeres | O42: Hombres | P42: Mujeres | Q42: Hombres | R42: Mujeres
A43: 02021790 | B43: NORMAL CON REZAGO | D43: =IFERROR(VLOOKUP($A43,Filtro!$A$4:$AX$1932,2,FALSE),0) -> 407 | E43: =IFERROR(VLOOKUP($A43,Filtro!$A$4:$AX$1932,3,FALSE),0) -> 223 | F43: =IFERROR(VLOOKUP($A43,Filtro!$A$4:$AX$1932,4,FALSE),0) -> 184 | G43: =IFERROR(VLOOKUP($A43,Filtro!$A$4:$AX$1932,5,FALSE),0) -> 13 | H43: =IFERROR(VLOOKUP($A43,Filtro!$A$4:$AX$1932,6,FALSE),0) -> 27 | I43: =IFERROR(VLOOKUP($A43,Filtro!$A$4:$AX$1932,7,FALSE),0) -> 38 | J43: =IFERROR(VLOOKUP($A43,Filtro!$A$4:$AX$1932,8,FALSE),0) -> 53 | K43: =IFERROR(VLOOKUP($A43,Filtro!$A$4:$AX$1932,9,FALSE),0) -> 21 | L43: =IFERROR(VLOOKUP($A43,Filtro!$A$4:$AX$1932,10,FALSE),0) -> 13 | M43: =IFERROR(VLOOKUP($A43,Filtro!$A$4:$AX$1932,11,FALSE),0) -> 64 | N43: =IFERROR(VLOOKUP($A43,Filtro!$A$4:$AX$1932,12,FALSE),0) -> 38 | O43: =IFERROR(VLOOKUP($A43,Filtro!$A$4:$AX$1932,13,FALSE),0) -> 80 | P43: =IFERROR(VLOOKUP($A43,Filtro!$A$4:$AX$1932,14,FALSE),0) -> 48 | Q43: =IFERROR(VLOOKUP($A43,Filtro!$A$4:$AX$1932,15,FALSE),0) -> 7 | R43: =IFERROR(VLOOKUP($A43,Filtro!$A$4:$AX$1932,16,FALSE),0) -> 5 | CB43: =IF(D43<>'A05'!D63,"* Niños derivados deben ser iguales al ingreso de niños(as) Normal con Rezago a salas de estimulación REM A05 sección F. ","") -> * Niños derivados deben ser iguales al ingreso de niños(as) Normal con Rezago a salas de estimulación REM A05 sección F.
A44: 02021810 | B44: RIESGO | D44: =IFERROR(VLOOKUP($A44,Filtro!$A$4:$AX$1932,2,FALSE),0) -> 440 | E44: =IFERROR(VLOOKUP($A44,Filtro!$A$4:$AX$1932,3,FALSE),0) -> 275 | F44: =IFERROR(VLOOKUP($A44,Filtro!$A$4:$AX$1932,4,FALSE),0) -> 165 | G44: =IFERROR(VLOOKUP($A44,Filtro!$A$4:$AX$1932,5,FALSE),0) -> 6 | H44: =IFERROR(VLOOKUP($A44,Filtro!$A$4:$AX$1932,6,FALSE),0) -> 2 | I44: =IFERROR(VLOOKUP($A44,Filtro!$A$4:$AX$1932,7,FALSE),0) -> 26 | J44: =IFERROR(VLOOKUP($A44,Filtro!$A$4:$AX$1932,8,FALSE),0) -> 45 | K44: =IFERROR(VLOOKUP($A44,Filtro!$A$4:$AX$1932,9,FALSE),0) -> 21 | L44: =IFERROR(VLOOKUP($A44,Filtro!$A$4:$AX$1932,10,FALSE),0) -> 16 | M44: =IFERROR(VLOOKUP($A44,Filtro!$A$4:$AX$1932,11,FALSE),0) -> 144 | N44: =IFERROR(VLOOKUP($A44,Filtro!$A$4:$AX$1932,12,FALSE),0) -> 74 | O44: =IFERROR(VLOOKUP($A44,Filtro!$A$4:$AX$1932,13,FALSE),0) -> 73 | P44: =IFERROR(VLOOKUP($A44,Filtro!$A$4:$AX$1932,14,FALSE),0) -> 28 | Q44: =IFERROR(VLOOKUP($A44,Filtro!$A$4:$AX$1932,15,FALSE),0) -> 5 | R44: =IFERROR(VLOOKUP($A44,Filtro!$A$4:$AX$1932,16,FALSE),0) -> 0 | CB44: =IF(D44<>'A05'!D64,"* Niños derivados deben ser iguales al ingreso de niños(as) con Riesgo a salas de estimulación REM A05 sección F. ","") -> * Niños derivados deben ser iguales al ingreso de niños(as) con Riesgo a salas de estimulación REM A05 sección F.
A45: 02021820 | B45: RETRASO | D45: =IFERROR(VLOOKUP($A45,Filtro!$A$4:$AX$1932,2,FALSE),0) -> 99 | E45: =IFERROR(VLOOKUP($A45,Filtro!$A$4:$AX$1932,3,FALSE),0) -> 72 | F45: =IFERROR(VLOOKUP($A45,Filtro!$A$4:$AX$1932,4,FALSE),0) -> 27 | G45: =IFERROR(VLOOKUP($A45,Filtro!$A$4:$AX$1932,5,FALSE),0) -> 2 | H45: =IFERROR(VLOOKUP($A45,Filtro!$A$4:$AX$1932,6,FALSE),0) -> 1 | I45: =IFERROR(VLOOKUP($A45,Filtro!$A$4:$AX$1932,7,FALSE),0) -> 6 | J45: =IFERROR(VLOOKUP($A45,Filtro!$A$4:$AX$1932,8,FALSE),0) -> 2 | K45: =IFERROR(VLOOKUP($A45,Filtro!$A$4:$AX$1932,9,FALSE),0) -> 3 | L45: =IFERROR(VLOOKUP($A45,Filtro!$A$4:$AX$1932,10,FALSE),0) -> 3 | M45: =IFERROR(VLOOKUP($A45,Filtro!$A$4:$AX$1932,11,FALSE),0) -> 32 | N45: =IFERROR(VLOOKUP($A45,Filtro!$A$4:$AX$1932,12,FALSE),0) -> 11 | O45: =IFERROR(VLOOKUP($A45,Filtro!$A$4:$AX$1932,13,FALSE),0) -> 27 | P45: =IFERROR(VLOOKUP($A45,Filtro!$A$4:$AX$1932,14,FALSE),0) -> 9 | Q45: =IFERROR(VLOOKUP($A45,Filtro!$A$4:$AX$1932,15,FALSE),0) -> 2 | R45: =IFERROR(VLOOKUP($A45,Filtro!$A$4:$AX$1932,16,FALSE),0) -> 1 | CB45: =IF(D45<>'A05'!D65,"* Niños derivados deben ser iguales al ingreso de niños(as) con Retraso a salas de estimulación REM A05 sección F. ","") -> * Niños derivados deben ser iguales al ingreso de niños(as) con Retraso a salas de estimulación REM A05 sección F.
A46: 05225307 | B46: OTRA VULNERABILIDAD | D46: =IFERROR(VLOOKUP($A46,Filtro!$A$4:$AX$1932,2,FALSE),0) -> 671 | E46: =IFERROR(VLOOKUP($A46,Filtro!$A$4:$AX$1932,3,FALSE),0) -> 371 | F46: =IFERROR(VLOOKUP($A46,Filtro!$A$4:$AX$1932,4,FALSE),0) -> 300 | G46: =IFERROR(VLOOKUP($A46,Filtro!$A$4:$AX$1932,5,FALSE),0) -> 115 | H46: =IFERROR(VLOOKUP($A46,Filtro!$A$4:$AX$1932,6,FALSE),0) -> 112 | I46: =IFERROR(VLOOKUP($A46,Filtro!$A$4:$AX$1932,7,FALSE),0) -> 39 | J46: =IFERROR(VLOOKUP($A46,Filtro!$A$4:$AX$1932,8,FALSE),0) -> 33 | K46: =IFERROR(VLOOKUP($A46,Filtro!$A$4:$AX$1932,9,FALSE),0) -> 52 | L46: =IFERROR(VLOOKUP($A46,Filtro!$A$4:$AX$1932,10,FALSE),0) -> 33 | M46: =IFERROR(VLOOKUP($A46,Filtro!$A$4:$AX$1932,11,FALSE),0) -> 40 | N46: =IFERROR(VLOOKUP($A46,Filtro!$A$4:$AX$1932,12,FALSE),0) -> 34 | O46: =IFERROR(VLOOKUP($A46,Filtro!$A$4:$AX$1932,13,FALSE),0) -> 112 | P46: =IFERROR(VLOOKUP($A46,Filtro!$A$4:$AX$1932,14,FALSE),0) -> 71 | Q46: =IFERROR(VLOOKUP($A46,Filtro!$A$4:$AX$1932,15,FALSE),0) -> 13 | R46: =IFERROR(VLOOKUP($A46,Filtro!$A$4:$AX$1932,16,FALSE),0) -> 17 | CB46: =IF(D46<>'A05'!D66,"* Niños derivados deben ser iguales al ingreso de niños(as) con Otras Vulnerabilidad a salas de estimulación REM A05 sección F. ","") -> * Niños derivados deben ser iguales al ingreso de niños(as) con Otras Vulnerabilidad a salas de estimulación REM A05 sección F.
B47: SECCIÓN A.4: RESULTADOS DE LA APLICACIÓN DE PROTOCOLO NEUROSENSORIAL
B48: RESULTADOS | D48: TOTAL | G48: POR EDAD
G49: 1 mes | I49: 2 meses
D50: Ambos Sexos | E50: Hombres | F50: Mujeres | G50: Hombres | H50: Mujeres | I50: Hombres | J50: Mujeres
A51: 02021760 | B51: APLICACIÓN DE PROTOCOLO NEUROSENSORIAL (1-2 MESES) | D51: =SUM(E51+F51) -> 3332 | E51: =SUM(G51+I51) -> 1670 | F51: =SUM(H51+J51) -> 1662 | G51: =SUM(G52:G54) -> 1388 | H51: =SUM(H52:H54) -> 1380 | I51: =SUM(I52:I54) -> 282 | J51: =SUM(J52:J54) -> 282
A52: 03500040 | B52: NORMAL | D52: =IFERROR(VLOOKUP($A52,Filtro!$A$4:$AX$1932,2,FALSE),0) -> 2847 | E52: =IFERROR(VLOOKUP($A52,Filtro!$A$4:$AX$1932,3,FALSE),0) -> 1429 | F52: =IFERROR(VLOOKUP($A52,Filtro!$A$4:$AX$1932,4,FALSE),0) -> 1418 | G52: =IFERROR(VLOOKUP($A52,Filtro!$A$4:$AX$1932,5,FALSE),0) -> 1198 | H52: =IFERROR(VLOOKUP($A52,Filtro!$A$4:$AX$1932,6,FALSE),0) -> 1197 | I52: =IFERROR(VLOOKUP($A52,Filtro!$A$4:$AX$1932,7,FALSE),0) -> 231 | J52: =IFERROR(VLOOKUP($A52,Filtro!$A$4:$AX$1932,8,FALSE),0) -> 221
A53: 03500050 | B53: ANORMAL | D53: =IFERROR(VLOOKUP($A53,Filtro!$A$4:$AX$1932,2,FALSE),0) -> 474 | E53: =IFERROR(VLOOKUP($A53,Filtro!$A$4:$AX$1932,3,FALSE),0) -> 237 | F53: =IFERROR(VLOOKUP($A53,Filtro!$A$4:$AX$1932,4,FALSE),0) -> 237 | G53: =IFERROR(VLOOKUP($A53,Filtro!$A$4:$AX$1932,5,FALSE),0) -> 188 | H53: =IFERROR(VLOOKUP($A53,Filtro!$A$4:$AX$1932,6,FALSE),0) -> 178 | I53: =IFERROR(VLOOKUP($A53,Filtro!$A$4:$AX$1932,7,FALSE),0) -> 49 | J53: =IFERROR(VLOOKUP($A53,Filtro!$A$4:$AX$1932,8,FALSE),0) -> 59
A54: 03500060 | B54: MUY ANORMAL | D54: =IFERROR(VLOOKUP($A54,Filtro!$A$4:$AX$1932,2,FALSE),0) -> 11 | E54: =IFERROR(VLOOKUP($A54,Filtro!$A$4:$AX$1932,3,FALSE),0) -> 4 | F54: =IFERROR(VLOOKUP($A54,Filtro!$A$4:$AX$1932,4,FALSE),0) -> 7 | G54: =IFERROR(VLOOKUP($A54,Filtro!$A$4:$AX$1932,5,FALSE),0) -> 2 | H54: =IFERROR(VLOOKUP($A54,Filtro!$A$4:$AX$1932,6,FALSE),0) -> 5 | I54: =IFERROR(VLOOKUP($A54,Filtro!$A$4:$AX$1932,7,FALSE),0) -> 2 | J54: =IFERROR(VLOOKUP($A54,Filtro!$A$4:$AX$1932,8,FALSE),0) -> 2
B55: SECCIÓN A.5: LACTANCIA MATERNA EN MENORES CONTROLADOS
B56: TIPO DE ALIMENTACIÓN | D56: TOTAL | G56: SEGÚN CONTROL PROGRAMÁTICO
G57: Del 1° mes | I57: Del 3° mes | K57: Del 6° mes | M57: Del 12° mes | O57: Del 24° mes
D58: Ambos Sexos | E58: Hombres | F58: Mujeres | G58: Hombres | H58: Mujeres | I58: Hombres | J58: Mujeres | K58: Hombres | L58: Mujeres | M58: Hombres | N58: Mujeres | O58: Hombres | P58: Mujeres
A59: A0200001 | B59: MENORES CONTROLADOS | D59: =IFERROR(VLOOKUP($A59,Filtro!$A$4:$AX$1932,2,FALSE),0) -> 13472 | E59: =IFERROR(VLOOKUP($A59,Filtro!$A$4:$AX$1932,3,FALSE),0) -> 6803 | F59: =IFERROR(VLOOKUP($A59,Filtro!$A$4:$AX$1932,4,FALSE),0) -> 6669 | G59: =IFERROR(VLOOKUP($A59,Filtro!$A$4:$AX$1932,5,FALSE),0) -> 2092 | H59: =IFERROR(VLOOKUP($A59,Filtro!$A$4:$AX$1932,6,FALSE),0) -> 2022 | I59: =IFERROR(VLOOKUP($A59,Filtro!$A$4:$AX$1932,7,FALSE),0) -> 1492 | J59: =IFERROR(VLOOKUP($A59,Filtro!$A$4:$AX$1932,8,FALSE),0) -> 1438 | K59: =IFERROR(VLOOKUP($A59,Filtro!$A$4:$AX$1932,9,FALSE),0) -> 1844 | L59: =IFERROR(VLOOKUP($A59,Filtro!$A$4:$AX$1932,10,FALSE),0) -> 1826 | M59: =IFERROR(VLOOKUP($A59,Filtro!$A$4:$AX$1932,11,FALSE),0) -> 887 | N59: =IFERROR(VLOOKUP($A59,Filtro!$A$4:$AX$1932,12,FALSE),0) -> 916 | O59: =IFERROR(VLOOKUP($A59,Filtro!$A$4:$AX$1932,13,FALSE),0) -> 488 | P59: =IFERROR(VLOOKUP($A59,Filtro!$A$4:$AX$1932,14,FALSE),0) -> 467 | CH59: 0 | CI59: 0 | CJ59: 0 | CK59: 0 | CL59: 0
A60: A0200002 | B60: LACTANCIA MATERNA EXCLUSIVA | D60: =IFERROR(VLOOKUP($A60,Filtro!$A$4:$AX$1932,2,FALSE),0) -> 7569 | E60: =IFERROR(VLOOKUP($A60,Filtro!$A$4:$AX$1932,3,FALSE),0) -> 3775 | F60: =IFERROR(VLOOKUP($A60,Filtro!$A$4:$AX$1932,4,FALSE),0) -> 3794 | G60: =IFERROR(VLOOKUP($A60,Filtro!$A$4:$AX$1932,5,FALSE),0) -> 1552 | H60: =IFERROR(VLOOKUP($A60,Filtro!$A$4:$AX$1932,6,FALSE),0) -> 1577 | I60: =IFERROR(VLOOKUP($A60,Filtro!$A$4:$AX$1932,7,FALSE),0) -> 1064 | J60: =IFERROR(VLOOKUP($A60,Filtro!$A$4:$AX$1932,8,FALSE),0) -> 1056 | K60: =IFERROR(VLOOKUP($A60,Filtro!$A$4:$AX$1932,9,FALSE),0) -> 1159 | L60: =IFERROR(VLOOKUP($A60,Filtro!$A$4:$AX$1932,10,FALSE),0) -> 1161 | M60: =IFERROR(VLOOKUP($A60,Filtro!$A$4:$AX$1932,11,FALSE),0) -> 0 | N60: =IFERROR(VLOOKUP($A60,Filtro!$A$4:$AX$1932,12,FALSE),0) -> 0 | O60: =IFERROR(VLOOKUP($A60,Filtro!$A$4:$AX$1932,13,FALSE),0) -> 0 | P60: =IFERROR(VLOOKUP($A60,Filtro!$A$4:$AX$1932,14,FALSE),0) -> 0
A61: 03500359 | B61: LACTANCIA MATERNA / FORMULA LACTEA | D61: =IFERROR(VLOOKUP($A61,Filtro!$A$4:$AX$1932,2,FALSE),0) -> 1904 | E61: =IFERROR(VLOOKUP($A61,Filtro!$A$4:$AX$1932,3,FALSE),0) -> 1014 | F61: =IFERROR(VLOOKUP($A61,Filtro!$A$4:$AX$1932,4,FALSE),0) -> 890 | G61: =IFERROR(VLOOKUP($A61,Filtro!$A$4:$AX$1932,5,FALSE),0) -> 462 | H61: =IFERROR(VLOOKUP($A61,Filtro!$A$4:$AX$1932,6,FALSE),0) -> 372 | I61: =IFERROR(VLOOKUP($A61,Filtro!$A$4:$AX$1932,7,FALSE),0) -> 300 | J61: =IFERROR(VLOOKUP($A61,Filtro!$A$4:$AX$1932,8,FALSE),0) -> 266 | K61: =IFERROR(VLOOKUP($A61,Filtro!$A$4:$AX$1932,9,FALSE),0) -> 252 | L61: =IFERROR(VLOOKUP($A61,Filtro!$A$4:$AX$1932,10,FALSE),0) -> 252 | M61: =IFERROR(VLOOKUP($A61,Filtro!$A$4:$AX$1932,11,FALSE),0) -> 0 | N61: =IFERROR(VLOOKUP($A61,Filtro!$A$4:$AX$1932,12,FALSE),0) -> 0 | O61: =IFERROR(VLOOKUP($A61,Filtro!$A$4:$AX$1932,13,FALSE),0) -> 0 | P61: =IFERROR(VLOOKUP($A61,Filtro!$A$4:$AX$1932,14,FALSE),0) -> 0
A62: 03500360 | B62: FORMULA LACTEA | D62: =IFERROR(VLOOKUP($A62,Filtro!$A$4:$AX$1932,2,FALSE),0) -> 721 | E62: =IFERROR(VLOOKUP($A62,Filtro!$A$4:$AX$1932,3,FALSE),0) -> 381 | F62: =IFERROR(VLOOKUP($A62,Filtro!$A$4:$AX$1932,4,FALSE),0) -> 340 | G62: =IFERROR(VLOOKUP($A62,Filtro!$A$4:$AX$1932,5,FALSE),0) -> 69 | H62: =IFERROR(VLOOKUP($A62,Filtro!$A$4:$AX$1932,6,FALSE),0) -> 62 | I62: =IFERROR(VLOOKUP($A62,Filtro!$A$4:$AX$1932,7,FALSE),0) -> 114 | J62: =IFERROR(VLOOKUP($A62,Filtro!$A$4:$AX$1932,8,FALSE),0) -> 115 | K62: =IFERROR(VLOOKUP($A62,Filtro!$A$4:$AX$1932,9,FALSE),0) -> 198 | L62: =IFERROR(VLOOKUP($A62,Filtro!$A$4:$AX$1932,10,FALSE),0) -> 163 | M62: =IFERROR(VLOOKUP($A62,Filtro!$A$4:$AX$1932,11,FALSE),0) -> 0 | N62: =IFERROR(VLOOKUP($A62,Filtro!$A$4:$AX$1932,12,FALSE),0) -> 0 | O62: =IFERROR(VLOOKUP($A62,Filtro!$A$4:$AX$1932,13,FALSE),0) -> 0 | P62: =IFERROR(VLOOKUP($A62,Filtro!$A$4:$AX$1932,14,FALSE),0) -> 0
A63: A0200003 | B63: LACTANCIA MATERNA MAS SÓLIDOS | D63: =IFERROR(VLOOKUP($A63,Filtro!$A$4:$AX$1932,2,FALSE),0) -> 1772 | E63: =IFERROR(VLOOKUP($A63,Filtro!$A$4:$AX$1932,3,FALSE),0) -> 850 | F63: =IFERROR(VLOOKUP($A63,Filtro!$A$4:$AX$1932,4,FALSE),0) -> 922 | G63: =IFERROR(VLOOKUP($A63,Filtro!$A$4:$AX$1932,5,FALSE),0) -> 0 | H63: =IFERROR(VLOOKUP($A63,Filtro!$A$4:$AX$1932,6,FALSE),0) -> 0 | I63: =IFERROR(VLOOKUP($A63,Filtro!$A$4:$AX$1932,7,FALSE),0) -> 0 | J63: =IFERROR(VLOOKUP($A63,Filtro!$A$4:$AX$1932,8,FALSE),0) -> 0 | K63: =IFERROR(VLOOKUP($A63,Filtro!$A$4:$AX$1932,9,FALSE),0) -> 207 | L63: =IFERROR(VLOOKUP($A63,Filtro!$A$4:$AX$1932,10,FALSE),0) -> 230 | M63: =IFERROR(VLOOKUP($A63,Filtro!$A$4:$AX$1932,11,FALSE),0) -> 524 | N63: =IFERROR(VLOOKUP($A63,Filtro!$A$4:$AX$1932,12,FALSE),0) -> 557 | O63: =IFERROR(VLOOKUP($A63,Filtro!$A$4:$AX$1932,13,FALSE),0) -> 119 | P63: =IFERROR(VLOOKUP($A63,Filtro!$A$4:$AX$1932,14,FALSE),0) -> 135
B64: SECCION B: EVALUACIÓN, APLICACIÓN Y RESULTADOS DE ESCALAS EN LA MUJER
B65: SECCIÓN B.1: EVALUACIÓN DEL ESTADO NUTRICIONAL A MUJERES CONTROLADAS AL OCTAVO MES POST PARTO
B66: ESTADO NUTRICIONAL | D66: TOTAL
B68: TOTAL | D68: =SUM(D69:D72) -> 515
A69: 03500120 | B69: OBESA | D69: =IFERROR(VLOOKUP($A69,Filtro!$A$4:$AX$1932,2,FALSE),0) -> 157
A70: 03500130 | B70: SOBREPESO | D70: =IFERROR(VLOOKUP($A70,Filtro!$A$4:$AX$1932,2,FALSE),0) -> 192
A71: 03500140 | B71: NORMAL | D71: =IFERROR(VLOOKUP($A71,Filtro!$A$4:$AX$1932,2,FALSE),0) -> 153
A72: 03500150 | B72: BAJO PESO | D72: =IFERROR(VLOOKUP($A72,Filtro!$A$4:$AX$1932,2,FALSE),0) -> 13
B73: SECCIÓN B.2: APLICACIÓN DE ESCALA SEGÚN EVALUACIÓN DE RIESGO PSICOSOCIAL ABREVIADA A GESTANTES
B74: TIPO | D74: TOTAL DE APLICACIONES | E74: RIESGO | F74: DERIVADAS A EQUIPO DE CABECERA
A75: 02021830 | B75: EVALUACIÓN AL INGRESO | D75: =IFERROR(VLOOKUP($A75,Filtro!$A$4:$AX$1932,2,FALSE),0) -> 6206 | E75: =IFERROR(VLOOKUP($A75,Filtro!$A$4:$AX$1932,3,FALSE),0) -> 1623 | F75: =IFERROR(VLOOKUP($A75,Filtro!$A$4:$AX$1932,4,FALSE),0) -> 1555 | CD75: =IF(D75<='A05'!D11,"", "* Total de aplicaciones EPSA NO DEBE ser MAYOR que el Total de Gestantes ingresadas en REM A05 Secci„n A. ") ->  | CH75: 0 | CI75: 0
B76: SECCIÓN B.3: APLICACIÓN DE ESCALA DE EDIMBURGO A GESTANTES Y MUJERES POST PARTO | CH76: 0
B77: CONCEPTO | D77: TOTAL DE APLICACIONES | E77: RESULTADOS 10 O MÁS PTOS. O RESULTADO DISTINTO DE 0 EN PREG 10 . (PUERPERAS) | F77: RESULTADOS 13 O MÁS PTOS O RESULTADO DISTINTO DE 0 EN PREG 10. (GESTANTES) | G77: TOTAL DE CASOS ALTERADOS DERIVADOS A SALUD MENTAL | CH77: 0
A78: 03500160 | B78: EVALUACIÓN A GESTANTES | C78: PRIMERA EVALUACIÓN (2º control prenatal) | D78: =IFERROR(VLOOKUP($A78,Filtro!$A$4:$AX$1932,2,FALSE),0) -> 5933 | E78: =IFERROR(VLOOKUP($A78,Filtro!$A$4:$AX$1932,3,FALSE),0) -> 0 | F78: =IFERROR(VLOOKUP($A78,Filtro!$A$4:$AX$1932,4,FALSE),0) -> 540 | G78: =IFERROR(VLOOKUP($A78,Filtro!$A$4:$AX$1932,5,FALSE),0) -> 469 | CH78: 0
A79: 03500170 | C79: REEVALUACIÓN (con puntaje elevado en la primera evaluación) | D79: =IFERROR(VLOOKUP($A79,Filtro!$A$4:$AX$1932,2,FALSE),0) -> 61 | E79: =IFERROR(VLOOKUP($A79,Filtro!$A$4:$AX$1932,3,FALSE),0) -> 0 | F79: =IFERROR(VLOOKUP($A79,Filtro!$A$4:$AX$1932,4,FALSE),0) -> 9 | G79: =IFERROR(VLOOKUP($A79,Filtro!$A$4:$AX$1932,5,FALSE),0) -> 5 | CH79: 0
A80: 03500200 | B80: EVALUACIÓN A MUJERES POST PARTO O SÍNTOMAS DE DEPRESIÓN | C80: A los 2 meses | D80: =IFERROR(VLOOKUP($A80,Filtro!$A$4:$AX$1932,2,FALSE),0) -> 3847 | E80: =IFERROR(VLOOKUP($A80,Filtro!$A$4:$AX$1932,3,FALSE),0) -> 469 | F80: =IFERROR(VLOOKUP($A80,Filtro!$A$4:$AX$1932,4,FALSE),0) -> 0 | G80: =IFERROR(VLOOKUP($A80,Filtro!$A$4:$AX$1932,5,FALSE),0) -> 211 | CH80: 0
A81: 03500210 | C81: A los 6 meses | D81: =IFERROR(VLOOKUP($A81,Filtro!$A$4:$AX$1932,2,FALSE),0) -> 3473 | E81: =IFERROR(VLOOKUP($A81,Filtro!$A$4:$AX$1932,3,FALSE),0) -> 441 | F81: =IFERROR(VLOOKUP($A81,Filtro!$A$4:$AX$1932,4,FALSE),0) -> 0 | G81: =IFERROR(VLOOKUP($A81,Filtro!$A$4:$AX$1932,5,FALSE),0) -> 208 | CH81: 0
B82: SECCIÓN C: RESULTADOS DE LA EVALUACIÓN DEL ESTADO NUTRICIONAL DEL ADOLESCENTE CON CONTROL SALUD INTEGRAL
B83: ESTADO NUTRICIONAL | D83: TOTAL | G83: 10 A 14 | I83: 15 A 19
D84: Ambos Sexos | E84: Hombres | F84: Mujeres | G84: Hombres | H84: Mujeres | I84: Hombres | J84: Mujeres
B85: TOTAL | D85: =SUM(D86:D90) -> 1516 | E85: 599 | F85: 917 | G85: 376 | H85: 481 | I85: 223 | J85: 436
A86: 03050400 | B86: NORMAL | D86: =IFERROR(VLOOKUP($A86,Filtro!$A$4:$AX$1932,2,FALSE),0) -> 697 | E86: =IFERROR(VLOOKUP($A86,Filtro!$A$4:$AX$1932,3,FALSE),0) -> 253 | F86: =IFERROR(VLOOKUP($A86,Filtro!$A$4:$AX$1932,4,FALSE),0) -> 444 | G86: =IFERROR(VLOOKUP($A86,Filtro!$A$4:$AX$1932,5,FALSE),0) -> 138 | H86: =IFERROR(VLOOKUP($A86,Filtro!$A$4:$AX$1932,6,FALSE),0) -> 219 | I86: =IFERROR(VLOOKUP($A86,Filtro!$A$4:$AX$1932,7,FALSE),0) -> 115 | J86: =IFERROR(VLOOKUP($A86,Filtro!$A$4:$AX$1932,8,FALSE),0) -> 225
A87: 03050500 | B87: BAJO PESO | D87: =IFERROR(VLOOKUP($A87,Filtro!$A$4:$AX$1932,2,FALSE),0) -> 117 | E87: =IFERROR(VLOOKUP($A87,Filtro!$A$4:$AX$1932,3,FALSE),0) -> 62 | F87: =IFERROR(VLOOKUP($A87,Filtro!$A$4:$AX$1932,4,FALSE),0) -> 55 | G87: =IFERROR(VLOOKUP($A87,Filtro!$A$4:$AX$1932,5,FALSE),0) -> 36 | H87: =IFERROR(VLOOKUP($A87,Filtro!$A$4:$AX$1932,6,FALSE),0) -> 33 | I87: =IFERROR(VLOOKUP($A87,Filtro!$A$4:$AX$1932,7,FALSE),0) -> 26 | J87: =IFERROR(VLOOKUP($A87,Filtro!$A$4:$AX$1932,8,FALSE),0) -> 22
A88: 03050600 | B88: SOBREPESO | D88: =IFERROR(VLOOKUP($A88,Filtro!$A$4:$AX$1932,2,FALSE),0) -> 373 | E88: =IFERROR(VLOOKUP($A88,Filtro!$A$4:$AX$1932,3,FALSE),0) -> 134 | F88: =IFERROR(VLOOKUP($A88,Filtro!$A$4:$AX$1932,4,FALSE),0) -> 239 | G88: =IFERROR(VLOOKUP($A88,Filtro!$A$4:$AX$1932,5,FALSE),0) -> 89 | H88: =IFERROR(VLOOKUP($A88,Filtro!$A$4:$AX$1932,6,FALSE),0) -> 133 | I88: =IFERROR(VLOOKUP($A88,Filtro!$A$4:$AX$1932,7,FALSE),0) -> 45 | J88: =IFERROR(VLOOKUP($A88,Filtro!$A$4:$AX$1932,8,FALSE),0) -> 106
A89: 03050700 | B89: OBESOS | D89: =IFERROR(VLOOKUP($A89,Filtro!$A$4:$AX$1932,2,FALSE),0) -> 290 | E89: =IFERROR(VLOOKUP($A89,Filtro!$A$4:$AX$1932,3,FALSE),0) -> 130 | F89: =IFERROR(VLOOKUP($A89,Filtro!$A$4:$AX$1932,4,FALSE),0) -> 160 | G89: =IFERROR(VLOOKUP($A89,Filtro!$A$4:$AX$1932,5,FALSE),0) -> 99 | H89: =IFERROR(VLOOKUP($A89,Filtro!$A$4:$AX$1932,6,FALSE),0) -> 88 | I89: =IFERROR(VLOOKUP($A89,Filtro!$A$4:$AX$1932,7,FALSE),0) -> 31 | J89: =IFERROR(VLOOKUP($A89,Filtro!$A$4:$AX$1932,8,FALSE),0) -> 72
A90: 03050710 | B90: OBESOS SEVEROS | D90: =IFERROR(VLOOKUP($A90,Filtro!$A$4:$AX$1932,2,FALSE),0) -> 39 | E90: =IFERROR(VLOOKUP($A90,Filtro!$A$4:$AX$1932,3,FALSE),0) -> 20 | F90: =IFERROR(VLOOKUP($A90,Filtro!$A$4:$AX$1932,4,FALSE),0) -> 19 | G90: =IFERROR(VLOOKUP($A90,Filtro!$A$4:$AX$1932,5,FALSE),0) -> 14 | H90: =IFERROR(VLOOKUP($A90,Filtro!$A$4:$AX$1932,6,FALSE),0) -> 8 | I90: =IFERROR(VLOOKUP($A90,Filtro!$A$4:$AX$1932,7,FALSE),0) -> 6 | J90: =IFERROR(VLOOKUP($A90,Filtro!$A$4:$AX$1932,8,FALSE),0) -> 11
B91: SECCIÓN D: OTRAS EVALUACIONES, APLICACIONES Y RESULTADOS DE ESCALAS EN TODAS LAS EDADES
B92: SECCIÓN D.1: APLICACIÓN DE TAMIZAJE PARA EVALUAR EL NIVEL DE RIESGO DE CONSUMO DE ALCOHOL, TABACO Y OTRAS DROGAS
B93: COMPONENTE | D93: TOTAL | G93: POR EDAD
G94: 10-14 años | I94: 15-19 años | K94: 20-24 años | M94: 25-44 años | O94: 45-64 años | Q94: 65 o más
D95: Ambos Sexos | E95: Hombres | F95: Mujeres | G95: Hombres | H95: Mujeres | I95: Hombres | J95: Mujeres | K95: Hombres | L95: Mujeres | M95: Hombres | N95: Mujeres | O95: Hombres | P95: Mujeres | Q95: Hombres | R95: Mujeres
A96: 03500346 | B96: Nº DE AUDIT (EMP/EMPAM) | D96: =IFERROR(VLOOKUP($A96,Filtro!$A$4:$AX$1932,2,FALSE),0) -> 8149 | E96: =IFERROR(VLOOKUP($A96,Filtro!$A$4:$AX$1932,3,FALSE),0) -> 2935 | F96: =IFERROR(VLOOKUP($A96,Filtro!$A$4:$AX$1932,4,FALSE),0) -> 5214 | G96: =IFERROR(VLOOKUP($A96,Filtro!$A$4:$AX$1932,5,FALSE),0) -> 0 | H96: =IFERROR(VLOOKUP($A96,Filtro!$A$4:$AX$1932,6,FALSE),0) -> 0 | I96: =IFERROR(VLOOKUP($A96,Filtro!$A$4:$AX$1932,7,FALSE),0) -> 22 | J96: =IFERROR(VLOOKUP($A96,Filtro!$A$4:$AX$1932,8,FALSE),0) -> 52 | K96: =IFERROR(VLOOKUP($A96,Filtro!$A$4:$AX$1932,9,FALSE),0) -> 229 | L96: =IFERROR(VLOOKUP($A96,Filtro!$A$4:$AX$1932,10,FALSE),0) -> 455 | M96: =IFERROR(VLOOKUP($A96,Filtro!$A$4:$AX$1932,11,FALSE),0) -> 884 | N96: =IFERROR(VLOOKUP($A96,Filtro!$A$4:$AX$1932,12,FALSE),0) -> 1794 | O96: =IFERROR(VLOOKUP($A96,Filtro!$A$4:$AX$1932,13,FALSE),0) -> 731 | P96: =IFERROR(VLOOKUP($A96,Filtro!$A$4:$AX$1932,14,FALSE),0) -> 1299 | Q96: =IFERROR(VLOOKUP($A96,Filtro!$A$4:$AX$1932,15,FALSE),0) -> 1069 | R96: =IFERROR(VLOOKUP($A96,Filtro!$A$4:$AX$1932,16,FALSE),0) -> 1614
A97: 03500347 | B97: Nº DE AUDIT APLICADO | D97: =IFERROR(VLOOKUP($A97,Filtro!$A$4:$AX$1932,2,FALSE),0) -> 16208 | E97: =IFERROR(VLOOKUP($A97,Filtro!$A$4:$AX$1932,3,FALSE),0) -> 4741 | F97: =IFERROR(VLOOKUP($A97,Filtro!$A$4:$AX$1932,4,FALSE),0) -> 11467 | G97: =IFERROR(VLOOKUP($A97,Filtro!$A$4:$AX$1932,5,FALSE),0) -> 0 | H97: =IFERROR(VLOOKUP($A97,Filtro!$A$4:$AX$1932,6,FALSE),0) -> 0 | I97: =IFERROR(VLOOKUP($A97,Filtro!$A$4:$AX$1932,7,FALSE),0) -> 0 | J97: =IFERROR(VLOOKUP($A97,Filtro!$A$4:$AX$1932,8,FALSE),0) -> 0 | K97: =IFERROR(VLOOKUP($A97,Filtro!$A$4:$AX$1932,9,FALSE),0) -> 673 | L97: =IFERROR(VLOOKUP($A97,Filtro!$A$4:$AX$1932,10,FALSE),0) -> 1130 | M97: =IFERROR(VLOOKUP($A97,Filtro!$A$4:$AX$1932,11,FALSE),0) -> 1378 | N97: =IFERROR(VLOOKUP($A97,Filtro!$A$4:$AX$1932,12,FALSE),0) -> 4103 | O97: =IFERROR(VLOOKUP($A97,Filtro!$A$4:$AX$1932,13,FALSE),0) -> 1422 | P97: =IFERROR(VLOOKUP($A97,Filtro!$A$4:$AX$1932,14,FALSE),0) -> 3588 | Q97: =IFERROR(VLOOKUP($A97,Filtro!$A$4:$AX$1932,15,FALSE),0) -> 1268 | R97: =IFERROR(VLOOKUP($A97,Filtro!$A$4:$AX$1932,16,FALSE),0) -> 2646
A98: 03500402 | B98: Nº DE ASSIST (EMP/EMPAM) | D98: =IFERROR(VLOOKUP($A98,Filtro!$A$4:$AX$1932,2,FALSE),0) -> 0 | E98: =IFERROR(VLOOKUP($A98,Filtro!$A$4:$AX$1932,3,FALSE),0) -> 0 | F98: =IFERROR(VLOOKUP($A98,Filtro!$A$4:$AX$1932,4,FALSE),0) -> 0 | G98: =IFERROR(VLOOKUP($A98,Filtro!$A$4:$AX$1932,5,FALSE),0) -> 0 | H98: =IFERROR(VLOOKUP($A98,Filtro!$A$4:$AX$1932,6,FALSE),0) -> 0 | I98: =IFERROR(VLOOKUP($A98,Filtro!$A$4:$AX$1932,7,FALSE),0) -> 0 | J98: =IFERROR(VLOOKUP($A98,Filtro!$A$4:$AX$1932,8,FALSE),0) -> 0 | K98: =IFERROR(VLOOKUP($A98,Filtro!$A$4:$AX$1932,9,FALSE),0) -> 0 | L98: =IFERROR(VLOOKUP($A98,Filtro!$A$4:$AX$1932,10,FALSE),0) -> 0 | M98: =IFERROR(VLOOKUP($A98,Filtro!$A$4:$AX$1932,11,FALSE),0) -> 0 | N98: =IFERROR(VLOOKUP($A98,Filtro!$A$4:$AX$1932,12,FALSE),0) -> 0 | O98: =IFERROR(VLOOKUP($A98,Filtro!$A$4:$AX$1932,13,FALSE),0) -> 0 | P98: =IFERROR(VLOOKUP($A98,Filtro!$A$4:$AX$1932,14,FALSE),0) -> 0 | Q98: =IFERROR(VLOOKUP($A98,Filtro!$A$4:$AX$1932,15,FALSE),0) -> 0 | R98: =IFERROR(VLOOKUP($A98,Filtro!$A$4:$AX$1932,16,FALSE),0) -> 0
A99: 03500348 | B99: N° DE ASSIST APLICADO | D99: =IFERROR(VLOOKUP($A99,Filtro!$A$4:$AX$1932,2,FALSE),0) -> 1816 | E99: =IFERROR(VLOOKUP($A99,Filtro!$A$4:$AX$1932,3,FALSE),0) -> 709 | F99: =IFERROR(VLOOKUP($A99,Filtro!$A$4:$AX$1932,4,FALSE),0) -> 1107 | G99: =IFERROR(VLOOKUP($A99,Filtro!$A$4:$AX$1932,5,FALSE),0) -> 0 | H99: =IFERROR(VLOOKUP($A99,Filtro!$A$4:$AX$1932,6,FALSE),0) -> 0 | I99: =IFERROR(VLOOKUP($A99,Filtro!$A$4:$AX$1932,7,FALSE),0) -> 0 | J99: =IFERROR(VLOOKUP($A99,Filtro!$A$4:$AX$1932,8,FALSE),0) -> 0 | K99: =IFERROR(VLOOKUP($A99,Filtro!$A$4:$AX$1932,9,FALSE),0) -> 72 | L99: =IFERROR(VLOOKUP($A99,Filtro!$A$4:$AX$1932,10,FALSE),0) -> 106 | M99: =IFERROR(VLOOKUP($A99,Filtro!$A$4:$AX$1932,11,FALSE),0) -> 290 | N99: =IFERROR(VLOOKUP($A99,Filtro!$A$4:$AX$1932,12,FALSE),0) -> 495 | O99: =IFERROR(VLOOKUP($A99,Filtro!$A$4:$AX$1932,13,FALSE),0) -> 245 | P99: =IFERROR(VLOOKUP($A99,Filtro!$A$4:$AX$1932,14,FALSE),0) -> 419 | Q99: =IFERROR(VLOOKUP($A99,Filtro!$A$4:$AX$1932,15,FALSE),0) -> 102 | R99: =IFERROR(VLOOKUP($A99,Filtro!$A$4:$AX$1932,16,FALSE),0) -> 87
A100: 03600100 | B100: N° DE CRAFFT EN CONTROL DE SALUD INTEGRAL DEL ADOLESCENTE | D100: =IFERROR(VLOOKUP($A100,Filtro!$A$4:$AX$1932,2,FALSE),0) -> 890 | E100: =IFERROR(VLOOKUP($A100,Filtro!$A$4:$AX$1932,3,FALSE),0) -> 200 | F100: =IFERROR(VLOOKUP($A100,Filtro!$A$4:$AX$1932,4,FALSE),0) -> 690 | G100: =IFERROR(VLOOKUP($A100,Filtro!$A$4:$AX$1932,5,FALSE),0) -> 28 | H100: =IFERROR(VLOOKUP($A100,Filtro!$A$4:$AX$1932,6,FALSE),0) -> 53 | I100: =IFERROR(VLOOKUP($A100,Filtro!$A$4:$AX$1932,7,FALSE),0) -> 172 | J100: =IFERROR(VLOOKUP($A100,Filtro!$A$4:$AX$1932,8,FALSE),0) -> 637 | K100: =IFERROR(VLOOKUP($A100,Filtro!$A$4:$AX$1932,9,FALSE),0) -> 0 | L100: =IFERROR(VLOOKUP($A100,Filtro!$A$4:$AX$1932,10,FALSE),0) -> 0 | M100: =IFERROR(VLOOKUP($A100,Filtro!$A$4:$AX$1932,11,FALSE),0) -> 0 | N100: =IFERROR(VLOOKUP($A100,Filtro!$A$4:$AX$1932,12,FALSE),0) -> 0 | O100: =IFERROR(VLOOKUP($A100,Filtro!$A$4:$AX$1932,13,FALSE),0) -> 0 | P100: =IFERROR(VLOOKUP($A100,Filtro!$A$4:$AX$1932,14,FALSE),0) -> 0 | Q100: =IFERROR(VLOOKUP($A100,Filtro!$A$4:$AX$1932,15,FALSE),0) -> 0 | R100: =IFERROR(VLOOKUP($A100,Filtro!$A$4:$AX$1932,16,FALSE),0) -> 0
A101: 03500367 | B101: N° DE CRAFFT APLICADO | D101: =IFERROR(VLOOKUP($A101,Filtro!$A$4:$AX$1932,2,FALSE),0) -> 825 | E101: =IFERROR(VLOOKUP($A101,Filtro!$A$4:$AX$1932,3,FALSE),0) -> 311 | F101: =IFERROR(VLOOKUP($A101,Filtro!$A$4:$AX$1932,4,FALSE),0) -> 514 | G101: =IFERROR(VLOOKUP($A101,Filtro!$A$4:$AX$1932,5,FALSE),0) -> 137 | H101: =IFERROR(VLOOKUP($A101,Filtro!$A$4:$AX$1932,6,FALSE),0) -> 167 | I101: =IFERROR(VLOOKUP($A101,Filtro!$A$4:$AX$1932,7,FALSE),0) -> 174 | J101: =IFERROR(VLOOKUP($A101,Filtro!$A$4:$AX$1932,8,FALSE),0) -> 347 | K101: =IFERROR(VLOOKUP($A101,Filtro!$A$4:$AX$1932,9,FALSE),0) -> 0 | L101: =IFERROR(VLOOKUP($A101,Filtro!$A$4:$AX$1932,10,FALSE),0) -> 0 | M101: =IFERROR(VLOOKUP($A101,Filtro!$A$4:$AX$1932,11,FALSE),0) -> 0 | N101: =IFERROR(VLOOKUP($A101,Filtro!$A$4:$AX$1932,12,FALSE),0) -> 0 | O101: =IFERROR(VLOOKUP($A101,Filtro!$A$4:$AX$1932,13,FALSE),0) -> 0 | P101: =IFERROR(VLOOKUP($A101,Filtro!$A$4:$AX$1932,14,FALSE),0) -> 0 | Q101: =IFERROR(VLOOKUP($A101,Filtro!$A$4:$AX$1932,15,FALSE),0) -> 0 | R101: =IFERROR(VLOOKUP($A101,Filtro!$A$4:$AX$1932,16,FALSE),0) -> 0
A102: 03500349 | B102: RESULTADOS DE EVALUACIÓN | C102: BAJO RIESGO | D102: =IFERROR(VLOOKUP($A102,Filtro!$A$4:$AX$1932,2,FALSE),0) -> 24101 | E102: =IFERROR(VLOOKUP($A102,Filtro!$A$4:$AX$1932,3,FALSE),0) -> 7154 | F102: =IFERROR(VLOOKUP($A102,Filtro!$A$4:$AX$1932,4,FALSE),0) -> 16947 | G102: =IFERROR(VLOOKUP($A102,Filtro!$A$4:$AX$1932,5,FALSE),0) -> 155 | H102: =IFERROR(VLOOKUP($A102,Filtro!$A$4:$AX$1932,6,FALSE),0) -> 234 | I102: =IFERROR(VLOOKUP($A102,Filtro!$A$4:$AX$1932,7,FALSE),0) -> 302 | J102: =IFERROR(VLOOKUP($A102,Filtro!$A$4:$AX$1932,8,FALSE),0) -> 883 | K102: =IFERROR(VLOOKUP($A102,Filtro!$A$4:$AX$1932,9,FALSE),0) -> 613 | L102: =IFERROR(VLOOKUP($A102,Filtro!$A$4:$AX$1932,10,FALSE),0) -> 1372 | M102: =IFERROR(VLOOKUP($A102,Filtro!$A$4:$AX$1932,11,FALSE),0) -> 1863 | N102: =IFERROR(VLOOKUP($A102,Filtro!$A$4:$AX$1932,12,FALSE),0) -> 5481 | O102: =IFERROR(VLOOKUP($A102,Filtro!$A$4:$AX$1932,13,FALSE),0) -> 1927 | P102: =IFERROR(VLOOKUP($A102,Filtro!$A$4:$AX$1932,14,FALSE),0) -> 4756 | Q102: =IFERROR(VLOOKUP($A102,Filtro!$A$4:$AX$1932,15,FALSE),0) -> 2294 | R102: =IFERROR(VLOOKUP($A102,Filtro!$A$4:$AX$1932,16,FALSE),0) -> 4221
A103: 03500290 | C103: CONSUMO RIESGOSO / INTERMEDIO | D103: =IFERROR(VLOOKUP($A103,Filtro!$A$4:$AX$1932,2,FALSE),0) -> 2353 | E103: =IFERROR(VLOOKUP($A103,Filtro!$A$4:$AX$1932,3,FALSE),0) -> 1163 | F103: =IFERROR(VLOOKUP($A103,Filtro!$A$4:$AX$1932,4,FALSE),0) -> 1190 | G103: =IFERROR(VLOOKUP($A103,Filtro!$A$4:$AX$1932,5,FALSE),0) -> 5 | H103: =IFERROR(VLOOKUP($A103,Filtro!$A$4:$AX$1932,6,FALSE),0) -> 4 | I103: =IFERROR(VLOOKUP($A103,Filtro!$A$4:$AX$1932,7,FALSE),0) -> 14 | J103: =IFERROR(VLOOKUP($A103,Filtro!$A$4:$AX$1932,8,FALSE),0) -> 25 | K103: =IFERROR(VLOOKUP($A103,Filtro!$A$4:$AX$1932,9,FALSE),0) -> 270 | L103: =IFERROR(VLOOKUP($A103,Filtro!$A$4:$AX$1932,10,FALSE),0) -> 232 | M103: =IFERROR(VLOOKUP($A103,Filtro!$A$4:$AX$1932,11,FALSE),0) -> 501 | N103: =IFERROR(VLOOKUP($A103,Filtro!$A$4:$AX$1932,12,FALSE),0) -> 624 | O103: =IFERROR(VLOOKUP($A103,Filtro!$A$4:$AX$1932,13,FALSE),0) -> 330 | P103: =IFERROR(VLOOKUP($A103,Filtro!$A$4:$AX$1932,14,FALSE),0) -> 271 | Q103: =IFERROR(VLOOKUP($A103,Filtro!$A$4:$AX$1932,15,FALSE),0) -> 43 | R103: =IFERROR(VLOOKUP($A103,Filtro!$A$4:$AX$1932,16,FALSE),0) -> 34
A104: 03500300 | C104: POSIBLE CONSUMO PERJUDICIAL O DEPENDENCIA | D104: =IFERROR(VLOOKUP($A104,Filtro!$A$4:$AX$1932,2,FALSE),0) -> 315 | E104: =IFERROR(VLOOKUP($A104,Filtro!$A$4:$AX$1932,3,FALSE),0) -> 204 | F104: =IFERROR(VLOOKUP($A104,Filtro!$A$4:$AX$1932,4,FALSE),0) -> 111 | G104: =IFERROR(VLOOKUP($A104,Filtro!$A$4:$AX$1932,5,FALSE),0) -> 1 | H104: =IFERROR(VLOOKUP($A104,Filtro!$A$4:$AX$1932,6,FALSE),0) -> 0 | I104: =IFERROR(VLOOKUP($A104,Filtro!$A$4:$AX$1932,7,FALSE),0) -> 9 | J104: =IFERROR(VLOOKUP($A104,Filtro!$A$4:$AX$1932,8,FALSE),0) -> 4 | K104: =IFERROR(VLOOKUP($A104,Filtro!$A$4:$AX$1932,9,FALSE),0) -> 51 | L104: =IFERROR(VLOOKUP($A104,Filtro!$A$4:$AX$1932,10,FALSE),0) -> 19 | M104: =IFERROR(VLOOKUP($A104,Filtro!$A$4:$AX$1932,11,FALSE),0) -> 76 | N104: =IFERROR(VLOOKUP($A104,Filtro!$A$4:$AX$1932,12,FALSE),0) -> 41 | O104: =IFERROR(VLOOKUP($A104,Filtro!$A$4:$AX$1932,13,FALSE),0) -> 58 | P104: =IFERROR(VLOOKUP($A104,Filtro!$A$4:$AX$1932,14,FALSE),0) -> 40 | Q104: =IFERROR(VLOOKUP($A104,Filtro!$A$4:$AX$1932,15,FALSE),0) -> 9 | R104: =IFERROR(VLOOKUP($A104,Filtro!$A$4:$AX$1932,16,FALSE),0) -> 7
B105: SECCIÓN D.2: RESULTADOS DE LA APLICACIÓN DE INSTRUMENTO DE VALORACIÓN DE DESEMPEÑO EN COMUNIDAD (IVADEC-CIF)
B106: ACTIVIDAD | C106: RESULTADO | D106: TOTAL | G106: POR EDAD
G107: 6 -11 meses | I107: 12 - 23 meses | K107: 2 - 4 años | M107: 5 - 9 años | O107: 10 a 14 años | Q107: 15 a 19 años | S107: 20 a 24 años | U107: 25 a 64 años | W107: 65 a 69 años | Y107: 70 a 79 años | AA107: 80 y más años
D108: Ambos Sexos | E108: Hombres | F108: Mujeres | G108: Hombres | H108: Mujeres | I108: Hombres | J108: Mujeres | K108: Hombres | L108: Mujeres | M108: Hombres | N108: Mujeres | O108: Hombres | P108: Mujeres | Q108: Hombres | R108: Mujeres | S108: Hombres | T108: Mujeres | U108: Hombres | V108: Mujeres | W108: Hombres | X108: Mujeres | Y108: Hombres | Z108: Mujeres | AA108: Hombres | AB108: Mujeres
A109: 03051000A | B109: ORIGEN FÍSICO | C109: SIN DISCAPACIDAD | D109: =IFERROR(VLOOKUP($A109,Filtro!$A$4:$AX$1932,2,FALSE),0) -> 10 | E109: =IFERROR(VLOOKUP($A109,Filtro!$A$4:$AX$1932,3,FALSE),0) -> 4 | F109: =IFERROR(VLOOKUP($A109,Filtro!$A$4:$AX$1932,4,FALSE),0) -> 6 | G109: =IFERROR(VLOOKUP($A109,Filtro!$A$4:$AX$1932,5,FALSE),0) -> 0 | H109: =IFERROR(VLOOKUP($A109,Filtro!$A$4:$AX$1932,6,FALSE),0) -> 0 | I109: =IFERROR(VLOOKUP($A109,Filtro!$A$4:$AX$1932,7,FALSE),0) -> 0 | J109: =IFERROR(VLOOKUP($A109,Filtro!$A$4:$AX$1932,8,FALSE),0) -> 1 | K109: =IFERROR(VLOOKUP($A109,Filtro!$A$4:$AX$1932,9,FALSE),0) -> 1 | L109: =IFERROR(VLOOKUP($A109,Filtro!$A$4:$AX$1932,10,FALSE),0) -> 1 | M109: =IFERROR(VLOOKUP($A109,Filtro!$A$4:$AX$1932,11,FALSE),0) -> 0 | N109: =IFERROR(VLOOKUP($A109,Filtro!$A$4:$AX$1932,12,FALSE),0) -> 0 | O109: =IFERROR(VLOOKUP($A109,Filtro!$A$4:$AX$1932,13,FALSE),0) -> 0 | P109: =IFERROR(VLOOKUP($A109,Filtro!$A$4:$AX$1932,14,FALSE),0) -> 0 | Q109: =IFERROR(VLOOKUP($A109,Filtro!$A$4:$AX$1932,15,FALSE),0) -> 0 | R109: =IFERROR(VLOOKUP($A109,Filtro!$A$4:$AX$1932,16,FALSE),0) -> 0 | S109: =IFERROR(VLOOKUP($A109,Filtro!$A$4:$AX$1932,17,FALSE),0) -> 0 | T109: =IFERROR(VLOOKUP($A109,Filtro!$A$4:$AX$1932,18,FALSE),0) -> 0 | U109: =IFERROR(VLOOKUP($A109,Filtro!$A$4:$AX$1932,19,FALSE),0) -> 3 | V109: =IFERROR(VLOOKUP($A109,Filtro!$A$4:$AX$1932,20,FALSE),0) -> 2 | W109: =IFERROR(VLOOKUP($A109,Filtro!$A$4:$AX$1932,21,FALSE),0) -> 0 | X109: =IFERROR(VLOOKUP($A109,Filtro!$A$4:$AX$1932,22,FALSE),0) -> 0 | Y109: =IFERROR(VLOOKUP($A109,Filtro!$A$4:$AX$1932,23,FALSE),0) -> 0 | Z109: =IFERROR(VLOOKUP($A109,Filtro!$A$4:$AX$1932,24,FALSE),0) -> 0 | AA109: =IFERROR(VLOOKUP($A109,Filtro!$A$4:$AX$1932,25,FALSE),0) -> 0 | AB109: =IFERROR(VLOOKUP($A109,Filtro!$A$4:$AX$1932,26,FALSE),0) -> 2
A110: 03051100 | C110: DISCAPACIDAD LEVE | D110: =IFERROR(VLOOKUP($A110,Filtro!$A$4:$AX$1932,2,FALSE),0) -> 126 | E110: =IFERROR(VLOOKUP($A110,Filtro!$A$4:$AX$1932,3,FALSE),0) -> 84 | F110: =IFERROR(VLOOKUP($A110,Filtro!$A$4:$AX$1932,4,FALSE),0) -> 42 | G110: =IFERROR(VLOOKUP($A110,Filtro!$A$4:$AX$1932,5,FALSE),0) -> 0 | H110: =IFERROR(VLOOKUP($A110,Filtro!$A$4:$AX$1932,6,FALSE),0) -> 0 | I110: =IFERROR(VLOOKUP($A110,Filtro!$A$4:$AX$1932,7,FALSE),0) -> 0 | J110: =IFERROR(VLOOKUP($A110,Filtro!$A$4:$AX$1932,8,FALSE),0) -> 1 | K110: =IFERROR(VLOOKUP($A110,Filtro!$A$4:$AX$1932,9,FALSE),0) -> 1 | L110: =IFERROR(VLOOKUP($A110,Filtro!$A$4:$AX$1932,10,FALSE),0) -> 0 | M110: =IFERROR(VLOOKUP($A110,Filtro!$A$4:$AX$1932,11,FALSE),0) -> 0 | N110: =IFERROR(VLOOKUP($A110,Filtro!$A$4:$AX$1932,12,FALSE),0) -> 0 | O110: =IFERROR(VLOOKUP($A110,Filtro!$A$4:$AX$1932,13,FALSE),0) -> 0 | P110: =IFERROR(VLOOKUP($A110,Filtro!$A$4:$AX$1932,14,FALSE),0) -> 0 | Q110: =IFERROR(VLOOKUP($A110,Filtro!$A$4:$AX$1932,15,FALSE),0) -> 2 | R110: =IFERROR(VLOOKUP($A110,Filtro!$A$4:$AX$1932,16,FALSE),0) -> 0 | S110: =IFERROR(VLOOKUP($A110,Filtro!$A$4:$AX$1932,17,FALSE),0) -> 2 | T110: =IFERROR(VLOOKUP($A110,Filtro!$A$4:$AX$1932,18,FALSE),0) -> 1 | U110: =IFERROR(VLOOKUP($A110,Filtro!$A$4:$AX$1932,19,FALSE),0) -> 50 | V110: =IFERROR(VLOOKUP($A110,Filtro!$A$4:$AX$1932,20,FALSE),0) -> 32 | W110: =IFERROR(VLOOKUP($A110,Filtro!$A$4:$AX$1932,21,FALSE),0) -> 5 | X110: =IFERROR(VLOOKUP($A110,Filtro!$A$4:$AX$1932,22,FALSE),0) -> 0 | Y110: =IFERROR(VLOOKUP($A110,Filtro!$A$4:$AX$1932,23,FALSE),0) -> 23 | Z110: =IFERROR(VLOOKUP($A110,Filtro!$A$4:$AX$1932,24,FALSE),0) -> 7 | AA110: =IFERROR(VLOOKUP($A110,Filtro!$A$4:$AX$1932,25,FALSE),0) -> 1 | AB110: =IFERROR(VLOOKUP($A110,Filtro!$A$4:$AX$1932,26,FALSE),0) -> 1
A111: 03051200 | C111: DISCAPACIDAD MODERADA | D111: =IFERROR(VLOOKUP($A111,Filtro!$A$4:$AX$1932,2,FALSE),0) -> 110 | E111: =IFERROR(VLOOKUP($A111,Filtro!$A$4:$AX$1932,3,FALSE),0) -> 64 | F111: =IFERROR(VLOOKUP($A111,Filtro!$A$4:$AX$1932,4,FALSE),0) -> 46 | G111: =IFERROR(VLOOKUP($A111,Filtro!$A$4:$AX$1932,5,FALSE),0) -> 0 | H111: =IFERROR(VLOOKUP($A111,Filtro!$A$4:$AX$1932,6,FALSE),0) -> 0 | I111: =IFERROR(VLOOKUP($A111,Filtro!$A$4:$AX$1932,7,FALSE),0) -> 0 | J111: =IFERROR(VLOOKUP($A111,Filtro!$A$4:$AX$1932,8,FALSE),0) -> 0 | K111: =IFERROR(VLOOKUP($A111,Filtro!$A$4:$AX$1932,9,FALSE),0) -> 0 | L111: =IFERROR(VLOOKUP($A111,Filtro!$A$4:$AX$1932,10,FALSE),0) -> 0 | M111: =IFERROR(VLOOKUP($A111,Filtro!$A$4:$AX$1932,11,FALSE),0) -> 1 | N111: =IFERROR(VLOOKUP($A111,Filtro!$A$4:$AX$1932,12,FALSE),0) -> 1 | O111: =IFERROR(VLOOKUP($A111,Filtro!$A$4:$AX$1932,13,FALSE),0) -> 0 | P111: =IFERROR(VLOOKUP($A111,Filtro!$A$4:$AX$1932,14,FALSE),0) -> 0 | Q111: =IFERROR(VLOOKUP($A111,Filtro!$A$4:$AX$1932,15,FALSE),0) -> 0 | R111: =IFERROR(VLOOKUP($A111,Filtro!$A$4:$AX$1932,16,FALSE),0) -> 1 | S111: =IFERROR(VLOOKUP($A111,Filtro!$A$4:$AX$1932,17,FALSE),0) -> 0 | T111: =IFERROR(VLOOKUP($A111,Filtro!$A$4:$AX$1932,18,FALSE),0) -> 1 | U111: =IFERROR(VLOOKUP($A111,Filtro!$A$4:$AX$1932,19,FALSE),0) -> 39 | V111: =IFERROR(VLOOKUP($A111,Filtro!$A$4:$AX$1932,20,FALSE),0) -> 27 | W111: =IFERROR(VLOOKUP($A111,Filtro!$A$4:$AX$1932,21,FALSE),0) -> 10 | X111: =IFERROR(VLOOKUP($A111,Filtro!$A$4:$AX$1932,22,FALSE),0) -> 6 | Y111: =IFERROR(VLOOKUP($A111,Filtro!$A$4:$AX$1932,23,FALSE),0) -> 10 | Z111: =IFERROR(VLOOKUP($A111,Filtro!$A$4:$AX$1932,24,FALSE),0) -> 8 | AA111: =IFERROR(VLOOKUP($A111,Filtro!$A$4:$AX$1932,25,FALSE),0) -> 4 | AB111: =IFERROR(VLOOKUP($A111,Filtro!$A$4:$AX$1932,26,FALSE),0) -> 2
A112: 03051300 | C112: DISCAPACIDAD SEVERA | D112: =IFERROR(VLOOKUP($A112,Filtro!$A$4:$AX$1932,2,FALSE),0) -> 105 | E112: =IFERROR(VLOOKUP($A112,Filtro!$A$4:$AX$1932,3,FALSE),0) -> 55 | F112: =IFERROR(VLOOKUP($A112,Filtro!$A$4:$AX$1932,4,FALSE),0) -> 50 | G112: =IFERROR(VLOOKUP($A112,Filtro!$A$4:$AX$1932,5,FALSE),0) -> 1 | H112: =IFERROR(VLOOKUP($A112,Filtro!$A$4:$AX$1932,6,FALSE),0) -> 0 | I112: =IFERROR(VLOOKUP($A112,Filtro!$A$4:$AX$1932,7,FALSE),0) -> 0 | J112: =IFERROR(VLOOKUP($A112,Filtro!$A$4:$AX$1932,8,FALSE),0) -> 1 | K112: =IFERROR(VLOOKUP($A112,Filtro!$A$4:$AX$1932,9,FALSE),0) -> 0 | L112: =IFERROR(VLOOKUP($A112,Filtro!$A$4:$AX$1932,10,FALSE),0) -> 3 | M112: =IFERROR(VLOOKUP($A112,Filtro!$A$4:$AX$1932,11,FALSE),0) -> 1 | N112: =IFERROR(VLOOKUP($A112,Filtro!$A$4:$AX$1932,12,FALSE),0) -> 0 | O112: =IFERROR(VLOOKUP($A112,Filtro!$A$4:$AX$1932,13,FALSE),0) -> 0 | P112: =IFERROR(VLOOKUP($A112,Filtro!$A$4:$AX$1932,14,FALSE),0) -> 1 | Q112: =IFERROR(VLOOKUP($A112,Filtro!$A$4:$AX$1932,15,FALSE),0) -> 0 | R112: =IFERROR(VLOOKUP($A112,Filtro!$A$4:$AX$1932,16,FALSE),0) -> 0 | S112: =IFERROR(VLOOKUP($A112,Filtro!$A$4:$AX$1932,17,FALSE),0) -> 0 | T112: =IFERROR(VLOOKUP($A112,Filtro!$A$4:$AX$1932,18,FALSE),0) -> 1 | U112: =IFERROR(VLOOKUP($A112,Filtro!$A$4:$AX$1932,19,FALSE),0) -> 31 | V112: =IFERROR(VLOOKUP($A112,Filtro!$A$4:$AX$1932,20,FALSE),0) -> 29 | W112: =IFERROR(VLOOKUP($A112,Filtro!$A$4:$AX$1932,21,FALSE),0) -> 8 | X112: =IFERROR(VLOOKUP($A112,Filtro!$A$4:$AX$1932,22,FALSE),0) -> 3 | Y112: =IFERROR(VLOOKUP($A112,Filtro!$A$4:$AX$1932,23,FALSE),0) -> 10 | Z112: =IFERROR(VLOOKUP($A112,Filtro!$A$4:$AX$1932,24,FALSE),0) -> 6 | AA112: =IFERROR(VLOOKUP($A112,Filtro!$A$4:$AX$1932,25,FALSE),0) -> 4 | AB112: =IFERROR(VLOOKUP($A112,Filtro!$A$4:$AX$1932,26,FALSE),0) -> 6
A113: 03051400 | C113: DISCAPACIDAD PROFUNDA | D113: =IFERROR(VLOOKUP($A113,Filtro!$A$4:$AX$1932,2,FALSE),0) -> 18 | E113: =IFERROR(VLOOKUP($A113,Filtro!$A$4:$AX$1932,3,FALSE),0) -> 8 | F113: =IFERROR(VLOOKUP($A113,Filtro!$A$4:$AX$1932,4,FALSE),0) -> 10 | G113: =IFERROR(VLOOKUP($A113,Filtro!$A$4:$AX$1932,5,FALSE),0) -> 0 | H113: =IFERROR(VLOOKUP($A113,Filtro!$A$4:$AX$1932,6,FALSE),0) -> 0 | I113: =IFERROR(VLOOKUP($A113,Filtro!$A$4:$AX$1932,7,FALSE),0) -> 1 | J113: =IFERROR(VLOOKUP($A113,Filtro!$A$4:$AX$1932,8,FALSE),0) -> 0 | K113: =IFERROR(VLOOKUP($A113,Filtro!$A$4:$AX$1932,9,FALSE),0) -> 1 | L113: =IFERROR(VLOOKUP($A113,Filtro!$A$4:$AX$1932,10,FALSE),0) -> 0 | M113: =IFERROR(VLOOKUP($A113,Filtro!$A$4:$AX$1932,11,FALSE),0) -> 0 | N113: =IFERROR(VLOOKUP($A113,Filtro!$A$4:$AX$1932,12,FALSE),0) -> 1 | O113: =IFERROR(VLOOKUP($A113,Filtro!$A$4:$AX$1932,13,FALSE),0) -> 0 | P113: =IFERROR(VLOOKUP($A113,Filtro!$A$4:$AX$1932,14,FALSE),0) -> 0 | Q113: =IFERROR(VLOOKUP($A113,Filtro!$A$4:$AX$1932,15,FALSE),0) -> 0 | R113: =IFERROR(VLOOKUP($A113,Filtro!$A$4:$AX$1932,16,FALSE),0) -> 0 | S113: =IFERROR(VLOOKUP($A113,Filtro!$A$4:$AX$1932,17,FALSE),0) -> 0 | T113: =IFERROR(VLOOKUP($A113,Filtro!$A$4:$AX$1932,18,FALSE),0) -> 0 | U113: =IFERROR(VLOOKUP($A113,Filtro!$A$4:$AX$1932,19,FALSE),0) -> 2 | V113: =IFERROR(VLOOKUP($A113,Filtro!$A$4:$AX$1932,20,FALSE),0) -> 1 | W113: =IFERROR(VLOOKUP($A113,Filtro!$A$4:$AX$1932,21,FALSE),0) -> 0 | X113: =IFERROR(VLOOKUP($A113,Filtro!$A$4:$AX$1932,22,FALSE),0) -> 0 | Y113: =IFERROR(VLOOKUP($A113,Filtro!$A$4:$AX$1932,23,FALSE),0) -> 0 | Z113: =IFERROR(VLOOKUP($A113,Filtro!$A$4:$AX$1932,24,FALSE),0) -> 1 | AA113: =IFERROR(VLOOKUP($A113,Filtro!$A$4:$AX$1932,25,FALSE),0) -> 4 | AB113: =IFERROR(VLOOKUP($A113,Filtro!$A$4:$AX$1932,26,FALSE),0) -> 7
A114: 03051500 | B114: ORIGEN SENSORIAL VISUAL | C114: SIN DISCAPACIDAD | D114: =IFERROR(VLOOKUP($A114,Filtro!$A$4:$AX$1932,2,FALSE),0) -> 9 | E114: =IFERROR(VLOOKUP($A114,Filtro!$A$4:$AX$1932,3,FALSE),0) -> 2 | F114: =IFERROR(VLOOKUP($A114,Filtro!$A$4:$AX$1932,4,FALSE),0) -> 7 | G114: =IFERROR(VLOOKUP($A114,Filtro!$A$4:$AX$1932,5,FALSE),0) -> 0 | H114: =IFERROR(VLOOKUP($A114,Filtro!$A$4:$AX$1932,6,FALSE),0) -> 0 | I114: =IFERROR(VLOOKUP($A114,Filtro!$A$4:$AX$1932,7,FALSE),0) -> 0 | J114: =IFERROR(VLOOKUP($A114,Filtro!$A$4:$AX$1932,8,FALSE),0) -> 0 | K114: =IFERROR(VLOOKUP($A114,Filtro!$A$4:$AX$1932,9,FALSE),0) -> 1 | L114: =IFERROR(VLOOKUP($A114,Filtro!$A$4:$AX$1932,10,FALSE),0) -> 1 | M114: =IFERROR(VLOOKUP($A114,Filtro!$A$4:$AX$1932,11,FALSE),0) -> 0 | N114: =IFERROR(VLOOKUP($A114,Filtro!$A$4:$AX$1932,12,FALSE),0) -> 0 | O114: =IFERROR(VLOOKUP($A114,Filtro!$A$4:$AX$1932,13,FALSE),0) -> 0 | P114: =IFERROR(VLOOKUP($A114,Filtro!$A$4:$AX$1932,14,FALSE),0) -> 0 | Q114: =IFERROR(VLOOKUP($A114,Filtro!$A$4:$AX$1932,15,FALSE),0) -> 0 | R114: =IFERROR(VLOOKUP($A114,Filtro!$A$4:$AX$1932,16,FALSE),0) -> 0 | S114: =IFERROR(VLOOKUP($A114,Filtro!$A$4:$AX$1932,17,FALSE),0) -> 0 | T114: =IFERROR(VLOOKUP($A114,Filtro!$A$4:$AX$1932,18,FALSE),0) -> 1 | U114: =IFERROR(VLOOKUP($A114,Filtro!$A$4:$AX$1932,19,FALSE),0) -> 0 | V114: =IFERROR(VLOOKUP($A114,Filtro!$A$4:$AX$1932,20,FALSE),0) -> 3 | W114: =IFERROR(VLOOKUP($A114,Filtro!$A$4:$AX$1932,21,FALSE),0) -> 0 | X114: =IFERROR(VLOOKUP($A114,Filtro!$A$4:$AX$1932,22,FALSE),0) -> 0 | Y114: =IFERROR(VLOOKUP($A114,Filtro!$A$4:$AX$1932,23,FALSE),0) -> 1 | Z114: =IFERROR(VLOOKUP($A114,Filtro!$A$4:$AX$1932,24,FALSE),0) -> 1 | AA114: =IFERROR(VLOOKUP($A114,Filtro!$A$4:$AX$1932,25,FALSE),0) -> 0 | AB114: =IFERROR(VLOOKUP($A114,Filtro!$A$4:$AX$1932,26,FALSE),0) -> 1
A115: 03051600 | C115: DISCAPACIDAD LEVE | D115: =IFERROR(VLOOKUP($A115,Filtro!$A$4:$AX$1932,2,FALSE),0) -> 10 | E115: =IFERROR(VLOOKUP($A115,Filtro!$A$4:$AX$1932,3,FALSE),0) -> 7 | F115: =IFERROR(VLOOKUP($A115,Filtro!$A$4:$AX$1932,4,FALSE),0) -> 3 | G115: =IFERROR(VLOOKUP($A115,Filtro!$A$4:$AX$1932,5,FALSE),0) -> 0 | H115: =IFERROR(VLOOKUP($A115,Filtro!$A$4:$AX$1932,6,FALSE),0) -> 0 | I115: =IFERROR(VLOOKUP($A115,Filtro!$A$4:$AX$1932,7,FALSE),0) -> 0 | J115: =IFERROR(VLOOKUP($A115,Filtro!$A$4:$AX$1932,8,FALSE),0) -> 0 | K115: =IFERROR(VLOOKUP($A115,Filtro!$A$4:$AX$1932,9,FALSE),0) -> 0 | L115: =IFERROR(VLOOKUP($A115,Filtro!$A$4:$AX$1932,10,FALSE),0) -> 0 | M115: =IFERROR(VLOOKUP($A115,Filtro!$A$4:$AX$1932,11,FALSE),0) -> 0 | N115: =IFERROR(VLOOKUP($A115,Filtro!$A$4:$AX$1932,12,FALSE),0) -> 0 | O115: =IFERROR(VLOOKUP($A115,Filtro!$A$4:$AX$1932,13,FALSE),0) -> 2 | P115: =IFERROR(VLOOKUP($A115,Filtro!$A$4:$AX$1932,14,FALSE),0) -> 0 | Q115: =IFERROR(VLOOKUP($A115,Filtro!$A$4:$AX$1932,15,FALSE),0) -> 0 | R115: =IFERROR(VLOOKUP($A115,Filtro!$A$4:$AX$1932,16,FALSE),0) -> 0 | S115: =IFERROR(VLOOKUP($A115,Filtro!$A$4:$AX$1932,17,FALSE),0) -> 0 | T115: =IFERROR(VLOOKUP($A115,Filtro!$A$4:$AX$1932,18,FALSE),0) -> 0 | U115: =IFERROR(VLOOKUP($A115,Filtro!$A$4:$AX$1932,19,FALSE),0) -> 4 | V115: =IFERROR(VLOOKUP($A115,Filtro!$A$4:$AX$1932,20,FALSE),0) -> 3 | W115: =IFERROR(VLOOKUP($A115,Filtro!$A$4:$AX$1932,21,FALSE),0) -> 1 | X115: =IFERROR(VLOOKUP($A115,Filtro!$A$4:$AX$1932,22,FALSE),0) -> 0 | Y115: =IFERROR(VLOOKUP($A115,Filtro!$A$4:$AX$1932,23,FALSE),0) -> 0 | Z115: =IFERROR(VLOOKUP($A115,Filtro!$A$4:$AX$1932,24,FALSE),0) -> 0 | AA115: =IFERROR(VLOOKUP($A115,Filtro!$A$4:$AX$1932,25,FALSE),0) -> 0 | AB115: =IFERROR(VLOOKUP($A115,Filtro!$A$4:$AX$1932,26,FALSE),0) -> 0
A116: 03051700 | C116: DISCAPACIDAD MODERADA | D116: =IFERROR(VLOOKUP($A116,Filtro!$A$4:$AX$1932,2,FALSE),0) -> 16 | E116: =IFERROR(VLOOKUP($A116,Filtro!$A$4:$AX$1932,3,FALSE),0) -> 7 | F116: =IFERROR(VLOOKUP($A116,Filtro!$A$4:$AX$1932,4,FALSE),0) -> 9 | G116: =IFERROR(VLOOKUP($A116,Filtro!$A$4:$AX$1932,5,FALSE),0) -> 0 | H116: =IFERROR(VLOOKUP($A116,Filtro!$A$4:$AX$1932,6,FALSE),0) -> 0 | I116: =IFERROR(VLOOKUP($A116,Filtro!$A$4:$AX$1932,7,FALSE),0) -> 0 | J116: =IFERROR(VLOOKUP($A116,Filtro!$A$4:$AX$1932,8,FALSE),0) -> 0 | K116: =IFERROR(VLOOKUP($A116,Filtro!$A$4:$AX$1932,9,FALSE),0) -> 0 | L116: =IFERROR(VLOOKUP($A116,Filtro!$A$4:$AX$1932,10,FALSE),0) -> 0 | M116: =IFERROR(VLOOKUP($A116,Filtro!$A$4:$AX$1932,11,FALSE),0) -> 0 | N116: =IFERROR(VLOOKUP($A116,Filtro!$A$4:$AX$1932,12,FALSE),0) -> 0 | O116: =IFERROR(VLOOKUP($A116,Filtro!$A$4:$AX$1932,13,FALSE),0) -> 0 | P116: =IFERROR(VLOOKUP($A116,Filtro!$A$4:$AX$1932,14,FALSE),0) -> 0 | Q116: =IFERROR(VLOOKUP($A116,Filtro!$A$4:$AX$1932,15,FALSE),0) -> 0 | R116: =IFERROR(VLOOKUP($A116,Filtro!$A$4:$AX$1932,16,FALSE),0) -> 0 | S116: =IFERROR(VLOOKUP($A116,Filtro!$A$4:$AX$1932,17,FALSE),0) -> 1 | T116: =IFERROR(VLOOKUP($A116,Filtro!$A$4:$AX$1932,18,FALSE),0) -> 0 | U116: =IFERROR(VLOOKUP($A116,Filtro!$A$4:$AX$1932,19,FALSE),0) -> 4 | V116: =IFERROR(VLOOKUP($A116,Filtro!$A$4:$AX$1932,20,FALSE),0) -> 6 | W116: =IFERROR(VLOOKUP($A116,Filtro!$A$4:$AX$1932,21,FALSE),0) -> 0 | X116: =IFERROR(VLOOKUP($A116,Filtro!$A$4:$AX$1932,22,FALSE),0) -> 2 | Y116: =IFERROR(VLOOKUP($A116,Filtro!$A$4:$AX$1932,23,FALSE),0) -> 1 | Z116: =IFERROR(VLOOKUP($A116,Filtro!$A$4:$AX$1932,24,FALSE),0) -> 1 | AA116: =IFERROR(VLOOKUP($A116,Filtro!$A$4:$AX$1932,25,FALSE),0) -> 1 | AB116: =IFERROR(VLOOKUP($A116,Filtro!$A$4:$AX$1932,26,FALSE),0) -> 0
A117: 03051800 | C117: DISCAPACIDAD SEVERA | D117: =IFERROR(VLOOKUP($A117,Filtro!$A$4:$AX$1932,2,FALSE),0) -> 13 | E117: =IFERROR(VLOOKUP($A117,Filtro!$A$4:$AX$1932,3,FALSE),0) -> 3 | F117: =IFERROR(VLOOKUP($A117,Filtro!$A$4:$AX$1932,4,FALSE),0) -> 10 | G117: =IFERROR(VLOOKUP($A117,Filtro!$A$4:$AX$1932,5,FALSE),0) -> 0 | H117: =IFERROR(VLOOKUP($A117,Filtro!$A$4:$AX$1932,6,FALSE),0) -> 0 | I117: =IFERROR(VLOOKUP($A117,Filtro!$A$4:$AX$1932,7,FALSE),0) -> 0 | J117: =IFERROR(VLOOKUP($A117,Filtro!$A$4:$AX$1932,8,FALSE),0) -> 0 | K117: =IFERROR(VLOOKUP($A117,Filtro!$A$4:$AX$1932,9,FALSE),0) -> 0 | L117: =IFERROR(VLOOKUP($A117,Filtro!$A$4:$AX$1932,10,FALSE),0) -> 0 | M117: =IFERROR(VLOOKUP($A117,Filtro!$A$4:$AX$1932,11,FALSE),0) -> 0 | N117: =IFERROR(VLOOKUP($A117,Filtro!$A$4:$AX$1932,12,FALSE),0) -> 0 | O117: =IFERROR(VLOOKUP($A117,Filtro!$A$4:$AX$1932,13,FALSE),0) -> 0 | P117: =IFERROR(VLOOKUP($A117,Filtro!$A$4:$AX$1932,14,FALSE),0) -> 0 | Q117: =IFERROR(VLOOKUP($A117,Filtro!$A$4:$AX$1932,15,FALSE),0) -> 0 | R117: =IFERROR(VLOOKUP($A117,Filtro!$A$4:$AX$1932,16,FALSE),0) -> 0 | S117: =IFERROR(VLOOKUP($A117,Filtro!$A$4:$AX$1932,17,FALSE),0) -> 0 | T117: =IFERROR(VLOOKUP($A117,Filtro!$A$4:$AX$1932,18,FALSE),0) -> 0 | U117: =IFERROR(VLOOKUP($A117,Filtro!$A$4:$AX$1932,19,FALSE),0) -> 2 | V117: =IFERROR(VLOOKUP($A117,Filtro!$A$4:$AX$1932,20,FALSE),0) -> 7 | W117: =IFERROR(VLOOKUP($A117,Filtro!$A$4:$AX$1932,21,FALSE),0) -> 1 | X117: =IFERROR(VLOOKUP($A117,Filtro!$A$4:$AX$1932,22,FALSE),0) -> 2 | Y117: =IFERROR(VLOOKUP($A117,Filtro!$A$4:$AX$1932,23,FALSE),0) -> 0 | Z117: =IFERROR(VLOOKUP($A117,Filtro!$A$4:$AX$1932,24,FALSE),0) -> 0 | AA117: =IFERROR(VLOOKUP($A117,Filtro!$A$4:$AX$1932,25,FALSE),0) -> 0 | AB117: =IFERROR(VLOOKUP($A117,Filtro!$A$4:$AX$1932,26,FALSE),0) -> 1
A118: 03051900 | C118: DISCAPACIDAD PROFUNDA | D118: =IFERROR(VLOOKUP($A118,Filtro!$A$4:$AX$1932,2,FALSE),0) -> 4 | E118: =IFERROR(VLOOKUP($A118,Filtro!$A$4:$AX$1932,3,FALSE),0) -> 0 | F118: =IFERROR(VLOOKUP($A118,Filtro!$A$4:$AX$1932,4,FALSE),0) -> 4 | G118: =IFERROR(VLOOKUP($A118,Filtro!$A$4:$AX$1932,5,FALSE),0) -> 0 | H118: =IFERROR(VLOOKUP($A118,Filtro!$A$4:$AX$1932,6,FALSE),0) -> 0 | I118: =IFERROR(VLOOKUP($A118,Filtro!$A$4:$AX$1932,7,FALSE),0) -> 0 | J118: =IFERROR(VLOOKUP($A118,Filtro!$A$4:$AX$1932,8,FALSE),0) -> 0 | K118: =IFERROR(VLOOKUP($A118,Filtro!$A$4:$AX$1932,9,FALSE),0) -> 0 | L118: =IFERROR(VLOOKUP($A118,Filtro!$A$4:$AX$1932,10,FALSE),0) -> 0 | M118: =IFERROR(VLOOKUP($A118,Filtro!$A$4:$AX$1932,11,FALSE),0) -> 0 | N118: =IFERROR(VLOOKUP($A118,Filtro!$A$4:$AX$1932,12,FALSE),0) -> 0 | O118: =IFERROR(VLOOKUP($A118,Filtro!$A$4:$AX$1932,13,FALSE),0) -> 0 | P118: =IFERROR(VLOOKUP($A118,Filtro!$A$4:$AX$1932,14,FALSE),0) -> 0 | Q118: =IFERROR(VLOOKUP($A118,Filtro!$A$4:$AX$1932,15,FALSE),0) -> 0 | R118: =IFERROR(VLOOKUP($A118,Filtro!$A$4:$AX$1932,16,FALSE),0) -> 0 | S118: =IFERROR(VLOOKUP($A118,Filtro!$A$4:$AX$1932,17,FALSE),0) -> 0 | T118: =IFERROR(VLOOKUP($A118,Filtro!$A$4:$AX$1932,18,FALSE),0) -> 0 | U118: =IFERROR(VLOOKUP($A118,Filtro!$A$4:$AX$1932,19,FALSE),0) -> 0 | V118: =IFERROR(VLOOKUP($A118,Filtro!$A$4:$AX$1932,20,FALSE),0) -> 0 | W118: =IFERROR(VLOOKUP($A118,Filtro!$A$4:$AX$1932,21,FALSE),0) -> 0 | X118: =IFERROR(VLOOKUP($A118,Filtro!$A$4:$AX$1932,22,FALSE),0) -> 0 | Y118: =IFERROR(VLOOKUP($A118,Filtro!$A$4:$AX$1932,23,FALSE),0) -> 0 | Z118: =IFERROR(VLOOKUP($A118,Filtro!$A$4:$AX$1932,24,FALSE),0) -> 0 | AA118: =IFERROR(VLOOKUP($A118,Filtro!$A$4:$AX$1932,25,FALSE),0) -> 0 | AB118: =IFERROR(VLOOKUP($A118,Filtro!$A$4:$AX$1932,26,FALSE),0) -> 4
A119: 03052000 | B119: ORIGEN SENSORIAL AUDITIVO | C119: SIN DISCAPACIDAD | D119: =IFERROR(VLOOKUP($A119,Filtro!$A$4:$AX$1932,2,FALSE),0) -> 10 | E119: =IFERROR(VLOOKUP($A119,Filtro!$A$4:$AX$1932,3,FALSE),0) -> 3 | F119: =IFERROR(VLOOKUP($A119,Filtro!$A$4:$AX$1932,4,FALSE),0) -> 7 | G119: =IFERROR(VLOOKUP($A119,Filtro!$A$4:$AX$1932,5,FALSE),0) -> 0 | H119: =IFERROR(VLOOKUP($A119,Filtro!$A$4:$AX$1932,6,FALSE),0) -> 0 | I119: =IFERROR(VLOOKUP($A119,Filtro!$A$4:$AX$1932,7,FALSE),0) -> 0 | J119: =IFERROR(VLOOKUP($A119,Filtro!$A$4:$AX$1932,8,FALSE),0) -> 0 | K119: =IFERROR(VLOOKUP($A119,Filtro!$A$4:$AX$1932,9,FALSE),0) -> 1 | L119: =IFERROR(VLOOKUP($A119,Filtro!$A$4:$AX$1932,10,FALSE),0) -> 1 | M119: =IFERROR(VLOOKUP($A119,Filtro!$A$4:$AX$1932,11,FALSE),0) -> 0 | N119: =IFERROR(VLOOKUP($A119,Filtro!$A$4:$AX$1932,12,FALSE),0) -> 0 | O119: =IFERROR(VLOOKUP($A119,Filtro!$A$4:$AX$1932,13,FALSE),0) -> 0 | P119: =IFERROR(VLOOKUP($A119,Filtro!$A$4:$AX$1932,14,FALSE),0) -> 0 | Q119: =IFERROR(VLOOKUP($A119,Filtro!$A$4:$AX$1932,15,FALSE),0) -> 0 | R119: =IFERROR(VLOOKUP($A119,Filtro!$A$4:$AX$1932,16,FALSE),0) -> 0 | S119: =IFERROR(VLOOKUP($A119,Filtro!$A$4:$AX$1932,17,FALSE),0) -> 0 | T119: =IFERROR(VLOOKUP($A119,Filtro!$A$4:$AX$1932,18,FALSE),0) -> 1 | U119: =IFERROR(VLOOKUP($A119,Filtro!$A$4:$AX$1932,19,FALSE),0) -> 1 | V119: =IFERROR(VLOOKUP($A119,Filtro!$A$4:$AX$1932,20,FALSE),0) -> 3 | W119: =IFERROR(VLOOKUP($A119,Filtro!$A$4:$AX$1932,21,FALSE),0) -> 0 | X119: =IFERROR(VLOOKUP($A119,Filtro!$A$4:$AX$1932,22,FALSE),0) -> 0 | Y119: =IFERROR(VLOOKUP($A119,Filtro!$A$4:$AX$1932,23,FALSE),0) -> 1 | Z119: =IFERROR(VLOOKUP($A119,Filtro!$A$4:$AX$1932,24,FALSE),0) -> 1 | AA119: =IFERROR(VLOOKUP($A119,Filtro!$A$4:$AX$1932,25,FALSE),0) -> 0 | AB119: =IFERROR(VLOOKUP($A119,Filtro!$A$4:$AX$1932,26,FALSE),0) -> 1
A120: 03052100 | C120: DISCAPACIDAD LEVE | D120: =IFERROR(VLOOKUP($A120,Filtro!$A$4:$AX$1932,2,FALSE),0) -> 8 | E120: =IFERROR(VLOOKUP($A120,Filtro!$A$4:$AX$1932,3,FALSE),0) -> 4 | F120: =IFERROR(VLOOKUP($A120,Filtro!$A$4:$AX$1932,4,FALSE),0) -> 4 | G120: =IFERROR(VLOOKUP($A120,Filtro!$A$4:$AX$1932,5,FALSE),0) -> 0 | H120: =IFERROR(VLOOKUP($A120,Filtro!$A$4:$AX$1932,6,FALSE),0) -> 0 | I120: =IFERROR(VLOOKUP($A120,Filtro!$A$4:$AX$1932,7,FALSE),0) -> 0 | J120: =IFERROR(VLOOKUP($A120,Filtro!$A$4:$AX$1932,8,FALSE),0) -> 0 | K120: =IFERROR(VLOOKUP($A120,Filtro!$A$4:$AX$1932,9,FALSE),0) -> 0 | L120: =IFERROR(VLOOKUP($A120,Filtro!$A$4:$AX$1932,10,FALSE),0) -> 0 | M120: =IFERROR(VLOOKUP($A120,Filtro!$A$4:$AX$1932,11,FALSE),0) -> 1 | N120: =IFERROR(VLOOKUP($A120,Filtro!$A$4:$AX$1932,12,FALSE),0) -> 0 | O120: =IFERROR(VLOOKUP($A120,Filtro!$A$4:$AX$1932,13,FALSE),0) -> 0 | P120: =IFERROR(VLOOKUP($A120,Filtro!$A$4:$AX$1932,14,FALSE),0) -> 0 | Q120: =IFERROR(VLOOKUP($A120,Filtro!$A$4:$AX$1932,15,FALSE),0) -> 1 | R120: =IFERROR(VLOOKUP($A120,Filtro!$A$4:$AX$1932,16,FALSE),0) -> 0 | S120: =IFERROR(VLOOKUP($A120,Filtro!$A$4:$AX$1932,17,FALSE),0) -> 0 | T120: =IFERROR(VLOOKUP($A120,Filtro!$A$4:$AX$1932,18,FALSE),0) -> 1 | U120: =IFERROR(VLOOKUP($A120,Filtro!$A$4:$AX$1932,19,FALSE),0) -> 1 | V120: =IFERROR(VLOOKUP($A120,Filtro!$A$4:$AX$1932,20,FALSE),0) -> 3 | W120: =IFERROR(VLOOKUP($A120,Filtro!$A$4:$AX$1932,21,FALSE),0) -> 0 | X120: =IFERROR(VLOOKUP($A120,Filtro!$A$4:$AX$1932,22,FALSE),0) -> 0 | Y120: =IFERROR(VLOOKUP($A120,Filtro!$A$4:$AX$1932,23,FALSE),0) -> 1 | Z120: =IFERROR(VLOOKUP($A120,Filtro!$A$4:$AX$1932,24,FALSE),0) -> 0 | AA120: =IFERROR(VLOOKUP($A120,Filtro!$A$4:$AX$1932,25,FALSE),0) -> 0 | AB120: =IFERROR(VLOOKUP($A120,Filtro!$A$4:$AX$1932,26,FALSE),0) -> 0
A121: 03052200 | C121: DISCAPACIDAD MODERADA | D121: =IFERROR(VLOOKUP($A121,Filtro!$A$4:$AX$1932,2,FALSE),0) -> 6 | E121: =IFERROR(VLOOKUP($A121,Filtro!$A$4:$AX$1932,3,FALSE),0) -> 3 | F121: =IFERROR(VLOOKUP($A121,Filtro!$A$4:$AX$1932,4,FALSE),0) -> 3 | G121: =IFERROR(VLOOKUP($A121,Filtro!$A$4:$AX$1932,5,FALSE),0) -> 0 | H121: =IFERROR(VLOOKUP($A121,Filtro!$A$4:$AX$1932,6,FALSE),0) -> 0 | I121: =IFERROR(VLOOKUP($A121,Filtro!$A$4:$AX$1932,7,FALSE),0) -> 1 | J121: =IFERROR(VLOOKUP($A121,Filtro!$A$4:$AX$1932,8,FALSE),0) -> 0 | K121: =IFERROR(VLOOKUP($A121,Filtro!$A$4:$AX$1932,9,FALSE),0) -> 0 | L121: =IFERROR(VLOOKUP($A121,Filtro!$A$4:$AX$1932,10,FALSE),0) -> 0 | M121: =IFERROR(VLOOKUP($A121,Filtro!$A$4:$AX$1932,11,FALSE),0) -> 0 | N121: =IFERROR(VLOOKUP($A121,Filtro!$A$4:$AX$1932,12,FALSE),0) -> 0 | O121: =IFERROR(VLOOKUP($A121,Filtro!$A$4:$AX$1932,13,FALSE),0) -> 0 | P121: =IFERROR(VLOOKUP($A121,Filtro!$A$4:$AX$1932,14,FALSE),0) -> 0 | Q121: =IFERROR(VLOOKUP($A121,Filtro!$A$4:$AX$1932,15,FALSE),0) -> 0 | R121: =IFERROR(VLOOKUP($A121,Filtro!$A$4:$AX$1932,16,FALSE),0) -> 0 | S121: =IFERROR(VLOOKUP($A121,Filtro!$A$4:$AX$1932,17,FALSE),0) -> 0 | T121: =IFERROR(VLOOKUP($A121,Filtro!$A$4:$AX$1932,18,FALSE),0) -> 1 | U121: =IFERROR(VLOOKUP($A121,Filtro!$A$4:$AX$1932,19,FALSE),0) -> 2 | V121: =IFERROR(VLOOKUP($A121,Filtro!$A$4:$AX$1932,20,FALSE),0) -> 2 | W121: =IFERROR(VLOOKUP($A121,Filtro!$A$4:$AX$1932,21,FALSE),0) -> 0 | X121: =IFERROR(VLOOKUP($A121,Filtro!$A$4:$AX$1932,22,FALSE),0) -> 0 | Y121: =IFERROR(VLOOKUP($A121,Filtro!$A$4:$AX$1932,23,FALSE),0) -> 0 | Z121: =IFERROR(VLOOKUP($A121,Filtro!$A$4:$AX$1932,24,FALSE),0) -> 0 | AA121: =IFERROR(VLOOKUP($A121,Filtro!$A$4:$AX$1932,25,FALSE),0) -> 0 | AB121: =IFERROR(VLOOKUP($A121,Filtro!$A$4:$AX$1932,26,FALSE),0) -> 0
A122: 03052300 | C122: DISCAPACIDAD SEVERA | D122: =IFERROR(VLOOKUP($A122,Filtro!$A$4:$AX$1932,2,FALSE),0) -> 2 | E122: =IFERROR(VLOOKUP($A122,Filtro!$A$4:$AX$1932,3,FALSE),0) -> 2 | F122: =IFERROR(VLOOKUP($A122,Filtro!$A$4:$AX$1932,4,FALSE),0) -> 0 | G122: =IFERROR(VLOOKUP($A122,Filtro!$A$4:$AX$1932,5,FALSE),0) -> 0 | H122: =IFERROR(VLOOKUP($A122,Filtro!$A$4:$AX$1932,6,FALSE),0) -> 0 | I122: =IFERROR(VLOOKUP($A122,Filtro!$A$4:$AX$1932,7,FALSE),0) -> 0 | J122: =IFERROR(VLOOKUP($A122,Filtro!$A$4:$AX$1932,8,FALSE),0) -> 0 | K122: =IFERROR(VLOOKUP($A122,Filtro!$A$4:$AX$1932,9,FALSE),0) -> 1 | L122: =IFERROR(VLOOKUP($A122,Filtro!$A$4:$AX$1932,10,FALSE),0) -> 0 | M122: =IFERROR(VLOOKUP($A122,Filtro!$A$4:$AX$1932,11,FALSE),0) -> 1 | N122: =IFERROR(VLOOKUP($A122,Filtro!$A$4:$AX$1932,12,FALSE),0) -> 0 | O122: =IFERROR(VLOOKUP($A122,Filtro!$A$4:$AX$1932,13,FALSE),0) -> 0 | P122: =IFERROR(VLOOKUP($A122,Filtro!$A$4:$AX$1932,14,FALSE),0) -> 0 | Q122: =IFERROR(VLOOKUP($A122,Filtro!$A$4:$AX$1932,15,FALSE),0) -> 0 | R122: =IFERROR(VLOOKUP($A122,Filtro!$A$4:$AX$1932,16,FALSE),0) -> 0 | S122: =IFERROR(VLOOKUP($A122,Filtro!$A$4:$AX$1932,17,FALSE),0) -> 0 | T122: =IFERROR(VLOOKUP($A122,Filtro!$A$4:$AX$1932,18,FALSE),0) -> 0 | U122: =IFERROR(VLOOKUP($A122,Filtro!$A$4:$AX$1932,19,FALSE),0) -> 0 | V122: =IFERROR(VLOOKUP($A122,Filtro!$A$4:$AX$1932,20,FALSE),0) -> 0 | W122: =IFERROR(VLOOKUP($A122,Filtro!$A$4:$AX$1932,21,FALSE),0) -> 0 | X122: =IFERROR(VLOOKUP($A122,Filtro!$A$4:$AX$1932,22,FALSE),0) -> 0 | Y122: =IFERROR(VLOOKUP($A122,Filtro!$A$4:$AX$1932,23,FALSE),0) -> 0 | Z122: =IFERROR(VLOOKUP($A122,Filtro!$A$4:$AX$1932,24,FALSE),0) -> 0 | AA122: =IFERROR(VLOOKUP($A122,Filtro!$A$4:$AX$1932,25,FALSE),0) -> 0 | AB122: =IFERROR(VLOOKUP($A122,Filtro!$A$4:$AX$1932,26,FALSE),0) -> 0
A123: 03052400 | C123: DISCAPACIDAD PROFUNDA | D123: =IFERROR(VLOOKUP($A123,Filtro!$A$4:$AX$1932,2,FALSE),0) -> 1 | E123: =IFERROR(VLOOKUP($A123,Filtro!$A$4:$AX$1932,3,FALSE),0) -> 1 | F123: =IFERROR(VLOOKUP($A123,Filtro!$A$4:$AX$1932,4,FALSE),0) -> 0 | G123: =IFERROR(VLOOKUP($A123,Filtro!$A$4:$AX$1932,5,FALSE),0) -> 0 | H123: =IFERROR(VLOOKUP($A123,Filtro!$A$4:$AX$1932,6,FALSE),0) -> 0 | I123: =IFERROR(VLOOKUP($A123,Filtro!$A$4:$AX$1932,7,FALSE),0) -> 0 | J123: =IFERROR(VLOOKUP($A123,Filtro!$A$4:$AX$1932,8,FALSE),0) -> 0 | K123: =IFERROR(VLOOKUP($A123,Filtro!$A$4:$AX$1932,9,FALSE),0) -> 1 | L123: =IFERROR(VLOOKUP($A123,Filtro!$A$4:$AX$1932,10,FALSE),0) -> 0 | M123: =IFERROR(VLOOKUP($A123,Filtro!$A$4:$AX$1932,11,FALSE),0) -> 0 | N123: =IFERROR(VLOOKUP($A123,Filtro!$A$4:$AX$1932,12,FALSE),0) -> 0 | O123: =IFERROR(VLOOKUP($A123,Filtro!$A$4:$AX$1932,13,FALSE),0) -> 0 | P123: =IFERROR(VLOOKUP($A123,Filtro!$A$4:$AX$1932,14,FALSE),0) -> 0 | Q123: =IFERROR(VLOOKUP($A123,Filtro!$A$4:$AX$1932,15,FALSE),0) -> 0 | R123: =IFERROR(VLOOKUP($A123,Filtro!$A$4:$AX$1932,16,FALSE),0) -> 0 | S123: =IFERROR(VLOOKUP($A123,Filtro!$A$4:$AX$1932,17,FALSE),0) -> 0 | T123: =IFERROR(VLOOKUP($A123,Filtro!$A$4:$AX$1932,18,FALSE),0) -> 0 | U123: =IFERROR(VLOOKUP($A123,Filtro!$A$4:$AX$1932,19,FALSE),0) -> 0 | V123: =IFERROR(VLOOKUP($A123,Filtro!$A$4:$AX$1932,20,FALSE),0) -> 0 | W123: =IFERROR(VLOOKUP($A123,Filtro!$A$4:$AX$1932,21,FALSE),0) -> 0 | X123: =IFERROR(VLOOKUP($A123,Filtro!$A$4:$AX$1932,22,FALSE),0) -> 0 | Y123: =IFERROR(VLOOKUP($A123,Filtro!$A$4:$AX$1932,23,FALSE),0) -> 0 | Z123: =IFERROR(VLOOKUP($A123,Filtro!$A$4:$AX$1932,24,FALSE),0) -> 0 | AA123: =IFERROR(VLOOKUP($A123,Filtro!$A$4:$AX$1932,25,FALSE),0) -> 0 | AB123: =IFERROR(VLOOKUP($A123,Filtro!$A$4:$AX$1932,26,FALSE),0) -> 0
A124: 03052500 | B124: ORIGEN MENTAL PSÍQUICO | C124: SIN DISCAPACIDAD | D124: =IFERROR(VLOOKUP($A124,Filtro!$A$4:$AX$1932,2,FALSE),0) -> 9 | E124: =IFERROR(VLOOKUP($A124,Filtro!$A$4:$AX$1932,3,FALSE),0) -> 3 | F124: =IFERROR(VLOOKUP($A124,Filtro!$A$4:$AX$1932,4,FALSE),0) -> 6 | G124: =IFERROR(VLOOKUP($A124,Filtro!$A$4:$AX$1932,5,FALSE),0) -> 0 | H124: =IFERROR(VLOOKUP($A124,Filtro!$A$4:$AX$1932,6,FALSE),0) -> 0 | I124: =IFERROR(VLOOKUP($A124,Filtro!$A$4:$AX$1932,7,FALSE),0) -> 0 | J124: =IFERROR(VLOOKUP($A124,Filtro!$A$4:$AX$1932,8,FALSE),0) -> 0 | K124: =IFERROR(VLOOKUP($A124,Filtro!$A$4:$AX$1932,9,FALSE),0) -> 0 | L124: =IFERROR(VLOOKUP($A124,Filtro!$A$4:$AX$1932,10,FALSE),0) -> 0 | M124: =IFERROR(VLOOKUP($A124,Filtro!$A$4:$AX$1932,11,FALSE),0) -> 0 | N124: =IFERROR(VLOOKUP($A124,Filtro!$A$4:$AX$1932,12,FALSE),0) -> 0 | O124: =IFERROR(VLOOKUP($A124,Filtro!$A$4:$AX$1932,13,FALSE),0) -> 0 | P124: =IFERROR(VLOOKUP($A124,Filtro!$A$4:$AX$1932,14,FALSE),0) -> 0 | Q124: =IFERROR(VLOOKUP($A124,Filtro!$A$4:$AX$1932,15,FALSE),0) -> 1 | R124: =IFERROR(VLOOKUP($A124,Filtro!$A$4:$AX$1932,16,FALSE),0) -> 0 | S124: =IFERROR(VLOOKUP($A124,Filtro!$A$4:$AX$1932,17,FALSE),0) -> 0 | T124: =IFERROR(VLOOKUP($A124,Filtro!$A$4:$AX$1932,18,FALSE),0) -> 1 | U124: =IFERROR(VLOOKUP($A124,Filtro!$A$4:$AX$1932,19,FALSE),0) -> 1 | V124: =IFERROR(VLOOKUP($A124,Filtro!$A$4:$AX$1932,20,FALSE),0) -> 3 | W124: =IFERROR(VLOOKUP($A124,Filtro!$A$4:$AX$1932,21,FALSE),0) -> 0 | X124: =IFERROR(VLOOKUP($A124,Filtro!$A$4:$AX$1932,22,FALSE),0) -> 0 | Y124: =IFERROR(VLOOKUP($A124,Filtro!$A$4:$AX$1932,23,FALSE),0) -> 1 | Z124: =IFERROR(VLOOKUP($A124,Filtro!$A$4:$AX$1932,24,FALSE),0) -> 1 | AA124: =IFERROR(VLOOKUP($A124,Filtro!$A$4:$AX$1932,25,FALSE),0) -> 0 | AB124: =IFERROR(VLOOKUP($A124,Filtro!$A$4:$AX$1932,26,FALSE),0) -> 1
A125: 03052600 | C125: DISCAPACIDAD LEVE | D125: =IFERROR(VLOOKUP($A125,Filtro!$A$4:$AX$1932,2,FALSE),0) -> 19 | E125: =IFERROR(VLOOKUP($A125,Filtro!$A$4:$AX$1932,3,FALSE),0) -> 12 | F125: =IFERROR(VLOOKUP($A125,Filtro!$A$4:$AX$1932,4,FALSE),0) -> 7 | G125: =IFERROR(VLOOKUP($A125,Filtro!$A$4:$AX$1932,5,FALSE),0) -> 0 | H125: =IFERROR(VLOOKUP($A125,Filtro!$A$4:$AX$1932,6,FALSE),0) -> 0 | I125: =IFERROR(VLOOKUP($A125,Filtro!$A$4:$AX$1932,7,FALSE),0) -> 0 | J125: =IFERROR(VLOOKUP($A125,Filtro!$A$4:$AX$1932,8,FALSE),0) -> 0 | K125: =IFERROR(VLOOKUP($A125,Filtro!$A$4:$AX$1932,9,FALSE),0) -> 4 | L125: =IFERROR(VLOOKUP($A125,Filtro!$A$4:$AX$1932,10,FALSE),0) -> 0 | M125: =IFERROR(VLOOKUP($A125,Filtro!$A$4:$AX$1932,11,FALSE),0) -> 3 | N125: =IFERROR(VLOOKUP($A125,Filtro!$A$4:$AX$1932,12,FALSE),0) -> 2 | O125: =IFERROR(VLOOKUP($A125,Filtro!$A$4:$AX$1932,13,FALSE),0) -> 3 | P125: =IFERROR(VLOOKUP($A125,Filtro!$A$4:$AX$1932,14,FALSE),0) -> 0 | Q125: =IFERROR(VLOOKUP($A125,Filtro!$A$4:$AX$1932,15,FALSE),0) -> 0 | R125: =IFERROR(VLOOKUP($A125,Filtro!$A$4:$AX$1932,16,FALSE),0) -> 0 | S125: =IFERROR(VLOOKUP($A125,Filtro!$A$4:$AX$1932,17,FALSE),0) -> 1 | T125: =IFERROR(VLOOKUP($A125,Filtro!$A$4:$AX$1932,18,FALSE),0) -> 0 | U125: =IFERROR(VLOOKUP($A125,Filtro!$A$4:$AX$1932,19,FALSE),0) -> 1 | V125: =IFERROR(VLOOKUP($A125,Filtro!$A$4:$AX$1932,20,FALSE),0) -> 4 | W125: =IFERROR(VLOOKUP($A125,Filtro!$A$4:$AX$1932,21,FALSE),0) -> 0 | X125: =IFERROR(VLOOKUP($A125,Filtro!$A$4:$AX$1932,22,FALSE),0) -> 0 | Y125: =IFERROR(VLOOKUP($A125,Filtro!$A$4:$AX$1932,23,FALSE),0) -> 0 | Z125: =IFERROR(VLOOKUP($A125,Filtro!$A$4:$AX$1932,24,FALSE),0) -> 1 | AA125: =IFERROR(VLOOKUP($A125,Filtro!$A$4:$AX$1932,25,FALSE),0) -> 0 | AB125: =IFERROR(VLOOKUP($A125,Filtro!$A$4:$AX$1932,26,FALSE),0) -> 0
A126: 03052700 | C126: DISCAPACIDAD MODERADA | D126: =IFERROR(VLOOKUP($A126,Filtro!$A$4:$AX$1932,2,FALSE),0) -> 26 | E126: =IFERROR(VLOOKUP($A126,Filtro!$A$4:$AX$1932,3,FALSE),0) -> 21 | F126: =IFERROR(VLOOKUP($A126,Filtro!$A$4:$AX$1932,4,FALSE),0) -> 5 | G126: =IFERROR(VLOOKUP($A126,Filtro!$A$4:$AX$1932,5,FALSE),0) -> 0 | H126: =IFERROR(VLOOKUP($A126,Filtro!$A$4:$AX$1932,6,FALSE),0) -> 0 | I126: =IFERROR(VLOOKUP($A126,Filtro!$A$4:$AX$1932,7,FALSE),0) -> 0 | J126: =IFERROR(VLOOKUP($A126,Filtro!$A$4:$AX$1932,8,FALSE),0) -> 0 | K126: =IFERROR(VLOOKUP($A126,Filtro!$A$4:$AX$1932,9,FALSE),0) -> 5 | L126: =IFERROR(VLOOKUP($A126,Filtro!$A$4:$AX$1932,10,FALSE),0) -> 3 | M126: =IFERROR(VLOOKUP($A126,Filtro!$A$4:$AX$1932,11,FALSE),0) -> 7 | N126: =IFERROR(VLOOKUP($A126,Filtro!$A$4:$AX$1932,12,FALSE),0) -> 0 | O126: =IFERROR(VLOOKUP($A126,Filtro!$A$4:$AX$1932,13,FALSE),0) -> 3 | P126: =IFERROR(VLOOKUP($A126,Filtro!$A$4:$AX$1932,14,FALSE),0) -> 0 | Q126: =IFERROR(VLOOKUP($A126,Filtro!$A$4:$AX$1932,15,FALSE),0) -> 0 | R126: =IFERROR(VLOOKUP($A126,Filtro!$A$4:$AX$1932,16,FALSE),0) -> 0 | S126: =IFERROR(VLOOKUP($A126,Filtro!$A$4:$AX$1932,17,FALSE),0) -> 1 | T126: =IFERROR(VLOOKUP($A126,Filtro!$A$4:$AX$1932,18,FALSE),0) -> 1 | U126: =IFERROR(VLOOKUP($A126,Filtro!$A$4:$AX$1932,19,FALSE),0) -> 5 | V126: =IFERROR(VLOOKUP($A126,Filtro!$A$4:$AX$1932,20,FALSE),0) -> 1 | W126: =IFERROR(VLOOKUP($A126,Filtro!$A$4:$AX$1932,21,FALSE),0) -> 0 | X126: =IFERROR(VLOOKUP($A126,Filtro!$A$4:$AX$1932,22,FALSE),0) -> 0 | Y126: =IFERROR(VLOOKUP($A126,Filtro!$A$4:$AX$1932,23,FALSE),0) -> 0 | Z126: =IFERROR(VLOOKUP($A126,Filtro!$A$4:$AX$1932,24,FALSE),0) -> 0 | AA126: =IFERROR(VLOOKUP($A126,Filtro!$A$4:$AX$1932,25,FALSE),0) -> 0 | AB126: =IFERROR(VLOOKUP($A126,Filtro!$A$4:$AX$1932,26,FALSE),0) -> 0
A127: 03052800 | C127: DISCAPACIDAD SEVERA | D127: =IFERROR(VLOOKUP($A127,Filtro!$A$4:$AX$1932,2,FALSE),0) -> 86 | E127: =IFERROR(VLOOKUP($A127,Filtro!$A$4:$AX$1932,3,FALSE),0) -> 51 | F127: =IFERROR(VLOOKUP($A127,Filtro!$A$4:$AX$1932,4,FALSE),0) -> 35 | G127: =IFERROR(VLOOKUP($A127,Filtro!$A$4:$AX$1932,5,FALSE),0) -> 2 | H127: =IFERROR(VLOOKUP($A127,Filtro!$A$4:$AX$1932,6,FALSE),0) -> 0 | I127: =IFERROR(VLOOKUP($A127,Filtro!$A$4:$AX$1932,7,FALSE),0) -> 0 | J127: =IFERROR(VLOOKUP($A127,Filtro!$A$4:$AX$1932,8,FALSE),0) -> 0 | K127: =IFERROR(VLOOKUP($A127,Filtro!$A$4:$AX$1932,9,FALSE),0) -> 12 | L127: =IFERROR(VLOOKUP($A127,Filtro!$A$4:$AX$1932,10,FALSE),0) -> 4 | M127: =IFERROR(VLOOKUP($A127,Filtro!$A$4:$AX$1932,11,FALSE),0) -> 18 | N127: =IFERROR(VLOOKUP($A127,Filtro!$A$4:$AX$1932,12,FALSE),0) -> 1 | O127: =IFERROR(VLOOKUP($A127,Filtro!$A$4:$AX$1932,13,FALSE),0) -> 2 | P127: =IFERROR(VLOOKUP($A127,Filtro!$A$4:$AX$1932,14,FALSE),0) -> 5 | Q127: =IFERROR(VLOOKUP($A127,Filtro!$A$4:$AX$1932,15,FALSE),0) -> 5 | R127: =IFERROR(VLOOKUP($A127,Filtro!$A$4:$AX$1932,16,FALSE),0) -> 0 | S127: =IFERROR(VLOOKUP($A127,Filtro!$A$4:$AX$1932,17,FALSE),0) -> 0 | T127: =IFERROR(VLOOKUP($A127,Filtro!$A$4:$AX$1932,18,FALSE),0) -> 0 | U127: =IFERROR(VLOOKUP($A127,Filtro!$A$4:$AX$1932,19,FALSE),0) -> 3 | V127: =IFERROR(VLOOKUP($A127,Filtro!$A$4:$AX$1932,20,FALSE),0) -> 10 | W127: =IFERROR(VLOOKUP($A127,Filtro!$A$4:$AX$1932,21,FALSE),0) -> 1 | X127: =IFERROR(VLOOKUP($A127,Filtro!$A$4:$AX$1932,22,FALSE),0) -> 3 | Y127: =IFERROR(VLOOKUP($A127,Filtro!$A$4:$AX$1932,23,FALSE),0) -> 4 | Z127: =IFERROR(VLOOKUP($A127,Filtro!$A$4:$AX$1932,24,FALSE),0) -> 7 | AA127: =IFERROR(VLOOKUP($A127,Filtro!$A$4:$AX$1932,25,FALSE),0) -> 4 | AB127: =IFERROR(VLOOKUP($A127,Filtro!$A$4:$AX$1932,26,FALSE),0) -> 5
A128: 03052900 | C128: DISCAPACIDAD PROFUNDA | D128: =IFERROR(VLOOKUP($A128,Filtro!$A$4:$AX$1932,2,FALSE),0) -> 16 | E128: =IFERROR(VLOOKUP($A128,Filtro!$A$4:$AX$1932,3,FALSE),0) -> 5 | F128: =IFERROR(VLOOKUP($A128,Filtro!$A$4:$AX$1932,4,FALSE),0) -> 11 | G128: =IFERROR(VLOOKUP($A128,Filtro!$A$4:$AX$1932,5,FALSE),0) -> 0 | H128: =IFERROR(VLOOKUP($A128,Filtro!$A$4:$AX$1932,6,FALSE),0) -> 0 | I128: =IFERROR(VLOOKUP($A128,Filtro!$A$4:$AX$1932,7,FALSE),0) -> 1 | J128: =IFERROR(VLOOKUP($A128,Filtro!$A$4:$AX$1932,8,FALSE),0) -> 0 | K128: =IFERROR(VLOOKUP($A128,Filtro!$A$4:$AX$1932,9,FALSE),0) -> 1 | L128: =IFERROR(VLOOKUP($A128,Filtro!$A$4:$AX$1932,10,FALSE),0) -> 0 | M128: =IFERROR(VLOOKUP($A128,Filtro!$A$4:$AX$1932,11,FALSE),0) -> 2 | N128: =IFERROR(VLOOKUP($A128,Filtro!$A$4:$AX$1932,12,FALSE),0) -> 0 | O128: =IFERROR(VLOOKUP($A128,Filtro!$A$4:$AX$1932,13,FALSE),0) -> 0 | P128: =IFERROR(VLOOKUP($A128,Filtro!$A$4:$AX$1932,14,FALSE),0) -> 0 | Q128: =IFERROR(VLOOKUP($A128,Filtro!$A$4:$AX$1932,15,FALSE),0) -> 0 | R128: =IFERROR(VLOOKUP($A128,Filtro!$A$4:$AX$1932,16,FALSE),0) -> 0 | S128: =IFERROR(VLOOKUP($A128,Filtro!$A$4:$AX$1932,17,FALSE),0) -> 0 | T128: =IFERROR(VLOOKUP($A128,Filtro!$A$4:$AX$1932,18,FALSE),0) -> 0 | U128: =IFERROR(VLOOKUP($A128,Filtro!$A$4:$AX$1932,19,FALSE),0) -> 0 | V128: =IFERROR(VLOOKUP($A128,Filtro!$A$4:$AX$1932,20,FALSE),0) -> 2 | W128: =IFERROR(VLOOKUP($A128,Filtro!$A$4:$AX$1932,21,FALSE),0) -> 0 | X128: =IFERROR(VLOOKUP($A128,Filtro!$A$4:$AX$1932,22,FALSE),0) -> 0 | Y128: =IFERROR(VLOOKUP($A128,Filtro!$A$4:$AX$1932,23,FALSE),0) -> 0 | Z128: =IFERROR(VLOOKUP($A128,Filtro!$A$4:$AX$1932,24,FALSE),0) -> 2 | AA128: =IFERROR(VLOOKUP($A128,Filtro!$A$4:$AX$1932,25,FALSE),0) -> 1 | AB128: =IFERROR(VLOOKUP($A128,Filtro!$A$4:$AX$1932,26,FALSE),0) -> 7
A129: 03053000 | B129: ORIGEN MENTAL INTELECTUAL | C129: SIN DISCAPACIDAD | D129: =IFERROR(VLOOKUP($A129,Filtro!$A$4:$AX$1932,2,FALSE),0) -> 10 | E129: =IFERROR(VLOOKUP($A129,Filtro!$A$4:$AX$1932,3,FALSE),0) -> 3 | F129: =IFERROR(VLOOKUP($A129,Filtro!$A$4:$AX$1932,4,FALSE),0) -> 7 | G129: =IFERROR(VLOOKUP($A129,Filtro!$A$4:$AX$1932,5,FALSE),0) -> 0 | H129: =IFERROR(VLOOKUP($A129,Filtro!$A$4:$AX$1932,6,FALSE),0) -> 0 | I129: =IFERROR(VLOOKUP($A129,Filtro!$A$4:$AX$1932,7,FALSE),0) -> 0 | J129: =IFERROR(VLOOKUP($A129,Filtro!$A$4:$AX$1932,8,FALSE),0) -> 0 | K129: =IFERROR(VLOOKUP($A129,Filtro!$A$4:$AX$1932,9,FALSE),0) -> 1 | L129: =IFERROR(VLOOKUP($A129,Filtro!$A$4:$AX$1932,10,FALSE),0) -> 1 | M129: =IFERROR(VLOOKUP($A129,Filtro!$A$4:$AX$1932,11,FALSE),0) -> 0 | N129: =IFERROR(VLOOKUP($A129,Filtro!$A$4:$AX$1932,12,FALSE),0) -> 0 | O129: =IFERROR(VLOOKUP($A129,Filtro!$A$4:$AX$1932,13,FALSE),0) -> 0 | P129: =IFERROR(VLOOKUP($A129,Filtro!$A$4:$AX$1932,14,FALSE),0) -> 0 | Q129: =IFERROR(VLOOKUP($A129,Filtro!$A$4:$AX$1932,15,FALSE),0) -> 0 | R129: =IFERROR(VLOOKUP($A129,Filtro!$A$4:$AX$1932,16,FALSE),0) -> 0 | S129: =IFERROR(VLOOKUP($A129,Filtro!$A$4:$AX$1932,17,FALSE),0) -> 0 | T129: =IFERROR(VLOOKUP($A129,Filtro!$A$4:$AX$1932,18,FALSE),0) -> 1 | U129: =IFERROR(VLOOKUP($A129,Filtro!$A$4:$AX$1932,19,FALSE),0) -> 1 | V129: =IFERROR(VLOOKUP($A129,Filtro!$A$4:$AX$1932,20,FALSE),0) -> 3 | W129: =IFERROR(VLOOKUP($A129,Filtro!$A$4:$AX$1932,21,FALSE),0) -> 0 | X129: =IFERROR(VLOOKUP($A129,Filtro!$A$4:$AX$1932,22,FALSE),0) -> 0 | Y129: =IFERROR(VLOOKUP($A129,Filtro!$A$4:$AX$1932,23,FALSE),0) -> 1 | Z129: =IFERROR(VLOOKUP($A129,Filtro!$A$4:$AX$1932,24,FALSE),0) -> 1 | AA129: =IFERROR(VLOOKUP($A129,Filtro!$A$4:$AX$1932,25,FALSE),0) -> 0 | AB129: =IFERROR(VLOOKUP($A129,Filtro!$A$4:$AX$1932,26,FALSE),0) -> 1
A130: 03053100 | C130: DISCAPACIDAD LEVE | D130: =IFERROR(VLOOKUP($A130,Filtro!$A$4:$AX$1932,2,FALSE),0) -> 5 | E130: =IFERROR(VLOOKUP($A130,Filtro!$A$4:$AX$1932,3,FALSE),0) -> 3 | F130: =IFERROR(VLOOKUP($A130,Filtro!$A$4:$AX$1932,4,FALSE),0) -> 2 | G130: =IFERROR(VLOOKUP($A130,Filtro!$A$4:$AX$1932,5,FALSE),0) -> 0 | H130: =IFERROR(VLOOKUP($A130,Filtro!$A$4:$AX$1932,6,FALSE),0) -> 0 | I130: =IFERROR(VLOOKUP($A130,Filtro!$A$4:$AX$1932,7,FALSE),0) -> 0 | J130: =IFERROR(VLOOKUP($A130,Filtro!$A$4:$AX$1932,8,FALSE),0) -> 0 | K130: =IFERROR(VLOOKUP($A130,Filtro!$A$4:$AX$1932,9,FALSE),0) -> 0 | L130: =IFERROR(VLOOKUP($A130,Filtro!$A$4:$AX$1932,10,FALSE),0) -> 0 | M130: =IFERROR(VLOOKUP($A130,Filtro!$A$4:$AX$1932,11,FALSE),0) -> 0 | N130: =IFERROR(VLOOKUP($A130,Filtro!$A$4:$AX$1932,12,FALSE),0) -> 0 | O130: =IFERROR(VLOOKUP($A130,Filtro!$A$4:$AX$1932,13,FALSE),0) -> 0 | P130: =IFERROR(VLOOKUP($A130,Filtro!$A$4:$AX$1932,14,FALSE),0) -> 0 | Q130: =IFERROR(VLOOKUP($A130,Filtro!$A$4:$AX$1932,15,FALSE),0) -> 0 | R130: =IFERROR(VLOOKUP($A130,Filtro!$A$4:$AX$1932,16,FALSE),0) -> 0 | S130: =IFERROR(VLOOKUP($A130,Filtro!$A$4:$AX$1932,17,FALSE),0) -> 2 | T130: =IFERROR(VLOOKUP($A130,Filtro!$A$4:$AX$1932,18,FALSE),0) -> 0 | U130: =IFERROR(VLOOKUP($A130,Filtro!$A$4:$AX$1932,19,FALSE),0) -> 1 | V130: =IFERROR(VLOOKUP($A130,Filtro!$A$4:$AX$1932,20,FALSE),0) -> 2 | W130: =IFERROR(VLOOKUP($A130,Filtro!$A$4:$AX$1932,21,FALSE),0) -> 0 | X130: =IFERROR(VLOOKUP($A130,Filtro!$A$4:$AX$1932,22,FALSE),0) -> 0 | Y130: =IFERROR(VLOOKUP($A130,Filtro!$A$4:$AX$1932,23,FALSE),0) -> 0 | Z130: =IFERROR(VLOOKUP($A130,Filtro!$A$4:$AX$1932,24,FALSE),0) -> 0 | AA130: =IFERROR(VLOOKUP($A130,Filtro!$A$4:$AX$1932,25,FALSE),0) -> 0 | AB130: =IFERROR(VLOOKUP($A130,Filtro!$A$4:$AX$1932,26,FALSE),0) -> 0
A131: 03053200 | C131: DISCAPACIDAD MODERADA | D131: =IFERROR(VLOOKUP($A131,Filtro!$A$4:$AX$1932,2,FALSE),0) -> 17 | E131: =IFERROR(VLOOKUP($A131,Filtro!$A$4:$AX$1932,3,FALSE),0) -> 10 | F131: =IFERROR(VLOOKUP($A131,Filtro!$A$4:$AX$1932,4,FALSE),0) -> 7 | G131: =IFERROR(VLOOKUP($A131,Filtro!$A$4:$AX$1932,5,FALSE),0) -> 0 | H131: =IFERROR(VLOOKUP($A131,Filtro!$A$4:$AX$1932,6,FALSE),0) -> 0 | I131: =IFERROR(VLOOKUP($A131,Filtro!$A$4:$AX$1932,7,FALSE),0) -> 0 | J131: =IFERROR(VLOOKUP($A131,Filtro!$A$4:$AX$1932,8,FALSE),0) -> 0 | K131: =IFERROR(VLOOKUP($A131,Filtro!$A$4:$AX$1932,9,FALSE),0) -> 1 | L131: =IFERROR(VLOOKUP($A131,Filtro!$A$4:$AX$1932,10,FALSE),0) -> 1 | M131: =IFERROR(VLOOKUP($A131,Filtro!$A$4:$AX$1932,11,FALSE),0) -> 1 | N131: =IFERROR(VLOOKUP($A131,Filtro!$A$4:$AX$1932,12,FALSE),0) -> 1 | O131: =IFERROR(VLOOKUP($A131,Filtro!$A$4:$AX$1932,13,FALSE),0) -> 2 | P131: =IFERROR(VLOOKUP($A131,Filtro!$A$4:$AX$1932,14,FALSE),0) -> 0 | Q131: =IFERROR(VLOOKUP($A131,Filtro!$A$4:$AX$1932,15,FALSE),0) -> 3 | R131: =IFERROR(VLOOKUP($A131,Filtro!$A$4:$AX$1932,16,FALSE),0) -> 1 | S131: =IFERROR(VLOOKUP($A131,Filtro!$A$4:$AX$1932,17,FALSE),0) -> 0 | T131: =IFERROR(VLOOKUP($A131,Filtro!$A$4:$AX$1932,18,FALSE),0) -> 1 | U131: =IFERROR(VLOOKUP($A131,Filtro!$A$4:$AX$1932,19,FALSE),0) -> 3 | V131: =IFERROR(VLOOKUP($A131,Filtro!$A$4:$AX$1932,20,FALSE),0) -> 3 | W131: =IFERROR(VLOOKUP($A131,Filtro!$A$4:$AX$1932,21,FALSE),0) -> 0 | X131: =IFERROR(VLOOKUP($A131,Filtro!$A$4:$AX$1932,22,FALSE),0) -> 0 | Y131: =IFERROR(VLOOKUP($A131,Filtro!$A$4:$AX$1932,23,FALSE),0) -> 0 | Z131: =IFERROR(VLOOKUP($A131,Filtro!$A$4:$AX$1932,24,FALSE),0) -> 0 | AA131: =IFERROR(VLOOKUP($A131,Filtro!$A$4:$AX$1932,25,FALSE),0) -> 0 | AB131: =IFERROR(VLOOKUP($A131,Filtro!$A$4:$AX$1932,26,FALSE),0) -> 0
A132: 03053300 | C132: DISCAPACIDAD SEVERA | D132: =IFERROR(VLOOKUP($A132,Filtro!$A$4:$AX$1932,2,FALSE),0) -> 27 | E132: =IFERROR(VLOOKUP($A132,Filtro!$A$4:$AX$1932,3,FALSE),0) -> 15 | F132: =IFERROR(VLOOKUP($A132,Filtro!$A$4:$AX$1932,4,FALSE),0) -> 12 | G132: =IFERROR(VLOOKUP($A132,Filtro!$A$4:$AX$1932,5,FALSE),0) -> 0 | H132: =IFERROR(VLOOKUP($A132,Filtro!$A$4:$AX$1932,6,FALSE),0) -> 0 | I132: =IFERROR(VLOOKUP($A132,Filtro!$A$4:$AX$1932,7,FALSE),0) -> 0 | J132: =IFERROR(VLOOKUP($A132,Filtro!$A$4:$AX$1932,8,FALSE),0) -> 0 | K132: =IFERROR(VLOOKUP($A132,Filtro!$A$4:$AX$1932,9,FALSE),0) -> 1 | L132: =IFERROR(VLOOKUP($A132,Filtro!$A$4:$AX$1932,10,FALSE),0) -> 1 | M132: =IFERROR(VLOOKUP($A132,Filtro!$A$4:$AX$1932,11,FALSE),0) -> 3 | N132: =IFERROR(VLOOKUP($A132,Filtro!$A$4:$AX$1932,12,FALSE),0) -> 1 | O132: =IFERROR(VLOOKUP($A132,Filtro!$A$4:$AX$1932,13,FALSE),0) -> 1 | P132: =IFERROR(VLOOKUP($A132,Filtro!$A$4:$AX$1932,14,FALSE),0) -> 1 | Q132: =IFERROR(VLOOKUP($A132,Filtro!$A$4:$AX$1932,15,FALSE),0) -> 2 | R132: =IFERROR(VLOOKUP($A132,Filtro!$A$4:$AX$1932,16,FALSE),0) -> 1 | S132: =IFERROR(VLOOKUP($A132,Filtro!$A$4:$AX$1932,17,FALSE),0) -> 0 | T132: =IFERROR(VLOOKUP($A132,Filtro!$A$4:$AX$1932,18,FALSE),0) -> 0 | U132: =IFERROR(VLOOKUP($A132,Filtro!$A$4:$AX$1932,19,FALSE),0) -> 8 | V132: =IFERROR(VLOOKUP($A132,Filtro!$A$4:$AX$1932,20,FALSE),0) -> 7 | W132: =IFERROR(VLOOKUP($A132,Filtro!$A$4:$AX$1932,21,FALSE),0) -> 0 | X132: =IFERROR(VLOOKUP($A132,Filtro!$A$4:$AX$1932,22,FALSE),0) -> 0 | Y132: =IFERROR(VLOOKUP($A132,Filtro!$A$4:$AX$1932,23,FALSE),0) -> 0 | Z132: =IFERROR(VLOOKUP($A132,Filtro!$A$4:$AX$1932,24,FALSE),0) -> 1 | AA132: =IFERROR(VLOOKUP($A132,Filtro!$A$4:$AX$1932,25,FALSE),0) -> 0 | AB132: =IFERROR(VLOOKUP($A132,Filtro!$A$4:$AX$1932,26,FALSE),0) -> 0
A133: 03053400 | C133: DISCAPACIDAD PROFUNDA | D133: =IFERROR(VLOOKUP($A133,Filtro!$A$4:$AX$1932,2,FALSE),0) -> 8 | E133: =IFERROR(VLOOKUP($A133,Filtro!$A$4:$AX$1932,3,FALSE),0) -> 3 | F133: =IFERROR(VLOOKUP($A133,Filtro!$A$4:$AX$1932,4,FALSE),0) -> 5 | G133: =IFERROR(VLOOKUP($A133,Filtro!$A$4:$AX$1932,5,FALSE),0) -> 0 | H133: =IFERROR(VLOOKUP($A133,Filtro!$A$4:$AX$1932,6,FALSE),0) -> 0 | I133: =IFERROR(VLOOKUP($A133,Filtro!$A$4:$AX$1932,7,FALSE),0) -> 0 | J133: =IFERROR(VLOOKUP($A133,Filtro!$A$4:$AX$1932,8,FALSE),0) -> 0 | K133: =IFERROR(VLOOKUP($A133,Filtro!$A$4:$AX$1932,9,FALSE),0) -> 0 | L133: =IFERROR(VLOOKUP($A133,Filtro!$A$4:$AX$1932,10,FALSE),0) -> 0 | M133: =IFERROR(VLOOKUP($A133,Filtro!$A$4:$AX$1932,11,FALSE),0) -> 3 | N133: =IFERROR(VLOOKUP($A133,Filtro!$A$4:$AX$1932,12,FALSE),0) -> 1 | O133: =IFERROR(VLOOKUP($A133,Filtro!$A$4:$AX$1932,13,FALSE),0) -> 0 | P133: =IFERROR(VLOOKUP($A133,Filtro!$A$4:$AX$1932,14,FALSE),0) -> 0 | Q133: =IFERROR(VLOOKUP($A133,Filtro!$A$4:$AX$1932,15,FALSE),0) -> 0 | R133: =IFERROR(VLOOKUP($A133,Filtro!$A$4:$AX$1932,16,FALSE),0) -> 0 | S133: =IFERROR(VLOOKUP($A133,Filtro!$A$4:$AX$1932,17,FALSE),0) -> 0 | T133: =IFERROR(VLOOKUP($A133,Filtro!$A$4:$AX$1932,18,FALSE),0) -> 0 | U133: =IFERROR(VLOOKUP($A133,Filtro!$A$4:$AX$1932,19,FALSE),0) -> 0 | V133: =IFERROR(VLOOKUP($A133,Filtro!$A$4:$AX$1932,20,FALSE),0) -> 1 | W133: =IFERROR(VLOOKUP($A133,Filtro!$A$4:$AX$1932,21,FALSE),0) -> 0 | X133: =IFERROR(VLOOKUP($A133,Filtro!$A$4:$AX$1932,22,FALSE),0) -> 0 | Y133: =IFERROR(VLOOKUP($A133,Filtro!$A$4:$AX$1932,23,FALSE),0) -> 0 | Z133: =IFERROR(VLOOKUP($A133,Filtro!$A$4:$AX$1932,24,FALSE),0) -> 0 | AA133: =IFERROR(VLOOKUP($A133,Filtro!$A$4:$AX$1932,25,FALSE),0) -> 0 | AB133: =IFERROR(VLOOKUP($A133,Filtro!$A$4:$AX$1932,26,FALSE),0) -> 3
A134: 03053500 | B134: ORIGEN MÚLTIPLE | C134: SIN DISCAPACIDAD | D134: =IFERROR(VLOOKUP($A134,Filtro!$A$4:$AX$1932,2,FALSE),0) -> 7 | E134: =IFERROR(VLOOKUP($A134,Filtro!$A$4:$AX$1932,3,FALSE),0) -> 3 | F134: =IFERROR(VLOOKUP($A134,Filtro!$A$4:$AX$1932,4,FALSE),0) -> 4 | G134: =IFERROR(VLOOKUP($A134,Filtro!$A$4:$AX$1932,5,FALSE),0) -> 0 | H134: =IFERROR(VLOOKUP($A134,Filtro!$A$4:$AX$1932,6,FALSE),0) -> 0 | I134: =IFERROR(VLOOKUP($A134,Filtro!$A$4:$AX$1932,7,FALSE),0) -> 0 | J134: =IFERROR(VLOOKUP($A134,Filtro!$A$4:$AX$1932,8,FALSE),0) -> 0 | K134: =IFERROR(VLOOKUP($A134,Filtro!$A$4:$AX$1932,9,FALSE),0) -> 1 | L134: =IFERROR(VLOOKUP($A134,Filtro!$A$4:$AX$1932,10,FALSE),0) -> 1 | M134: =IFERROR(VLOOKUP($A134,Filtro!$A$4:$AX$1932,11,FALSE),0) -> 0 | N134: =IFERROR(VLOOKUP($A134,Filtro!$A$4:$AX$1932,12,FALSE),0) -> 0 | O134: =IFERROR(VLOOKUP($A134,Filtro!$A$4:$AX$1932,13,FALSE),0) -> 0 | P134: =IFERROR(VLOOKUP($A134,Filtro!$A$4:$AX$1932,14,FALSE),0) -> 0 | Q134: =IFERROR(VLOOKUP($A134,Filtro!$A$4:$AX$1932,15,FALSE),0) -> 0 | R134: =IFERROR(VLOOKUP($A134,Filtro!$A$4:$AX$1932,16,FALSE),0) -> 0 | S134: =IFERROR(VLOOKUP($A134,Filtro!$A$4:$AX$1932,17,FALSE),0) -> 0 | T134: =IFERROR(VLOOKUP($A134,Filtro!$A$4:$AX$1932,18,FALSE),0) -> 1 | U134: =IFERROR(VLOOKUP($A134,Filtro!$A$4:$AX$1932,19,FALSE),0) -> 1 | V134: =IFERROR(VLOOKUP($A134,Filtro!$A$4:$AX$1932,20,FALSE),0) -> 1 | W134: =IFERROR(VLOOKUP($A134,Filtro!$A$4:$AX$1932,21,FALSE),0) -> 0 | X134: =IFERROR(VLOOKUP($A134,Filtro!$A$4:$AX$1932,22,FALSE),0) -> 0 | Y134: =IFERROR(VLOOKUP($A134,Filtro!$A$4:$AX$1932,23,FALSE),0) -> 1 | Z134: =IFERROR(VLOOKUP($A134,Filtro!$A$4:$AX$1932,24,FALSE),0) -> 1 | AA134: =IFERROR(VLOOKUP($A134,Filtro!$A$4:$AX$1932,25,FALSE),0) -> 0 | AB134: =IFERROR(VLOOKUP($A134,Filtro!$A$4:$AX$1932,26,FALSE),0) -> 0
A135: 03053600 | C135: DISCAPACIDAD LEVE | D135: =IFERROR(VLOOKUP($A135,Filtro!$A$4:$AX$1932,2,FALSE),0) -> 1 | E135: =IFERROR(VLOOKUP($A135,Filtro!$A$4:$AX$1932,3,FALSE),0) -> 1 | F135: =IFERROR(VLOOKUP($A135,Filtro!$A$4:$AX$1932,4,FALSE),0) -> 0 | G135: =IFERROR(VLOOKUP($A135,Filtro!$A$4:$AX$1932,5,FALSE),0) -> 0 | H135: =IFERROR(VLOOKUP($A135,Filtro!$A$4:$AX$1932,6,FALSE),0) -> 0 | I135: =IFERROR(VLOOKUP($A135,Filtro!$A$4:$AX$1932,7,FALSE),0) -> 0 | J135: =IFERROR(VLOOKUP($A135,Filtro!$A$4:$AX$1932,8,FALSE),0) -> 0 | K135: =IFERROR(VLOOKUP($A135,Filtro!$A$4:$AX$1932,9,FALSE),0) -> 0 | L135: =IFERROR(VLOOKUP($A135,Filtro!$A$4:$AX$1932,10,FALSE),0) -> 0 | M135: =IFERROR(VLOOKUP($A135,Filtro!$A$4:$AX$1932,11,FALSE),0) -> 1 | N135: =IFERROR(VLOOKUP($A135,Filtro!$A$4:$AX$1932,12,FALSE),0) -> 0 | O135: =IFERROR(VLOOKUP($A135,Filtro!$A$4:$AX$1932,13,FALSE),0) -> 0 | P135: =IFERROR(VLOOKUP($A135,Filtro!$A$4:$AX$1932,14,FALSE),0) -> 0 | Q135: =IFERROR(VLOOKUP($A135,Filtro!$A$4:$AX$1932,15,FALSE),0) -> 0 | R135: =IFERROR(VLOOKUP($A135,Filtro!$A$4:$AX$1932,16,FALSE),0) -> 0 | S135: =IFERROR(VLOOKUP($A135,Filtro!$A$4:$AX$1932,17,FALSE),0) -> 0 | T135: =IFERROR(VLOOKUP($A135,Filtro!$A$4:$AX$1932,18,FALSE),0) -> 0 | U135: =IFERROR(VLOOKUP($A135,Filtro!$A$4:$AX$1932,19,FALSE),0) -> 0 | V135: =IFERROR(VLOOKUP($A135,Filtro!$A$4:$AX$1932,20,FALSE),0) -> 0 | W135: =IFERROR(VLOOKUP($A135,Filtro!$A$4:$AX$1932,21,FALSE),0) -> 0 | X135: =IFERROR(VLOOKUP($A135,Filtro!$A$4:$AX$1932,22,FALSE),0) -> 0 | Y135: =IFERROR(VLOOKUP($A135,Filtro!$A$4:$AX$1932,23,FALSE),0) -> 0 | Z135: =IFERROR(VLOOKUP($A135,Filtro!$A$4:$AX$1932,24,FALSE),0) -> 0 | AA135: =IFERROR(VLOOKUP($A135,Filtro!$A$4:$AX$1932,25,FALSE),0) -> 0 | AB135: =IFERROR(VLOOKUP($A135,Filtro!$A$4:$AX$1932,26,FALSE),0) -> 0
A136: 03053700 | C136: DISCAPACIDAD MODERADA | D136: =IFERROR(VLOOKUP($A136,Filtro!$A$4:$AX$1932,2,FALSE),0) -> 17 | E136: =IFERROR(VLOOKUP($A136,Filtro!$A$4:$AX$1932,3,FALSE),0) -> 10 | F136: =IFERROR(VLOOKUP($A136,Filtro!$A$4:$AX$1932,4,FALSE),0) -> 7 | G136: =IFERROR(VLOOKUP($A136,Filtro!$A$4:$AX$1932,5,FALSE),0) -> 0 | H136: =IFERROR(VLOOKUP($A136,Filtro!$A$4:$AX$1932,6,FALSE),0) -> 0 | I136: =IFERROR(VLOOKUP($A136,Filtro!$A$4:$AX$1932,7,FALSE),0) -> 0 | J136: =IFERROR(VLOOKUP($A136,Filtro!$A$4:$AX$1932,8,FALSE),0) -> 0 | K136: =IFERROR(VLOOKUP($A136,Filtro!$A$4:$AX$1932,9,FALSE),0) -> 0 | L136: =IFERROR(VLOOKUP($A136,Filtro!$A$4:$AX$1932,10,FALSE),0) -> 0 | M136: =IFERROR(VLOOKUP($A136,Filtro!$A$4:$AX$1932,11,FALSE),0) -> 0 | N136: =IFERROR(VLOOKUP($A136,Filtro!$A$4:$AX$1932,12,FALSE),0) -> 0 | O136: =IFERROR(VLOOKUP($A136,Filtro!$A$4:$AX$1932,13,FALSE),0) -> 0 | P136: =IFERROR(VLOOKUP($A136,Filtro!$A$4:$AX$1932,14,FALSE),0) -> 0 | Q136: =IFERROR(VLOOKUP($A136,Filtro!$A$4:$AX$1932,15,FALSE),0) -> 0 | R136: =IFERROR(VLOOKUP($A136,Filtro!$A$4:$AX$1932,16,FALSE),0) -> 0 | S136: =IFERROR(VLOOKUP($A136,Filtro!$A$4:$AX$1932,17,FALSE),0) -> 0 | T136: =IFERROR(VLOOKUP($A136,Filtro!$A$4:$AX$1932,18,FALSE),0) -> 1 | U136: =IFERROR(VLOOKUP($A136,Filtro!$A$4:$AX$1932,19,FALSE),0) -> 7 | V136: =IFERROR(VLOOKUP($A136,Filtro!$A$4:$AX$1932,20,FALSE),0) -> 6 | W136: =IFERROR(VLOOKUP($A136,Filtro!$A$4:$AX$1932,21,FALSE),0) -> 1 | X136: =IFERROR(VLOOKUP($A136,Filtro!$A$4:$AX$1932,22,FALSE),0) -> 0 | Y136: =IFERROR(VLOOKUP($A136,Filtro!$A$4:$AX$1932,23,FALSE),0) -> 2 | Z136: =IFERROR(VLOOKUP($A136,Filtro!$A$4:$AX$1932,24,FALSE),0) -> 0 | AA136: =IFERROR(VLOOKUP($A136,Filtro!$A$4:$AX$1932,25,FALSE),0) -> 0 | AB136: =IFERROR(VLOOKUP($A136,Filtro!$A$4:$AX$1932,26,FALSE),0) -> 0
A137: 03053800 | C137: DISCAPACIDAD SEVERA | D137: =IFERROR(VLOOKUP($A137,Filtro!$A$4:$AX$1932,2,FALSE),0) -> 87 | E137: =IFERROR(VLOOKUP($A137,Filtro!$A$4:$AX$1932,3,FALSE),0) -> 46 | F137: =IFERROR(VLOOKUP($A137,Filtro!$A$4:$AX$1932,4,FALSE),0) -> 41 | G137: =IFERROR(VLOOKUP($A137,Filtro!$A$4:$AX$1932,5,FALSE),0) -> 0 | H137: =IFERROR(VLOOKUP($A137,Filtro!$A$4:$AX$1932,6,FALSE),0) -> 0 | I137: =IFERROR(VLOOKUP($A137,Filtro!$A$4:$AX$1932,7,FALSE),0) -> 0 | J137: =IFERROR(VLOOKUP($A137,Filtro!$A$4:$AX$1932,8,FALSE),0) -> 0 | K137: =IFERROR(VLOOKUP($A137,Filtro!$A$4:$AX$1932,9,FALSE),0) -> 0 | L137: =IFERROR(VLOOKUP($A137,Filtro!$A$4:$AX$1932,10,FALSE),0) -> 3 | M137: =IFERROR(VLOOKUP($A137,Filtro!$A$4:$AX$1932,11,FALSE),0) -> 6 | N137: =IFERROR(VLOOKUP($A137,Filtro!$A$4:$AX$1932,12,FALSE),0) -> 4 | O137: =IFERROR(VLOOKUP($A137,Filtro!$A$4:$AX$1932,13,FALSE),0) -> 3 | P137: =IFERROR(VLOOKUP($A137,Filtro!$A$4:$AX$1932,14,FALSE),0) -> 0 | Q137: =IFERROR(VLOOKUP($A137,Filtro!$A$4:$AX$1932,15,FALSE),0) -> 4 | R137: =IFERROR(VLOOKUP($A137,Filtro!$A$4:$AX$1932,16,FALSE),0) -> 3 | S137: =IFERROR(VLOOKUP($A137,Filtro!$A$4:$AX$1932,17,FALSE),0) -> 6 | T137: =IFERROR(VLOOKUP($A137,Filtro!$A$4:$AX$1932,18,FALSE),0) -> 4 | U137: =IFERROR(VLOOKUP($A137,Filtro!$A$4:$AX$1932,19,FALSE),0) -> 19 | V137: =IFERROR(VLOOKUP($A137,Filtro!$A$4:$AX$1932,20,FALSE),0) -> 19 | W137: =IFERROR(VLOOKUP($A137,Filtro!$A$4:$AX$1932,21,FALSE),0) -> 3 | X137: =IFERROR(VLOOKUP($A137,Filtro!$A$4:$AX$1932,22,FALSE),0) -> 2 | Y137: =IFERROR(VLOOKUP($A137,Filtro!$A$4:$AX$1932,23,FALSE),0) -> 3 | Z137: =IFERROR(VLOOKUP($A137,Filtro!$A$4:$AX$1932,24,FALSE),0) -> 2 | AA137: =IFERROR(VLOOKUP($A137,Filtro!$A$4:$AX$1932,25,FALSE),0) -> 2 | AB137: =IFERROR(VLOOKUP($A137,Filtro!$A$4:$AX$1932,26,FALSE),0) -> 4
A138: 03053900 | C138: DISCAPACIDAD PROFUNDA | D138: =IFERROR(VLOOKUP($A138,Filtro!$A$4:$AX$1932,2,FALSE),0) -> 16 | E138: =IFERROR(VLOOKUP($A138,Filtro!$A$4:$AX$1932,3,FALSE),0) -> 6 | F138: =IFERROR(VLOOKUP($A138,Filtro!$A$4:$AX$1932,4,FALSE),0) -> 10 | G138: =IFERROR(VLOOKUP($A138,Filtro!$A$4:$AX$1932,5,FALSE),0) -> 0 | H138: =IFERROR(VLOOKUP($A138,Filtro!$A$4:$AX$1932,6,FALSE),0) -> 0 | I138: =IFERROR(VLOOKUP($A138,Filtro!$A$4:$AX$1932,7,FALSE),0) -> 0 | J138: =IFERROR(VLOOKUP($A138,Filtro!$A$4:$AX$1932,8,FALSE),0) -> 0 | K138: =IFERROR(VLOOKUP($A138,Filtro!$A$4:$AX$1932,9,FALSE),0) -> 1 | L138: =IFERROR(VLOOKUP($A138,Filtro!$A$4:$AX$1932,10,FALSE),0) -> 0 | M138: =IFERROR(VLOOKUP($A138,Filtro!$A$4:$AX$1932,11,FALSE),0) -> 3 | N138: =IFERROR(VLOOKUP($A138,Filtro!$A$4:$AX$1932,12,FALSE),0) -> 0 | O138: =IFERROR(VLOOKUP($A138,Filtro!$A$4:$AX$1932,13,FALSE),0) -> 0 | P138: =IFERROR(VLOOKUP($A138,Filtro!$A$4:$AX$1932,14,FALSE),0) -> 0 | Q138: =IFERROR(VLOOKUP($A138,Filtro!$A$4:$AX$1932,15,FALSE),0) -> 0 | R138: =IFERROR(VLOOKUP($A138,Filtro!$A$4:$AX$1932,16,FALSE),0) -> 0 | S138: =IFERROR(VLOOKUP($A138,Filtro!$A$4:$AX$1932,17,FALSE),0) -> 0 | T138: =IFERROR(VLOOKUP($A138,Filtro!$A$4:$AX$1932,18,FALSE),0) -> 1 | U138: =IFERROR(VLOOKUP($A138,Filtro!$A$4:$AX$1932,19,FALSE),0) -> 1 | V138: =IFERROR(VLOOKUP($A138,Filtro!$A$4:$AX$1932,20,FALSE),0) -> 3 | W138: =IFERROR(VLOOKUP($A138,Filtro!$A$4:$AX$1932,21,FALSE),0) -> 0 | X138: =IFERROR(VLOOKUP($A138,Filtro!$A$4:$AX$1932,22,FALSE),0) -> 0 | Y138: =IFERROR(VLOOKUP($A138,Filtro!$A$4:$AX$1932,23,FALSE),0) -> 0 | Z138: =IFERROR(VLOOKUP($A138,Filtro!$A$4:$AX$1932,24,FALSE),0) -> 3 | AA138: =IFERROR(VLOOKUP($A138,Filtro!$A$4:$AX$1932,25,FALSE),0) -> 1 | AB138: =IFERROR(VLOOKUP($A138,Filtro!$A$4:$AX$1932,26,FALSE),0) -> 3
B139: TOTAL DE EVALUACIONES | D139: =SUM(D109:D138) -> 799 | E139: 439 | F139: 360 | G139: 3 | H139: 0 | I139: 3 | J139: 3 | K139: 34 | L139: 20 | M139: 51 | N139: 12 | O139: 16 | P139: 7 | Q139: 18 | R139: 6 | S139: 13 | T139: 18 | U139: 190 | V139: 183 | W139: 30 | X139: 18 | Y139: 59 | Z139: 44 | AA139: 22 | AB139: 49
